Workbook

Sheet ACCUEILPRO
A1: Accueil
F7: =ACCUEIL!F7 -> 2022-09-25

Sheet ACCUEILPREM
A1: Accueil
F7: =ACCUEIL!F7 -> 2022-09-25

Sheet ACCUEILGP
A1: Accueil
F7: =ACCUEIL!F7 -> 2022-09-25

Sheet ACCUEIL
F7: 2022-09-25

Sheet Accueilagence
A1: Accueil
E7: =ACCUEIL!F7 -> 2022-09-25

Sheet Accueilsecteur
A1: Accueil
E7: =ACCUEIL!F7 -> 2022-09-25

Sheet AccueilDircom
A1: Accueil
E7: =ACCUEIL!F7 -> 2022-09-25

Sheet DC_FICHE
A1: Accueil
A2: BAROMETRE BDD
A4: UNITE: | B4: DIRECTION REGIONALE | E4: ETP perf : | F4: =VLOOKUP(A5,'RECAP DIRCOM'!$G$6:$I$12,3,FALSE) -> 220.14
A5: =VLOOKUP(B5,LISTES!$M$6:$N$12,2,FALSE) -> 262 | B5: BAS-RHIN
C6: Coefficient du critére | E6: Résultats | I6: Ecart au 1ier | M6: Evolution | O6: Rang
E7: du 1ier | G7: DIRECTION | I7: Du mois | K7: Au 31/12/2019
A9: RANG au CLASSEMENT GENERAL | K9: =VLOOKUP($A$5,#REF!,168,FALSE) ->  | M9: =+K9-O9 ->  | O9: =VLOOKUP($A$5,'RECAP DIRCOM'!$G$6:$CY$312,168,FALSE) -> 
A11: CRITERE CLIENTS | C11: 15% | O11: =VLOOKUP($A$5,'RECAP DIRCOM'!$G$6:$CY$312,23,FALSE) -> 44.90324339
B12: PNB Evolution nette Clients BP | C12: 4% | E12: ='RECAP DIRCOM'!#REF! ->  | G12: =VLOOKUP($A$5,'RECAP DIRCOM'!$G$6:$CY$312,6,FALSE) -> 0.8 | I12: =VLOOKUP($A$5,'RECAP DIRCOM'!$G$6:$CY$312,7,FALSE) -> 500% | K12: =VLOOKUP($A$5,#REF!,7,FALSE) ->  | M12: =+K12-I12 ->  | O12: =VLOOKUP($A$5,'RECAP DIRCOM'!$G$6:$CY$312,8,FALSE) -> 0.6183934952
B13: PNB Evolution nette Clients PREMIUM | C13: 5% | E13: ='RECAP DIRCOM'!#REF! ->  | G13: =VLOOKUP($A$5,'RECAP DIRCOM'!$G$6:$CY$312,10,FALSE) -> 4.0 | I13: =VLOOKUP($A$5,'RECAP DIRCOM'!$G$6:$CY$312,11,FALSE) -> 43% | K13: =VLOOKUP($A$5,#REF!,11,FALSE) ->  | M13: =+K13-I13 ->  | O13: =VLOOKUP($A$5,'RECAP DIRCOM'!$G$6:$CY$312,12,FALSE) -> 0.4296169256
B14: PNB Evolution nette Clients Jeunes Equipés | C14: 3% | E14: ='RECAP DIRCOM'!#REF! ->  | G14: =VLOOKUP($A$5,'RECAP DIRCOM'!$G$6:$CY$312,14,FALSE) -> 0.0 | I14: =VLOOKUP($A$5,'RECAP DIRCOM'!$G$6:$CY$312,15,FALSE) -> 0% | K14: =VLOOKUP($A$5,#REF!,15,FALSE) ->  | M14: =+K14-I14 ->  | O14: =VLOOKUP($A$5,'RECAP DIRCOM'!$G$6:$CY$312,16,FALSE) -> 0
B15: PNB Evolution nette Clients Pro Actifs Equipés | C15: 3% | E15: ='RECAP DIRCOM'!W4 -> 0.0 | G15: =VLOOKUP($A$5,'RECAP DIRCOM'!$G$6:$CY$312,18,FALSE) -> 3402.3 | I15: =VLOOKUP($A$5,'RECAP DIRCOM'!$G$6:$CY$312,19,FALSE) -> 1546% | K15: =VLOOKUP($A$5,#REF!,19,FALSE) ->  | M15: =+K15-I15 ->  | O15: =VLOOKUP($A$5,'RECAP DIRCOM'!$G$6:$CY$312,20,FALSE) -> 0.3237579396
A17: CRITERE BANCARISATION | C17: 15% | O17: =VLOOKUP($A$5,'RECAP DIRCOM'!$G$6:$CY$312,48,FALSE) -> 40177.57151
B18: PNB Ventes nettes forfaits | C18: 4% | E18: ='RECAP DIRCOM'!X4 -> 22.9 | G18: =VLOOKUP($A$5,'RECAP DIRCOM'!$G$6:$CY$312,31,FALSE) -> 0.0 | I18: =VLOOKUP($A$5,'RECAP DIRCOM'!$G$6:$CY$312,32,FALSE) -> 0% | K18: =VLOOKUP($A$5,#REF!,32,FALSE) ->  | M18: =+K18-I18 ->  | O18: =VLOOKUP($A$5,'RECAP DIRCOM'!$G$6:$CY$312,33,FALSE) -> 63506.57458
B19: PNB Ventes nettes IZICARTES Débit Différé | C19: 4% | E19: ='RECAP DIRCOM'!AB4 -> 56.8 | G19: =VLOOKUP($A$5,'RECAP DIRCOM'!$G$6:$CY$312,35,FALSE) -> 0.0 | I19: =VLOOKUP($A$5,'RECAP DIRCOM'!$G$6:$CY$312,36,FALSE) -> 100% | K19: =VLOOKUP($A$5,#REF!,36,FALSE) ->  | M19: =+K19-I19 ->  | O19: =VLOOKUP($A$5,'RECAP DIRCOM'!$G$6:$CY$312,37,FALSE) -> 9651
B20: PNB Ventes nettes cartes HDG Débit Différé | C20: 4% | E20: ='RECAP DIRCOM'!#REF! ->  | G20: =VLOOKUP($A$5,'RECAP DIRCOM'!$G$6:$CY$312,39,FALSE) -> 0.2 | I20: =VLOOKUP($A$5,'RECAP DIRCOM'!$G$6:$CY$312,40,FALSE) -> 400% | K20: =VLOOKUP($A$5,#REF!,40,FALSE) ->  | M20: =+K20-I20 ->  | O20: =VLOOKUP($A$5,'RECAP DIRCOM'!$G$6:$CY$312,41,FALSE) -> 0.09965258505
B21: PNB Ventes nettes Forfaits Pro, Carte pro | C21: 3% | E21: ='RECAP DIRCOM'!#REF! ->  | G21: =VLOOKUP($A$5,'RECAP DIRCOM'!$G$6:$CY$312,43,FALSE) -> 2.0 | I21: =VLOOKUP($A$5,'RECAP DIRCOM'!$G$6:$CY$312,44,FALSE) -> 0% | K21: =VLOOKUP($A$5,#REF!,44,FALSE) ->  | M21: =+K21-I21 ->  | O21: =VLOOKUP($A$5,'RECAP DIRCOM'!$G$6:$CY$312,45,FALSE) -> 0
A23: CRITERE EPARGNE | C23: 10% | O23: =VLOOKUP($A$5,'RECAP DIRCOM'!$G$6:$CY$312,69,FALSE) -> 0.4137249397
B24: PNB Epargne Liquide | C24: 3% | E24: ='RECAP DIRCOM'!AM4 -> 288.5 | G24: =VLOOKUP($A$5,'RECAP DIRCOM'!$G$6:$CY$312,56,FALSE) -> 3492.0 | I24: =VLOOKUP($A$5,'RECAP DIRCOM'!$G$6:$CY$312,57,FALSE) -> 1586% | K24: =VLOOKUP($A$5,#REF!,57,FALSE) ->  | M24: =+K24-I24 ->  | O24: =VLOOKUP($A$5,'RECAP DIRCOM'!$G$6:$CY$312,58,FALSE) -> 0.4126153219
B25: PNB CA UC + arbitrage | C25: 4% | E25: ='RECAP DIRCOM'!AQ4 -> 58.4 | G25: =VLOOKUP($A$5,'RECAP DIRCOM'!$G$6:$CY$312,60,FALSE) -> 0.4 | I25: =VLOOKUP($A$5,'RECAP DIRCOM'!$G$6:$CY$312,61,FALSE) -> 36% | K25: =VLOOKUP($A$5,#REF!,61,FALSE) ->  | M25: =+K25-I25 ->  | O25: =VLOOKUP($A$5,'RECAP DIRCOM'!$G$6:$CY$312,62,FALSE) -> 6
B26: PNB Excédent assurance vie | C26: 3% | E26: ='RECAP DIRCOM'!#REF! ->  | G26: =VLOOKUP($A$5,'RECAP DIRCOM'!$G$6:$CY$312,64,FALSE) -> 0.0 | I26: =VLOOKUP($A$5,'RECAP DIRCOM'!$G$6:$CY$312,65,FALSE) -> 0% | K26: =VLOOKUP($A$5,#REF!,65,FALSE) ->  | M26: =+K26-I26 ->  | O26: =VLOOKUP($A$5,'RECAP DIRCOM'!$G$6:$CY$312,66,FALSE) -> 0
A28: CRITERE CREDITS | C28: 15% | O28: =VLOOKUP($A$5,'RECAP DIRCOM'!$G$6:$CY$312,102,FALSE) -> 
B29: PNB crédit conso | C29: 4% | E29: ='RECAP DIRCOM'!BB4 -> 365.9 | G29: =VLOOKUP($A$5,'RECAP DIRCOM'!$G$6:$CY$312,77,FALSE) -> 5.0 | I29: =VLOOKUP($A$5,'RECAP DIRCOM'!$G$6:$CY$312,78,FALSE) -> 0% | K29: =VLOOKUP($A$5,#REF!,78,FALSE) ->  | M29: =+K29-I29 ->  | O29: =VLOOKUP($A$5,'RECAP DIRCOM'!$G$6:$CY$312,79,FALSE) -> 0
B30: PNB ADE crédit conso | C30: 1% | E30: ='RECAP DIRCOM'!#REF! ->  | G30: =VLOOKUP($A$5,'RECAP DIRCOM'!$G$6:$CY$312,81,FALSE) -> 0.0 | I30: =VLOOKUP($A$5,'RECAP DIRCOM'!$G$6:$CY$312,82,FALSE) -> 0% | K30: =VLOOKUP($A$5,#REF!,82,FALSE) ->  | O30: =VLOOKUP($A$5,'RECAP DIRCOM'!$G$6:$CY$312,83,FALSE) -> 0
B31: PNB crédit immo | C31: 4% | E31: ='RECAP DIRCOM'!BF4 -> 48.6 | G31: =VLOOKUP($A$5,'RECAP DIRCOM'!$G$6:$CY$312,85,FALSE) -> 0.0 | I31: =VLOOKUP($A$5,'RECAP DIRCOM'!$G$6:$CY$312,86,FALSE) -> 0% | K31: =VLOOKUP($A$5,#REF!,86,FALSE) ->  | O31: =VLOOKUP($A$5,'RECAP DIRCOM'!$G$6:$CY$312,87,FALSE) -> 0
B32: PNB ADE crédit immo | C32: 2% | E32: ='RECAP DIRCOM'!#REF! ->  | G32: =VLOOKUP($A$5,'RECAP DIRCOM'!$G$6:$CY$312,89,FALSE) -> 0.0 | I32: =VLOOKUP($A$5,'RECAP DIRCOM'!$G$6:$CY$312,90,FALSE) -> 0% | K32: =VLOOKUP($A$5,#REF!,90,FALSE) ->  | O32: =VLOOKUP($A$5,'RECAP DIRCOM'!$G$6:$CY$312,91,FALSE) -> 0
B33: PNB SACCEF | C33: 2% | E33: ='RECAP DIRCOM'!#REF! ->  | G33: =VLOOKUP($A$5,'RECAP DIRCOM'!$G$6:$CY$312,93,FALSE) -> 0.0 | I33: =VLOOKUP($A$5,'RECAP DIRCOM'!$G$6:$CY$312,94,FALSE) -> 28% | K33: =VLOOKUP($A$5,#REF!,94,FALSE) ->  | O33: =VLOOKUP($A$5,'RECAP DIRCOM'!$G$6:$CY$312,95,FALSE) -> 0.247564061
B34: PNB Crédit MLT + Crédit Bail | C34: 2% | E34: ='RECAP DIRCOM'!BJ4 -> 27.0 | G34: =VLOOKUP($A$5,'RECAP DIRCOM'!$G$6:$CY$312,97,FALSE) -> 0.0 | I34: =VLOOKUP($A$5,'RECAP DIRCOM'!$G$6:$CY$312,98,FALSE) ->  | K34: =VLOOKUP($A$5,#REF!,98,FALSE) ->  | O34: =VLOOKUP($A$5,'RECAP DIRCOM'!$G$6:$CY$312,99,FALSE) -> 
A36: CRITERE IARD PREVOYANCE | C36: 15% | O36: =VLOOKUP($A$5,'RECAP DIRCOM'!$G$6:$CY$312,119,FALSE) -> 
B37: PNB Ventes nettes IARD | C37: 9% | E37: ='RECAP DIRCOM'!BU4 -> 128.6 | G37: =VLOOKUP($A$5,'RECAP DIRCOM'!$G$6:$CY$312,110,FALSE) ->  | I37: =VLOOKUP($A$5,'RECAP DIRCOM'!$G$6:$CY$312,111,FALSE) ->  | K37: =VLOOKUP($A$5,#REF!,111,FALSE) ->  | M37: =+K37-I37 ->  | O37: =VLOOKUP($A$5,'RECAP DIRCOM'!$G$6:$CY$312,112,FALSE) -> 
B38: PNB Ventes nettes Prévoyance | C38: 6% | E38: ='RECAP DIRCOM'!BY4 -> 37.5 | G38: =VLOOKUP($A$5,'RECAP DIRCOM'!$G$6:$CY$312,114,FALSE) ->  | I38: =VLOOKUP($A$5,'RECAP DIRCOM'!$G$6:$CY$312,115,FALSE) ->  | K38: =VLOOKUP($A$5,#REF!,115,FALSE) ->  | M38: =+K38-I38 ->  | O38: =VLOOKUP($A$5,'RECAP DIRCOM'!$G$6:$CY$312,116,FALSE) -> 
A40: CRITERE ACCELERATEURS PNB | C40: 15% | O40: =VLOOKUP($A$5,'RECAP DIRCOM'!$G$6:$CY$312,144,FALSE) -> 
B41: PNB Ventes brutes SED Finalisées | C41: 6% | E41: ='RECAP DIRCOM'!#REF! ->  | G41: =VLOOKUP($A$5,'RECAP DIRCOM'!$G$6:$CY$312,127,FALSE) ->  | I41: =VLOOKUP($A$5,'RECAP DIRCOM'!$G$6:$CY$312,128,FALSE) ->  | K41: =VLOOKUP($A$5,#REF!,128,FALSE) ->  | M41: =+K41-I41 ->  | O41: =VLOOKUP($A$5,'RECAP DIRCOM'!$G$6:$CY$312,129,FALSE) -> 
B42: PNB clients équipés E documents | C42: 3% | E42: ='RECAP DIRCOM'!#REF! ->  | G42: =VLOOKUP($A$5,'RECAP DIRCOM'!$G$6:$CY$312,131,FALSE) ->  | I42: =VLOOKUP($A$5,'RECAP DIRCOM'!$G$6:$CY$312,132,FALSE) ->  | K42: =VLOOKUP($A$5,#REF!,132,FALSE) ->  | M42: =+K42-I42 ->  | O42: =VLOOKUP($A$5,'RECAP DIRCOM'!$G$6:$CY$312,133,FALSE) -> 
B43: Economie opt'in | C43: 3% | E43: ='RECAP DIRCOM'!#REF! ->  | G43: =VLOOKUP($A$5,'RECAP DIRCOM'!$G$6:$CY$312,135,FALSE) ->  | I43: =VLOOKUP($A$5,'RECAP DIRCOM'!$G$6:$CY$312,136,FALSE) ->  | K43: =VLOOKUP($A$5,#REF!,136,FALSE) ->  | M43: =+K43-I43 ->  | O43: =VLOOKUP($A$5,'RECAP DIRCOM'!$G$6:$CY$312,137,FALSE) -> 
B44: Remises commerciales | C44: 3% | E44: ='RECAP DIRCOM'!#REF! ->  | G44: =VLOOKUP($A$5,'RECAP DIRCOM'!$G$6:$CY$312,139,FALSE) ->  | I44: =VLOOKUP($A$5,'RECAP DIRCOM'!$G$6:$CY$312,140,FALSE) ->  | K44: =VLOOKUP($A$5,#REF!,140,FALSE) ->  | M44: =+K44-I44 ->  | O44: =VLOOKUP($A$5,'RECAP DIRCOM'!$G$6:$CY$312,141,FALSE) -> 
A46: CRITERE Qualité-Satisfaction Clients | C46: 15% | O46: =VLOOKUP($A$5,'RECAP DIRCOM'!$G$6:$CY$312,159,FALSE) -> 
B47: Objectifs NPS* | C47: 8% | E47: ='RECAP DIRCOM'!K4 -> 23 | G47: =VLOOKUP($A$5,'RECAP DIRCOM'!$G$6:$CY$312,151,FALSE) ->  | I47: =VLOOKUP($A$5,'RECAP DIRCOM'!$G$6:$CY$312,152,FALSE) ->  | K47: =VLOOKUP($A$5,#REF!,152,FALSE) ->  | M47: =+K47-I47 ->  | O47: =VLOOKUP($A$5,'RECAP DIRCOM'!$G$6:$CY$312,153,FALSE) -> 
B48: Enquête Qualité Haute Définition | C48: 7% | E48: ='RECAP DIRCOM'!N4 -> 69% | G48: =VLOOKUP($A$5,'RECAP DIRCOM'!$G$6:$CY$312,154,FALSE) ->  | I48: =VLOOKUP($A$5,'RECAP DIRCOM'!$G$6:$CY$312,155,FALSE) ->  | K48: =VLOOKUP($A$5,#REF!,155,FALSE) ->  | M48: =+K48-I48 ->  | O48: =VLOOKUP($A$5,'RECAP DIRCOM'!$G$6:$CY$312,156,FALSE) -> 

Sheet DC_TOTAL
B1: Accueil | D1: BAROMETRE BDD - DIRECTIONS REGIONALES
D2: TOTAL GENERAL
D3: =ACCUEIL!F7 -> 2022-09-25
D7: TOTAL GENERAL | G7: Total Satisfaction Clients | J7: Total Bancarisation | M7: Total Epargne | P7: Total IARD Prévoyance | S7: Total Crédits
E8: coef | F8: =+I8+L8+O8+R8+U8 -> 100% | H8: coef | I8: =DC_SATISFACTION!L8 -> 20% | K8: coef | L8: =DC_BANCA!N8 -> 20% | N8: coef | O8: =DC_EPARGNE!N8 -> 20% | Q8: coef | R8: =DC_IARD!N8 -> 20% | T8: coef | U8: =DC_CREDIT!R8 -> 20%
A9: eds | B9: Direction | C9: ="ETP perf "&DATEMAJ!$C$28 -> ETP perf 25-sept | D9: Moyenne ecart au 1er | E9: % Ecart au 1er | F9: Rang CEGEE | G9: Moyenne ecart au 1er | H9: % Ecart au 1er | I9: Rang CEGEE | J9: Moyenne ecart au 1er | K9: % Ecart au 1er | L9: Rang CEGEE | M9: Moyenne ecart au 1er | N9: % Ecart au 1er | O9: Rang CEGEE | P9: Moyenne ecart au 1er | Q9: % Ecart au 1er | R9: Rang CEGEE | S9: Moyenne ecart au 1er | T9: % Ecart au 1er | U9: Rang CEGEE
A10: 50 | B10: Marne-Ardennes | C10: 194 | D10: 3% | E10: 0% | F10: 1 | G10: 15% | H10: 15% | I10: 2 | J10: 0% | K10: 0% | L10: 1 | M10: 10% | N10: 0% | O10: 1 | P10: 0% | Q10: 0% | R10: 1 | S10: 4% | T10: 0% | U10: 1
A11: 262 | B11: Moselle | C11: 223 | D11: 8% | E11: 5% | F11: 2 | G11: 22% | H11: 22% | I11: 3 | J11: 6% | K11: 6% | L11: 2 | M11: 14% | N11: 4% | O11: 3 | P11: 3% | Q11: 3% | R11: 2 | S11: 8% | T11: 4% | U11: 2
A12: 264 | B12: Meurthe et Moselle Meuse | C12: 204 | D12: 23% | E12: 20% | F12: 3 | G12: 33% | H12: 33% | I12: 4 | J12: 27% | K12: 27% | L12: 3 | M12: 28% | N12: 18% | O12: 4 | P12: 24% | Q12: 24% | R12: 3 | S12: 19% | T12: 15% | U12: 3
A13: 30 | B13: Vosges | C13: 117 | D13: 24% | E13: 21% | F13: 4 | G13: 0% | H13: 0% | I13: 1 | J13: 34% | K13: 34% | L13: 5 | M13: 28% | N13: 18% | O13: 5 | P13: 37% | Q13: 37% | R13: 6 | S13: 35% | T13: 31% | U13: 4
A14: 110 | B14: Bas-Rhin | C14: 220 | D14: 28% | E14: 25% | F14: 5 | G14: 43% | H14: 43% | I14: 5 | J14: 28% | K14: 28% | L14: 4 | M14: 10% | N14: 0% | O14: 2 | P14: 32% | Q14: 32% | R14: 5 | S14: 40% | T14: 36% | U14: 6
A15: 160 | B15: Aube Haute Marne | C15: 112 | D15: 39% | E15: 36% | F15: 6 | G15: 51% | H15: 51% | I15: 6 | J15: 44% | K15: 44% | L15: 6 | M15: 45% | N15: 35% | O15: 6 | P15: 31% | Q15: 31% | R15: 4 | S15: 36% | T15: 32% | U15: 5
A16: 80 | B16: Haut-Rhin | C16: 123 | D16: 58% | E16: 55% | F16: 7 | G16: 59% | H16: 59% | I16: 7 | J16: 64% | K16: 64% | L16: 7 | M16: 71% | N16: 61% | O16: 7 | P16: 63% | Q16: 63% | R16: 7 | S16: 49% | T16: 44% | U16: 7
B17: Total CEGEE Directions Régionales | C17: =SUM(C10:C16) -> 1192

Sheet DC_BANCA
B1: Accueil | D1: BAROMETRE BDD - DIRECTIONS REGIONALES
D2: BANCARISATION
D3: =ACCUEIL!F7 -> 2022-09-25
D7: Ventes Nettes produits pondérés | H7: Ventes sur client non détenteur de l’univers | L7: Total Bancarisation
D8: =DATEMAJ!C8 -> au 25/09 | F8: coef | G8: ='RECAP DIRCOM'!AA4 -> 12% | H8: =DATEMAJ!C9 -> au 25/09 | J8: coef | K8: ='RECAP DIRCOM'!AE4 -> 8% | M8: coef | N8: ='RECAP DIRCOM'!AH4 -> 20%
B9: Direction | C9: ="ETP perf "&DATEMAJ!$C$28 -> ETP perf 25-sept | D9: VN | E9: VN / ETP | F9: % Ecart au 1er | G9: Rang | H9: VB | I9: VB / ETP | J9: % Ecart au 1er | K9: Rang | L9: Moyenne ecart au 1er | M9: % Ecart au 1er | N9: Rang CEGEE
A10: 50 | B10: Aube Haute Marne | C10: =VLOOKUP($A10,'RECAP DIRCOM'!$G$6:$CU$12,3,FALSE) -> 112 | D10: =VLOOKUP($A10,'RECAP DIRCOM'!$G$6:$CU$12,18,FALSE) -> 1,070 | E10: =VLOOKUP($A10,'RECAP DIRCOM'!$G$6:$CU$12,19,FALSE) -> 9.51 | F10: =VLOOKUP($A10,'RECAP DIRCOM'!$G$6:$CU$12,20,FALSE) -> 58% | G10: =VLOOKUP($A10,'RECAP DIRCOM'!$G$6:$CU$12,21,FALSE) -> 6 | H10: =VLOOKUP($A10,'RECAP DIRCOM'!$G$6:$CU$12,22,FALSE) -> 4,970 | I10: =VLOOKUP($A10,'RECAP DIRCOM'!$G$6:$CU$12,23,FALSE) -> 44.21 | J10: =VLOOKUP($A10,'RECAP DIRCOM'!$G$6:$CU$12,24,FALSE) -> 22% | K10: =VLOOKUP($A10,'RECAP DIRCOM'!$G$6:$CU$12,25,FALSE) -> 5 | L10: =VLOOKUP($A10,'RECAP DIRCOM'!$G$6:$CU$12,26,FALSE) -> 44% | M10: =VLOOKUP($A10,'RECAP DIRCOM'!$G$6:$CU$12,27,FALSE) -> 44% | N10: =VLOOKUP($A10,'RECAP DIRCOM'!$G$6:$CU$12,28,FALSE) -> 6
A11: 262 | B11: Bas-Rhin | C11: =VLOOKUP($A11,'RECAP DIRCOM'!$G$6:$CU$12,3,FALSE) -> 220 | D11: =VLOOKUP($A11,'RECAP DIRCOM'!$G$6:$CU$12,18,FALSE) -> 3,402 | E11: =VLOOKUP($A11,'RECAP DIRCOM'!$G$6:$CU$12,19,FALSE) -> 15.46 | F11: =VLOOKUP($A11,'RECAP DIRCOM'!$G$6:$CU$12,20,FALSE) -> 32% | G11: =VLOOKUP($A11,'RECAP DIRCOM'!$G$6:$CU$12,21,FALSE) -> 3 | H11: =VLOOKUP($A11,'RECAP DIRCOM'!$G$6:$CU$12,22,FALSE) -> 9,885 | I11: =VLOOKUP($A11,'RECAP DIRCOM'!$G$6:$CU$12,23,FALSE) -> 44.90 | J11: =VLOOKUP($A11,'RECAP DIRCOM'!$G$6:$CU$12,24,FALSE) -> 21% | K11: =VLOOKUP($A11,'RECAP DIRCOM'!$G$6:$CU$12,25,FALSE) -> 4 | L11: =VLOOKUP($A11,'RECAP DIRCOM'!$G$6:$CU$12,26,FALSE) -> 28% | M11: =VLOOKUP($A11,'RECAP DIRCOM'!$G$6:$CU$12,27,FALSE) -> 28% | N11: =VLOOKUP($A11,'RECAP DIRCOM'!$G$6:$CU$12,28,FALSE) -> 4
A12: 264 | B12: Haut-Rhin | C12: =VLOOKUP($A12,'RECAP DIRCOM'!$G$6:$CU$12,3,FALSE) -> 123 | D12: =VLOOKUP($A12,'RECAP DIRCOM'!$G$6:$CU$12,18,FALSE) -> 497 | E12: =VLOOKUP($A12,'RECAP DIRCOM'!$G$6:$CU$12,19,FALSE) -> 4.04 | F12: =VLOOKUP($A12,'RECAP DIRCOM'!$G$6:$CU$12,20,FALSE) -> 82% | G12: =VLOOKUP($A12,'RECAP DIRCOM'!$G$6:$CU$12,21,FALSE) -> 7 | H12: =VLOOKUP($A12,'RECAP DIRCOM'!$G$6:$CU$12,22,FALSE) -> 4,477 | I12: =VLOOKUP($A12,'RECAP DIRCOM'!$G$6:$CU$12,23,FALSE) -> 36.42 | J12: =VLOOKUP($A12,'RECAP DIRCOM'!$G$6:$CU$12,24,FALSE) -> 36% | K12: =VLOOKUP($A12,'RECAP DIRCOM'!$G$6:$CU$12,25,FALSE) -> 7 | L12: =VLOOKUP($A12,'RECAP DIRCOM'!$G$6:$CU$12,26,FALSE) -> 64% | M12: =VLOOKUP($A12,'RECAP DIRCOM'!$G$6:$CU$12,27,FALSE) -> 64% | N12: =VLOOKUP($A12,'RECAP DIRCOM'!$G$6:$CU$12,28,FALSE) -> 7
A13: 30 | B13: Marne-Ardennes | C13: =VLOOKUP($A13,'RECAP DIRCOM'!$G$6:$CU$12,3,FALSE) -> 194 | D13: =VLOOKUP($A13,'RECAP DIRCOM'!$G$6:$CU$12,18,FALSE) -> 4,424 | E13: =VLOOKUP($A13,'RECAP DIRCOM'!$G$6:$CU$12,19,FALSE) -> 22.85 | F13: =VLOOKUP($A13,'RECAP DIRCOM'!$G$6:$CU$12,20,FALSE) -> 0% | G13: =VLOOKUP($A13,'RECAP DIRCOM'!$G$6:$CU$12,21,FALSE) -> 1 | H13: =VLOOKUP($A13,'RECAP DIRCOM'!$G$6:$CU$12,22,FALSE) -> 11,000 | I13: =VLOOKUP($A13,'RECAP DIRCOM'!$G$6:$CU$12,23,FALSE) -> 56.82 | J13: =VLOOKUP($A13,'RECAP DIRCOM'!$G$6:$CU$12,24,FALSE) -> 0% | K13: =VLOOKUP($A13,'RECAP DIRCOM'!$G$6:$CU$12,25,FALSE) -> 1 | L13: =VLOOKUP($A13,'RECAP DIRCOM'!$G$6:$CU$12,26,FALSE) -> 0% | M13: =VLOOKUP($A13,'RECAP DIRCOM'!$G$6:$CU$12,27,FALSE) -> 0% | N13: =VLOOKUP($A13,'RECAP DIRCOM'!$G$6:$CU$12,28,FALSE) -> 1
A14: 110 | B14: Meurthe et Moselle Meuse | C14: =VLOOKUP($A14,'RECAP DIRCOM'!$G$6:$CU$12,3,FALSE) -> 204 | D14: =VLOOKUP($A14,'RECAP DIRCOM'!$G$6:$CU$12,18,FALSE) -> 2,932 | E14: =VLOOKUP($A14,'RECAP DIRCOM'!$G$6:$CU$12,19,FALSE) -> 14.39 | F14: =VLOOKUP($A14,'RECAP DIRCOM'!$G$6:$CU$12,20,FALSE) -> 37% | G14: =VLOOKUP($A14,'RECAP DIRCOM'!$G$6:$CU$12,21,FALSE) -> 4 | H14: =VLOOKUP($A14,'RECAP DIRCOM'!$G$6:$CU$12,22,FALSE) -> 10,210 | I14: =VLOOKUP($A14,'RECAP DIRCOM'!$G$6:$CU$12,23,FALSE) -> 50.12 | J14: =VLOOKUP($A14,'RECAP DIRCOM'!$G$6:$CU$12,24,FALSE) -> 12% | K14: =VLOOKUP($A14,'RECAP DIRCOM'!$G$6:$CU$12,25,FALSE) -> 3 | L14: =VLOOKUP($A14,'RECAP DIRCOM'!$G$6:$CU$12,26,FALSE) -> 27% | M14: =VLOOKUP($A14,'RECAP DIRCOM'!$G$6:$CU$12,27,FALSE) -> 27% | N14: =VLOOKUP($A14,'RECAP DIRCOM'!$G$6:$CU$12,28,FALSE) -> 3
A15: 160 | B15: Moselle | C15: =VLOOKUP($A15,'RECAP DIRCOM'!$G$6:$CU$12,3,FALSE) -> 223 | D15: =VLOOKUP($A15,'RECAP DIRCOM'!$G$6:$CU$12,18,FALSE) -> 4,651 | E15: =VLOOKUP($A15,'RECAP DIRCOM'!$G$6:$CU$12,19,FALSE) -> 20.88 | F15: =VLOOKUP($A15,'RECAP DIRCOM'!$G$6:$CU$12,20,FALSE) -> 9% | G15: =VLOOKUP($A15,'RECAP DIRCOM'!$G$6:$CU$12,21,FALSE) -> 2 | H15: =VLOOKUP($A15,'RECAP DIRCOM'!$G$6:$CU$12,22,FALSE) -> 12,467 | I15: =VLOOKUP($A15,'RECAP DIRCOM'!$G$6:$CU$12,23,FALSE) -> 55.98 | J15: =VLOOKUP($A15,'RECAP DIRCOM'!$G$6:$CU$12,24,FALSE) -> 1% | K15: =VLOOKUP($A15,'RECAP DIRCOM'!$G$6:$CU$12,25,FALSE) -> 2 | L15: =VLOOKUP($A15,'RECAP DIRCOM'!$G$6:$CU$12,26,FALSE) -> 6% | M15: =VLOOKUP($A15,'RECAP DIRCOM'!$G$6:$CU$12,27,FALSE) -> 6% | N15: =VLOOKUP($A15,'RECAP DIRCOM'!$G$6:$CU$12,28,FALSE) -> 2
A16: 80 | B16: Vosges | C16: =VLOOKUP($A16,'RECAP DIRCOM'!$G$6:$CU$12,3,FALSE) -> 117 | D16: =VLOOKUP($A16,'RECAP DIRCOM'!$G$6:$CU$12,18,FALSE) -> 1,661 | E16: =VLOOKUP($A16,'RECAP DIRCOM'!$G$6:$CU$12,19,FALSE) -> 14.21 | F16: =VLOOKUP($A16,'RECAP DIRCOM'!$G$6:$CU$12,20,FALSE) -> 38% | G16: =VLOOKUP($A16,'RECAP DIRCOM'!$G$6:$CU$12,21,FALSE) -> 5 | H16: =VLOOKUP($A16,'RECAP DIRCOM'!$G$6:$CU$12,22,FALSE) -> 4,835 | I16: =VLOOKUP($A16,'RECAP DIRCOM'!$G$6:$CU$12,23,FALSE) -> 41.36 | J16: =VLOOKUP($A16,'RECAP DIRCOM'!$G$6:$CU$12,24,FALSE) -> 27% | K16: =VLOOKUP($A16,'RECAP DIRCOM'!$G$6:$CU$12,25,FALSE) -> 6 | L16: =VLOOKUP($A16,'RECAP DIRCOM'!$G$6:$CU$12,26,FALSE) -> 34% | M16: =VLOOKUP($A16,'RECAP DIRCOM'!$G$6:$CU$12,27,FALSE) -> 34% | N16: =VLOOKUP($A16,'RECAP DIRCOM'!$G$6:$CU$12,28,FALSE) -> 5
B17: Total CEGEE Directions Régionales | C17: =SUM(C10:C16) -> 1192

Sheet DC_EPARGNE
B1: Accueil | D1: BAROMETRE BDD - DIRECTIONS REGIONALES
D2: EPARGNE
D3: =ACCUEIL!F7 -> 2022-09-25
D7: Excédent Epargne hors DAV pondéré | H7: Ventes sur client non détenteur de l’univers | L7: Total Epargne
D8: =DATEMAJ!C14 -> au 25/09 | F8: coef | G8: ='RECAP DIRCOM'!AP4 -> 12% | H8: =DATEMAJ!C15 -> au 25/09 | J8: coef | K8: ='RECAP DIRCOM'!AT4 -> 8% | M8: coef | N8: ='RECAP DIRCOM'!AW4 -> 20%
B9: Direction | C9: ="ETP perf "&DATEMAJ!$C$28 -> ETP perf 25-sept | D9: Excédent | E9: Excédent / ETP | F9: % Ecart au 1er | G9: Rang | H9: VB | I9: VB / ETP | J9: % Ecart au 1er | K9: Rang | L9: Moyenne ecart au 1er | M9: % Ecart au 1er | N9: Rang CEGEE
A10: 50 | B10: Aube Haute Marne | C10: =VLOOKUP($A10,'RECAP DIRCOM'!$G$6:$CU$12,3,FALSE) -> 112 | D10: =VLOOKUP($A10,'RECAP DIRCOM'!$G$6:$CU$12,33,FALSE) -> 14,518 | E10: =VLOOKUP($A10,'RECAP DIRCOM'!$G$6:$CU$12,34,FALSE) -> 129.16 | F10: =VLOOKUP($A10,'RECAP DIRCOM'!$G$6:$CU$12,35,FALSE) -> 55% | G10: =VLOOKUP($A10,'RECAP DIRCOM'!$G$6:$CU$12,36,FALSE) -> 6 | H10: =VLOOKUP($A10,'RECAP DIRCOM'!$G$6:$CU$12,37,FALSE) -> 4,650 | I10: =VLOOKUP($A10,'RECAP DIRCOM'!$G$6:$CU$12,38,FALSE) -> 41.37 | J10: =VLOOKUP($A10,'RECAP DIRCOM'!$G$6:$CU$12,39,FALSE) -> 29% | K10: =VLOOKUP($A10,'RECAP DIRCOM'!$G$6:$CU$12,40,FALSE) -> 5 | L10: =VLOOKUP($A10,'RECAP DIRCOM'!$G$6:$CU$12,41,FALSE) -> 45% | M10: =VLOOKUP($A10,'RECAP DIRCOM'!$G$6:$CU$12,42,FALSE) -> 35% | N10: =VLOOKUP($A10,'RECAP DIRCOM'!$G$6:$CU$12,43,FALSE) -> 6
A11: 262 | B11: Bas-Rhin | C11: =VLOOKUP($A11,'RECAP DIRCOM'!$G$6:$CU$12,3,FALSE) -> 220 | D11: =VLOOKUP($A11,'RECAP DIRCOM'!$G$6:$CU$12,33,FALSE) -> 63,507 | E11: =VLOOKUP($A11,'RECAP DIRCOM'!$G$6:$CU$12,34,FALSE) -> 288.48 | F11: =VLOOKUP($A11,'RECAP DIRCOM'!$G$6:$CU$12,35,FALSE) -> 0% | G11: =VLOOKUP($A11,'RECAP DIRCOM'!$G$6:$CU$12,36,FALSE) -> 1 | H11: =VLOOKUP($A11,'RECAP DIRCOM'!$G$6:$CU$12,37,FALSE) -> 9,651 | I11: =VLOOKUP($A11,'RECAP DIRCOM'!$G$6:$CU$12,38,FALSE) -> 43.84 | J11: =VLOOKUP($A11,'RECAP DIRCOM'!$G$6:$CU$12,39,FALSE) -> 25% | K11: =VLOOKUP($A11,'RECAP DIRCOM'!$G$6:$CU$12,40,FALSE) -> 4 | L11: =VLOOKUP($A11,'RECAP DIRCOM'!$G$6:$CU$12,41,FALSE) -> 10% | M11: =VLOOKUP($A11,'RECAP DIRCOM'!$G$6:$CU$12,42,FALSE) -> 0% | N11: =VLOOKUP($A11,'RECAP DIRCOM'!$G$6:$CU$12,43,FALSE) -> 2
A12: 264 | B12: Haut-Rhin | C12: =VLOOKUP($A12,'RECAP DIRCOM'!$G$6:$CU$12,3,FALSE) -> 123 | D12: =VLOOKUP($A12,'RECAP DIRCOM'!$G$6:$CU$12,33,FALSE) -> 3,805 | E12: =VLOOKUP($A12,'RECAP DIRCOM'!$G$6:$CU$12,34,FALSE) -> 30.95 | F12: =VLOOKUP($A12,'RECAP DIRCOM'!$G$6:$CU$12,35,FALSE) -> 89% | G12: =VLOOKUP($A12,'RECAP DIRCOM'!$G$6:$CU$12,36,FALSE) -> 7 | H12: =VLOOKUP($A12,'RECAP DIRCOM'!$G$6:$CU$12,37,FALSE) -> 4,025 | I12: =VLOOKUP($A12,'RECAP DIRCOM'!$G$6:$CU$12,38,FALSE) -> 32.74 | J12: =VLOOKUP($A12,'RECAP DIRCOM'!$G$6:$CU$12,39,FALSE) -> 44% | K12: =VLOOKUP($A12,'RECAP DIRCOM'!$G$6:$CU$12,40,FALSE) -> 7 | L12: =VLOOKUP($A12,'RECAP DIRCOM'!$G$6:$CU$12,41,FALSE) -> 71% | M12: =VLOOKUP($A12,'RECAP DIRCOM'!$G$6:$CU$12,42,FALSE) -> 61% | N12: =VLOOKUP($A12,'RECAP DIRCOM'!$G$6:$CU$12,43,FALSE) -> 7
A13: 30 | B13: Marne-Ardennes | C13: =VLOOKUP($A13,'RECAP DIRCOM'!$G$6:$CU$12,3,FALSE) -> 194 | D13: =VLOOKUP($A13,'RECAP DIRCOM'!$G$6:$CU$12,33,FALSE) -> 48,636 | E13: =VLOOKUP($A13,'RECAP DIRCOM'!$G$6:$CU$12,34,FALSE) -> 251.23 | F13: =VLOOKUP($A13,'RECAP DIRCOM'!$G$6:$CU$12,35,FALSE) -> 13% | G13: =VLOOKUP($A13,'RECAP DIRCOM'!$G$6:$CU$12,36,FALSE) -> 2 | H13: =VLOOKUP($A13,'RECAP DIRCOM'!$G$6:$CU$12,37,FALSE) -> 10,686 | I13: =VLOOKUP($A13,'RECAP DIRCOM'!$G$6:$CU$12,38,FALSE) -> 55.20 | J13: =VLOOKUP($A13,'RECAP DIRCOM'!$G$6:$CU$12,39,FALSE) -> 5% | K13: =VLOOKUP($A13,'RECAP DIRCOM'!$G$6:$CU$12,40,FALSE) -> 2 | L13: =VLOOKUP($A13,'RECAP DIRCOM'!$G$6:$CU$12,41,FALSE) -> 10% | M13: =VLOOKUP($A13,'RECAP DIRCOM'!$G$6:$CU$12,42,FALSE) -> 0% | N13: =VLOOKUP($A13,'RECAP DIRCOM'!$G$6:$CU$12,43,FALSE) -> 1
A14: 110 | B14: Meurthe et Moselle Meuse | C14: =VLOOKUP($A14,'RECAP DIRCOM'!$G$6:$CU$12,3,FALSE) -> 204 | D14: =VLOOKUP($A14,'RECAP DIRCOM'!$G$6:$CU$12,33,FALSE) -> 41,163 | E14: =VLOOKUP($A14,'RECAP DIRCOM'!$G$6:$CU$12,34,FALSE) -> 202.05 | F14: =VLOOKUP($A14,'RECAP DIRCOM'!$G$6:$CU$12,35,FALSE) -> 30% | G14: =VLOOKUP($A14,'RECAP DIRCOM'!$G$6:$CU$12,36,FALSE) -> 5 | H14: =VLOOKUP($A14,'RECAP DIRCOM'!$G$6:$CU$12,37,FALSE) -> 8,969 | I14: =VLOOKUP($A14,'RECAP DIRCOM'!$G$6:$CU$12,38,FALSE) -> 44.02 | J14: =VLOOKUP($A14,'RECAP DIRCOM'!$G$6:$CU$12,39,FALSE) -> 25% | K14: =VLOOKUP($A14,'RECAP DIRCOM'!$G$6:$CU$12,40,FALSE) -> 3 | L14: =VLOOKUP($A14,'RECAP DIRCOM'!$G$6:$CU$12,41,FALSE) -> 28% | M14: =VLOOKUP($A14,'RECAP DIRCOM'!$G$6:$CU$12,42,FALSE) -> 18% | N14: =VLOOKUP($A14,'RECAP DIRCOM'!$G$6:$CU$12,43,FALSE) -> 4
A15: 160 | B15: Moselle | C15: =VLOOKUP($A15,'RECAP DIRCOM'!$G$6:$CU$12,3,FALSE) -> 223 | D15: =VLOOKUP($A15,'RECAP DIRCOM'!$G$6:$CU$12,33,FALSE) -> 49,332 | E15: =VLOOKUP($A15,'RECAP DIRCOM'!$G$6:$CU$12,34,FALSE) -> 221.53 | F15: =VLOOKUP($A15,'RECAP DIRCOM'!$G$6:$CU$12,35,FALSE) -> 23% | G15: =VLOOKUP($A15,'RECAP DIRCOM'!$G$6:$CU$12,36,FALSE) -> 3 | H15: =VLOOKUP($A15,'RECAP DIRCOM'!$G$6:$CU$12,37,FALSE) -> 13,002 | I15: =VLOOKUP($A15,'RECAP DIRCOM'!$G$6:$CU$12,38,FALSE) -> 58.39 | J15: =VLOOKUP($A15,'RECAP DIRCOM'!$G$6:$CU$12,39,FALSE) -> 0% | K15: =VLOOKUP($A15,'RECAP DIRCOM'!$G$6:$CU$12,40,FALSE) -> 1 | L15: =VLOOKUP($A15,'RECAP DIRCOM'!$G$6:$CU$12,41,FALSE) -> 14% | M15: =VLOOKUP($A15,'RECAP DIRCOM'!$G$6:$CU$12,42,FALSE) -> 4% | N15: =VLOOKUP($A15,'RECAP DIRCOM'!$G$6:$CU$12,43,FALSE) -> 3
A16: 80 | B16: Vosges | C16: =VLOOKUP($A16,'RECAP DIRCOM'!$G$6:$CU$12,3,FALSE) -> 117 | D16: =VLOOKUP($A16,'RECAP DIRCOM'!$G$6:$CU$12,33,FALSE) -> 25,631 | E16: =VLOOKUP($A16,'RECAP DIRCOM'!$G$6:$CU$12,34,FALSE) -> 219.25 | F16: =VLOOKUP($A16,'RECAP DIRCOM'!$G$6:$CU$12,35,FALSE) -> 24% | G16: =VLOOKUP($A16,'RECAP DIRCOM'!$G$6:$CU$12,36,FALSE) -> 4 | H16: =VLOOKUP($A16,'RECAP DIRCOM'!$G$6:$CU$12,37,FALSE) -> 4,438 | I16: =VLOOKUP($A16,'RECAP DIRCOM'!$G$6:$CU$12,38,FALSE) -> 37.96 | J16: =VLOOKUP($A16,'RECAP DIRCOM'!$G$6:$CU$12,39,FALSE) -> 35% | K16: =VLOOKUP($A16,'RECAP DIRCOM'!$G$6:$CU$12,40,FALSE) -> 6 | L16: =VLOOKUP($A16,'RECAP DIRCOM'!$G$6:$CU$12,41,FALSE) -> 28% | M16: =VLOOKUP($A16,'RECAP DIRCOM'!$G$6:$CU$12,42,FALSE) -> 18% | N16: =VLOOKUP($A16,'RECAP DIRCOM'!$G$6:$CU$12,43,FALSE) -> 5
B17: Total CEGEE Directions Régionales | C17: =SUM(C10:C16) -> 1192

Sheet DC_CREDIT
B1: Accueil | D1: BAROMETRE BDD - DIRECTIONS REGIONALES
D2: CREDITS
D3: =ACCUEIL!F7 -> 2022-09-25
D7: Engagements et ventes accessoires pondérés Immo | H7: Engagements et ventes accessoires pondérés Conso | L7: Ventes sur client non détenteur de l’univers | P7: Total Crédits
D8: =DATEMAJ!C18 -> au 25/09 | F8: coef | G8: ='RECAP DIRCOM'!BE4 -> 6% | H8: =DATEMAJ!C19 -> au 25/09 | J8: coef | K8: ='RECAP DIRCOM'!BI4 -> 6% | L8: =DATEMAJ!C20 -> au 25/09 | N8: coef | O8: ='RECAP DIRCOM'!BM4 -> 8% | Q8: coef | R8: ='RECAP DIRCOM'!BP4 -> 20%
B9: Direction | C9: ="ETP perf "&DATEMAJ!$C$28 -> ETP perf 25-sept | D9: PNB | E9: PNB / ETP | F9: % Ecart au 1er | G9: Rang | H9: PNB | I9: PNB / ETP | J9: % Ecart au 1er | K9: Rang | L9: VB | M9: VB / ETP | N9: % Ecart au 1er | O9: Rang | P9: Moyenne ecart au 1er | Q9: % Ecart au 1er | R9: Rang CEGEE
A10: 50 | B10: Aube Haute Marne | C10: =VLOOKUP($A10,'RECAP DIRCOM'!$G$6:$CU$12,3,FALSE) -> 112 | D10: =VLOOKUP($A10,'RECAP DIRCOM'!$G$6:$CU$12,48,FALSE) -> 19,557 | E10: =VLOOKUP($A10,'RECAP DIRCOM'!$G$6:$CU$12,49,FALSE) -> 173.98 | F10: =VLOOKUP($A10,'RECAP DIRCOM'!$G$6:$CU$12,50,FALSE) -> 52% | G10: =VLOOKUP($A10,'RECAP DIRCOM'!$G$6:$CU$12,51,FALSE) -> 6 | H10: =VLOOKUP($A10,'RECAP DIRCOM'!$G$6:$CU$12,52,FALSE) -> 4,596 | I10: =VLOOKUP($A10,'RECAP DIRCOM'!$G$6:$CU$12,53,FALSE) -> 40.88 | J10: =VLOOKUP($A10,'RECAP DIRCOM'!$G$6:$CU$12,54,FALSE) -> 16% | K10: =VLOOKUP($A10,'RECAP DIRCOM'!$G$6:$CU$12,55,FALSE) -> 4 | L10: =VLOOKUP($A10,'RECAP DIRCOM'!$G$6:$CU$12,56,FALSE) -> 1,851 | M10: =VLOOKUP($A10,'RECAP DIRCOM'!$G$6:$CU$12,57,FALSE) -> 16.47 | N10: =VLOOKUP($A10,'RECAP DIRCOM'!$G$6:$CU$12,58,FALSE) -> 39% | O10: =VLOOKUP($A10,'RECAP DIRCOM'!$G$6:$CU$12,59,FALSE) -> 5 | P10: =VLOOKUP($A10,'RECAP DIRCOM'!$G$6:$CU$12,60,FALSE) -> 36% | Q10: =VLOOKUP($A10,'RECAP DIRCOM'!$G$6:$CU$12,61,FALSE) -> 32% | R10: =VLOOKUP($A10,'RECAP DIRCOM'!$G$6:$CU$12,62,FALSE) -> 5
A11: 262 | B11: Bas-Rhin | C11: =VLOOKUP($A11,'RECAP DIRCOM'!$G$6:$CU$12,3,FALSE) -> 220 | D11: =VLOOKUP($A11,'RECAP DIRCOM'!$G$6:$CU$12,48,FALSE) -> 40,178 | E11: =VLOOKUP($A11,'RECAP DIRCOM'!$G$6:$CU$12,49,FALSE) -> 182.51 | F11: =VLOOKUP($A11,'RECAP DIRCOM'!$G$6:$CU$12,50,FALSE) -> 50% | G11: =VLOOKUP($A11,'RECAP DIRCOM'!$G$6:$CU$12,51,FALSE) -> 4 | H11: =VLOOKUP($A11,'RECAP DIRCOM'!$G$6:$CU$12,52,FALSE) -> 7,595 | I11: =VLOOKUP($A11,'RECAP DIRCOM'!$G$6:$CU$12,53,FALSE) -> 34.50 | J11: =VLOOKUP($A11,'RECAP DIRCOM'!$G$6:$CU$12,54,FALSE) -> 29% | K11: =VLOOKUP($A11,'RECAP DIRCOM'!$G$6:$CU$12,55,FALSE) -> 6 | L11: =VLOOKUP($A11,'RECAP DIRCOM'!$G$6:$CU$12,56,FALSE) -> 3,492 | M11: =VLOOKUP($A11,'RECAP DIRCOM'!$G$6:$CU$12,57,FALSE) -> 15.86 | N11: =VLOOKUP($A11,'RECAP DIRCOM'!$G$6:$CU$12,58,FALSE) -> 41% | O11: =VLOOKUP($A11,'RECAP DIRCOM'!$G$6:$CU$12,59,FALSE) -> 6 | P11: =VLOOKUP($A11,'RECAP DIRCOM'!$G$6:$CU$12,60,FALSE) -> 40% | Q11: =VLOOKUP($A11,'RECAP DIRCOM'!$G$6:$CU$12,61,FALSE) -> 36% | R11: =VLOOKUP($A11,'RECAP DIRCOM'!$G$6:$CU$12,62,FALSE) -> 6
A12: 264 | B12: Haut-Rhin | C12: =VLOOKUP($A12,'RECAP DIRCOM'!$G$6:$CU$12,3,FALSE) -> 123 | D12: =VLOOKUP($A12,'RECAP DIRCOM'!$G$6:$CU$12,48,FALSE) -> 18,325 | E12: =VLOOKUP($A12,'RECAP DIRCOM'!$G$6:$CU$12,49,FALSE) -> 149.08 | F12: =VLOOKUP($A12,'RECAP DIRCOM'!$G$6:$CU$12,50,FALSE) -> 59% | G12: =VLOOKUP($A12,'RECAP DIRCOM'!$G$6:$CU$12,51,FALSE) -> 7 | H12: =VLOOKUP($A12,'RECAP DIRCOM'!$G$6:$CU$12,52,FALSE) -> 4,055 | I12: =VLOOKUP($A12,'RECAP DIRCOM'!$G$6:$CU$12,53,FALSE) -> 32.99 | J12: =VLOOKUP($A12,'RECAP DIRCOM'!$G$6:$CU$12,54,FALSE) -> 32% | K12: =VLOOKUP($A12,'RECAP DIRCOM'!$G$6:$CU$12,55,FALSE) -> 7 | L12: =VLOOKUP($A12,'RECAP DIRCOM'!$G$6:$CU$12,56,FALSE) -> 1,567 | M12: =VLOOKUP($A12,'RECAP DIRCOM'!$G$6:$CU$12,57,FALSE) -> 12.75 | N12: =VLOOKUP($A12,'RECAP DIRCOM'!$G$6:$CU$12,58,FALSE) -> 53% | O12: =VLOOKUP($A12,'RECAP DIRCOM'!$G$6:$CU$12,59,FALSE) -> 7 | P12: =VLOOKUP($A12,'RECAP DIRCOM'!$G$6:$CU$12,60,FALSE) -> 49% | Q12: =VLOOKUP($A12,'RECAP DIRCOM'!$G$6:$CU$12,61,FALSE) -> 44% | R12: =VLOOKUP($A12,'RECAP DIRCOM'!$G$6:$CU$12,62,FALSE) -> 7
A13: 30 | B13: Marne-Ardennes | C13: =VLOOKUP($A13,'RECAP DIRCOM'!$G$6:$CU$12,3,FALSE) -> 194 | D13: =VLOOKUP($A13,'RECAP DIRCOM'!$G$6:$CU$12,48,FALSE) -> 70,842 | E13: =VLOOKUP($A13,'RECAP DIRCOM'!$G$6:$CU$12,49,FALSE) -> 365.94 | F13: =VLOOKUP($A13,'RECAP DIRCOM'!$G$6:$CU$12,50,FALSE) -> 0% | G13: =VLOOKUP($A13,'RECAP DIRCOM'!$G$6:$CU$12,51,FALSE) -> 1 | H13: =VLOOKUP($A13,'RECAP DIRCOM'!$G$6:$CU$12,52,FALSE) -> 8,125 | I13: =VLOOKUP($A13,'RECAP DIRCOM'!$G$6:$CU$12,53,FALSE) -> 41.97 | J13: =VLOOKUP($A13,'RECAP DIRCOM'!$G$6:$CU$12,54,FALSE) -> 14% | K13: =VLOOKUP($A13,'RECAP DIRCOM'!$G$6:$CU$12,55,FALSE) -> 3 | L13: =VLOOKUP($A13,'RECAP DIRCOM'!$G$6:$CU$12,56,FALSE) -> 5,228 | M13: =VLOOKUP($A13,'RECAP DIRCOM'!$G$6:$CU$12,57,FALSE) -> 27.01 | N13: =VLOOKUP($A13,'RECAP DIRCOM'!$G$6:$CU$12,58,FALSE) -> 0% | O13: =VLOOKUP($A13,'RECAP DIRCOM'!$G$6:$CU$12,59,FALSE) -> 1 | P13: =VLOOKUP($A13,'RECAP DIRCOM'!$G$6:$CU$12,60,FALSE) -> 4% | Q13: =VLOOKUP($A13,'RECAP DIRCOM'!$G$6:$CU$12,61,FALSE) -> 0% | R13: =VLOOKUP($A13,'RECAP DIRCOM'!$G$6:$CU$12,62,FALSE) -> 1
A14: 110 | B14: Meurthe et Moselle Meuse | C14: =VLOOKUP($A14,'RECAP DIRCOM'!$G$6:$CU$12,3,FALSE) -> 204 | D14: =VLOOKUP($A14,'RECAP DIRCOM'!$G$6:$CU$12,48,FALSE) -> 58,309 | E14: =VLOOKUP($A14,'RECAP DIRCOM'!$G$6:$CU$12,49,FALSE) -> 286.21 | F14: =VLOOKUP($A14,'RECAP DIRCOM'!$G$6:$CU$12,50,FALSE) -> 22% | G14: =VLOOKUP($A14,'RECAP DIRCOM'!$G$6:$CU$12,51,FALSE) -> 3 | H14: =VLOOKUP($A14,'RECAP DIRCOM'!$G$6:$CU$12,52,FALSE) -> 8,947 | I14: =VLOOKUP($A14,'RECAP DIRCOM'!$G$6:$CU$12,53,FALSE) -> 43.92 | J14: =VLOOKUP($A14,'RECAP DIRCOM'!$G$6:$CU$12,54,FALSE) -> 10% | K14: =VLOOKUP($A14,'RECAP DIRCOM'!$G$6:$CU$12,55,FALSE) -> 2 | L14: =VLOOKUP($A14,'RECAP DIRCOM'!$G$6:$CU$12,56,FALSE) -> 4,221 | M14: =VLOOKUP($A14,'RECAP DIRCOM'!$G$6:$CU$12,57,FALSE) -> 20.72 | N14: =VLOOKUP($A14,'RECAP DIRCOM'!$G$6:$CU$12,58,FALSE) -> 23% | O14: =VLOOKUP($A14,'RECAP DIRCOM'!$G$6:$CU$12,59,FALSE) -> 3 | P14: =VLOOKUP($A14,'RECAP DIRCOM'!$G$6:$CU$12,60,FALSE) -> 19% | Q14: =VLOOKUP($A14,'RECAP DIRCOM'!$G$6:$CU$12,61,FALSE) -> 15% | R14: =VLOOKUP($A14,'RECAP DIRCOM'!$G$6:$CU$12,62,FALSE) -> 3
A15: 160 | B15: Moselle | C15: =VLOOKUP($A15,'RECAP DIRCOM'!$G$6:$CU$12,3,FALSE) -> 223 | D15: =VLOOKUP($A15,'RECAP DIRCOM'!$G$6:$CU$12,48,FALSE) -> 75,314 | E15: =VLOOKUP($A15,'RECAP DIRCOM'!$G$6:$CU$12,49,FALSE) -> 338.20 | F15: =VLOOKUP($A15,'RECAP DIRCOM'!$G$6:$CU$12,50,FALSE) -> 8% | G15: =VLOOKUP($A15,'RECAP DIRCOM'!$G$6:$CU$12,51,FALSE) -> 2 | H15: =VLOOKUP($A15,'RECAP DIRCOM'!$G$6:$CU$12,52,FALSE) -> 10,817 | I15: =VLOOKUP($A15,'RECAP DIRCOM'!$G$6:$CU$12,53,FALSE) -> 48.57 | J15: =VLOOKUP($A15,'RECAP DIRCOM'!$G$6:$CU$12,54,FALSE) -> 0% | K15: =VLOOKUP($A15,'RECAP DIRCOM'!$G$6:$CU$12,55,FALSE) -> 1 | L15: =VLOOKUP($A15,'RECAP DIRCOM'!$G$6:$CU$12,56,FALSE) -> 5,129 | M15: =VLOOKUP($A15,'RECAP DIRCOM'!$G$6:$CU$12,57,FALSE) -> 23.03 | N15: =VLOOKUP($A15,'RECAP DIRCOM'!$G$6:$CU$12,58,FALSE) -> 15% | O15: =VLOOKUP($A15,'RECAP DIRCOM'!$G$6:$CU$12,59,FALSE) -> 2 | P15: =VLOOKUP($A15,'RECAP DIRCOM'!$G$6:$CU$12,60,FALSE) -> 8% | Q15: =VLOOKUP($A15,'RECAP DIRCOM'!$G$6:$CU$12,61,FALSE) -> 4% | R15: =VLOOKUP($A15,'RECAP DIRCOM'!$G$6:$CU$12,62,FALSE) -> 2
A16: 80 | B16: Vosges | C16: =VLOOKUP($A16,'RECAP DIRCOM'!$G$6:$CU$12,3,FALSE) -> 117 | D16: =VLOOKUP($A16,'RECAP DIRCOM'!$G$6:$CU$12,48,FALSE) -> 21,054 | E16: =VLOOKUP($A16,'RECAP DIRCOM'!$G$6:$CU$12,49,FALSE) -> 180.10 | F16: =VLOOKUP($A16,'RECAP DIRCOM'!$G$6:$CU$12,50,FALSE) -> 51% | G16: =VLOOKUP($A16,'RECAP DIRCOM'!$G$6:$CU$12,51,FALSE) -> 5 | H16: =VLOOKUP($A16,'RECAP DIRCOM'!$G$6:$CU$12,52,FALSE) -> 4,406 | I16: =VLOOKUP($A16,'RECAP DIRCOM'!$G$6:$CU$12,53,FALSE) -> 37.69 | J16: =VLOOKUP($A16,'RECAP DIRCOM'!$G$6:$CU$12,54,FALSE) -> 22% | K16: =VLOOKUP($A16,'RECAP DIRCOM'!$G$6:$CU$12,55,FALSE) -> 5 | L16: =VLOOKUP($A16,'RECAP DIRCOM'!$G$6:$CU$12,56,FALSE) -> 2,127 | M16: =VLOOKUP($A16,'RECAP DIRCOM'!$G$6:$CU$12,57,FALSE) -> 18.20 | N16: =VLOOKUP($A16,'RECAP DIRCOM'!$G$6:$CU$12,58,FALSE) -> 33% | O16: =VLOOKUP($A16,'RECAP DIRCOM'!$G$6:$CU$12,59,FALSE) -> 4 | P16: =VLOOKUP($A16,'RECAP DIRCOM'!$G$6:$CU$12,60,FALSE) -> 35% | Q16: =VLOOKUP($A16,'RECAP DIRCOM'!$G$6:$CU$12,61,FALSE) -> 31% | R16: =VLOOKUP($A16,'RECAP DIRCOM'!$G$6:$CU$12,62,FALSE) -> 4
B17: Total CEGEE Directions Régionales | C17: =SUM(C10:C16) -> 1192

Sheet DC_IARD
B1: Accueil | D1: BAROMETRE BDD - DIRECTIONS REGIONALES
D2: IARD ET PREVOYANCE
D3: =ACCUEIL!F7 -> 2022-09-25
D7: Ventes Nettes produits pondérés | H7: Ventes sur client non détenteur de l’univers | L7: Total IARD Prévoyance
D8: =DATEMAJ!C23 -> au 25/09 | F8: coef | G8: ='RECAP DIRCOM'!BX4 -> 12% | H8: =DATEMAJ!C24 -> au 25/09 | J8: coef | K8: ='RECAP DIRCOM'!CB4 -> 8% | M8: coef | N8: ='RECAP DIRCOM'!CE4 -> 20%
B9: Direction | C9: ="ETP perf "&DATEMAJ!$C$28 -> ETP perf 25-sept | D9: VN | E9: VN / ETP | F9: % Ecart au 1er | G9: Rang | H9: VB | I9: VB / ETP | J9: % Ecart au 1er | K9: Rang | L9: Moyenne ecart au 1er | M9: % Ecart au 1er | N9: Rang CEGEE
A10: 50 | B10: Aube Haute Marne | C10: =VLOOKUP($A10,'RECAP DIRCOM'!$G$6:$CU$12,3,FALSE) -> 112 | D10: =VLOOKUP($A10,'RECAP DIRCOM'!$G$6:$CU$12,67,FALSE) -> 9,268 | E10: =VLOOKUP($A10,'RECAP DIRCOM'!$G$6:$CU$12,68,FALSE) -> 82.45 | F10: =VLOOKUP($A10,'RECAP DIRCOM'!$G$6:$CU$12,69,FALSE) -> 36% | G10: =VLOOKUP($A10,'RECAP DIRCOM'!$G$6:$CU$12,70,FALSE) -> 4 | H10: =VLOOKUP($A10,'RECAP DIRCOM'!$G$6:$CU$12,71,FALSE) -> 3,226 | I10: =VLOOKUP($A10,'RECAP DIRCOM'!$G$6:$CU$12,72,FALSE) -> 28.70 | J10: =VLOOKUP($A10,'RECAP DIRCOM'!$G$6:$CU$12,73,FALSE) -> 23% | K10: =VLOOKUP($A10,'RECAP DIRCOM'!$G$6:$CU$12,74,FALSE) -> 5 | L10: =VLOOKUP($A10,'RECAP DIRCOM'!$G$6:$CU$12,75,FALSE) -> 31% | M10: =VLOOKUP($A10,'RECAP DIRCOM'!$G$6:$CU$12,76,FALSE) -> 31% | N10: =VLOOKUP($A10,'RECAP DIRCOM'!$G$6:$CU$12,77,FALSE) -> 4
A11: 262 | B11: Bas-Rhin | C11: =VLOOKUP($A11,'RECAP DIRCOM'!$G$6:$CU$12,3,FALSE) -> 220 | D11: =VLOOKUP($A11,'RECAP DIRCOM'!$G$6:$CU$12,67,FALSE) -> 16,599 | E11: =VLOOKUP($A11,'RECAP DIRCOM'!$G$6:$CU$12,68,FALSE) -> 75.40 | F11: =VLOOKUP($A11,'RECAP DIRCOM'!$G$6:$CU$12,69,FALSE) -> 41% | G11: =VLOOKUP($A11,'RECAP DIRCOM'!$G$6:$CU$12,70,FALSE) -> 5 | H11: =VLOOKUP($A11,'RECAP DIRCOM'!$G$6:$CU$12,71,FALSE) -> 6,818 | I11: =VLOOKUP($A11,'RECAP DIRCOM'!$G$6:$CU$12,72,FALSE) -> 30.97 | J11: =VLOOKUP($A11,'RECAP DIRCOM'!$G$6:$CU$12,73,FALSE) -> 17% | K11: =VLOOKUP($A11,'RECAP DIRCOM'!$G$6:$CU$12,74,FALSE) -> 4 | L11: =VLOOKUP($A11,'RECAP DIRCOM'!$G$6:$CU$12,75,FALSE) -> 32% | M11: =VLOOKUP($A11,'RECAP DIRCOM'!$G$6:$CU$12,76,FALSE) -> 32% | N11: =VLOOKUP($A11,'RECAP DIRCOM'!$G$6:$CU$12,77,FALSE) -> 5
A12: 264 | B12: Haut-Rhin | C12: =VLOOKUP($A12,'RECAP DIRCOM'!$G$6:$CU$12,3,FALSE) -> 123 | D12: =VLOOKUP($A12,'RECAP DIRCOM'!$G$6:$CU$12,67,FALSE) -> 2,924 | E12: =VLOOKUP($A12,'RECAP DIRCOM'!$G$6:$CU$12,68,FALSE) -> 23.79 | F12: =VLOOKUP($A12,'RECAP DIRCOM'!$G$6:$CU$12,69,FALSE) -> 82% | G12: =VLOOKUP($A12,'RECAP DIRCOM'!$G$6:$CU$12,70,FALSE) -> 7 | H12: =VLOOKUP($A12,'RECAP DIRCOM'!$G$6:$CU$12,71,FALSE) -> 2,990 | I12: =VLOOKUP($A12,'RECAP DIRCOM'!$G$6:$CU$12,72,FALSE) -> 24.32 | J12: =VLOOKUP($A12,'RECAP DIRCOM'!$G$6:$CU$12,73,FALSE) -> 35% | K12: =VLOOKUP($A12,'RECAP DIRCOM'!$G$6:$CU$12,74,FALSE) -> 7 | L12: =VLOOKUP($A12,'RECAP DIRCOM'!$G$6:$CU$12,75,FALSE) -> 63% | M12: =VLOOKUP($A12,'RECAP DIRCOM'!$G$6:$CU$12,76,FALSE) -> 63% | N12: =VLOOKUP($A12,'RECAP DIRCOM'!$G$6:$CU$12,77,FALSE) -> 7
A13: 30 | B13: Marne-Ardennes | C13: =VLOOKUP($A13,'RECAP DIRCOM'!$G$6:$CU$12,3,FALSE) -> 194 | D13: =VLOOKUP($A13,'RECAP DIRCOM'!$G$6:$CU$12,67,FALSE) -> 24,898 | E13: =VLOOKUP($A13,'RECAP DIRCOM'!$G$6:$CU$12,68,FALSE) -> 128.61 | F13: =VLOOKUP($A13,'RECAP DIRCOM'!$G$6:$CU$12,69,FALSE) -> 0% | G13: =VLOOKUP($A13,'RECAP DIRCOM'!$G$6:$CU$12,70,FALSE) -> 1 | H13: =VLOOKUP($A13,'RECAP DIRCOM'!$G$6:$CU$12,71,FALSE) -> 7,254 | I13: =VLOOKUP($A13,'RECAP DIRCOM'!$G$6:$CU$12,72,FALSE) -> 37.47 | J13: =VLOOKUP($A13,'RECAP DIRCOM'!$G$6:$CU$12,73,FALSE) -> 0% | K13: =VLOOKUP($A13,'RECAP DIRCOM'!$G$6:$CU$12,74,FALSE) -> 1 | L13: =VLOOKUP($A13,'RECAP DIRCOM'!$G$6:$CU$12,75,FALSE) -> 0% | M13: =VLOOKUP($A13,'RECAP DIRCOM'!$G$6:$CU$12,76,FALSE) -> 0% | N13: =VLOOKUP($A13,'RECAP DIRCOM'!$G$6:$CU$12,77,FALSE) -> 1
A14: 110 | B14: Meurthe et Moselle Meuse | C14: =VLOOKUP($A14,'RECAP DIRCOM'!$G$6:$CU$12,3,FALSE) -> 204 | D14: =VLOOKUP($A14,'RECAP DIRCOM'!$G$6:$CU$12,67,FALSE) -> 17,851 | E14: =VLOOKUP($A14,'RECAP DIRCOM'!$G$6:$CU$12,68,FALSE) -> 87.62 | F14: =VLOOKUP($A14,'RECAP DIRCOM'!$G$6:$CU$12,69,FALSE) -> 32% | G14: =VLOOKUP($A14,'RECAP DIRCOM'!$G$6:$CU$12,70,FALSE) -> 3 | H14: =VLOOKUP($A14,'RECAP DIRCOM'!$G$6:$CU$12,71,FALSE) -> 6,792 | I14: =VLOOKUP($A14,'RECAP DIRCOM'!$G$6:$CU$12,72,FALSE) -> 33.34 | J14: =VLOOKUP($A14,'RECAP DIRCOM'!$G$6:$CU$12,73,FALSE) -> 11% | K14: =VLOOKUP($A14,'RECAP DIRCOM'!$G$6:$CU$12,74,FALSE) -> 3 | L14: =VLOOKUP($A14,'RECAP DIRCOM'!$G$6:$CU$12,75,FALSE) -> 24% | M14: =VLOOKUP($A14,'RECAP DIRCOM'!$G$6:$CU$12,76,FALSE) -> 24% | N14: =VLOOKUP($A14,'RECAP DIRCOM'!$G$6:$CU$12,77,FALSE) -> 3
A15: 160 | B15: Moselle | C15: =VLOOKUP($A15,'RECAP DIRCOM'!$G$6:$CU$12,3,FALSE) -> 223 | D15: =VLOOKUP($A15,'RECAP DIRCOM'!$G$6:$CU$12,67,FALSE) -> 27,433 | E15: =VLOOKUP($A15,'RECAP DIRCOM'!$G$6:$CU$12,68,FALSE) -> 123.19 | F15: =VLOOKUP($A15,'RECAP DIRCOM'!$G$6:$CU$12,69,FALSE) -> 4% | G15: =VLOOKUP($A15,'RECAP DIRCOM'!$G$6:$CU$12,70,FALSE) -> 2 | H15: =VLOOKUP($A15,'RECAP DIRCOM'!$G$6:$CU$12,71,FALSE) -> 8,318 | I15: =VLOOKUP($A15,'RECAP DIRCOM'!$G$6:$CU$12,72,FALSE) -> 37.35 | J15: =VLOOKUP($A15,'RECAP DIRCOM'!$G$6:$CU$12,73,FALSE) -> 0% | K15: =VLOOKUP($A15,'RECAP DIRCOM'!$G$6:$CU$12,74,FALSE) -> 2 | L15: =VLOOKUP($A15,'RECAP DIRCOM'!$G$6:$CU$12,75,FALSE) -> 3% | M15: =VLOOKUP($A15,'RECAP DIRCOM'!$G$6:$CU$12,76,FALSE) -> 3% | N15: =VLOOKUP($A15,'RECAP DIRCOM'!$G$6:$CU$12,77,FALSE) -> 2
A16: 80 | B16: Vosges | C16: =VLOOKUP($A16,'RECAP DIRCOM'!$G$6:$CU$12,3,FALSE) -> 117 | D16: =VLOOKUP($A16,'RECAP DIRCOM'!$G$6:$CU$12,67,FALSE) -> 8,613 | E16: =VLOOKUP($A16,'RECAP DIRCOM'!$G$6:$CU$12,68,FALSE) -> 73.68 | F16: =VLOOKUP($A16,'RECAP DIRCOM'!$G$6:$CU$12,69,FALSE) -> 43% | G16: =VLOOKUP($A16,'RECAP DIRCOM'!$G$6:$CU$12,70,FALSE) -> 6 | H16: =VLOOKUP($A16,'RECAP DIRCOM'!$G$6:$CU$12,71,FALSE) -> 3,139 | I16: =VLOOKUP($A16,'RECAP DIRCOM'!$G$6:$CU$12,72,FALSE) -> 26.85 | J16: =VLOOKUP($A16,'RECAP DIRCOM'!$G$6:$CU$12,73,FALSE) -> 28% | K16: =VLOOKUP($A16,'RECAP DIRCOM'!$G$6:$CU$12,74,FALSE) -> 6 | L16: =VLOOKUP($A16,'RECAP DIRCOM'!$G$6:$CU$12,75,FALSE) -> 37% | M16: =VLOOKUP($A16,'RECAP DIRCOM'!$G$6:$CU$12,76,FALSE) -> 37% | N16: =VLOOKUP($A16,'RECAP DIRCOM'!$G$6:$CU$12,77,FALSE) -> 6
B17: Total CEGEE Directions Régionales | C17: =SUM(C10:C16) -> 1192

Sheet DC_SATISFACTION
B1: Accueil | D1: BAROMETRE BDD - DIRECTIONS REGIONALES
D2: SATISFACTION
D3: =ACCUEIL!F7 -> 2022-09-25
D7: NPS à froid (SAE) | G7: NPS à chaud (QHD) | J7: Total Satisfaction Clients
D8: =DATEMAJ!E4 -> au 31/07 | E8: coef | F8: ='RECAP DIRCOM'!M4 -> 10% | G8: =DATEMAJ!C5 -> au 31/07 | H8: coef | I8: ='RECAP DIRCOM'!P4 -> 10% | K8: coef | L8: ='RECAP DIRCOM'!S4 -> 20%
B9: Direction | C9: ="ETP perf "&DATEMAJ!$C$28 -> ETP perf 25-sept | E9: % Ecart au 1er | F9: Rang | H9: % Ecart au 1er | I9: Rang | J9: Moyenne ecart au 1er | K9: % Ecart au 1er | L9: Rang CEGEE
A10: 50 | B10: Aube Haute Marne | C10: =VLOOKUP($A10,'RECAP DIRCOM'!$G$6:$CU$12,3,FALSE) -> 112 | D10: =VLOOKUP($A10,'RECAP DIRCOM'!$G$6:$CU$12,5,FALSE) -> 4.25 | E10: =VLOOKUP($A10,'RECAP DIRCOM'!$G$6:$CU$12,6,FALSE) -> 82% | F10: =VLOOKUP($A10,'RECAP DIRCOM'!$G$6:$CU$12,7,FALSE) -> 6 | G10: =VLOOKUP($A10,'RECAP DIRCOM'!$G$6:$CU$12,8,FALSE) -> 55% | H10: =VLOOKUP($A10,'RECAP DIRCOM'!$G$6:$CU$12,9,FALSE) -> 21% | I10: =VLOOKUP($A10,'RECAP DIRCOM'!$G$6:$CU$12,10,FALSE) -> 6 | J10: =VLOOKUP($A10,'RECAP DIRCOM'!$G$6:$CU$12,11,FALSE) -> 51% | K10: =VLOOKUP($A10,'RECAP DIRCOM'!$G$6:$CU$12,12,FALSE) -> 51% | L10: =VLOOKUP($A10,'RECAP DIRCOM'!$G$6:$CU$12,13,FALSE) -> 6
A11: 262 | B11: Bas-Rhin | C11: =VLOOKUP($A11,'RECAP DIRCOM'!$G$6:$CU$12,3,FALSE) -> 220 | D11: =VLOOKUP($A11,'RECAP DIRCOM'!$G$6:$CU$12,5,FALSE) -> 5.75 | E11: =VLOOKUP($A11,'RECAP DIRCOM'!$G$6:$CU$12,6,FALSE) -> 75% | F11: =VLOOKUP($A11,'RECAP DIRCOM'!$G$6:$CU$12,7,FALSE) -> 5 | G11: =VLOOKUP($A11,'RECAP DIRCOM'!$G$6:$CU$12,8,FALSE) -> 62% | H11: =VLOOKUP($A11,'RECAP DIRCOM'!$G$6:$CU$12,9,FALSE) -> 11% | I11: =VLOOKUP($A11,'RECAP DIRCOM'!$G$6:$CU$12,10,FALSE) -> 4 | J11: =VLOOKUP($A11,'RECAP DIRCOM'!$G$6:$CU$12,11,FALSE) -> 43% | K11: =VLOOKUP($A11,'RECAP DIRCOM'!$G$6:$CU$12,12,FALSE) -> 43% | L11: =VLOOKUP($A11,'RECAP DIRCOM'!$G$6:$CU$12,13,FALSE) -> 5
A12: 264 | B12: Haut-Rhin | C12: =VLOOKUP($A12,'RECAP DIRCOM'!$G$6:$CU$12,3,FALSE) -> 123 | D12: =VLOOKUP($A12,'RECAP DIRCOM'!$G$6:$CU$12,5,FALSE) -> 3 | E12: =VLOOKUP($A12,'RECAP DIRCOM'!$G$6:$CU$12,6,FALSE) -> 87% | F12: =VLOOKUP($A12,'RECAP DIRCOM'!$G$6:$CU$12,7,FALSE) -> 7 | G12: =VLOOKUP($A12,'RECAP DIRCOM'!$G$6:$CU$12,8,FALSE) -> 48% | H12: =VLOOKUP($A12,'RECAP DIRCOM'!$G$6:$CU$12,9,FALSE) -> 30% | I12: =VLOOKUP($A12,'RECAP DIRCOM'!$G$6:$CU$12,10,FALSE) -> 7 | J12: =VLOOKUP($A12,'RECAP DIRCOM'!$G$6:$CU$12,11,FALSE) -> 59% | K12: =VLOOKUP($A12,'RECAP DIRCOM'!$G$6:$CU$12,12,FALSE) -> 59% | L12: =VLOOKUP($A12,'RECAP DIRCOM'!$G$6:$CU$12,13,FALSE) -> 7
A13: 30 | B13: Marne-Ardennes | C13: =VLOOKUP($A13,'RECAP DIRCOM'!$G$6:$CU$12,3,FALSE) -> 194 | D13: =VLOOKUP($A13,'RECAP DIRCOM'!$G$6:$CU$12,5,FALSE) -> 17.25 | E13: =VLOOKUP($A13,'RECAP DIRCOM'!$G$6:$CU$12,6,FALSE) -> 26% | F13: =VLOOKUP($A13,'RECAP DIRCOM'!$G$6:$CU$12,7,FALSE) -> 2 | G13: =VLOOKUP($A13,'RECAP DIRCOM'!$G$6:$CU$12,8,FALSE) -> 66% | H13: =VLOOKUP($A13,'RECAP DIRCOM'!$G$6:$CU$12,9,FALSE) -> 4% | I13: =VLOOKUP($A13,'RECAP DIRCOM'!$G$6:$CU$12,10,FALSE) -> 2 | J13: =VLOOKUP($A13,'RECAP DIRCOM'!$G$6:$CU$12,11,FALSE) -> 15% | K13: =VLOOKUP($A13,'RECAP DIRCOM'!$G$6:$CU$12,12,FALSE) -> 15% | L13: =VLOOKUP($A13,'RECAP DIRCOM'!$G$6:$CU$12,13,FALSE) -> 2
A14: 110 | B14: Meurthe et Moselle Meuse | C14: =VLOOKUP($A14,'RECAP DIRCOM'!$G$6:$CU$12,3,FALSE) -> 204 | D14: =VLOOKUP($A14,'RECAP DIRCOM'!$G$6:$CU$12,5,FALSE) -> 10.75 | E14: =VLOOKUP($A14,'RECAP DIRCOM'!$G$6:$CU$12,6,FALSE) -> 54% | F14: =VLOOKUP($A14,'RECAP DIRCOM'!$G$6:$CU$12,7,FALSE) -> 4 | G14: =VLOOKUP($A14,'RECAP DIRCOM'!$G$6:$CU$12,8,FALSE) -> 61% | H14: =VLOOKUP($A14,'RECAP DIRCOM'!$G$6:$CU$12,9,FALSE) -> 12% | I14: =VLOOKUP($A14,'RECAP DIRCOM'!$G$6:$CU$12,10,FALSE) -> 5 | J14: =VLOOKUP($A14,'RECAP DIRCOM'!$G$6:$CU$12,11,FALSE) -> 33% | K14: =VLOOKUP($A14,'RECAP DIRCOM'!$G$6:$CU$12,12,FALSE) -> 33% | L14: =VLOOKUP($A14,'RECAP DIRCOM'!$G$6:$CU$12,13,FALSE) -> 4
A15: 160 | B15: Moselle | C15: =VLOOKUP($A15,'RECAP DIRCOM'!$G$6:$CU$12,3,FALSE) -> 223 | D15: =VLOOKUP($A15,'RECAP DIRCOM'!$G$6:$CU$12,5,FALSE) -> 15.25 | E15: =VLOOKUP($A15,'RECAP DIRCOM'!$G$6:$CU$12,6,FALSE) -> 34% | F15: =VLOOKUP($A15,'RECAP DIRCOM'!$G$6:$CU$12,7,FALSE) -> 3 | G15: =VLOOKUP($A15,'RECAP DIRCOM'!$G$6:$CU$12,8,FALSE) -> 63% | H15: =VLOOKUP($A15,'RECAP DIRCOM'!$G$6:$CU$12,9,FALSE) -> 9% | I15: =VLOOKUP($A15,'RECAP DIRCOM'!$G$6:$CU$12,10,FALSE) -> 3 | J15: =VLOOKUP($A15,'RECAP DIRCOM'!$G$6:$CU$12,11,FALSE) -> 22% | K15: =VLOOKUP($A15,'RECAP DIRCOM'!$G$6:$CU$12,12,FALSE) -> 22% | L15: =VLOOKUP($A15,'RECAP DIRCOM'!$G$6:$CU$12,13,FALSE) -> 3
A16: 80 | B16: Vosges | C16: =VLOOKUP($A16,'RECAP DIRCOM'!$G$6:$CU$12,3,FALSE) -> 117 | D16: =VLOOKUP($A16,'RECAP DIRCOM'!$G$6:$CU$12,5,FALSE) -> 23.25 | E16: =VLOOKUP($A16,'RECAP DIRCOM'!$G$6:$CU$12,6,FALSE) -> 0% | F16: =VLOOKUP($A16,'RECAP DIRCOM'!$G$6:$CU$12,7,FALSE) -> 1 | G16: =VLOOKUP($A16,'RECAP DIRCOM'!$G$6:$CU$12,8,FALSE) -> 69% | H16: =VLOOKUP($A16,'RECAP DIRCOM'!$G$6:$CU$12,9,FALSE) -> 0% | I16: =VLOOKUP($A16,'RECAP DIRCOM'!$G$6:$CU$12,10,FALSE) -> 1 | J16: =VLOOKUP($A16,'RECAP DIRCOM'!$G$6:$CU$12,11,FALSE) -> 0% | K16: =VLOOKUP($A16,'RECAP DIRCOM'!$G$6:$CU$12,12,FALSE) -> 0% | L16: =VLOOKUP($A16,'RECAP DIRCOM'!$G$6:$CU$12,13,FALSE) -> 1
B17: Total CEGEE Directions Régionales | C17: =SUM(C10:C16) -> 1192

Sheet SE_FICHE
A1: Accueil
A2: BAROMETRE BDD
A4: UNITE: | B4: TERRITOIRE | E4: ETP perf : | F4: =VLOOKUP(A5,'RECAP SECT'!$G$6:$I$23,3,FALSE) -> 46.53
A5: =VLOOKUP(B5,LISTES!$H$6:$I$23,2,FALSE) -> 5130 | B5: COLMAR
C6: Coefficient du critére | E6: Résultats | I6: Ecart au 1ier | M6: Evolution | O6: Rang
E7: du 1ier | G7: du territoire | I7: Du mois | K7: Au 31/12/2019
A9: RANG au CLASSEMENT GENERAL | K9: =VLOOKUP($A$5,#REF!,168,FALSE) ->  | M9: =+K9-O9 ->  | O9: =VLOOKUP($A$5,'RECAP SECT'!$G$6:$CY$312,168,FALSE) ->  | S9: =VLOOKUP($A$5,#REF!,154,FALSE) ->  | U9: =+S9-O9 -> 
A11: CRITERE CONQUETE | C11: 15% | O11: =VLOOKUP($A$5,'RECAP SECT'!$G$6:$CY$312,23,FALSE) -> 44.63786804
B12: PNB Evolution nette Clients BP | C12: 4% | E12: ='RECAP SECT'!#REF! ->  | G12: =VLOOKUP($A$5,'RECAP SECT'!$G$6:$CY$312,6,FALSE) -> 0.9 | I12: =VLOOKUP($A$5,'RECAP SECT'!$G$6:$CY$312,7,FALSE) -> 1500% | K12: =VLOOKUP($A$5,#REF!,7,FALSE) ->  | M12: =+K12-I12 ->  | O12: =VLOOKUP($A$5,'RECAP SECT'!$G$6:$CY$312,8,FALSE) -> 0.5209893936 | S12: =VLOOKUP($A$5,#REF!,6,FALSE) ->  | U12: =+S12-I12 -> 
B13: PNB Evolution nette Clients PREMIUM | C13: 5% | E13: ='RECAP SECT'!#REF! ->  | G13: =VLOOKUP($A$5,'RECAP SECT'!$G$6:$CY$312,10,FALSE) -> 16.0 | I13: =VLOOKUP($A$5,'RECAP SECT'!$G$6:$CY$312,11,FALSE) -> 60% | K13: =VLOOKUP($A$5,#REF!,11,FALSE) ->  | M13: =+K13-I13 ->  | O13: =VLOOKUP($A$5,'RECAP SECT'!$G$6:$CY$312,12,FALSE) -> 0.5682290136 | S13: =VLOOKUP($A$5,#REF!,9,FALSE) ->  | U13: =+S13-I13 -> 
B14: PNB Evolution nette Clients Jeunes Equipés | C14: 3% | E14: ='RECAP SECT'!#REF! ->  | G14: =VLOOKUP($A$5,'RECAP SECT'!$G$6:$CY$312,14,FALSE) -> 0.0 | I14: =VLOOKUP($A$5,'RECAP SECT'!$G$6:$CY$312,15,FALSE) -> 0% | K14: =VLOOKUP($A$5,#REF!,15,FALSE) ->  | M14: =+K14-I14 ->  | O14: =VLOOKUP($A$5,'RECAP SECT'!$G$6:$CY$312,16,FALSE) -> 0 | S14: =VLOOKUP($A$5,#REF!,12,FALSE) ->  | U14: =+S14-I14 -> 
B15: PNB Evolution nette Clients Pro Actifs Equipés | C15: 3% | E15: ='RECAP SECT'!W4 -> 0.0 | G15: =VLOOKUP($A$5,'RECAP SECT'!$G$6:$CY$312,18,FALSE) -> 444.0 | I15: =VLOOKUP($A$5,'RECAP SECT'!$G$6:$CY$312,19,FALSE) -> 954% | K15: =VLOOKUP($A$5,#REF!,19,FALSE) ->  | M15: =+K15-I15 ->  | O15: =VLOOKUP($A$5,'RECAP SECT'!$G$6:$CY$312,20,FALSE) -> 0.7325185432 | S15: =VLOOKUP($A$5,#REF!,15,FALSE) ->  | U15: =+S15-I15 -> 
A17: CRITERE BANCARISATION | C17: 15% | O17: =VLOOKUP($A$5,'RECAP SECT'!$G$6:$CY$312,48,FALSE) -> 8018.741002
B18: PNB Ventes nettes forfaits | C18: 4% | E18: ='RECAP SECT'!X4 -> 35.7 | G18: =VLOOKUP($A$5,'RECAP SECT'!$G$6:$CY$312,31,FALSE) -> 0.0 | I18: =VLOOKUP($A$5,'RECAP SECT'!$G$6:$CY$312,32,FALSE) -> 0% | K18: =VLOOKUP($A$5,#REF!,32,FALSE) ->  | M18: =+K18-I18 ->  | O18: =VLOOKUP($A$5,'RECAP SECT'!$G$6:$CY$312,33,FALSE) -> 7526.506775 | S18: =VLOOKUP($A$5,#REF!,27,FALSE) ->  | U18: =+S18-I18 -> 
B19: PNB Ventes nettes IZICARTES Débit Différé | C19: 4% | E19: ='RECAP SECT'!AB4 -> 81.9 | G19: =VLOOKUP($A$5,'RECAP SECT'!$G$6:$CY$312,35,FALSE) -> 0.7 | I19: =VLOOKUP($A$5,'RECAP SECT'!$G$6:$CY$312,36,FALSE) -> 1500% | K19: =VLOOKUP($A$5,#REF!,36,FALSE) ->  | M19: =+K19-I19 ->  | O19: =VLOOKUP($A$5,'RECAP SECT'!$G$6:$CY$312,37,FALSE) -> 1882 | S19: =VLOOKUP($A$5,#REF!,30,FALSE) ->  | U19: =+S19-I19 -> 
B20: PNB Ventes nettes cartes HDG Débit Différé | C20: 4% | E20: ='RECAP SECT'!#REF! ->  | G20: =VLOOKUP($A$5,'RECAP SECT'!$G$6:$CY$312,39,FALSE) -> 0.5 | I20: =VLOOKUP($A$5,'RECAP SECT'!$G$6:$CY$312,40,FALSE) -> 1800% | K20: =VLOOKUP($A$5,#REF!,40,FALSE) ->  | M20: =+K20-I20 ->  | O20: =VLOOKUP($A$5,'RECAP SECT'!$G$6:$CY$312,41,FALSE) -> 0.5844535746 | S20: =VLOOKUP($A$5,#REF!,33,FALSE) ->  | U20: =+S20-I20 -> 
B21: PNB Ventes nettes Forfaits Pro, Carte pro | C21: 3% | E21: ='RECAP SECT'!#REF! ->  | G21: =VLOOKUP($A$5,'RECAP SECT'!$G$6:$CY$312,43,FALSE) -> 16.0 | I21: =VLOOKUP($A$5,'RECAP SECT'!$G$6:$CY$312,44,FALSE) -> 0% | K21: =VLOOKUP($A$5,#REF!,44,FALSE) ->  | M21: =+K21-I21 ->  | O21: =VLOOKUP($A$5,'RECAP SECT'!$G$6:$CY$312,45,FALSE) -> 0 | S21: =VLOOKUP($A$5,#REF!,39,FALSE) ->  | U21: =+S21-I21 -> 
A23: CRITERE EPARGNE | C23: 10% | O23: =VLOOKUP($A$5,'RECAP SECT'!$G$6:$CY$312,69,FALSE) -> 0.7151030833
B24: PNB Epargne Liquide | C24: 3% | E24: ='RECAP SECT'!AM4 -> 465.3 | G24: =VLOOKUP($A$5,'RECAP SECT'!$G$6:$CY$312,56,FALSE) -> 766.0 | I24: =VLOOKUP($A$5,'RECAP SECT'!$G$6:$CY$312,57,FALSE) -> 1646% | K24: =VLOOKUP($A$5,#REF!,57,FALSE) ->  | M24: =+K24-I24 ->  | O24: =VLOOKUP($A$5,'RECAP SECT'!$G$6:$CY$312,58,FALSE) -> 0.5883467479 | S24: =VLOOKUP($A$5,#REF!,51,FALSE) ->  | U24: =+S24-I24 -> 
B25: PNB CA UC + arbitrage | C25: 4% | E25: ='RECAP SECT'!AQ4 -> 78.2 | G25: =VLOOKUP($A$5,'RECAP SECT'!$G$6:$CY$312,60,FALSE) -> 0.5 | I25: =VLOOKUP($A$5,'RECAP SECT'!$G$6:$CY$312,61,FALSE) -> 47% | K25: =VLOOKUP($A$5,#REF!,61,FALSE) ->  | M25: =+K25-I25 ->  | O25: =VLOOKUP($A$5,'RECAP SECT'!$G$6:$CY$312,62,FALSE) -> 18 | S25: =VLOOKUP($A$5,#REF!,57,FALSE) ->  | U25: =+S25-I25 -> 
B26: PNB Excédent assurance vie | C26: 3% | E26: ='RECAP SECT'!#REF! ->  | G26: =VLOOKUP($A$5,'RECAP SECT'!$G$6:$CY$312,64,FALSE) -> 0.0 | I26: =VLOOKUP($A$5,'RECAP SECT'!$G$6:$CY$312,65,FALSE) -> 0% | K26: =VLOOKUP($A$5,#REF!,65,FALSE) ->  | M26: =+K26-I26 ->  | O26: =VLOOKUP($A$5,'RECAP SECT'!$G$6:$CY$312,66,FALSE) -> 0 | S26: =VLOOKUP($A$5,#REF!,60,FALSE) ->  | U26: =+S26-I26 -> 
A28: CRITERE CREDITS | C28: 15% | O28: =VLOOKUP($A$5,'RECAP SECT'!$G$6:$CY$312,102,FALSE) -> 
B29: PNB crédit conso | C29: 4% | E29: ='RECAP SECT'!BB4 -> 572.5 | G29: =VLOOKUP($A$5,'RECAP SECT'!$G$6:$CY$312,77,FALSE) -> 17.0 | I29: =VLOOKUP($A$5,'RECAP SECT'!$G$6:$CY$312,78,FALSE) -> 0% | K29: =VLOOKUP($A$5,#REF!,78,FALSE) ->  | M29: =+K29-I29 ->  | O29: =VLOOKUP($A$5,'RECAP SECT'!$G$6:$CY$312,79,FALSE) -> 0 | S29: =VLOOKUP($A$5,#REF!,75,FALSE) ->  | U29: =+S29-I29 -> 
B30: PNB ADE crédit conso | C30: 1% | E30: ='RECAP SECT'!#REF! ->  | G30: =VLOOKUP($A$5,'RECAP SECT'!$G$6:$CY$312,81,FALSE) -> 0.0 | I30: =VLOOKUP($A$5,'RECAP SECT'!$G$6:$CY$312,82,FALSE) -> 0% | K30: =VLOOKUP($A$5,#REF!,82,FALSE) ->  | O30: =VLOOKUP($A$5,'RECAP SECT'!$G$6:$CY$312,83,FALSE) -> 0 | S30: =VLOOKUP($A$5,#REF!,78,FALSE) -> 
B31: PNB crédit immo | C31: 4% | E31: ='RECAP SECT'!BF4 -> 60.6 | G31: =VLOOKUP($A$5,'RECAP SECT'!$G$6:$CY$312,85,FALSE) -> 0.0 | I31: =VLOOKUP($A$5,'RECAP SECT'!$G$6:$CY$312,86,FALSE) -> 0% | K31: =VLOOKUP($A$5,#REF!,86,FALSE) ->  | O31: =VLOOKUP($A$5,'RECAP SECT'!$G$6:$CY$312,87,FALSE) -> 0 | S31: =VLOOKUP($A$5,#REF!,81,FALSE) -> 
B32: PNB ADE crédit immo | C32: 2% | E32: ='RECAP SECT'!#REF! ->  | G32: =VLOOKUP($A$5,'RECAP SECT'!$G$6:$CY$312,89,FALSE) -> 0.0 | I32: =VLOOKUP($A$5,'RECAP SECT'!$G$6:$CY$312,90,FALSE) -> 0% | K32: =VLOOKUP($A$5,#REF!,90,FALSE) ->  | O32: =VLOOKUP($A$5,'RECAP SECT'!$G$6:$CY$312,91,FALSE) -> 0 | S32: =VLOOKUP($A$5,#REF!,84,FALSE) -> 
B33: PNB SACCEF | C33: 2% | E33: ='RECAP SECT'!#REF! ->  | G33: =VLOOKUP($A$5,'RECAP SECT'!$G$6:$CY$312,93,FALSE) -> 0.0 | I33: =VLOOKUP($A$5,'RECAP SECT'!$G$6:$CY$312,94,FALSE) -> 56% | K33: =VLOOKUP($A$5,#REF!,94,FALSE) ->  | O33: =VLOOKUP($A$5,'RECAP SECT'!$G$6:$CY$312,95,FALSE) -> 0.468890182 | S33: =VLOOKUP($A$5,#REF!,87,FALSE) -> 
B34: PNB Crédit MLT + Crédit Bail | C34: 2% | E34: ='RECAP SECT'!BJ4 -> 40.0 | G34: =VLOOKUP($A$5,'RECAP SECT'!$G$6:$CY$312,97,FALSE) -> 0.0 | I34: =VLOOKUP($A$5,'RECAP SECT'!$G$6:$CY$312,98,FALSE) ->  | K34: =VLOOKUP($A$5,#REF!,98,FALSE) ->  | O34: =VLOOKUP($A$5,'RECAP SECT'!$G$6:$CY$312,99,FALSE) ->  | S34: =VLOOKUP($A$5,#REF!,90,FALSE) -> 
A36: CRITERE IARD PREVOYANCE | C36: 15% | O36: =VLOOKUP($A$5,'RECAP SECT'!$G$6:$CY$312,119,FALSE) -> 
B37: PNB Ventes nettes IARD | C37: 9% | E37: ='RECAP SECT'!BU4 -> 189.3 | G37: =VLOOKUP($A$5,'RECAP SECT'!$G$6:$CY$312,110,FALSE) ->  | I37: =VLOOKUP($A$5,'RECAP SECT'!$G$6:$CY$312,111,FALSE) ->  | K37: =VLOOKUP($A$5,#REF!,111,FALSE) ->  | M37: =+K37-I37 ->  | O37: =VLOOKUP($A$5,'RECAP SECT'!$G$6:$CY$312,112,FALSE) ->  | S37: =VLOOKUP($A$5,#REF!,102,FALSE) ->  | U37: =+S37-I37 -> 
B38: PNB Ventes nettes Prévoyance | C38: 6% | E38: ='RECAP SECT'!BY4 -> 52.0 | G38: =VLOOKUP($A$5,'RECAP SECT'!$G$6:$CY$312,114,FALSE) ->  | I38: =VLOOKUP($A$5,'RECAP SECT'!$G$6:$CY$312,115,FALSE) ->  | K38: =VLOOKUP($A$5,#REF!,115,FALSE) ->  | M38: =+K38-I38 ->  | O38: =VLOOKUP($A$5,'RECAP SECT'!$G$6:$CY$312,116,FALSE) ->  | S38: =VLOOKUP($A$5,#REF!,105,FALSE) ->  | U38: =+S38-I38 -> 
A40: CRITERE ACCELERATEURS PNB | C40: 15% | O40: =VLOOKUP($A$5,'RECAP SECT'!$G$6:$CY$312,144,FALSE) -> 
B41: PNB Ventes brutes SED Finalisées | C41: 6% | E41: ='RECAP SECT'!#REF! ->  | G41: =VLOOKUP($A$5,'RECAP SECT'!$G$6:$CY$312,127,FALSE) ->  | I41: =VLOOKUP($A$5,'RECAP SECT'!$G$6:$CY$312,128,FALSE) ->  | K41: =VLOOKUP($A$5,#REF!,128,FALSE) ->  | M41: =+K41-I41 ->  | O41: =VLOOKUP($A$5,'RECAP SECT'!$G$6:$CY$312,129,FALSE) ->  | S41: =VLOOKUP($A$5,#REF!,120,FALSE) ->  | U41: =+S41-I41 -> 
B42: PNB clients équipés E documents | C42: 3% | E42: ='RECAP SECT'!#REF! ->  | G42: =VLOOKUP($A$5,'RECAP SECT'!$G$6:$CY$312,131,FALSE) ->  | I42: =VLOOKUP($A$5,'RECAP SECT'!$G$6:$CY$312,132,FALSE) ->  | K42: =VLOOKUP($A$5,#REF!,132,FALSE) ->  | M42: =+K42-I42 ->  | O42: =VLOOKUP($A$5,'RECAP SECT'!$G$6:$CY$312,133,FALSE) ->  | S42: =VLOOKUP($A$5,#REF!,123,FALSE) ->  | U42: =+S42-I42 -> 
B43: Economie opt'in | C43: 3% | E43: ='RECAP SECT'!#REF! ->  | G43: =VLOOKUP($A$5,'RECAP SECT'!$G$6:$CY$312,135,FALSE) ->  | I43: =VLOOKUP($A$5,'RECAP SECT'!$G$6:$CY$312,136,FALSE) ->  | K43: =VLOOKUP($A$5,#REF!,136,FALSE) ->  | M43: =+K43-I43 ->  | O43: =VLOOKUP($A$5,'RECAP SECT'!$G$6:$CY$312,137,FALSE) -> 
B44: Remises commerciales | C44: 3% | E44: ='RECAP SECT'!#REF! ->  | G44: =VLOOKUP($A$5,'RECAP SECT'!$G$6:$CY$312,139,FALSE) ->  | I44: =VLOOKUP($A$5,'RECAP SECT'!$G$6:$CY$312,140,FALSE) ->  | K44: =VLOOKUP($A$5,#REF!,140,FALSE) ->  | M44: =+K44-I44 ->  | O44: =VLOOKUP($A$5,'RECAP SECT'!$G$6:$CY$312,141,FALSE) ->  | S44: =VLOOKUP($A$5,#REF!,126,FALSE) ->  | U44: =+S44-I44 -> 
A46: CRITERE Satisfaction Clients | C46: 15% | O46: =VLOOKUP($A$5,'RECAP SECT'!$G$6:$CY$312,159,FALSE) -> 
B47: Objectifs NPS* | C47: 8% | E47: ='RECAP SECT'!K4 -> 25 | G47: =VLOOKUP($A$5,'RECAP SECT'!$G$6:$CY$312,151,FALSE) ->  | I47: =VLOOKUP($A$5,'RECAP SECT'!$G$6:$CY$312,152,FALSE) ->  | K47: =VLOOKUP($A$5,#REF!,152,FALSE) ->  | M47: =+K47-I47 ->  | O47: =VLOOKUP($A$5,'RECAP SECT'!$G$6:$CY$312,153,FALSE) ->  | S47: =VLOOKUP($A$5,#REF!,138,FALSE) ->  | U47: =+S47-I47 -> 
B48: Enquête Qualité Haute Définition | C48: 7% | E48: ='RECAP SECT'!N4 -> 74% | G48: =VLOOKUP($A$5,'RECAP SECT'!$G$6:$CY$312,154,FALSE) ->  | I48: =VLOOKUP($A$5,'RECAP SECT'!$G$6:$CY$312,155,FALSE) ->  | K48: =VLOOKUP($A$5,#REF!,155,FALSE) ->  | M48: =+K48-I48 ->  | O48: =VLOOKUP($A$5,'RECAP SECT'!$G$6:$CY$312,156,FALSE) ->  | S48: =VLOOKUP($A$5,#REF!,141,FALSE) ->  | U48: =+S48-I48 -> 

Sheet SE_TOTAL
B1: Accueil | F1: BAROMETRE BDD - TERRITOIRES
F2: TOTAL GENERAL
F3: =ACCUEIL!F7 -> 2022-09-25
F7: TOTAL GENERAL | I7: Total Satisfaction Clients | L7: Total Bancarisation | O7: Total Epargne | R7: Total IARD Prévoyance | U7: Total Crédits
G8: coef | H8: =K8+N8+Q8+T8+W8 -> 100% | J8: coef | K8: =SE_SATISFACTION!N8 -> 20% | M8: coef | N8: =SE_BANCA!P8 -> 20% | P8: coef | Q8: =SE_EPARGNE!P8 -> 20% | S8: coef | T8: =SE_IARD!P8 -> 20% | V8: coef | W8: =SE_CREDIT!T8 -> 20%
B9: Direction | C9: eds | D9: Territoire | E9: ="ETP perf "&DATEMAJ!$C$28 -> ETP perf 25-sept | F9: Moyenne ecart au 1er | G9: % Ecart au 1er | H9: Rang CEGEE | I9: Moyenne ecart au 1er | J9: % Ecart au 1er | K9: Rang CEGEE | L9: Moyenne ecart au 1er | M9: % Ecart au 1er | N9: Rang CEGEE | O9: Moyenne ecart au 1er | P9: % Ecart au 1er | Q9: Rang CEGEE | R9: Moyenne ecart au 1er | S9: % Ecart au 1er | T9: Rang CEGEE | U9: Moyenne ecart au 1er | V9: % Ecart au 1er | W9: Rang CEGEE
A10: 50 | B10: MARNE-ARDENNES | C10: 11 | D10: REIMS | E10: 68.0 | F10: 9% | G10: 0% | H10: 1 | I10: 23% | J10: 20% | K10: 7 | L10: 0% | M10: 0% | N10: 1 | O10: 19% | P10: 14% | Q10: 3 | R10: 10% | S10: 9% | T10: 2 | U10: 5% | V10: 0% | W10: 1
A11: 50 | B11: MOSELLE | C11: 44 | D11: MOSELLE NORD | E11: 56.1 | F11: 17% | G11: 8% | H11: 2 | I11: 42% | J11: 39% | K11: 13 | L11: 8% | M11: 8% | N11: 2 | O11: 37% | P11: 32% | Q11: 11 | R11: 1% | S11: 0% | T11: 1 | U11: 9% | V11: 4% | W11: 2
A12: 262 | B12: MARNE-ARDENNES | C12: 6 | D12: CHALONS EN CHAMPAGNE | E12: 37.7 | F12: 17% | G12: 9% | H12: 3 | I12: 3% | J12: 0% | K12: 1 | L12: 22% | M12: 22% | N12: 3 | O12: 32% | P12: 27% | Q12: 8 | R12: 16% | S12: 16% | T12: 4 | U12: 27% | V12: 22% | W12: 5
A13: 262 | B13: MARNE-ARDENNES | C13: 2 | D13: CHARLEVILLE MEZIERES | E13: 48.7 | F13: 22% | G13: 13% | H13: 4 | I13: 26% | J13: 23% | K13: 8 | L13: 37% | M13: 37% | N13: 7 | O13: 25% | P13: 20% | Q13: 4 | R13: 14% | S13: 13% | T13: 3 | U13: 23% | V13: 18% | W13: 3
A14: 262 | B14: MOSELLE | C14: 42 | D14: MOSELLE EST | E14: 58.7 | F14: 23% | G14: 14% | H14: 5 | I14: 12% | J14: 10% | K14: 4 | L14: 25% | M14: 25% | N14: 4 | O14: 43% | P14: 38% | Q14: 13 | R14: 19% | S14: 18% | T14: 5 | U14: 27% | V14: 22% | W14: 6
A15: 264 | B15: BAS-RHIN | C15: 5006 | D15: STRASBOURG | E15: 65.4 | F15: 24% | G15: 16% | H15: 6 | I15: 36% | J15: 33% | K15: 11 | L15: 32% | M15: 32% | N15: 5 | O15: 5% | P15: 0% | Q15: 1 | R15: 22% | S15: 21% | T15: 6 | U15: 41% | V15: 36% | W15: 11
A16: 264 | B16: MOSELLE | C16: 45 | D16: METZ | E16: 72.8 | F16: 27% | G16: 19% | H16: 7 | I16: 29% | J16: 26% | K16: 9 | L16: 40% | M16: 40% | N16: 9 | O16: 16% | P16: 11% | Q16: 2 | R16: 35% | S16: 34% | T16: 9 | U16: 31% | V16: 26% | W16: 8
A17: 30 | B17: AUBE HAUTE MARNE | C17: 21 | D17: CHAUMONT | E17: 33.7 | F17: 28% | G17: 19% | H17: 8 | I17: 18% | J17: 15% | K17: 6 | L17: 44% | M17: 44% | N17: 14 | O17: 29% | P17: 24% | Q17: 5 | R17: 24% | S17: 23% | T17: 7 | U17: 39% | V17: 33% | W17: 10
A18: 30 | B18: VOSGES | C18: 57 | D18: EPINAL | E18: 52.9 | F18: 30% | G18: 21% | H18: 9 | I18: 9% | J18: 6% | K18: 3 | L18: 39% | M18: 39% | N18: 8 | O18: 32% | P18: 27% | Q18: 7 | R18: 41% | S18: 41% | T18: 12 | U18: 42% | V18: 37% | W18: 13
A19: 30 | B19: MEURTHE ET MOSELLE MEUSE | C19: 26 | D19: NANCY | E19: 54.7 | F19: 31% | G19: 22% | H19: 10 | I19: 31% | J19: 28% | K19: 10 | L19: 40% | M19: 40% | N19: 10 | O19: 33% | P19: 29% | Q19: 9 | R19: 38% | S19: 38% | T19: 11 | U19: 25% | V19: 19% | W19: 4
A20: 110 | B20: MEURTHE ET MOSELLE MEUSE | C20: 31 | D20: VERDUN | E20: 48.3 | F20: 32% | G20: 23% | H20: 11 | I20: 13% | J20: 10% | K20: 5 | L20: 36% | M20: 36% | N20: 6 | O20: 52% | P20: 48% | Q20: 15 | R20: 37% | S20: 37% | T20: 10 | U20: 33% | V20: 28% | W20: 9
A21: 110 | B21: MEURTHE ET MOSELLE MEUSE | C21: 27 | D21: PONT A MOUSSON | E21: 60.1 | F21: 35% | G21: 26% | H21: 12 | I21: 59% | J21: 56% | K21: 15 | L21: 41% | M21: 41% | N21: 11 | O21: 34% | P21: 29% | Q21: 10 | R21: 25% | S21: 25% | T21: 8 | U21: 28% | V21: 22% | W21: 7
A22: 110 | B22: VOSGES | C22: 55 | D22: SAINT DIE | E22: 40.2 | F22: 37% | G22: 28% | H22: 13 | I22: 4% | J22: 1% | K22: 2 | L22: 52% | M22: 52% | N22: 15 | O22: 51% | P22: 46% | Q22: 14 | R22: 49% | S22: 49% | T22: 15 | U22: 42% | V22: 37% | W22: 12
A23: 160 | B23: BAS-RHIN | C23: 5060 | D23: HAGUENAU | E23: 55.2 | F23: 39% | G23: 31% | H23: 14 | I23: 38% | J23: 35% | K23: 12 | L23: 43% | M23: 43% | N23: 13 | O23: 30% | P23: 25% | Q23: 6 | R23: 49% | S23: 49% | T23: 16 | U23: 50% | V23: 45% | W23: 16
A24: 160 | B24: BAS-RHIN | C24: 5101 | D24: SELESTAT | E24: 51.3 | F24: 44% | G24: 36% | H24: 15 | I24: 56% | J24: 53% | K24: 14 | L24: 43% | M24: 43% | N24: 12 | O24: 41% | P24: 36% | Q24: 12 | R24: 49% | S24: 48% | T24: 14 | U24: 47% | V24: 42% | W24: 15
A25: 160 | B25: AUBE HAUTE MARNE | C25: 14 | D25: TROYES | E25: 54.2 | F25: 53% | G25: 45% | H25: 16 | I25: 67% | J25: 64% | K25: 18 | L25: 57% | M25: 57% | N25: 16 | O25: 66% | P25: 61% | Q25: 17 | R25: 47% | S25: 47% | T25: 13 | U25: 43% | V25: 38% | W25: 14
A26: 80 | B26: HAUT-RHIN | C26: 5130 | D26: COLMAR | E26: 46.5 | F26: 56% | G26: 47% | H26: 17 | I26: 60% | J26: 57% | K26: 16 | L26: 62% | M26: 62% | N26: 17 | O26: 58% | P26: 54% | Q26: 16 | R26: 58% | S26: 58% | T26: 17 | U26: 53% | V26: 47% | W26: 18
A27: 80 | B27: HAUT-RHIN | C27: 5169 | D27: MULHOUSE | E27: 46.5 | F27: 66% | G27: 58% | H27: 18 | I27: 63% | J27: 60% | K27: 17 | L27: 73% | M27: 73% | N27: 18 | O27: 87% | P27: 82% | Q27: 18 | R27: 72% | S27: 71% | T27: 18 | U27: 50% | V27: 45% | W27: 17
A28: Total CEGEE Directions Régionales | E28: =SUM(E10:E27) -> 951

Sheet SE_BANCA
B1: Accueil | F1: BAROMETRE BDD - TERRITOIRES
F2: BANCARISATION
F3: =ACCUEIL!F7 -> 2022-09-25
F7: Ventes Nettes produits pondérés | J7: Ventes sur client non détenteur de l’univers | N7: Total Bancarisation
F8: =DATEMAJ!C8 -> au 25/09 | H8: coef | I8: ='RECAP DIRCOM'!AA4 -> 12% | J8: =DATEMAJ!C9 -> au 25/09 | L8: coef | M8: ='RECAP DIRCOM'!AE4 -> 8% | O8: coef | P8: ='RECAP DIRCOM'!AH4 -> 20%
B9: Direction | C9: eds | D9: Territoire | E9: ="ETP perf "&DATEMAJ!$C$28 -> ETP perf 25-sept | F9: VN | G9: VN / ETP | H9: % Ecart au 1er | I9: Rang | J9: VB | K9: VB / ETP | L9: % Ecart au 1er | M9: Rang | N9: Moyenne ecart au 1er | O9: % Ecart au 1er | P9: Rang CEGEE
A10: 50 | B10: AUBE HAUTE MARNE | C10: 21 | D10: CHAUMONT | E10: =VLOOKUP($C10,'RECAP SECT'!$G$6:$CU$253,3,FALSE) -> 33.7 | F10: =VLOOKUP($C10,'RECAP SECT'!$G$6:$CU$253,18,FALSE) -> 559 | G10: =VLOOKUP($C10,'RECAP SECT'!$G$6:$CU$253,19,FALSE) -> 16.58 | H10: =VLOOKUP($C10,'RECAP SECT'!$G$6:$CU$253,20,FALSE) -> 54% | I10: =VLOOKUP($C10,'RECAP SECT'!$G$6:$CU$253,21,FALSE) -> 14 | J10: =VLOOKUP($C10,'RECAP SECT'!$G$6:$CU$253,22,FALSE) -> 1,910 | K10: =VLOOKUP($C10,'RECAP SECT'!$G$6:$CU$253,23,FALSE) -> 56.63 | L10: =VLOOKUP($C10,'RECAP SECT'!$G$6:$CU$253,24,FALSE) -> 31% | M10: =VLOOKUP($C10,'RECAP SECT'!$G$6:$CU$253,25,FALSE) -> 11 | N10: =VLOOKUP($C10,'RECAP SECT'!$G$6:$CU$253,26,FALSE) -> 44% | O10: =VLOOKUP($C10,'RECAP SECT'!$G$6:$CU$253,27,FALSE) -> 44% | P10: =VLOOKUP($C10,'RECAP SECT'!$G$6:$CU$253,28,FALSE) -> 14
A11: 50 | B11: AUBE HAUTE MARNE | C11: 14 | D11: TROYES | E11: =VLOOKUP($C11,'RECAP SECT'!$G$6:$CU$253,3,FALSE) -> 54.2 | F11: =VLOOKUP($C11,'RECAP SECT'!$G$6:$CU$253,18,FALSE) -> 510 | G11: =VLOOKUP($C11,'RECAP SECT'!$G$6:$CU$253,19,FALSE) -> 9.42 | H11: =VLOOKUP($C11,'RECAP SECT'!$G$6:$CU$253,20,FALSE) -> 74% | I11: =VLOOKUP($C11,'RECAP SECT'!$G$6:$CU$253,21,FALSE) -> 17 | J11: =VLOOKUP($C11,'RECAP SECT'!$G$6:$CU$253,22,FALSE) -> 3,060 | K11: =VLOOKUP($C11,'RECAP SECT'!$G$6:$CU$253,23,FALSE) -> 56.51 | L11: =VLOOKUP($C11,'RECAP SECT'!$G$6:$CU$253,24,FALSE) -> 31% | M11: =VLOOKUP($C11,'RECAP SECT'!$G$6:$CU$253,25,FALSE) -> 12 | N11: =VLOOKUP($C11,'RECAP SECT'!$G$6:$CU$253,26,FALSE) -> 57% | O11: =VLOOKUP($C11,'RECAP SECT'!$G$6:$CU$253,27,FALSE) -> 57% | P11: =VLOOKUP($C11,'RECAP SECT'!$G$6:$CU$253,28,FALSE) -> 16
A12: 262 | B12: BAS-RHIN | C12: 5060 | D12: HAGUENAU | E12: =VLOOKUP($C12,'RECAP SECT'!$G$6:$CU$253,3,FALSE) -> 55.2 | F12: =VLOOKUP($C12,'RECAP SECT'!$G$6:$CU$253,18,FALSE) -> 1,076 | G12: =VLOOKUP($C12,'RECAP SECT'!$G$6:$CU$253,19,FALSE) -> 19.49 | H12: =VLOOKUP($C12,'RECAP SECT'!$G$6:$CU$253,20,FALSE) -> 45% | I12: =VLOOKUP($C12,'RECAP SECT'!$G$6:$CU$253,21,FALSE) -> 9 | J12: =VLOOKUP($C12,'RECAP SECT'!$G$6:$CU$253,22,FALSE) -> 2,735 | K12: =VLOOKUP($C12,'RECAP SECT'!$G$6:$CU$253,23,FALSE) -> 49.52 | L12: =VLOOKUP($C12,'RECAP SECT'!$G$6:$CU$253,24,FALSE) -> 40% | M12: =VLOOKUP($C12,'RECAP SECT'!$G$6:$CU$253,25,FALSE) -> 16 | N12: =VLOOKUP($C12,'RECAP SECT'!$G$6:$CU$253,26,FALSE) -> 43% | O12: =VLOOKUP($C12,'RECAP SECT'!$G$6:$CU$253,27,FALSE) -> 43% | P12: =VLOOKUP($C12,'RECAP SECT'!$G$6:$CU$253,28,FALSE) -> 13
A13: 262 | B13: BAS-RHIN | C13: 5101 | D13: SELESTAT | E13: =VLOOKUP($C13,'RECAP SECT'!$G$6:$CU$253,3,FALSE) -> 51.3 | F13: =VLOOKUP($C13,'RECAP SECT'!$G$6:$CU$253,18,FALSE) -> 1,010 | G13: =VLOOKUP($C13,'RECAP SECT'!$G$6:$CU$253,19,FALSE) -> 19.67 | H13: =VLOOKUP($C13,'RECAP SECT'!$G$6:$CU$253,20,FALSE) -> 45% | I13: =VLOOKUP($C13,'RECAP SECT'!$G$6:$CU$253,21,FALSE) -> 8 | J13: =VLOOKUP($C13,'RECAP SECT'!$G$6:$CU$253,22,FALSE) -> 2,559 | K13: =VLOOKUP($C13,'RECAP SECT'!$G$6:$CU$253,23,FALSE) -> 49.86 | L13: =VLOOKUP($C13,'RECAP SECT'!$G$6:$CU$253,24,FALSE) -> 39% | M13: =VLOOKUP($C13,'RECAP SECT'!$G$6:$CU$253,25,FALSE) -> 15 | N13: =VLOOKUP($C13,'RECAP SECT'!$G$6:$CU$253,26,FALSE) -> 43% | O13: =VLOOKUP($C13,'RECAP SECT'!$G$6:$CU$253,27,FALSE) -> 43% | P13: =VLOOKUP($C13,'RECAP SECT'!$G$6:$CU$253,28,FALSE) -> 12
A14: 262 | B14: BAS-RHIN | C14: 5006 | D14: STRASBOURG | E14: =VLOOKUP($C14,'RECAP SECT'!$G$6:$CU$253,3,FALSE) -> 65.4 | F14: =VLOOKUP($C14,'RECAP SECT'!$G$6:$CU$253,18,FALSE) -> 1,316 | G14: =VLOOKUP($C14,'RECAP SECT'!$G$6:$CU$253,19,FALSE) -> 20.12 | H14: =VLOOKUP($C14,'RECAP SECT'!$G$6:$CU$253,20,FALSE) -> 44% | I14: =VLOOKUP($C14,'RECAP SECT'!$G$6:$CU$253,21,FALSE) -> 6 | J14: =VLOOKUP($C14,'RECAP SECT'!$G$6:$CU$253,22,FALSE) -> 4,591 | K14: =VLOOKUP($C14,'RECAP SECT'!$G$6:$CU$253,23,FALSE) -> 70.18 | L14: =VLOOKUP($C14,'RECAP SECT'!$G$6:$CU$253,24,FALSE) -> 14% | M14: =VLOOKUP($C14,'RECAP SECT'!$G$6:$CU$253,25,FALSE) -> 3 | N14: =VLOOKUP($C14,'RECAP SECT'!$G$6:$CU$253,26,FALSE) -> 32% | O14: =VLOOKUP($C14,'RECAP SECT'!$G$6:$CU$253,27,FALSE) -> 32% | P14: =VLOOKUP($C14,'RECAP SECT'!$G$6:$CU$253,28,FALSE) -> 5
A15: 264 | B15: HAUT-RHIN | C15: 5130 | D15: COLMAR | E15: =VLOOKUP($C15,'RECAP SECT'!$G$6:$CU$253,3,FALSE) -> 46.5 | F15: =VLOOKUP($C15,'RECAP SECT'!$G$6:$CU$253,18,FALSE) -> 444 | G15: =VLOOKUP($C15,'RECAP SECT'!$G$6:$CU$253,19,FALSE) -> 9.54 | H15: =VLOOKUP($C15,'RECAP SECT'!$G$6:$CU$253,20,FALSE) -> 73% | I15: =VLOOKUP($C15,'RECAP SECT'!$G$6:$CU$253,21,FALSE) -> 16 | J15: =VLOOKUP($C15,'RECAP SECT'!$G$6:$CU$253,22,FALSE) -> 2,077 | K15: =VLOOKUP($C15,'RECAP SECT'!$G$6:$CU$253,23,FALSE) -> 44.64 | L15: =VLOOKUP($C15,'RECAP SECT'!$G$6:$CU$253,24,FALSE) -> 46% | M15: =VLOOKUP($C15,'RECAP SECT'!$G$6:$CU$253,25,FALSE) -> 18 | N15: =VLOOKUP($C15,'RECAP SECT'!$G$6:$CU$253,26,FALSE) -> 62% | O15: =VLOOKUP($C15,'RECAP SECT'!$G$6:$CU$253,27,FALSE) -> 62% | P15: =VLOOKUP($C15,'RECAP SECT'!$G$6:$CU$253,28,FALSE) -> 17
A16: 264 | B16: HAUT-RHIN | C16: 5169 | D16: MULHOUSE | E16: =VLOOKUP($C16,'RECAP SECT'!$G$6:$CU$253,3,FALSE) -> 46.5 | F16: =VLOOKUP($C16,'RECAP SECT'!$G$6:$CU$253,18,FALSE) -> 53 | G16: =VLOOKUP($C16,'RECAP SECT'!$G$6:$CU$253,19,FALSE) -> 1.14 | H16: =VLOOKUP($C16,'RECAP SECT'!$G$6:$CU$253,20,FALSE) -> 97% | I16: =VLOOKUP($C16,'RECAP SECT'!$G$6:$CU$253,21,FALSE) -> 18 | J16: =VLOOKUP($C16,'RECAP SECT'!$G$6:$CU$253,22,FALSE) -> 2,400 | K16: =VLOOKUP($C16,'RECAP SECT'!$G$6:$CU$253,23,FALSE) -> 51.59 | L16: =VLOOKUP($C16,'RECAP SECT'!$G$6:$CU$253,24,FALSE) -> 37% | M16: =VLOOKUP($C16,'RECAP SECT'!$G$6:$CU$253,25,FALSE) -> 14 | N16: =VLOOKUP($C16,'RECAP SECT'!$G$6:$CU$253,26,FALSE) -> 73% | O16: =VLOOKUP($C16,'RECAP SECT'!$G$6:$CU$253,27,FALSE) -> 73% | P16: =VLOOKUP($C16,'RECAP SECT'!$G$6:$CU$253,28,FALSE) -> 18
A17: 30 | B17: MARNE-ARDENNES | C17: 6 | D17: CHALONS EN CHAMPAGNE | E17: =VLOOKUP($C17,'RECAP SECT'!$G$6:$CU$253,3,FALSE) -> 37.7 | F17: =VLOOKUP($C17,'RECAP SECT'!$G$6:$CU$253,18,FALSE) -> 1,085 | G17: =VLOOKUP($C17,'RECAP SECT'!$G$6:$CU$253,19,FALSE) -> 28.77 | H17: =VLOOKUP($C17,'RECAP SECT'!$G$6:$CU$253,20,FALSE) -> 19% | I17: =VLOOKUP($C17,'RECAP SECT'!$G$6:$CU$253,21,FALSE) -> 3 | J17: =VLOOKUP($C17,'RECAP SECT'!$G$6:$CU$253,22,FALSE) -> 2,303 | K17: =VLOOKUP($C17,'RECAP SECT'!$G$6:$CU$253,23,FALSE) -> 61.06 | L17: =VLOOKUP($C17,'RECAP SECT'!$G$6:$CU$253,24,FALSE) -> 25% | M17: =VLOOKUP($C17,'RECAP SECT'!$G$6:$CU$253,25,FALSE) -> 9 | N17: =VLOOKUP($C17,'RECAP SECT'!$G$6:$CU$253,26,FALSE) -> 22% | O17: =VLOOKUP($C17,'RECAP SECT'!$G$6:$CU$253,27,FALSE) -> 22% | P17: =VLOOKUP($C17,'RECAP SECT'!$G$6:$CU$253,28,FALSE) -> 3
A18: 30 | B18: MARNE-ARDENNES | C18: 2 | D18: CHARLEVILLE MEZIERES | E18: =VLOOKUP($C18,'RECAP SECT'!$G$6:$CU$253,3,FALSE) -> 48.7 | F18: =VLOOKUP($C18,'RECAP SECT'!$G$6:$CU$253,18,FALSE) -> 914 | G18: =VLOOKUP($C18,'RECAP SECT'!$G$6:$CU$253,19,FALSE) -> 18.78 | H18: =VLOOKUP($C18,'RECAP SECT'!$G$6:$CU$253,20,FALSE) -> 47% | I18: =VLOOKUP($C18,'RECAP SECT'!$G$6:$CU$253,21,FALSE) -> 10 | J18: =VLOOKUP($C18,'RECAP SECT'!$G$6:$CU$253,22,FALSE) -> 3,128 | K18: =VLOOKUP($C18,'RECAP SECT'!$G$6:$CU$253,23,FALSE) -> 64.30 | L18: =VLOOKUP($C18,'RECAP SECT'!$G$6:$CU$253,24,FALSE) -> 22% | M18: =VLOOKUP($C18,'RECAP SECT'!$G$6:$CU$253,25,FALSE) -> 5 | N18: =VLOOKUP($C18,'RECAP SECT'!$G$6:$CU$253,26,FALSE) -> 37% | O18: =VLOOKUP($C18,'RECAP SECT'!$G$6:$CU$253,27,FALSE) -> 37% | P18: =VLOOKUP($C18,'RECAP SECT'!$G$6:$CU$253,28,FALSE) -> 7
A19: 30 | B19: MARNE-ARDENNES | C19: 11 | D19: REIMS | E19: =VLOOKUP($C19,'RECAP SECT'!$G$6:$CU$253,3,FALSE) -> 68.0 | F19: =VLOOKUP($C19,'RECAP SECT'!$G$6:$CU$253,18,FALSE) -> 2,426 | G19: =VLOOKUP($C19,'RECAP SECT'!$G$6:$CU$253,19,FALSE) -> 35.67 | H19: =VLOOKUP($C19,'RECAP SECT'!$G$6:$CU$253,20,FALSE) -> 0% | I19: =VLOOKUP($C19,'RECAP SECT'!$G$6:$CU$253,21,FALSE) -> 1 | J19: =VLOOKUP($C19,'RECAP SECT'!$G$6:$CU$253,22,FALSE) -> 5,569 | K19: =VLOOKUP($C19,'RECAP SECT'!$G$6:$CU$253,23,FALSE) -> 81.91 | L19: =VLOOKUP($C19,'RECAP SECT'!$G$6:$CU$253,24,FALSE) -> 0% | M19: =VLOOKUP($C19,'RECAP SECT'!$G$6:$CU$253,25,FALSE) -> 1 | N19: =VLOOKUP($C19,'RECAP SECT'!$G$6:$CU$253,26,FALSE) -> 0% | O19: =VLOOKUP($C19,'RECAP SECT'!$G$6:$CU$253,27,FALSE) -> 0% | P19: =VLOOKUP($C19,'RECAP SECT'!$G$6:$CU$253,28,FALSE) -> 1
A20: 110 | B20: MEURTHE ET MOSELLE MEUSE | C20: 26 | D20: NANCY | E20: =VLOOKUP($C20,'RECAP SECT'!$G$6:$CU$253,3,FALSE) -> 54.7 | F20: =VLOOKUP($C20,'RECAP SECT'!$G$6:$CU$253,18,FALSE) -> 946 | G20: =VLOOKUP($C20,'RECAP SECT'!$G$6:$CU$253,19,FALSE) -> 17.29 | H20: =VLOOKUP($C20,'RECAP SECT'!$G$6:$CU$253,20,FALSE) -> 52% | I20: =VLOOKUP($C20,'RECAP SECT'!$G$6:$CU$253,21,FALSE) -> 12 | J20: =VLOOKUP($C20,'RECAP SECT'!$G$6:$CU$253,22,FALSE) -> 3,480 | K20: =VLOOKUP($C20,'RECAP SECT'!$G$6:$CU$253,23,FALSE) -> 63.57 | L20: =VLOOKUP($C20,'RECAP SECT'!$G$6:$CU$253,24,FALSE) -> 22% | M20: =VLOOKUP($C20,'RECAP SECT'!$G$6:$CU$253,25,FALSE) -> 6 | N20: =VLOOKUP($C20,'RECAP SECT'!$G$6:$CU$253,26,FALSE) -> 40% | O20: =VLOOKUP($C20,'RECAP SECT'!$G$6:$CU$253,27,FALSE) -> 40% | P20: =VLOOKUP($C20,'RECAP SECT'!$G$6:$CU$253,28,FALSE) -> 10
A21: 110 | B21: MEURTHE ET MOSELLE MEUSE | C21: 27 | D21: PONT A MOUSSON | E21: =VLOOKUP($C21,'RECAP SECT'!$G$6:$CU$253,3,FALSE) -> 60.1 | F21: =VLOOKUP($C21,'RECAP SECT'!$G$6:$CU$253,18,FALSE) -> 1,002 | G21: =VLOOKUP($C21,'RECAP SECT'!$G$6:$CU$253,19,FALSE) -> 16.67 | H21: =VLOOKUP($C21,'RECAP SECT'!$G$6:$CU$253,20,FALSE) -> 53% | I21: =VLOOKUP($C21,'RECAP SECT'!$G$6:$CU$253,21,FALSE) -> 13 | J21: =VLOOKUP($C21,'RECAP SECT'!$G$6:$CU$253,22,FALSE) -> 3,820 | K21: =VLOOKUP($C21,'RECAP SECT'!$G$6:$CU$253,23,FALSE) -> 63.55 | L21: =VLOOKUP($C21,'RECAP SECT'!$G$6:$CU$253,24,FALSE) -> 22% | M21: =VLOOKUP($C21,'RECAP SECT'!$G$6:$CU$253,25,FALSE) -> 7 | N21: =VLOOKUP($C21,'RECAP SECT'!$G$6:$CU$253,26,FALSE) -> 41% | O21: =VLOOKUP($C21,'RECAP SECT'!$G$6:$CU$253,27,FALSE) -> 41% | P21: =VLOOKUP($C21,'RECAP SECT'!$G$6:$CU$253,28,FALSE) -> 11
A22: 110 | B22: MEURTHE ET MOSELLE MEUSE | C22: 31 | D22: VERDUN | E22: =VLOOKUP($C22,'RECAP SECT'!$G$6:$CU$253,3,FALSE) -> 48.3 | F22: =VLOOKUP($C22,'RECAP SECT'!$G$6:$CU$253,18,FALSE) -> 984 | G22: =VLOOKUP($C22,'RECAP SECT'!$G$6:$CU$253,19,FALSE) -> 20.37 | H22: =VLOOKUP($C22,'RECAP SECT'!$G$6:$CU$253,20,FALSE) -> 43% | I22: =VLOOKUP($C22,'RECAP SECT'!$G$6:$CU$253,21,FALSE) -> 5 | J22: =VLOOKUP($C22,'RECAP SECT'!$G$6:$CU$253,22,FALSE) -> 2,910 | K22: =VLOOKUP($C22,'RECAP SECT'!$G$6:$CU$253,23,FALSE) -> 60.24 | L22: =VLOOKUP($C22,'RECAP SECT'!$G$6:$CU$253,24,FALSE) -> 26% | M22: =VLOOKUP($C22,'RECAP SECT'!$G$6:$CU$253,25,FALSE) -> 10 | N22: =VLOOKUP($C22,'RECAP SECT'!$G$6:$CU$253,26,FALSE) -> 36% | O22: =VLOOKUP($C22,'RECAP SECT'!$G$6:$CU$253,27,FALSE) -> 36% | P22: =VLOOKUP($C22,'RECAP SECT'!$G$6:$CU$253,28,FALSE) -> 6
A23: 160 | B23: MOSELLE | C23: 45 | D23: METZ | E23: =VLOOKUP($C23,'RECAP SECT'!$G$6:$CU$253,3,FALSE) -> 72.8 | F23: =VLOOKUP($C23,'RECAP SECT'!$G$6:$CU$253,18,FALSE) -> 1,312 | G23: =VLOOKUP($C23,'RECAP SECT'!$G$6:$CU$253,19,FALSE) -> 18.02 | H23: =VLOOKUP($C23,'RECAP SECT'!$G$6:$CU$253,20,FALSE) -> 49% | I23: =VLOOKUP($C23,'RECAP SECT'!$G$6:$CU$253,21,FALSE) -> 11 | J23: =VLOOKUP($C23,'RECAP SECT'!$G$6:$CU$253,22,FALSE) -> 4,451 | K23: =VLOOKUP($C23,'RECAP SECT'!$G$6:$CU$253,23,FALSE) -> 61.13 | L23: =VLOOKUP($C23,'RECAP SECT'!$G$6:$CU$253,24,FALSE) -> 25% | M23: =VLOOKUP($C23,'RECAP SECT'!$G$6:$CU$253,25,FALSE) -> 8 | N23: =VLOOKUP($C23,'RECAP SECT'!$G$6:$CU$253,26,FALSE) -> 40% | O23: =VLOOKUP($C23,'RECAP SECT'!$G$6:$CU$253,27,FALSE) -> 40% | P23: =VLOOKUP($C23,'RECAP SECT'!$G$6:$CU$253,28,FALSE) -> 9
A24: 160 | B24: MOSELLE | C24: 42 | D24: MOSELLE EST | E24: =VLOOKUP($C24,'RECAP SECT'!$G$6:$CU$253,3,FALSE) -> 58.7 | F24: =VLOOKUP($C24,'RECAP SECT'!$G$6:$CU$253,18,FALSE) -> 1,473 | G24: =VLOOKUP($C24,'RECAP SECT'!$G$6:$CU$253,19,FALSE) -> 25.11 | H24: =VLOOKUP($C24,'RECAP SECT'!$G$6:$CU$253,20,FALSE) -> 30% | I24: =VLOOKUP($C24,'RECAP SECT'!$G$6:$CU$253,21,FALSE) -> 4 | J24: =VLOOKUP($C24,'RECAP SECT'!$G$6:$CU$253,22,FALSE) -> 3,876 | K24: =VLOOKUP($C24,'RECAP SECT'!$G$6:$CU$253,23,FALSE) -> 66.09 | L24: =VLOOKUP($C24,'RECAP SECT'!$G$6:$CU$253,24,FALSE) -> 19% | M24: =VLOOKUP($C24,'RECAP SECT'!$G$6:$CU$253,25,FALSE) -> 4 | N24: =VLOOKUP($C24,'RECAP SECT'!$G$6:$CU$253,26,FALSE) -> 25% | O24: =VLOOKUP($C24,'RECAP SECT'!$G$6:$CU$253,27,FALSE) -> 25% | P24: =VLOOKUP($C24,'RECAP SECT'!$G$6:$CU$253,28,FALSE) -> 4
A25: 160 | B25: MOSELLE | C25: 44 | D25: MOSELLE NORD | E25: =VLOOKUP($C25,'RECAP SECT'!$G$6:$CU$253,3,FALSE) -> 56.1 | F25: =VLOOKUP($C25,'RECAP SECT'!$G$6:$CU$253,18,FALSE) -> 1,865 | G25: =VLOOKUP($C25,'RECAP SECT'!$G$6:$CU$253,19,FALSE) -> 33.25 | H25: =VLOOKUP($C25,'RECAP SECT'!$G$6:$CU$253,20,FALSE) -> 7% | I25: =VLOOKUP($C25,'RECAP SECT'!$G$6:$CU$253,21,FALSE) -> 2 | J25: =VLOOKUP($C25,'RECAP SECT'!$G$6:$CU$253,22,FALSE) -> 4,140 | K25: =VLOOKUP($C25,'RECAP SECT'!$G$6:$CU$253,23,FALSE) -> 73.80 | L25: =VLOOKUP($C25,'RECAP SECT'!$G$6:$CU$253,24,FALSE) -> 10% | M25: =VLOOKUP($C25,'RECAP SECT'!$G$6:$CU$253,25,FALSE) -> 2 | N25: =VLOOKUP($C25,'RECAP SECT'!$G$6:$CU$253,26,FALSE) -> 8% | O25: =VLOOKUP($C25,'RECAP SECT'!$G$6:$CU$253,27,FALSE) -> 8% | P25: =VLOOKUP($C25,'RECAP SECT'!$G$6:$CU$253,28,FALSE) -> 2
A26: 80 | B26: VOSGES | C26: 57 | D26: EPINAL | E26: =VLOOKUP($C26,'RECAP SECT'!$G$6:$CU$253,3,FALSE) -> 52.9 | F26: =VLOOKUP($C26,'RECAP SECT'!$G$6:$CU$253,18,FALSE) -> 1,058 | G26: =VLOOKUP($C26,'RECAP SECT'!$G$6:$CU$253,19,FALSE) -> 19.99 | H26: =VLOOKUP($C26,'RECAP SECT'!$G$6:$CU$253,20,FALSE) -> 44% | I26: =VLOOKUP($C26,'RECAP SECT'!$G$6:$CU$253,21,FALSE) -> 7 | J26: =VLOOKUP($C26,'RECAP SECT'!$G$6:$CU$253,22,FALSE) -> 2,919 | K26: =VLOOKUP($C26,'RECAP SECT'!$G$6:$CU$253,23,FALSE) -> 55.17 | L26: =VLOOKUP($C26,'RECAP SECT'!$G$6:$CU$253,24,FALSE) -> 33% | M26: =VLOOKUP($C26,'RECAP SECT'!$G$6:$CU$253,25,FALSE) -> 13 | N26: =VLOOKUP($C26,'RECAP SECT'!$G$6:$CU$253,26,FALSE) -> 39% | O26: =VLOOKUP($C26,'RECAP SECT'!$G$6:$CU$253,27,FALSE) -> 39% | P26: =VLOOKUP($C26,'RECAP SECT'!$G$6:$CU$253,28,FALSE) -> 8
A27: 80 | B27: VOSGES | C27: 55 | D27: SAINT DIE | E27: =VLOOKUP($C27,'RECAP SECT'!$G$6:$CU$253,3,FALSE) -> 40.2 | F27: =VLOOKUP($C27,'RECAP SECT'!$G$6:$CU$253,18,FALSE) -> 604 | G27: =VLOOKUP($C27,'RECAP SECT'!$G$6:$CU$253,19,FALSE) -> 15.00 | H27: =VLOOKUP($C27,'RECAP SECT'!$G$6:$CU$253,20,FALSE) -> 58% | I27: =VLOOKUP($C27,'RECAP SECT'!$G$6:$CU$253,21,FALSE) -> 15 | J27: =VLOOKUP($C27,'RECAP SECT'!$G$6:$CU$253,22,FALSE) -> 1,916 | K27: =VLOOKUP($C27,'RECAP SECT'!$G$6:$CU$253,23,FALSE) -> 47.63 | L27: =VLOOKUP($C27,'RECAP SECT'!$G$6:$CU$253,24,FALSE) -> 42% | M27: =VLOOKUP($C27,'RECAP SECT'!$G$6:$CU$253,25,FALSE) -> 17 | N27: =VLOOKUP($C27,'RECAP SECT'!$G$6:$CU$253,26,FALSE) -> 52% | O27: =VLOOKUP($C27,'RECAP SECT'!$G$6:$CU$253,27,FALSE) -> 52% | P27: =VLOOKUP($C27,'RECAP SECT'!$G$6:$CU$253,28,FALSE) -> 15
A28: Total CEGEE Directions Régionales | E28: =SUM(E10:E27) -> 951

Sheet SE_EPARGNE
B1: Accueil | F1: BAROMETRE BDD - TERRITOIRES
F2: EPARGNE
F3: =ACCUEIL!F7 -> 2022-09-25
F7: Excédent Epargne hors DAV pondéré | J7: Ventes sur client non détenteur de l’univers | N7: Total Epargne
F8: =DATEMAJ!C14 -> au 25/09 | H8: coef | I8: ='RECAP DIRCOM'!AP4 -> 12% | J8: =DATEMAJ!C15 -> au 25/09 | L8: coef | M8: ='RECAP DIRCOM'!AT4 -> 8% | O8: coef | P8: ='RECAP DIRCOM'!AW4 -> 20%
A9: eds | B9: Direction | C9: eds | D9: Territoire | E9: ="ETP perf "&DATEMAJ!$C$28 -> ETP perf 25-sept | F9: Excédent | G9: Excédent / ETP | H9: % Ecart au 1er | I9: Rang | J9: VB | K9: VB / ETP | L9: % Ecart au 1er | M9: Rang | N9: Moyenne ecart au 1er | O9: % Ecart au 1er | P9: Rang CEGEE
A10: 50 | B10: AUBE HAUTE MARNE | C10: 21 | D10: CHAUMONT | E10: =VLOOKUP($C10,'RECAP SECT'!$G$6:$CU$253,3,FALSE) -> 33.7 | F10: =VLOOKUP($C10,'RECAP SECT'!$G$6:$CU$253,33,FALSE) -> 11,341 | G10: =VLOOKUP($C10,'RECAP SECT'!$G$6:$CU$253,34,FALSE) -> 336.24 | H10: =VLOOKUP($C10,'RECAP SECT'!$G$6:$CU$253,35,FALSE) -> 28% | I10: =VLOOKUP($C10,'RECAP SECT'!$G$6:$CU$253,36,FALSE) -> 5 | J10: =VLOOKUP($C10,'RECAP SECT'!$G$6:$CU$253,37,FALSE) -> 1,804 | K10: =VLOOKUP($C10,'RECAP SECT'!$G$6:$CU$253,38,FALSE) -> 53.48 | L10: =VLOOKUP($C10,'RECAP SECT'!$G$6:$CU$253,39,FALSE) -> 32% | M10: =VLOOKUP($C10,'RECAP SECT'!$G$6:$CU$253,40,FALSE) -> 10 | N10: =VLOOKUP($C10,'RECAP SECT'!$G$6:$CU$253,41,FALSE) -> 29% | O10: =VLOOKUP($C10,'RECAP SECT'!$G$6:$CU$253,42,FALSE) -> 24% | P10: =VLOOKUP($C10,'RECAP SECT'!$G$6:$CU$253,43,FALSE) -> 5
A11: 50 | B11: AUBE HAUTE MARNE | C11: 14 | D11: TROYES | E11: =VLOOKUP($C11,'RECAP SECT'!$G$6:$CU$253,3,FALSE) -> 54.2 | F11: =VLOOKUP($C11,'RECAP SECT'!$G$6:$CU$253,33,FALSE) -> 3,177 | G11: =VLOOKUP($C11,'RECAP SECT'!$G$6:$CU$253,34,FALSE) -> 58.67 | H11: =VLOOKUP($C11,'RECAP SECT'!$G$6:$CU$253,35,FALSE) -> 87% | I11: =VLOOKUP($C11,'RECAP SECT'!$G$6:$CU$253,36,FALSE) -> 17 | J11: =VLOOKUP($C11,'RECAP SECT'!$G$6:$CU$253,37,FALSE) -> 2,846 | K11: =VLOOKUP($C11,'RECAP SECT'!$G$6:$CU$253,38,FALSE) -> 52.56 | L11: =VLOOKUP($C11,'RECAP SECT'!$G$6:$CU$253,39,FALSE) -> 33% | M11: =VLOOKUP($C11,'RECAP SECT'!$G$6:$CU$253,40,FALSE) -> 11 | N11: =VLOOKUP($C11,'RECAP SECT'!$G$6:$CU$253,41,FALSE) -> 66% | O11: =VLOOKUP($C11,'RECAP SECT'!$G$6:$CU$253,42,FALSE) -> 61% | P11: =VLOOKUP($C11,'RECAP SECT'!$G$6:$CU$253,43,FALSE) -> 17
A12: 262 | B12: BAS-RHIN | C12: 5060 | D12: HAGUENAU | E12: =VLOOKUP($C12,'RECAP SECT'!$G$6:$CU$253,3,FALSE) -> 55.2 | F12: =VLOOKUP($C12,'RECAP SECT'!$G$6:$CU$253,33,FALSE) -> 19,337 | G12: =VLOOKUP($C12,'RECAP SECT'!$G$6:$CU$253,34,FALSE) -> 350.11 | H12: =VLOOKUP($C12,'RECAP SECT'!$G$6:$CU$253,35,FALSE) -> 25% | I12: =VLOOKUP($C12,'RECAP SECT'!$G$6:$CU$253,36,FALSE) -> 3 | J12: =VLOOKUP($C12,'RECAP SECT'!$G$6:$CU$253,37,FALSE) -> 2,661 | K12: =VLOOKUP($C12,'RECAP SECT'!$G$6:$CU$253,38,FALSE) -> 48.18 | L12: =VLOOKUP($C12,'RECAP SECT'!$G$6:$CU$253,39,FALSE) -> 38% | M12: =VLOOKUP($C12,'RECAP SECT'!$G$6:$CU$253,40,FALSE) -> 15 | N12: =VLOOKUP($C12,'RECAP SECT'!$G$6:$CU$253,41,FALSE) -> 30% | O12: =VLOOKUP($C12,'RECAP SECT'!$G$6:$CU$253,42,FALSE) -> 25% | P12: =VLOOKUP($C12,'RECAP SECT'!$G$6:$CU$253,43,FALSE) -> 6
A13: 262 | B13: BAS-RHIN | C13: 5101 | D13: SELESTAT | E13: =VLOOKUP($C13,'RECAP SECT'!$G$6:$CU$253,3,FALSE) -> 51.3 | F13: =VLOOKUP($C13,'RECAP SECT'!$G$6:$CU$253,33,FALSE) -> 13,727 | G13: =VLOOKUP($C13,'RECAP SECT'!$G$6:$CU$253,34,FALSE) -> 267.47 | H13: =VLOOKUP($C13,'RECAP SECT'!$G$6:$CU$253,35,FALSE) -> 43% | I13: =VLOOKUP($C13,'RECAP SECT'!$G$6:$CU$253,36,FALSE) -> 11 | J13: =VLOOKUP($C13,'RECAP SECT'!$G$6:$CU$253,37,FALSE) -> 2,497 | K13: =VLOOKUP($C13,'RECAP SECT'!$G$6:$CU$253,38,FALSE) -> 48.66 | L13: =VLOOKUP($C13,'RECAP SECT'!$G$6:$CU$253,39,FALSE) -> 38% | M13: =VLOOKUP($C13,'RECAP SECT'!$G$6:$CU$253,40,FALSE) -> 14 | N13: =VLOOKUP($C13,'RECAP SECT'!$G$6:$CU$253,41,FALSE) -> 41% | O13: =VLOOKUP($C13,'RECAP SECT'!$G$6:$CU$253,42,FALSE) -> 36% | P13: =VLOOKUP($C13,'RECAP SECT'!$G$6:$CU$253,43,FALSE) -> 12
A14: 262 | B14: BAS-RHIN | C14: 5006 | D14: STRASBOURG | E14: =VLOOKUP($C14,'RECAP SECT'!$G$6:$CU$253,3,FALSE) -> 65.4 | F14: =VLOOKUP($C14,'RECAP SECT'!$G$6:$CU$253,33,FALSE) -> 30,443 | G14: =VLOOKUP($C14,'RECAP SECT'!$G$6:$CU$253,34,FALSE) -> 465.35 | H14: =VLOOKUP($C14,'RECAP SECT'!$G$6:$CU$253,35,FALSE) -> 0% | I14: =VLOOKUP($C14,'RECAP SECT'!$G$6:$CU$253,36,FALSE) -> 1 | J14: =VLOOKUP($C14,'RECAP SECT'!$G$6:$CU$253,37,FALSE) -> 4,493 | K14: =VLOOKUP($C14,'RECAP SECT'!$G$6:$CU$253,38,FALSE) -> 68.68 | L14: =VLOOKUP($C14,'RECAP SECT'!$G$6:$CU$253,39,FALSE) -> 12% | M14: =VLOOKUP($C14,'RECAP SECT'!$G$6:$CU$253,40,FALSE) -> 4 | N14: =VLOOKUP($C14,'RECAP SECT'!$G$6:$CU$253,41,FALSE) -> 5% | O14: =VLOOKUP($C14,'RECAP SECT'!$G$6:$CU$253,42,FALSE) -> 0% | P14: =VLOOKUP($C14,'RECAP SECT'!$G$6:$CU$253,43,FALSE) -> 1
A15: 264 | B15: HAUT-RHIN | C15: 5130 | D15: COLMAR | E15: =VLOOKUP($C15,'RECAP SECT'!$G$6:$CU$253,3,FALSE) -> 46.5 | F15: =VLOOKUP($C15,'RECAP SECT'!$G$6:$CU$253,33,FALSE) -> 7,527 | G15: =VLOOKUP($C15,'RECAP SECT'!$G$6:$CU$253,34,FALSE) -> 161.76 | H15: =VLOOKUP($C15,'RECAP SECT'!$G$6:$CU$253,35,FALSE) -> 65% | I15: =VLOOKUP($C15,'RECAP SECT'!$G$6:$CU$253,36,FALSE) -> 15 | J15: =VLOOKUP($C15,'RECAP SECT'!$G$6:$CU$253,37,FALSE) -> 1,882 | K15: =VLOOKUP($C15,'RECAP SECT'!$G$6:$CU$253,38,FALSE) -> 40.45 | L15: =VLOOKUP($C15,'RECAP SECT'!$G$6:$CU$253,39,FALSE) -> 48% | M15: =VLOOKUP($C15,'RECAP SECT'!$G$6:$CU$253,40,FALSE) -> 18 | N15: =VLOOKUP($C15,'RECAP SECT'!$G$6:$CU$253,41,FALSE) -> 58% | O15: =VLOOKUP($C15,'RECAP SECT'!$G$6:$CU$253,42,FALSE) -> 54% | P15: =VLOOKUP($C15,'RECAP SECT'!$G$6:$CU$253,43,FALSE) -> 16
A16: 264 | B16: HAUT-RHIN | C16: 5169 | D16: MULHOUSE | E16: =VLOOKUP($C16,'RECAP SECT'!$G$6:$CU$253,3,FALSE) -> 46.5 | F16: =VLOOKUP($C16,'RECAP SECT'!$G$6:$CU$253,33,FALSE) -> -3,722 | G16: =VLOOKUP($C16,'RECAP SECT'!$G$6:$CU$253,34,FALSE) -> -80.01 | H16: =VLOOKUP($C16,'RECAP SECT'!$G$6:$CU$253,35,FALSE) -> 117% | I16: =VLOOKUP($C16,'RECAP SECT'!$G$6:$CU$253,36,FALSE) -> 18 | J16: =VLOOKUP($C16,'RECAP SECT'!$G$6:$CU$253,37,FALSE) -> 2,143 | K16: =VLOOKUP($C16,'RECAP SECT'!$G$6:$CU$253,38,FALSE) -> 46.07 | L16: =VLOOKUP($C16,'RECAP SECT'!$G$6:$CU$253,39,FALSE) -> 41% | M16: =VLOOKUP($C16,'RECAP SECT'!$G$6:$CU$253,40,FALSE) -> 16 | N16: =VLOOKUP($C16,'RECAP SECT'!$G$6:$CU$253,41,FALSE) -> 87% | O16: =VLOOKUP($C16,'RECAP SECT'!$G$6:$CU$253,42,FALSE) -> 82% | P16: =VLOOKUP($C16,'RECAP SECT'!$G$6:$CU$253,43,FALSE) -> 18
A17: 30 | B17: MARNE-ARDENNES | C17: 6 | D17: CHALONS EN CHAMPAGNE | E17: =VLOOKUP($C17,'RECAP SECT'!$G$6:$CU$253,3,FALSE) -> 37.7 | F17: =VLOOKUP($C17,'RECAP SECT'!$G$6:$CU$253,33,FALSE) -> 10,109 | G17: =VLOOKUP($C17,'RECAP SECT'!$G$6:$CU$253,34,FALSE) -> 268.00 | H17: =VLOOKUP($C17,'RECAP SECT'!$G$6:$CU$253,35,FALSE) -> 42% | I17: =VLOOKUP($C17,'RECAP SECT'!$G$6:$CU$253,36,FALSE) -> 10 | J17: =VLOOKUP($C17,'RECAP SECT'!$G$6:$CU$253,37,FALSE) -> 2,449 | K17: =VLOOKUP($C17,'RECAP SECT'!$G$6:$CU$253,38,FALSE) -> 64.93 | L17: =VLOOKUP($C17,'RECAP SECT'!$G$6:$CU$253,39,FALSE) -> 17% | M17: =VLOOKUP($C17,'RECAP SECT'!$G$6:$CU$253,40,FALSE) -> 6 | N17: =VLOOKUP($C17,'RECAP SECT'!$G$6:$CU$253,41,FALSE) -> 32% | O17: =VLOOKUP($C17,'RECAP SECT'!$G$6:$CU$253,42,FALSE) -> 27% | P17: =VLOOKUP($C17,'RECAP SECT'!$G$6:$CU$253,43,FALSE) -> 8
A18: 30 | B18: MARNE-ARDENNES | C18: 2 | D18: CHARLEVILLE MEZIERES | E18: =VLOOKUP($C18,'RECAP SECT'!$G$6:$CU$253,3,FALSE) -> 48.7 | F18: =VLOOKUP($C18,'RECAP SECT'!$G$6:$CU$253,33,FALSE) -> 14,978 | G18: =VLOOKUP($C18,'RECAP SECT'!$G$6:$CU$253,34,FALSE) -> 307.87 | H18: =VLOOKUP($C18,'RECAP SECT'!$G$6:$CU$253,35,FALSE) -> 34% | I18: =VLOOKUP($C18,'RECAP SECT'!$G$6:$CU$253,36,FALSE) -> 7 | J18: =VLOOKUP($C18,'RECAP SECT'!$G$6:$CU$253,37,FALSE) -> 3,391 | K18: =VLOOKUP($C18,'RECAP SECT'!$G$6:$CU$253,38,FALSE) -> 69.70 | L18: =VLOOKUP($C18,'RECAP SECT'!$G$6:$CU$253,39,FALSE) -> 11% | M18: =VLOOKUP($C18,'RECAP SECT'!$G$6:$CU$253,40,FALSE) -> 3 | N18: =VLOOKUP($C18,'RECAP SECT'!$G$6:$CU$253,41,FALSE) -> 25% | O18: =VLOOKUP($C18,'RECAP SECT'!$G$6:$CU$253,42,FALSE) -> 20% | P18: =VLOOKUP($C18,'RECAP SECT'!$G$6:$CU$253,43,FALSE) -> 4
A19: 30 | B19: MARNE-ARDENNES | C19: 11 | D19: REIMS | E19: =VLOOKUP($C19,'RECAP SECT'!$G$6:$CU$253,3,FALSE) -> 68.0 | F19: =VLOOKUP($C19,'RECAP SECT'!$G$6:$CU$253,33,FALSE) -> 23,550 | G19: =VLOOKUP($C19,'RECAP SECT'!$G$6:$CU$253,34,FALSE) -> 346.37 | H19: =VLOOKUP($C19,'RECAP SECT'!$G$6:$CU$253,35,FALSE) -> 26% | I19: =VLOOKUP($C19,'RECAP SECT'!$G$6:$CU$253,36,FALSE) -> 4 | J19: =VLOOKUP($C19,'RECAP SECT'!$G$6:$CU$253,37,FALSE) -> 4,846 | K19: =VLOOKUP($C19,'RECAP SECT'!$G$6:$CU$253,38,FALSE) -> 71.28 | L19: =VLOOKUP($C19,'RECAP SECT'!$G$6:$CU$253,39,FALSE) -> 9% | M19: =VLOOKUP($C19,'RECAP SECT'!$G$6:$CU$253,40,FALSE) -> 2 | N19: =VLOOKUP($C19,'RECAP SECT'!$G$6:$CU$253,41,FALSE) -> 19% | O19: =VLOOKUP($C19,'RECAP SECT'!$G$6:$CU$253,42,FALSE) -> 14% | P19: =VLOOKUP($C19,'RECAP SECT'!$G$6:$CU$253,43,FALSE) -> 3
A20: 110 | B20: MEURTHE ET MOSELLE MEUSE | C20: 26 | D20: NANCY | E20: =VLOOKUP($C20,'RECAP SECT'!$G$6:$CU$253,3,FALSE) -> 54.7 | F20: =VLOOKUP($C20,'RECAP SECT'!$G$6:$CU$253,33,FALSE) -> 15,400 | G20: =VLOOKUP($C20,'RECAP SECT'!$G$6:$CU$253,34,FALSE) -> 281.32 | H20: =VLOOKUP($C20,'RECAP SECT'!$G$6:$CU$253,35,FALSE) -> 40% | I20: =VLOOKUP($C20,'RECAP SECT'!$G$6:$CU$253,36,FALSE) -> 9 | J20: =VLOOKUP($C20,'RECAP SECT'!$G$6:$CU$253,37,FALSE) -> 3,242 | K20: =VLOOKUP($C20,'RECAP SECT'!$G$6:$CU$253,38,FALSE) -> 59.23 | L20: =VLOOKUP($C20,'RECAP SECT'!$G$6:$CU$253,39,FALSE) -> 24% | M20: =VLOOKUP($C20,'RECAP SECT'!$G$6:$CU$253,40,FALSE) -> 8 | N20: =VLOOKUP($C20,'RECAP SECT'!$G$6:$CU$253,41,FALSE) -> 33% | O20: =VLOOKUP($C20,'RECAP SECT'!$G$6:$CU$253,42,FALSE) -> 29% | P20: =VLOOKUP($C20,'RECAP SECT'!$G$6:$CU$253,43,FALSE) -> 9
A21: 110 | B21: MEURTHE ET MOSELLE MEUSE | C21: 27 | D21: PONT A MOUSSON | E21: =VLOOKUP($C21,'RECAP SECT'!$G$6:$CU$253,3,FALSE) -> 60.1 | F21: =VLOOKUP($C21,'RECAP SECT'!$G$6:$CU$253,33,FALSE) -> 18,226 | G21: =VLOOKUP($C21,'RECAP SECT'!$G$6:$CU$253,34,FALSE) -> 303.21 | H21: =VLOOKUP($C21,'RECAP SECT'!$G$6:$CU$253,35,FALSE) -> 35% | I21: =VLOOKUP($C21,'RECAP SECT'!$G$6:$CU$253,36,FALSE) -> 8 | J21: =VLOOKUP($C21,'RECAP SECT'!$G$6:$CU$253,37,FALSE) -> 3,138 | K21: =VLOOKUP($C21,'RECAP SECT'!$G$6:$CU$253,38,FALSE) -> 52.20 | L21: =VLOOKUP($C21,'RECAP SECT'!$G$6:$CU$253,39,FALSE) -> 33% | M21: =VLOOKUP($C21,'RECAP SECT'!$G$6:$CU$253,40,FALSE) -> 12 | N21: =VLOOKUP($C21,'RECAP SECT'!$G$6:$CU$253,41,FALSE) -> 34% | O21: =VLOOKUP($C21,'RECAP SECT'!$G$6:$CU$253,42,FALSE) -> 29% | P21: =VLOOKUP($C21,'RECAP SECT'!$G$6:$CU$253,43,FALSE) -> 10
A22: 110 | B22: MEURTHE ET MOSELLE MEUSE | C22: 31 | D22: VERDUN | E22: =VLOOKUP($C22,'RECAP SECT'!$G$6:$CU$253,3,FALSE) -> 48.3 | F22: =VLOOKUP($C22,'RECAP SECT'!$G$6:$CU$253,33,FALSE) -> 7,538 | G22: =VLOOKUP($C22,'RECAP SECT'!$G$6:$CU$253,34,FALSE) -> 156.03 | H22: =VLOOKUP($C22,'RECAP SECT'!$G$6:$CU$253,35,FALSE) -> 66% | I22: =VLOOKUP($C22,'RECAP SECT'!$G$6:$CU$253,36,FALSE) -> 16 | J22: =VLOOKUP($C22,'RECAP SECT'!$G$6:$CU$253,37,FALSE) -> 2,589 | K22: =VLOOKUP($C22,'RECAP SECT'!$G$6:$CU$253,38,FALSE) -> 53.59 | L22: =VLOOKUP($C22,'RECAP SECT'!$G$6:$CU$253,39,FALSE) -> 31% | M22: =VLOOKUP($C22,'RECAP SECT'!$G$6:$CU$253,40,FALSE) -> 9 | N22: =VLOOKUP($C22,'RECAP SECT'!$G$6:$CU$253,41,FALSE) -> 52% | O22: =VLOOKUP($C22,'RECAP SECT'!$G$6:$CU$253,42,FALSE) -> 48% | P22: =VLOOKUP($C22,'RECAP SECT'!$G$6:$CU$253,43,FALSE) -> 15
A23: 160 | B23: MOSELLE | C23: 45 | D23: METZ | E23: =VLOOKUP($C23,'RECAP SECT'!$G$6:$CU$253,3,FALSE) -> 72.8 | F23: =VLOOKUP($C23,'RECAP SECT'!$G$6:$CU$253,33,FALSE) -> 29,101 | G23: =VLOOKUP($C23,'RECAP SECT'!$G$6:$CU$253,34,FALSE) -> 399.68 | H23: =VLOOKUP($C23,'RECAP SECT'!$G$6:$CU$253,35,FALSE) -> 14% | I23: =VLOOKUP($C23,'RECAP SECT'!$G$6:$CU$253,36,FALSE) -> 2 | J23: =VLOOKUP($C23,'RECAP SECT'!$G$6:$CU$253,37,FALSE) -> 4,626 | K23: =VLOOKUP($C23,'RECAP SECT'!$G$6:$CU$253,38,FALSE) -> 63.54 | L23: =VLOOKUP($C23,'RECAP SECT'!$G$6:$CU$253,39,FALSE) -> 19% | M23: =VLOOKUP($C23,'RECAP SECT'!$G$6:$CU$253,40,FALSE) -> 7 | N23: =VLOOKUP($C23,'RECAP SECT'!$G$6:$CU$253,41,FALSE) -> 16% | O23: =VLOOKUP($C23,'RECAP SECT'!$G$6:$CU$253,42,FALSE) -> 11% | P23: =VLOOKUP($C23,'RECAP SECT'!$G$6:$CU$253,43,FALSE) -> 2
A24: 160 | B24: MOSELLE | C24: 42 | D24: MOSELLE EST | E24: =VLOOKUP($C24,'RECAP SECT'!$G$6:$CU$253,3,FALSE) -> 58.7 | F24: =VLOOKUP($C24,'RECAP SECT'!$G$6:$CU$253,33,FALSE) -> 10,076 | G24: =VLOOKUP($C24,'RECAP SECT'!$G$6:$CU$253,34,FALSE) -> 171.80 | H24: =VLOOKUP($C24,'RECAP SECT'!$G$6:$CU$253,35,FALSE) -> 63% | I24: =VLOOKUP($C24,'RECAP SECT'!$G$6:$CU$253,36,FALSE) -> 14 | J24: =VLOOKUP($C24,'RECAP SECT'!$G$6:$CU$253,37,FALSE) -> 3,991 | K24: =VLOOKUP($C24,'RECAP SECT'!$G$6:$CU$253,38,FALSE) -> 68.05 | L24: =VLOOKUP($C24,'RECAP SECT'!$G$6:$CU$253,39,FALSE) -> 13% | M24: =VLOOKUP($C24,'RECAP SECT'!$G$6:$CU$253,40,FALSE) -> 5 | N24: =VLOOKUP($C24,'RECAP SECT'!$G$6:$CU$253,41,FALSE) -> 43% | O24: =VLOOKUP($C24,'RECAP SECT'!$G$6:$CU$253,42,FALSE) -> 38% | P24: =VLOOKUP($C24,'RECAP SECT'!$G$6:$CU$253,43,FALSE) -> 13
A25: 160 | B25: MOSELLE | C25: 44 | D25: MOSELLE NORD | E25: =VLOOKUP($C25,'RECAP SECT'!$G$6:$CU$253,3,FALSE) -> 56.1 | F25: =VLOOKUP($C25,'RECAP SECT'!$G$6:$CU$253,33,FALSE) -> 10,155 | G25: =VLOOKUP($C25,'RECAP SECT'!$G$6:$CU$253,34,FALSE) -> 181.02 | H25: =VLOOKUP($C25,'RECAP SECT'!$G$6:$CU$253,35,FALSE) -> 61% | I25: =VLOOKUP($C25,'RECAP SECT'!$G$6:$CU$253,36,FALSE) -> 13 | J25: =VLOOKUP($C25,'RECAP SECT'!$G$6:$CU$253,37,FALSE) -> 4,385 | K25: =VLOOKUP($C25,'RECAP SECT'!$G$6:$CU$253,38,FALSE) -> 78.16 | L25: =VLOOKUP($C25,'RECAP SECT'!$G$6:$CU$253,39,FALSE) -> 0% | M25: =VLOOKUP($C25,'RECAP SECT'!$G$6:$CU$253,40,FALSE) -> 1 | N25: =VLOOKUP($C25,'RECAP SECT'!$G$6:$CU$253,41,FALSE) -> 37% | O25: =VLOOKUP($C25,'RECAP SECT'!$G$6:$CU$253,42,FALSE) -> 32% | P25: =VLOOKUP($C25,'RECAP SECT'!$G$6:$CU$253,43,FALSE) -> 11
A26: 80 | B26: VOSGES | C26: 57 | D26: EPINAL | E26: =VLOOKUP($C26,'RECAP SECT'!$G$6:$CU$253,3,FALSE) -> 52.9 | F26: =VLOOKUP($C26,'RECAP SECT'!$G$6:$CU$253,33,FALSE) -> 17,085 | G26: =VLOOKUP($C26,'RECAP SECT'!$G$6:$CU$253,34,FALSE) -> 322.91 | H26: =VLOOKUP($C26,'RECAP SECT'!$G$6:$CU$253,35,FALSE) -> 31% | I26: =VLOOKUP($C26,'RECAP SECT'!$G$6:$CU$253,36,FALSE) -> 6 | J26: =VLOOKUP($C26,'RECAP SECT'!$G$6:$CU$253,37,FALSE) -> 2,740 | K26: =VLOOKUP($C26,'RECAP SECT'!$G$6:$CU$253,38,FALSE) -> 51.79 | L26: =VLOOKUP($C26,'RECAP SECT'!$G$6:$CU$253,39,FALSE) -> 34% | M26: =VLOOKUP($C26,'RECAP SECT'!$G$6:$CU$253,40,FALSE) -> 13 | N26: =VLOOKUP($C26,'RECAP SECT'!$G$6:$CU$253,41,FALSE) -> 32% | O26: =VLOOKUP($C26,'RECAP SECT'!$G$6:$CU$253,42,FALSE) -> 27% | P26: =VLOOKUP($C26,'RECAP SECT'!$G$6:$CU$253,43,FALSE) -> 7
A27: 80 | B27: VOSGES | C27: 55 | D27: SAINT DIE | E27: =VLOOKUP($C27,'RECAP SECT'!$G$6:$CU$253,3,FALSE) -> 40.2 | F27: =VLOOKUP($C27,'RECAP SECT'!$G$6:$CU$253,33,FALSE) -> 8,546 | G27: =VLOOKUP($C27,'RECAP SECT'!$G$6:$CU$253,34,FALSE) -> 212.42 | H27: =VLOOKUP($C27,'RECAP SECT'!$G$6:$CU$253,35,FALSE) -> 54% | I27: =VLOOKUP($C27,'RECAP SECT'!$G$6:$CU$253,36,FALSE) -> 12 | J27: =VLOOKUP($C27,'RECAP SECT'!$G$6:$CU$253,37,FALSE) -> 1,698 | K27: =VLOOKUP($C27,'RECAP SECT'!$G$6:$CU$253,38,FALSE) -> 42.21 | L27: =VLOOKUP($C27,'RECAP SECT'!$G$6:$CU$253,39,FALSE) -> 46% | M27: =VLOOKUP($C27,'RECAP SECT'!$G$6:$CU$253,40,FALSE) -> 17 | N27: =VLOOKUP($C27,'RECAP SECT'!$G$6:$CU$253,41,FALSE) -> 51% | O27: =VLOOKUP($C27,'RECAP SECT'!$G$6:$CU$253,42,FALSE) -> 46% | P27: =VLOOKUP($C27,'RECAP SECT'!$G$6:$CU$253,43,FALSE) -> 14
A28: Total CEGEE Directions Régionales | E28: =SUM(E10:E27) -> 951

Sheet SE_CREDIT
B1: Accueil | F1: BAROMETRE BDD - TERRITOIRES
F2: CREDITS
F3: =ACCUEIL!F7 -> 2022-09-25
F7: Engagements et ventes accessoires pondérés Immo | J7: Engagements et ventes accessoires pondérés Conso | N7: Ventes sur client non détenteur de l’univers | R7: Total Crédits
F8: =DATEMAJ!C18 -> au 25/09 | H8: coef | I8: ='RECAP DIRCOM'!BE4 -> 6% | J8: =DATEMAJ!C19 -> au 25/09 | L8: coef | M8: ='RECAP DIRCOM'!BI4 -> 6% | N8: =DATEMAJ!C20 -> au 25/09 | P8: coef | Q8: ='RECAP DIRCOM'!BM4 -> 8% | S8: coef | T8: ='RECAP DIRCOM'!BP4 -> 20%
B9: Direction | C9: eds | D9: Territoire | E9: ="ETP perf "&DATEMAJ!$C$28 -> ETP perf 25-sept | F9: PNB | G9: PNB / ETP | H9: % Ecart au 1er | I9: Rang | J9: PNB | K9: PNB / ETP | L9: % Ecart au 1er | M9: Rang | N9: VB | O9: VB / ETP | P9: % Ecart au 1er | Q9: Rang | R9: Moyenne ecart au 1er | S9: % Ecart au 1er | T9: Rang CEGEE
A10: 50 | B10: AUBE HAUTE MARNE | C10: 21 | D10: CHAUMONT | E10: =VLOOKUP($C10,'RECAP SECT'!$G$6:$CU$253,3,FALSE) -> 33.7 | F10: =VLOOKUP($C10,'RECAP SECT'!$G$6:$CU$253,48,FALSE) -> 7,055 | G10: =VLOOKUP($C10,'RECAP SECT'!$G$6:$CU$253,49,FALSE) -> 209.15 | H10: =VLOOKUP($C10,'RECAP SECT'!$G$6:$CU$253,50,FALSE) -> 63% | I10: =VLOOKUP($C10,'RECAP SECT'!$G$6:$CU$253,51,FALSE) -> 16 | J10: =VLOOKUP($C10,'RECAP SECT'!$G$6:$CU$253,52,FALSE) -> 1,890 | K10: =VLOOKUP($C10,'RECAP SECT'!$G$6:$CU$253,53,FALSE) -> 56.04 | L10: =VLOOKUP($C10,'RECAP SECT'!$G$6:$CU$253,54,FALSE) -> 8% | M10: =VLOOKUP($C10,'RECAP SECT'!$G$6:$CU$253,55,FALSE) -> 5 | N10: =VLOOKUP($C10,'RECAP SECT'!$G$6:$CU$253,56,FALSE) -> 764 | O10: =VLOOKUP($C10,'RECAP SECT'!$G$6:$CU$253,57,FALSE) -> 22.65 | P10: =VLOOKUP($C10,'RECAP SECT'!$G$6:$CU$253,58,FALSE) -> 43% | Q10: =VLOOKUP($C10,'RECAP SECT'!$G$6:$CU$253,59,FALSE) -> 11 | R10: =VLOOKUP($C10,'RECAP SECT'!$G$6:$CU$253,60,FALSE) -> 39% | S10: =VLOOKUP($C10,'RECAP SECT'!$G$6:$CU$253,61,FALSE) -> 33% | T10: =VLOOKUP($C10,'RECAP SECT'!$G$6:$CU$253,62,FALSE) -> 10
A11: 50 | B11: AUBE HAUTE MARNE | C11: 14 | D11: TROYES | E11: =VLOOKUP($C11,'RECAP SECT'!$G$6:$CU$253,3,FALSE) -> 54.2 | F11: =VLOOKUP($C11,'RECAP SECT'!$G$6:$CU$253,48,FALSE) -> 12,503 | G11: =VLOOKUP($C11,'RECAP SECT'!$G$6:$CU$253,49,FALSE) -> 230.89 | H11: =VLOOKUP($C11,'RECAP SECT'!$G$6:$CU$253,50,FALSE) -> 60% | I11: =VLOOKUP($C11,'RECAP SECT'!$G$6:$CU$253,51,FALSE) -> 12 | J11: =VLOOKUP($C11,'RECAP SECT'!$G$6:$CU$253,52,FALSE) -> 2,706 | K11: =VLOOKUP($C11,'RECAP SECT'!$G$6:$CU$253,53,FALSE) -> 49.97 | L11: =VLOOKUP($C11,'RECAP SECT'!$G$6:$CU$253,54,FALSE) -> 18% | M11: =VLOOKUP($C11,'RECAP SECT'!$G$6:$CU$253,55,FALSE) -> 12 | N11: =VLOOKUP($C11,'RECAP SECT'!$G$6:$CU$253,56,FALSE) -> 1,087 | O11: =VLOOKUP($C11,'RECAP SECT'!$G$6:$CU$253,57,FALSE) -> 20.07 | P11: =VLOOKUP($C11,'RECAP SECT'!$G$6:$CU$253,58,FALSE) -> 50% | Q11: =VLOOKUP($C11,'RECAP SECT'!$G$6:$CU$253,59,FALSE) -> 14 | R11: =VLOOKUP($C11,'RECAP SECT'!$G$6:$CU$253,60,FALSE) -> 43% | S11: =VLOOKUP($C11,'RECAP SECT'!$G$6:$CU$253,61,FALSE) -> 38% | T11: =VLOOKUP($C11,'RECAP SECT'!$G$6:$CU$253,62,FALSE) -> 14
A12: 262 | B12: BAS-RHIN | C12: 5060 | D12: HAGUENAU | E12: =VLOOKUP($C12,'RECAP SECT'!$G$6:$CU$253,3,FALSE) -> 55.2 | F12: =VLOOKUP($C12,'RECAP SECT'!$G$6:$CU$253,48,FALSE) -> 9,464 | G12: =VLOOKUP($C12,'RECAP SECT'!$G$6:$CU$253,49,FALSE) -> 171.36 | H12: =VLOOKUP($C12,'RECAP SECT'!$G$6:$CU$253,50,FALSE) -> 70% | I12: =VLOOKUP($C12,'RECAP SECT'!$G$6:$CU$253,51,FALSE) -> 18 | J12: =VLOOKUP($C12,'RECAP SECT'!$G$6:$CU$253,52,FALSE) -> 2,706 | K12: =VLOOKUP($C12,'RECAP SECT'!$G$6:$CU$253,53,FALSE) -> 48.99 | L12: =VLOOKUP($C12,'RECAP SECT'!$G$6:$CU$253,54,FALSE) -> 19% | M12: =VLOOKUP($C12,'RECAP SECT'!$G$6:$CU$253,55,FALSE) -> 13 | N12: =VLOOKUP($C12,'RECAP SECT'!$G$6:$CU$253,56,FALSE) -> 943 | O12: =VLOOKUP($C12,'RECAP SECT'!$G$6:$CU$253,57,FALSE) -> 17.07 | P12: =VLOOKUP($C12,'RECAP SECT'!$G$6:$CU$253,58,FALSE) -> 57% | Q12: =VLOOKUP($C12,'RECAP SECT'!$G$6:$CU$253,59,FALSE) -> 17 | R12: =VLOOKUP($C12,'RECAP SECT'!$G$6:$CU$253,60,FALSE) -> 50% | S12: =VLOOKUP($C12,'RECAP SECT'!$G$6:$CU$253,61,FALSE) -> 45% | T12: =VLOOKUP($C12,'RECAP SECT'!$G$6:$CU$253,62,FALSE) -> 16
A13: 262 | B13: BAS-RHIN | C13: 5101 | D13: SELESTAT | E13: =VLOOKUP($C13,'RECAP SECT'!$G$6:$CU$253,3,FALSE) -> 51.3 | F13: =VLOOKUP($C13,'RECAP SECT'!$G$6:$CU$253,48,FALSE) -> 11,357 | G13: =VLOOKUP($C13,'RECAP SECT'!$G$6:$CU$253,49,FALSE) -> 221.30 | H13: =VLOOKUP($C13,'RECAP SECT'!$G$6:$CU$253,50,FALSE) -> 61% | I13: =VLOOKUP($C13,'RECAP SECT'!$G$6:$CU$253,51,FALSE) -> 14 | J13: =VLOOKUP($C13,'RECAP SECT'!$G$6:$CU$253,52,FALSE) -> 2,305 | K13: =VLOOKUP($C13,'RECAP SECT'!$G$6:$CU$253,53,FALSE) -> 44.92 | L13: =VLOOKUP($C13,'RECAP SECT'!$G$6:$CU$253,54,FALSE) -> 26% | M13: =VLOOKUP($C13,'RECAP SECT'!$G$6:$CU$253,55,FALSE) -> 14 | N13: =VLOOKUP($C13,'RECAP SECT'!$G$6:$CU$253,56,FALSE) -> 993 | O13: =VLOOKUP($C13,'RECAP SECT'!$G$6:$CU$253,57,FALSE) -> 19.35 | P13: =VLOOKUP($C13,'RECAP SECT'!$G$6:$CU$253,58,FALSE) -> 52% | Q13: =VLOOKUP($C13,'RECAP SECT'!$G$6:$CU$253,59,FALSE) -> 15 | R13: =VLOOKUP($C13,'RECAP SECT'!$G$6:$CU$253,60,FALSE) -> 47% | S13: =VLOOKUP($C13,'RECAP SECT'!$G$6:$CU$253,61,FALSE) -> 42% | T13: =VLOOKUP($C13,'RECAP SECT'!$G$6:$CU$253,62,FALSE) -> 15
A14: 262 | B14: BAS-RHIN | C14: 5006 | D14: STRASBOURG | E14: =VLOOKUP($C14,'RECAP SECT'!$G$6:$CU$253,3,FALSE) -> 65.4 | F14: =VLOOKUP($C14,'RECAP SECT'!$G$6:$CU$253,48,FALSE) -> 19,356 | G14: =VLOOKUP($C14,'RECAP SECT'!$G$6:$CU$253,49,FALSE) -> 295.87 | H14: =VLOOKUP($C14,'RECAP SECT'!$G$6:$CU$253,50,FALSE) -> 48% | I14: =VLOOKUP($C14,'RECAP SECT'!$G$6:$CU$253,51,FALSE) -> 9 | J14: =VLOOKUP($C14,'RECAP SECT'!$G$6:$CU$253,52,FALSE) -> 2,583 | K14: =VLOOKUP($C14,'RECAP SECT'!$G$6:$CU$253,53,FALSE) -> 39.49 | L14: =VLOOKUP($C14,'RECAP SECT'!$G$6:$CU$253,54,FALSE) -> 35% | M14: =VLOOKUP($C14,'RECAP SECT'!$G$6:$CU$253,55,FALSE) -> 18 | N14: =VLOOKUP($C14,'RECAP SECT'!$G$6:$CU$253,56,FALSE) -> 1,556 | O14: =VLOOKUP($C14,'RECAP SECT'!$G$6:$CU$253,57,FALSE) -> 23.78 | P14: =VLOOKUP($C14,'RECAP SECT'!$G$6:$CU$253,58,FALSE) -> 41% | Q14: =VLOOKUP($C14,'RECAP SECT'!$G$6:$CU$253,59,FALSE) -> 9 | R14: =VLOOKUP($C14,'RECAP SECT'!$G$6:$CU$253,60,FALSE) -> 41% | S14: =VLOOKUP($C14,'RECAP SECT'!$G$6:$CU$253,61,FALSE) -> 36% | T14: =VLOOKUP($C14,'RECAP SECT'!$G$6:$CU$253,62,FALSE) -> 11
A15: 264 | B15: HAUT-RHIN | C15: 5130 | D15: COLMAR | E15: =VLOOKUP($C15,'RECAP SECT'!$G$6:$CU$253,3,FALSE) -> 46.5 | F15: =VLOOKUP($C15,'RECAP SECT'!$G$6:$CU$253,48,FALSE) -> 8,019 | G15: =VLOOKUP($C15,'RECAP SECT'!$G$6:$CU$253,49,FALSE) -> 172.33 | H15: =VLOOKUP($C15,'RECAP SECT'!$G$6:$CU$253,50,FALSE) -> 70% | I15: =VLOOKUP($C15,'RECAP SECT'!$G$6:$CU$253,51,FALSE) -> 17 | J15: =VLOOKUP($C15,'RECAP SECT'!$G$6:$CU$253,52,FALSE) -> 2,054 | K15: =VLOOKUP($C15,'RECAP SECT'!$G$6:$CU$253,53,FALSE) -> 44.14 | L15: =VLOOKUP($C15,'RECAP SECT'!$G$6:$CU$253,54,FALSE) -> 27% | M15: =VLOOKUP($C15,'RECAP SECT'!$G$6:$CU$253,55,FALSE) -> 16 | N15: =VLOOKUP($C15,'RECAP SECT'!$G$6:$CU$253,56,FALSE) -> 766 | O15: =VLOOKUP($C15,'RECAP SECT'!$G$6:$CU$253,57,FALSE) -> 16.46 | P15: =VLOOKUP($C15,'RECAP SECT'!$G$6:$CU$253,58,FALSE) -> 59% | Q15: =VLOOKUP($C15,'RECAP SECT'!$G$6:$CU$253,59,FALSE) -> 18 | R15: =VLOOKUP($C15,'RECAP SECT'!$G$6:$CU$253,60,FALSE) -> 53% | S15: =VLOOKUP($C15,'RECAP SECT'!$G$6:$CU$253,61,FALSE) -> 47% | T15: =VLOOKUP($C15,'RECAP SECT'!$G$6:$CU$253,62,FALSE) -> 18
A16: 264 | B16: HAUT-RHIN | C16: 5169 | D16: MULHOUSE | E16: =VLOOKUP($C16,'RECAP SECT'!$G$6:$CU$253,3,FALSE) -> 46.5 | F16: =VLOOKUP($C16,'RECAP SECT'!$G$6:$CU$253,48,FALSE) -> 10,307 | G16: =VLOOKUP($C16,'RECAP SECT'!$G$6:$CU$253,49,FALSE) -> 221.56 | H16: =VLOOKUP($C16,'RECAP SECT'!$G$6:$CU$253,50,FALSE) -> 61% | I16: =VLOOKUP($C16,'RECAP SECT'!$G$6:$CU$253,51,FALSE) -> 13 | J16: =VLOOKUP($C16,'RECAP SECT'!$G$6:$CU$253,52,FALSE) -> 2,001 | K16: =VLOOKUP($C16,'RECAP SECT'!$G$6:$CU$253,53,FALSE) -> 43.02 | L16: =VLOOKUP($C16,'RECAP SECT'!$G$6:$CU$253,54,FALSE) -> 29% | M16: =VLOOKUP($C16,'RECAP SECT'!$G$6:$CU$253,55,FALSE) -> 17 | N16: =VLOOKUP($C16,'RECAP SECT'!$G$6:$CU$253,56,FALSE) -> 801 | O16: =VLOOKUP($C16,'RECAP SECT'!$G$6:$CU$253,57,FALSE) -> 17.22 | P16: =VLOOKUP($C16,'RECAP SECT'!$G$6:$CU$253,58,FALSE) -> 57% | Q16: =VLOOKUP($C16,'RECAP SECT'!$G$6:$CU$253,59,FALSE) -> 16 | R16: =VLOOKUP($C16,'RECAP SECT'!$G$6:$CU$253,60,FALSE) -> 50% | S16: =VLOOKUP($C16,'RECAP SECT'!$G$6:$CU$253,61,FALSE) -> 45% | T16: =VLOOKUP($C16,'RECAP SECT'!$G$6:$CU$253,62,FALSE) -> 17
A17: 30 | B17: MARNE-ARDENNES | C17: 6 | D17: CHALONS EN CHAMPAGNE | E17: =VLOOKUP($C17,'RECAP SECT'!$G$6:$CU$253,3,FALSE) -> 37.7 | F17: =VLOOKUP($C17,'RECAP SECT'!$G$6:$CU$253,48,FALSE) -> 13,000 | G17: =VLOOKUP($C17,'RECAP SECT'!$G$6:$CU$253,49,FALSE) -> 344.64 | H17: =VLOOKUP($C17,'RECAP SECT'!$G$6:$CU$253,50,FALSE) -> 40% | I17: =VLOOKUP($C17,'RECAP SECT'!$G$6:$CU$253,51,FALSE) -> 7 | J17: =VLOOKUP($C17,'RECAP SECT'!$G$6:$CU$253,52,FALSE) -> 2,114 | K17: =VLOOKUP($C17,'RECAP SECT'!$G$6:$CU$253,53,FALSE) -> 56.05 | L17: =VLOOKUP($C17,'RECAP SECT'!$G$6:$CU$253,54,FALSE) -> 8% | M17: =VLOOKUP($C17,'RECAP SECT'!$G$6:$CU$253,55,FALSE) -> 4 | N17: =VLOOKUP($C17,'RECAP SECT'!$G$6:$CU$253,56,FALSE) -> 1,029 | O17: =VLOOKUP($C17,'RECAP SECT'!$G$6:$CU$253,57,FALSE) -> 27.28 | P17: =VLOOKUP($C17,'RECAP SECT'!$G$6:$CU$253,58,FALSE) -> 32% | Q17: =VLOOKUP($C17,'RECAP SECT'!$G$6:$CU$253,59,FALSE) -> 5 | R17: =VLOOKUP($C17,'RECAP SECT'!$G$6:$CU$253,60,FALSE) -> 27% | S17: =VLOOKUP($C17,'RECAP SECT'!$G$6:$CU$253,61,FALSE) -> 22% | T17: =VLOOKUP($C17,'RECAP SECT'!$G$6:$CU$253,62,FALSE) -> 5
A18: 30 | B18: MARNE-ARDENNES | C18: 2 | D18: CHARLEVILLE MEZIERES | E18: =VLOOKUP($C18,'RECAP SECT'!$G$6:$CU$253,3,FALSE) -> 48.7 | F18: =VLOOKUP($C18,'RECAP SECT'!$G$6:$CU$253,48,FALSE) -> 18,918 | G18: =VLOOKUP($C18,'RECAP SECT'!$G$6:$CU$253,49,FALSE) -> 388.87 | H18: =VLOOKUP($C18,'RECAP SECT'!$G$6:$CU$253,50,FALSE) -> 32% | I18: =VLOOKUP($C18,'RECAP SECT'!$G$6:$CU$253,51,FALSE) -> 4 | J18: =VLOOKUP($C18,'RECAP SECT'!$G$6:$CU$253,52,FALSE) -> 2,603 | K18: =VLOOKUP($C18,'RECAP SECT'!$G$6:$CU$253,53,FALSE) -> 53.51 | L18: =VLOOKUP($C18,'RECAP SECT'!$G$6:$CU$253,54,FALSE) -> 12% | M18: =VLOOKUP($C18,'RECAP SECT'!$G$6:$CU$253,55,FALSE) -> 7 | N18: =VLOOKUP($C18,'RECAP SECT'!$G$6:$CU$253,56,FALSE) -> 1,480 | O18: =VLOOKUP($C18,'RECAP SECT'!$G$6:$CU$253,57,FALSE) -> 30.42 | P18: =VLOOKUP($C18,'RECAP SECT'!$G$6:$CU$253,58,FALSE) -> 24% | Q18: =VLOOKUP($C18,'RECAP SECT'!$G$6:$CU$253,59,FALSE) -> 3 | R18: =VLOOKUP($C18,'RECAP SECT'!$G$6:$CU$253,60,FALSE) -> 23% | S18: =VLOOKUP($C18,'RECAP SECT'!$G$6:$CU$253,61,FALSE) -> 18% | T18: =VLOOKUP($C18,'RECAP SECT'!$G$6:$CU$253,62,FALSE) -> 3
A19: 30 | B19: MARNE-ARDENNES | C19: 11 | D19: REIMS | E19: =VLOOKUP($C19,'RECAP SECT'!$G$6:$CU$253,3,FALSE) -> 68.0 | F19: =VLOOKUP($C19,'RECAP SECT'!$G$6:$CU$253,48,FALSE) -> 38,924 | G19: =VLOOKUP($C19,'RECAP SECT'!$G$6:$CU$253,49,FALSE) -> 572.50 | H19: =VLOOKUP($C19,'RECAP SECT'!$G$6:$CU$253,50,FALSE) -> 0% | I19: =VLOOKUP($C19,'RECAP SECT'!$G$6:$CU$253,51,FALSE) -> 1 | J19: =VLOOKUP($C19,'RECAP SECT'!$G$6:$CU$253,52,FALSE) -> 3,408 | K19: =VLOOKUP($C19,'RECAP SECT'!$G$6:$CU$253,53,FALSE) -> 50.12 | L19: =VLOOKUP($C19,'RECAP SECT'!$G$6:$CU$253,54,FALSE) -> 17% | M19: =VLOOKUP($C19,'RECAP SECT'!$G$6:$CU$253,55,FALSE) -> 11 | N19: =VLOOKUP($C19,'RECAP SECT'!$G$6:$CU$253,56,FALSE) -> 2,719 | O19: =VLOOKUP($C19,'RECAP SECT'!$G$6:$CU$253,57,FALSE) -> 39.99 | P19: =VLOOKUP($C19,'RECAP SECT'!$G$6:$CU$253,58,FALSE) -> 0% | Q19: =VLOOKUP($C19,'RECAP SECT'!$G$6:$CU$253,59,FALSE) -> 1 | R19: =VLOOKUP($C19,'RECAP SECT'!$G$6:$CU$253,60,FALSE) -> 5% | S19: =VLOOKUP($C19,'RECAP SECT'!$G$6:$CU$253,61,FALSE) -> 0% | T19: =VLOOKUP($C19,'RECAP SECT'!$G$6:$CU$253,62,FALSE) -> 1
A20: 110 | B20: MEURTHE ET MOSELLE MEUSE | C20: 26 | D20: NANCY | E20: =VLOOKUP($C20,'RECAP SECT'!$G$6:$CU$253,3,FALSE) -> 54.7 | F20: =VLOOKUP($C20,'RECAP SECT'!$G$6:$CU$253,48,FALSE) -> 22,233 | G20: =VLOOKUP($C20,'RECAP SECT'!$G$6:$CU$253,49,FALSE) -> 406.15 | H20: =VLOOKUP($C20,'RECAP SECT'!$G$6:$CU$253,50,FALSE) -> 29% | I20: =VLOOKUP($C20,'RECAP SECT'!$G$6:$CU$253,51,FALSE) -> 3 | J20: =VLOOKUP($C20,'RECAP SECT'!$G$6:$CU$253,52,FALSE) -> 2,866 | K20: =VLOOKUP($C20,'RECAP SECT'!$G$6:$CU$253,53,FALSE) -> 52.36 | L20: =VLOOKUP($C20,'RECAP SECT'!$G$6:$CU$253,54,FALSE) -> 14% | M20: =VLOOKUP($C20,'RECAP SECT'!$G$6:$CU$253,55,FALSE) -> 9 | N20: =VLOOKUP($C20,'RECAP SECT'!$G$6:$CU$253,56,FALSE) -> 1,547 | O20: =VLOOKUP($C20,'RECAP SECT'!$G$6:$CU$253,57,FALSE) -> 28.26 | P20: =VLOOKUP($C20,'RECAP SECT'!$G$6:$CU$253,58,FALSE) -> 29% | Q20: =VLOOKUP($C20,'RECAP SECT'!$G$6:$CU$253,59,FALSE) -> 4 | R20: =VLOOKUP($C20,'RECAP SECT'!$G$6:$CU$253,60,FALSE) -> 25% | S20: =VLOOKUP($C20,'RECAP SECT'!$G$6:$CU$253,61,FALSE) -> 19% | T20: =VLOOKUP($C20,'RECAP SECT'!$G$6:$CU$253,62,FALSE) -> 4
A21: 110 | B21: MEURTHE ET MOSELLE MEUSE | C21: 27 | D21: PONT A MOUSSON | E21: =VLOOKUP($C21,'RECAP SECT'!$G$6:$CU$253,3,FALSE) -> 60.1 | F21: =VLOOKUP($C21,'RECAP SECT'!$G$6:$CU$253,48,FALSE) -> 22,763 | G21: =VLOOKUP($C21,'RECAP SECT'!$G$6:$CU$253,49,FALSE) -> 378.69 | H21: =VLOOKUP($C21,'RECAP SECT'!$G$6:$CU$253,50,FALSE) -> 34% | I21: =VLOOKUP($C21,'RECAP SECT'!$G$6:$CU$253,51,FALSE) -> 5 | J21: =VLOOKUP($C21,'RECAP SECT'!$G$6:$CU$253,52,FALSE) -> 3,183 | K21: =VLOOKUP($C21,'RECAP SECT'!$G$6:$CU$253,53,FALSE) -> 52.95 | L21: =VLOOKUP($C21,'RECAP SECT'!$G$6:$CU$253,54,FALSE) -> 13% | M21: =VLOOKUP($C21,'RECAP SECT'!$G$6:$CU$253,55,FALSE) -> 8 | N21: =VLOOKUP($C21,'RECAP SECT'!$G$6:$CU$253,56,FALSE) -> 1,588 | O21: =VLOOKUP($C21,'RECAP SECT'!$G$6:$CU$253,57,FALSE) -> 26.42 | P21: =VLOOKUP($C21,'RECAP SECT'!$G$6:$CU$253,58,FALSE) -> 34% | Q21: =VLOOKUP($C21,'RECAP SECT'!$G$6:$CU$253,59,FALSE) -> 6 | R21: =VLOOKUP($C21,'RECAP SECT'!$G$6:$CU$253,60,FALSE) -> 28% | S21: =VLOOKUP($C21,'RECAP SECT'!$G$6:$CU$253,61,FALSE) -> 22% | T21: =VLOOKUP($C21,'RECAP SECT'!$G$6:$CU$253,62,FALSE) -> 7
A22: 110 | B22: MEURTHE ET MOSELLE MEUSE | C22: 31 | D22: VERDUN | E22: =VLOOKUP($C22,'RECAP SECT'!$G$6:$CU$253,3,FALSE) -> 48.3 | F22: =VLOOKUP($C22,'RECAP SECT'!$G$6:$CU$253,48,FALSE) -> 13,313 | G22: =VLOOKUP($C22,'RECAP SECT'!$G$6:$CU$253,49,FALSE) -> 275.57 | H22: =VLOOKUP($C22,'RECAP SECT'!$G$6:$CU$253,50,FALSE) -> 52% | I22: =VLOOKUP($C22,'RECAP SECT'!$G$6:$CU$253,51,FALSE) -> 10 | J22: =VLOOKUP($C22,'RECAP SECT'!$G$6:$CU$253,52,FALSE) -> 2,898 | K22: =VLOOKUP($C22,'RECAP SECT'!$G$6:$CU$253,53,FALSE) -> 60.00 | L22: =VLOOKUP($C22,'RECAP SECT'!$G$6:$CU$253,54,FALSE) -> 1% | M22: =VLOOKUP($C22,'RECAP SECT'!$G$6:$CU$253,55,FALSE) -> 2 | N22: =VLOOKUP($C22,'RECAP SECT'!$G$6:$CU$253,56,FALSE) -> 1,086 | O22: =VLOOKUP($C22,'RECAP SECT'!$G$6:$CU$253,57,FALSE) -> 22.48 | P22: =VLOOKUP($C22,'RECAP SECT'!$G$6:$CU$253,58,FALSE) -> 44% | Q22: =VLOOKUP($C22,'RECAP SECT'!$G$6:$CU$253,59,FALSE) -> 12 | R22: =VLOOKUP($C22,'RECAP SECT'!$G$6:$CU$253,60,FALSE) -> 33% | S22: =VLOOKUP($C22,'RECAP SECT'!$G$6:$CU$253,61,FALSE) -> 28% | T22: =VLOOKUP($C22,'RECAP SECT'!$G$6:$CU$253,62,FALSE) -> 9
A23: 160 | B23: MOSELLE | C23: 45 | D23: METZ | E23: =VLOOKUP($C23,'RECAP SECT'!$G$6:$CU$253,3,FALSE) -> 72.8 | F23: =VLOOKUP($C23,'RECAP SECT'!$G$6:$CU$253,48,FALSE) -> 24,642 | G23: =VLOOKUP($C23,'RECAP SECT'!$G$6:$CU$253,49,FALSE) -> 338.45 | H23: =VLOOKUP($C23,'RECAP SECT'!$G$6:$CU$253,50,FALSE) -> 41% | I23: =VLOOKUP($C23,'RECAP SECT'!$G$6:$CU$253,51,FALSE) -> 8 | J23: =VLOOKUP($C23,'RECAP SECT'!$G$6:$CU$253,52,FALSE) -> 3,981 | K23: =VLOOKUP($C23,'RECAP SECT'!$G$6:$CU$253,53,FALSE) -> 54.68 | L23: =VLOOKUP($C23,'RECAP SECT'!$G$6:$CU$253,54,FALSE) -> 10% | M23: =VLOOKUP($C23,'RECAP SECT'!$G$6:$CU$253,55,FALSE) -> 6 | N23: =VLOOKUP($C23,'RECAP SECT'!$G$6:$CU$253,56,FALSE) -> 1,780 | O23: =VLOOKUP($C23,'RECAP SECT'!$G$6:$CU$253,57,FALSE) -> 24.45 | P23: =VLOOKUP($C23,'RECAP SECT'!$G$6:$CU$253,58,FALSE) -> 39% | Q23: =VLOOKUP($C23,'RECAP SECT'!$G$6:$CU$253,59,FALSE) -> 8 | R23: =VLOOKUP($C23,'RECAP SECT'!$G$6:$CU$253,60,FALSE) -> 31% | S23: =VLOOKUP($C23,'RECAP SECT'!$G$6:$CU$253,61,FALSE) -> 26% | T23: =VLOOKUP($C23,'RECAP SECT'!$G$6:$CU$253,62,FALSE) -> 8
A24: 160 | B24: MOSELLE | C24: 42 | D24: MOSELLE EST | E24: =VLOOKUP($C24,'RECAP SECT'!$G$6:$CU$253,3,FALSE) -> 58.7 | F24: =VLOOKUP($C24,'RECAP SECT'!$G$6:$CU$253,48,FALSE) -> 20,491 | G24: =VLOOKUP($C24,'RECAP SECT'!$G$6:$CU$253,49,FALSE) -> 349.37 | H24: =VLOOKUP($C24,'RECAP SECT'!$G$6:$CU$253,50,FALSE) -> 39% | I24: =VLOOKUP($C24,'RECAP SECT'!$G$6:$CU$253,51,FALSE) -> 6 | J24: =VLOOKUP($C24,'RECAP SECT'!$G$6:$CU$253,52,FALSE) -> 3,435 | K24: =VLOOKUP($C24,'RECAP SECT'!$G$6:$CU$253,53,FALSE) -> 58.57 | L24: =VLOOKUP($C24,'RECAP SECT'!$G$6:$CU$253,54,FALSE) -> 3% | M24: =VLOOKUP($C24,'RECAP SECT'!$G$6:$CU$253,55,FALSE) -> 3 | N24: =VLOOKUP($C24,'RECAP SECT'!$G$6:$CU$253,56,FALSE) -> 1,504 | O24: =VLOOKUP($C24,'RECAP SECT'!$G$6:$CU$253,57,FALSE) -> 25.64 | P24: =VLOOKUP($C24,'RECAP SECT'!$G$6:$CU$253,58,FALSE) -> 36% | Q24: =VLOOKUP($C24,'RECAP SECT'!$G$6:$CU$253,59,FALSE) -> 7 | R24: =VLOOKUP($C24,'RECAP SECT'!$G$6:$CU$253,60,FALSE) -> 27% | S24: =VLOOKUP($C24,'RECAP SECT'!$G$6:$CU$253,61,FALSE) -> 22% | T24: =VLOOKUP($C24,'RECAP SECT'!$G$6:$CU$253,62,FALSE) -> 6
A25: 160 | B25: MOSELLE | C25: 44 | D25: MOSELLE NORD | E25: =VLOOKUP($C25,'RECAP SECT'!$G$6:$CU$253,3,FALSE) -> 56.1 | F25: =VLOOKUP($C25,'RECAP SECT'!$G$6:$CU$253,48,FALSE) -> 30,180 | G25: =VLOOKUP($C25,'RECAP SECT'!$G$6:$CU$253,49,FALSE) -> 537.98 | H25: =VLOOKUP($C25,'RECAP SECT'!$G$6:$CU$253,50,FALSE) -> 6% | I25: =VLOOKUP($C25,'RECAP SECT'!$G$6:$CU$253,51,FALSE) -> 2 | J25: =VLOOKUP($C25,'RECAP SECT'!$G$6:$CU$253,52,FALSE) -> 3,401 | K25: =VLOOKUP($C25,'RECAP SECT'!$G$6:$CU$253,53,FALSE) -> 60.62 | L25: =VLOOKUP($C25,'RECAP SECT'!$G$6:$CU$253,54,FALSE) -> 0% | M25: =VLOOKUP($C25,'RECAP SECT'!$G$6:$CU$253,55,FALSE) -> 1 | N25: =VLOOKUP($C25,'RECAP SECT'!$G$6:$CU$253,56,FALSE) -> 1,845 | O25: =VLOOKUP($C25,'RECAP SECT'!$G$6:$CU$253,57,FALSE) -> 32.89 | P25: =VLOOKUP($C25,'RECAP SECT'!$G$6:$CU$253,58,FALSE) -> 18% | Q25: =VLOOKUP($C25,'RECAP SECT'!$G$6:$CU$253,59,FALSE) -> 2 | R25: =VLOOKUP($C25,'RECAP SECT'!$G$6:$CU$253,60,FALSE) -> 9% | S25: =VLOOKUP($C25,'RECAP SECT'!$G$6:$CU$253,61,FALSE) -> 4% | T25: =VLOOKUP($C25,'RECAP SECT'!$G$6:$CU$253,62,FALSE) -> 2
A26: 80 | B26: VOSGES | C26: 57 | D26: EPINAL | E26: =VLOOKUP($C26,'RECAP SECT'!$G$6:$CU$253,3,FALSE) -> 52.9 | F26: =VLOOKUP($C26,'RECAP SECT'!$G$6:$CU$253,48,FALSE) -> 12,635 | G26: =VLOOKUP($C26,'RECAP SECT'!$G$6:$CU$253,49,FALSE) -> 238.81 | H26: =VLOOKUP($C26,'RECAP SECT'!$G$6:$CU$253,50,FALSE) -> 58% | I26: =VLOOKUP($C26,'RECAP SECT'!$G$6:$CU$253,51,FALSE) -> 11 | J26: =VLOOKUP($C26,'RECAP SECT'!$G$6:$CU$253,52,FALSE) -> 2,351 | K26: =VLOOKUP($C26,'RECAP SECT'!$G$6:$CU$253,53,FALSE) -> 44.43 | L26: =VLOOKUP($C26,'RECAP SECT'!$G$6:$CU$253,54,FALSE) -> 27% | M26: =VLOOKUP($C26,'RECAP SECT'!$G$6:$CU$253,55,FALSE) -> 15 | N26: =VLOOKUP($C26,'RECAP SECT'!$G$6:$CU$253,56,FALSE) -> 1,245 | O26: =VLOOKUP($C26,'RECAP SECT'!$G$6:$CU$253,57,FALSE) -> 23.53 | P26: =VLOOKUP($C26,'RECAP SECT'!$G$6:$CU$253,58,FALSE) -> 41% | Q26: =VLOOKUP($C26,'RECAP SECT'!$G$6:$CU$253,59,FALSE) -> 10 | R26: =VLOOKUP($C26,'RECAP SECT'!$G$6:$CU$253,60,FALSE) -> 42% | S26: =VLOOKUP($C26,'RECAP SECT'!$G$6:$CU$253,61,FALSE) -> 37% | T26: =VLOOKUP($C26,'RECAP SECT'!$G$6:$CU$253,62,FALSE) -> 13
A27: 80 | B27: VOSGES | C27: 55 | D27: SAINT DIE | E27: =VLOOKUP($C27,'RECAP SECT'!$G$6:$CU$253,3,FALSE) -> 40.2 | F27: =VLOOKUP($C27,'RECAP SECT'!$G$6:$CU$253,48,FALSE) -> 8,418 | G27: =VLOOKUP($C27,'RECAP SECT'!$G$6:$CU$253,49,FALSE) -> 209.26 | H27: =VLOOKUP($C27,'RECAP SECT'!$G$6:$CU$253,50,FALSE) -> 63% | I27: =VLOOKUP($C27,'RECAP SECT'!$G$6:$CU$253,51,FALSE) -> 15 | J27: =VLOOKUP($C27,'RECAP SECT'!$G$6:$CU$253,52,FALSE) -> 2,055 | K27: =VLOOKUP($C27,'RECAP SECT'!$G$6:$CU$253,53,FALSE) -> 51.09 | L27: =VLOOKUP($C27,'RECAP SECT'!$G$6:$CU$253,54,FALSE) -> 16% | M27: =VLOOKUP($C27,'RECAP SECT'!$G$6:$CU$253,55,FALSE) -> 10 | N27: =VLOOKUP($C27,'RECAP SECT'!$G$6:$CU$253,56,FALSE) -> 882 | O27: =VLOOKUP($C27,'RECAP SECT'!$G$6:$CU$253,57,FALSE) -> 21.92 | P27: =VLOOKUP($C27,'RECAP SECT'!$G$6:$CU$253,58,FALSE) -> 45% | Q27: =VLOOKUP($C27,'RECAP SECT'!$G$6:$CU$253,59,FALSE) -> 13 | R27: =VLOOKUP($C27,'RECAP SECT'!$G$6:$CU$253,60,FALSE) -> 42% | S27: =VLOOKUP($C27,'RECAP SECT'!$G$6:$CU$253,61,FALSE) -> 37% | T27: =VLOOKUP($C27,'RECAP SECT'!$G$6:$CU$253,62,FALSE) -> 12
A28: Total CEGEE Directions Régionales | E28: =SUM(E10:E27) -> 951

Sheet SE_IARD
B1: Accueil | F1: BAROMETRE BDD - TERRITOIRES
F2: IARD ET PREVOYANCE
F3: =ACCUEIL!F7 -> 2022-09-25
F7: Ventes Nettes produits pondérés | J7: Ventes sur client non détenteur de l’univers | N7: Total IARD Prévoyance
F8: =DATEMAJ!C23 -> au 25/09 | H8: coef | I8: ='RECAP DIRCOM'!BX4 -> 12% | J8: =DATEMAJ!C24 -> au 25/09 | L8: coef | M8: ='RECAP DIRCOM'!CB4 -> 8% | O8: coef | P8: ='RECAP DIRCOM'!CE4 -> 20%
B9: Direction | C9: eds | D9: Territoire | E9: ="ETP perf "&DATEMAJ!$C$28 -> ETP perf 25-sept | F9: VN | G9: VN / ETP | H9: % Ecart au 1er | I9: Rang | J9: VB | K9: VB / ETP | L9: % Ecart au 1er | M9: Rang | N9: Moyenne ecart au 1er | O9: % Ecart au 1er | P9: Rang CEGEE
A10: 50 | B10: AUBE HAUTE MARNE | C10: 21 | D10: CHAUMONT | E10: =VLOOKUP($C10,'RECAP SECT'!$G$6:$CU$253,3,FALSE) -> 33.7 | F10: =VLOOKUP($C10,'RECAP SECT'!$G$6:$CU$253,67,FALSE) -> 4,991 | G10: =VLOOKUP($C10,'RECAP SECT'!$G$6:$CU$253,68,FALSE) -> 147.97 | H10: =VLOOKUP($C10,'RECAP SECT'!$G$6:$CU$253,69,FALSE) -> 22% | I10: =VLOOKUP($C10,'RECAP SECT'!$G$6:$CU$253,70,FALSE) -> 6 | J10: =VLOOKUP($C10,'RECAP SECT'!$G$6:$CU$253,71,FALSE) -> 1,287 | K10: =VLOOKUP($C10,'RECAP SECT'!$G$6:$CU$253,72,FALSE) -> 38.16 | L10: =VLOOKUP($C10,'RECAP SECT'!$G$6:$CU$253,73,FALSE) -> 27% | M10: =VLOOKUP($C10,'RECAP SECT'!$G$6:$CU$253,74,FALSE) -> 10 | N10: =VLOOKUP($C10,'RECAP SECT'!$G$6:$CU$253,75,FALSE) -> 24% | O10: =VLOOKUP($C10,'RECAP SECT'!$G$6:$CU$253,76,FALSE) -> 23% | P10: =VLOOKUP($C10,'RECAP SECT'!$G$6:$CU$253,77,FALSE) -> 7
A11: 50 | B11: AUBE HAUTE MARNE | C11: 14 | D11: TROYES | E11: =VLOOKUP($C11,'RECAP SECT'!$G$6:$CU$253,3,FALSE) -> 54.2 | F11: =VLOOKUP($C11,'RECAP SECT'!$G$6:$CU$253,67,FALSE) -> 4,277 | G11: =VLOOKUP($C11,'RECAP SECT'!$G$6:$CU$253,68,FALSE) -> 78.98 | H11: =VLOOKUP($C11,'RECAP SECT'!$G$6:$CU$253,69,FALSE) -> 58% | I11: =VLOOKUP($C11,'RECAP SECT'!$G$6:$CU$253,70,FALSE) -> 14 | J11: =VLOOKUP($C11,'RECAP SECT'!$G$6:$CU$253,71,FALSE) -> 1,939 | K11: =VLOOKUP($C11,'RECAP SECT'!$G$6:$CU$253,72,FALSE) -> 35.81 | L11: =VLOOKUP($C11,'RECAP SECT'!$G$6:$CU$253,73,FALSE) -> 31% | M11: =VLOOKUP($C11,'RECAP SECT'!$G$6:$CU$253,74,FALSE) -> 12 | N11: =VLOOKUP($C11,'RECAP SECT'!$G$6:$CU$253,75,FALSE) -> 47% | O11: =VLOOKUP($C11,'RECAP SECT'!$G$6:$CU$253,76,FALSE) -> 47% | P11: =VLOOKUP($C11,'RECAP SECT'!$G$6:$CU$253,77,FALSE) -> 13
A12: 262 | B12: BAS-RHIN | C12: 5060 | D12: HAGUENAU | E12: =VLOOKUP($C12,'RECAP SECT'!$G$6:$CU$253,3,FALSE) -> 55.2 | F12: =VLOOKUP($C12,'RECAP SECT'!$G$6:$CU$253,67,FALSE) -> 4,334 | G12: =VLOOKUP($C12,'RECAP SECT'!$G$6:$CU$253,68,FALSE) -> 78.47 | H12: =VLOOKUP($C12,'RECAP SECT'!$G$6:$CU$253,69,FALSE) -> 59% | I12: =VLOOKUP($C12,'RECAP SECT'!$G$6:$CU$253,70,FALSE) -> 16 | J12: =VLOOKUP($C12,'RECAP SECT'!$G$6:$CU$253,71,FALSE) -> 1,842 | K12: =VLOOKUP($C12,'RECAP SECT'!$G$6:$CU$253,72,FALSE) -> 33.35 | L12: =VLOOKUP($C12,'RECAP SECT'!$G$6:$CU$253,73,FALSE) -> 36% | M12: =VLOOKUP($C12,'RECAP SECT'!$G$6:$CU$253,74,FALSE) -> 15 | N12: =VLOOKUP($C12,'RECAP SECT'!$G$6:$CU$253,75,FALSE) -> 49% | O12: =VLOOKUP($C12,'RECAP SECT'!$G$6:$CU$253,76,FALSE) -> 49% | P12: =VLOOKUP($C12,'RECAP SECT'!$G$6:$CU$253,77,FALSE) -> 16
A13: 262 | B13: BAS-RHIN | C13: 5101 | D13: SELESTAT | E13: =VLOOKUP($C13,'RECAP SECT'!$G$6:$CU$253,3,FALSE) -> 51.3 | F13: =VLOOKUP($C13,'RECAP SECT'!$G$6:$CU$253,67,FALSE) -> 4,044 | G13: =VLOOKUP($C13,'RECAP SECT'!$G$6:$CU$253,68,FALSE) -> 78.80 | H13: =VLOOKUP($C13,'RECAP SECT'!$G$6:$CU$253,69,FALSE) -> 58% | I13: =VLOOKUP($C13,'RECAP SECT'!$G$6:$CU$253,70,FALSE) -> 15 | J13: =VLOOKUP($C13,'RECAP SECT'!$G$6:$CU$253,71,FALSE) -> 1,729 | K13: =VLOOKUP($C13,'RECAP SECT'!$G$6:$CU$253,72,FALSE) -> 33.69 | L13: =VLOOKUP($C13,'RECAP SECT'!$G$6:$CU$253,73,FALSE) -> 35% | M13: =VLOOKUP($C13,'RECAP SECT'!$G$6:$CU$253,74,FALSE) -> 14 | N13: =VLOOKUP($C13,'RECAP SECT'!$G$6:$CU$253,75,FALSE) -> 49% | O13: =VLOOKUP($C13,'RECAP SECT'!$G$6:$CU$253,76,FALSE) -> 48% | P13: =VLOOKUP($C13,'RECAP SECT'!$G$6:$CU$253,77,FALSE) -> 14
A14: 262 | B14: BAS-RHIN | C14: 5006 | D14: STRASBOURG | E14: =VLOOKUP($C14,'RECAP SECT'!$G$6:$CU$253,3,FALSE) -> 65.4 | F14: =VLOOKUP($C14,'RECAP SECT'!$G$6:$CU$253,67,FALSE) -> 8,221 | G14: =VLOOKUP($C14,'RECAP SECT'!$G$6:$CU$253,68,FALSE) -> 125.66 | H14: =VLOOKUP($C14,'RECAP SECT'!$G$6:$CU$253,69,FALSE) -> 34% | I14: =VLOOKUP($C14,'RECAP SECT'!$G$6:$CU$253,70,FALSE) -> 8 | J14: =VLOOKUP($C14,'RECAP SECT'!$G$6:$CU$253,71,FALSE) -> 3,247 | K14: =VLOOKUP($C14,'RECAP SECT'!$G$6:$CU$253,72,FALSE) -> 49.63 | L14: =VLOOKUP($C14,'RECAP SECT'!$G$6:$CU$253,73,FALSE) -> 5% | M14: =VLOOKUP($C14,'RECAP SECT'!$G$6:$CU$253,74,FALSE) -> 3 | N14: =VLOOKUP($C14,'RECAP SECT'!$G$6:$CU$253,75,FALSE) -> 22% | O14: =VLOOKUP($C14,'RECAP SECT'!$G$6:$CU$253,76,FALSE) -> 21% | P14: =VLOOKUP($C14,'RECAP SECT'!$G$6:$CU$253,77,FALSE) -> 6
A15: 264 | B15: HAUT-RHIN | C15: 5130 | D15: COLMAR | E15: =VLOOKUP($C15,'RECAP SECT'!$G$6:$CU$253,3,FALSE) -> 46.5 | F15: =VLOOKUP($C15,'RECAP SECT'!$G$6:$CU$253,67,FALSE) -> 2,509 | G15: =VLOOKUP($C15,'RECAP SECT'!$G$6:$CU$253,68,FALSE) -> 53.92 | H15: =VLOOKUP($C15,'RECAP SECT'!$G$6:$CU$253,69,FALSE) -> 72% | I15: =VLOOKUP($C15,'RECAP SECT'!$G$6:$CU$253,70,FALSE) -> 17 | J15: =VLOOKUP($C15,'RECAP SECT'!$G$6:$CU$253,71,FALSE) -> 1,477 | K15: =VLOOKUP($C15,'RECAP SECT'!$G$6:$CU$253,72,FALSE) -> 31.74 | L15: =VLOOKUP($C15,'RECAP SECT'!$G$6:$CU$253,73,FALSE) -> 39% | M15: =VLOOKUP($C15,'RECAP SECT'!$G$6:$CU$253,74,FALSE) -> 18 | N15: =VLOOKUP($C15,'RECAP SECT'!$G$6:$CU$253,75,FALSE) -> 58% | O15: =VLOOKUP($C15,'RECAP SECT'!$G$6:$CU$253,76,FALSE) -> 58% | P15: =VLOOKUP($C15,'RECAP SECT'!$G$6:$CU$253,77,FALSE) -> 17
A16: 264 | B16: HAUT-RHIN | C16: 5169 | D16: MULHOUSE | E16: =VLOOKUP($C16,'RECAP SECT'!$G$6:$CU$253,3,FALSE) -> 46.5 | F16: =VLOOKUP($C16,'RECAP SECT'!$G$6:$CU$253,67,FALSE) -> 415 | G16: =VLOOKUP($C16,'RECAP SECT'!$G$6:$CU$253,68,FALSE) -> 8.92 | H16: =VLOOKUP($C16,'RECAP SECT'!$G$6:$CU$253,69,FALSE) -> 95% | I16: =VLOOKUP($C16,'RECAP SECT'!$G$6:$CU$253,70,FALSE) -> 18 | J16: =VLOOKUP($C16,'RECAP SECT'!$G$6:$CU$253,71,FALSE) -> 1,513 | K16: =VLOOKUP($C16,'RECAP SECT'!$G$6:$CU$253,72,FALSE) -> 32.52 | L16: =VLOOKUP($C16,'RECAP SECT'!$G$6:$CU$253,73,FALSE) -> 37% | M16: =VLOOKUP($C16,'RECAP SECT'!$G$6:$CU$253,74,FALSE) -> 16 | N16: =VLOOKUP($C16,'RECAP SECT'!$G$6:$CU$253,75,FALSE) -> 72% | O16: =VLOOKUP($C16,'RECAP SECT'!$G$6:$CU$253,76,FALSE) -> 71% | P16: =VLOOKUP($C16,'RECAP SECT'!$G$6:$CU$253,77,FALSE) -> 18
A17: 30 | B17: MARNE-ARDENNES | C17: 6 | D17: CHALONS EN CHAMPAGNE | E17: =VLOOKUP($C17,'RECAP SECT'!$G$6:$CU$253,3,FALSE) -> 37.7 | F17: =VLOOKUP($C17,'RECAP SECT'!$G$6:$CU$253,67,FALSE) -> 5,865 | G17: =VLOOKUP($C17,'RECAP SECT'!$G$6:$CU$253,68,FALSE) -> 155.49 | H17: =VLOOKUP($C17,'RECAP SECT'!$G$6:$CU$253,69,FALSE) -> 18% | I17: =VLOOKUP($C17,'RECAP SECT'!$G$6:$CU$253,70,FALSE) -> 4 | J17: =VLOOKUP($C17,'RECAP SECT'!$G$6:$CU$253,71,FALSE) -> 1,684 | K17: =VLOOKUP($C17,'RECAP SECT'!$G$6:$CU$253,72,FALSE) -> 44.64 | L17: =VLOOKUP($C17,'RECAP SECT'!$G$6:$CU$253,73,FALSE) -> 14% | M17: =VLOOKUP($C17,'RECAP SECT'!$G$6:$CU$253,74,FALSE) -> 5 | N17: =VLOOKUP($C17,'RECAP SECT'!$G$6:$CU$253,75,FALSE) -> 16% | O17: =VLOOKUP($C17,'RECAP SECT'!$G$6:$CU$253,76,FALSE) -> 16% | P17: =VLOOKUP($C17,'RECAP SECT'!$G$6:$CU$253,77,FALSE) -> 4
A18: 30 | B18: MARNE-ARDENNES | C18: 2 | D18: CHARLEVILLE MEZIERES | E18: =VLOOKUP($C18,'RECAP SECT'!$G$6:$CU$253,3,FALSE) -> 48.7 | F18: =VLOOKUP($C18,'RECAP SECT'!$G$6:$CU$253,67,FALSE) -> 8,308 | G18: =VLOOKUP($C18,'RECAP SECT'!$G$6:$CU$253,68,FALSE) -> 170.77 | H18: =VLOOKUP($C18,'RECAP SECT'!$G$6:$CU$253,69,FALSE) -> 10% | I18: =VLOOKUP($C18,'RECAP SECT'!$G$6:$CU$253,70,FALSE) -> 2 | J18: =VLOOKUP($C18,'RECAP SECT'!$G$6:$CU$253,71,FALSE) -> 2,034 | K18: =VLOOKUP($C18,'RECAP SECT'!$G$6:$CU$253,72,FALSE) -> 41.81 | L18: =VLOOKUP($C18,'RECAP SECT'!$G$6:$CU$253,73,FALSE) -> 20% | M18: =VLOOKUP($C18,'RECAP SECT'!$G$6:$CU$253,74,FALSE) -> 7 | N18: =VLOOKUP($C18,'RECAP SECT'!$G$6:$CU$253,75,FALSE) -> 14% | O18: =VLOOKUP($C18,'RECAP SECT'!$G$6:$CU$253,76,FALSE) -> 13% | P18: =VLOOKUP($C18,'RECAP SECT'!$G$6:$CU$253,77,FALSE) -> 3
A19: 30 | B19: MARNE-ARDENNES | C19: 11 | D19: REIMS | E19: =VLOOKUP($C19,'RECAP SECT'!$G$6:$CU$253,3,FALSE) -> 68.0 | F19: =VLOOKUP($C19,'RECAP SECT'!$G$6:$CU$253,67,FALSE) -> 10,725 | G19: =VLOOKUP($C19,'RECAP SECT'!$G$6:$CU$253,68,FALSE) -> 157.74 | H19: =VLOOKUP($C19,'RECAP SECT'!$G$6:$CU$253,69,FALSE) -> 17% | I19: =VLOOKUP($C19,'RECAP SECT'!$G$6:$CU$253,70,FALSE) -> 3 | J19: =VLOOKUP($C19,'RECAP SECT'!$G$6:$CU$253,71,FALSE) -> 3,536 | K19: =VLOOKUP($C19,'RECAP SECT'!$G$6:$CU$253,72,FALSE) -> 52.01 | L19: =VLOOKUP($C19,'RECAP SECT'!$G$6:$CU$253,73,FALSE) -> 0% | M19: =VLOOKUP($C19,'RECAP SECT'!$G$6:$CU$253,74,FALSE) -> 1 | N19: =VLOOKUP($C19,'RECAP SECT'!$G$6:$CU$253,75,FALSE) -> 10% | O19: =VLOOKUP($C19,'RECAP SECT'!$G$6:$CU$253,76,FALSE) -> 9% | P19: =VLOOKUP($C19,'RECAP SECT'!$G$6:$CU$253,77,FALSE) -> 2
A20: 110 | B20: MEURTHE ET MOSELLE MEUSE | C20: 26 | D20: NANCY | E20: =VLOOKUP($C20,'RECAP SECT'!$G$6:$CU$253,3,FALSE) -> 54.7 | F20: =VLOOKUP($C20,'RECAP SECT'!$G$6:$CU$253,67,FALSE) -> 5,165 | G20: =VLOOKUP($C20,'RECAP SECT'!$G$6:$CU$253,68,FALSE) -> 94.36 | H20: =VLOOKUP($C20,'RECAP SECT'!$G$6:$CU$253,69,FALSE) -> 50% | I20: =VLOOKUP($C20,'RECAP SECT'!$G$6:$CU$253,70,FALSE) -> 12 | J20: =VLOOKUP($C20,'RECAP SECT'!$G$6:$CU$253,71,FALSE) -> 2,264 | K20: =VLOOKUP($C20,'RECAP SECT'!$G$6:$CU$253,72,FALSE) -> 41.36 | L20: =VLOOKUP($C20,'RECAP SECT'!$G$6:$CU$253,73,FALSE) -> 20% | M20: =VLOOKUP($C20,'RECAP SECT'!$G$6:$CU$253,74,FALSE) -> 8 | N20: =VLOOKUP($C20,'RECAP SECT'!$G$6:$CU$253,75,FALSE) -> 38% | O20: =VLOOKUP($C20,'RECAP SECT'!$G$6:$CU$253,76,FALSE) -> 38% | P20: =VLOOKUP($C20,'RECAP SECT'!$G$6:$CU$253,77,FALSE) -> 11
A21: 110 | B21: MEURTHE ET MOSELLE MEUSE | C21: 27 | D21: PONT A MOUSSON | E21: =VLOOKUP($C21,'RECAP SECT'!$G$6:$CU$253,3,FALSE) -> 60.1 | F21: =VLOOKUP($C21,'RECAP SECT'!$G$6:$CU$253,67,FALSE) -> 7,556 | G21: =VLOOKUP($C21,'RECAP SECT'!$G$6:$CU$253,68,FALSE) -> 125.70 | H21: =VLOOKUP($C21,'RECAP SECT'!$G$6:$CU$253,69,FALSE) -> 34% | I21: =VLOOKUP($C21,'RECAP SECT'!$G$6:$CU$253,70,FALSE) -> 7 | J21: =VLOOKUP($C21,'RECAP SECT'!$G$6:$CU$253,71,FALSE) -> 2,711 | K21: =VLOOKUP($C21,'RECAP SECT'!$G$6:$CU$253,72,FALSE) -> 45.10 | L21: =VLOOKUP($C21,'RECAP SECT'!$G$6:$CU$253,73,FALSE) -> 13% | M21: =VLOOKUP($C21,'RECAP SECT'!$G$6:$CU$253,74,FALSE) -> 4 | N21: =VLOOKUP($C21,'RECAP SECT'!$G$6:$CU$253,75,FALSE) -> 25% | O21: =VLOOKUP($C21,'RECAP SECT'!$G$6:$CU$253,76,FALSE) -> 25% | P21: =VLOOKUP($C21,'RECAP SECT'!$G$6:$CU$253,77,FALSE) -> 8
A22: 110 | B22: MEURTHE ET MOSELLE MEUSE | C22: 31 | D22: VERDUN | E22: =VLOOKUP($C22,'RECAP SECT'!$G$6:$CU$253,3,FALSE) -> 48.3 | F22: =VLOOKUP($C22,'RECAP SECT'!$G$6:$CU$253,67,FALSE) -> 5,130 | G22: =VLOOKUP($C22,'RECAP SECT'!$G$6:$CU$253,68,FALSE) -> 106.19 | H22: =VLOOKUP($C22,'RECAP SECT'!$G$6:$CU$253,69,FALSE) -> 44% | I22: =VLOOKUP($C22,'RECAP SECT'!$G$6:$CU$253,70,FALSE) -> 10 | J22: =VLOOKUP($C22,'RECAP SECT'!$G$6:$CU$253,71,FALSE) -> 1,817 | K22: =VLOOKUP($C22,'RECAP SECT'!$G$6:$CU$253,72,FALSE) -> 37.61 | L22: =VLOOKUP($C22,'RECAP SECT'!$G$6:$CU$253,73,FALSE) -> 28% | M22: =VLOOKUP($C22,'RECAP SECT'!$G$6:$CU$253,74,FALSE) -> 11 | N22: =VLOOKUP($C22,'RECAP SECT'!$G$6:$CU$253,75,FALSE) -> 37% | O22: =VLOOKUP($C22,'RECAP SECT'!$G$6:$CU$253,76,FALSE) -> 37% | P22: =VLOOKUP($C22,'RECAP SECT'!$G$6:$CU$253,77,FALSE) -> 10
A23: 160 | B23: MOSELLE | C23: 45 | D23: METZ | E23: =VLOOKUP($C23,'RECAP SECT'!$G$6:$CU$253,3,FALSE) -> 72.8 | F23: =VLOOKUP($C23,'RECAP SECT'!$G$6:$CU$253,67,FALSE) -> 8,105 | G23: =VLOOKUP($C23,'RECAP SECT'!$G$6:$CU$253,68,FALSE) -> 111.32 | H23: =VLOOKUP($C23,'RECAP SECT'!$G$6:$CU$253,69,FALSE) -> 41% | I23: =VLOOKUP($C23,'RECAP SECT'!$G$6:$CU$253,70,FALSE) -> 9 | J23: =VLOOKUP($C23,'RECAP SECT'!$G$6:$CU$253,71,FALSE) -> 2,848 | K23: =VLOOKUP($C23,'RECAP SECT'!$G$6:$CU$253,72,FALSE) -> 39.12 | L23: =VLOOKUP($C23,'RECAP SECT'!$G$6:$CU$253,73,FALSE) -> 25% | M23: =VLOOKUP($C23,'RECAP SECT'!$G$6:$CU$253,74,FALSE) -> 9 | N23: =VLOOKUP($C23,'RECAP SECT'!$G$6:$CU$253,75,FALSE) -> 35% | O23: =VLOOKUP($C23,'RECAP SECT'!$G$6:$CU$253,76,FALSE) -> 34% | P23: =VLOOKUP($C23,'RECAP SECT'!$G$6:$CU$253,77,FALSE) -> 9
A24: 160 | B24: MOSELLE | C24: 42 | D24: MOSELLE EST | E24: =VLOOKUP($C24,'RECAP SECT'!$G$6:$CU$253,3,FALSE) -> 58.7 | F24: =VLOOKUP($C24,'RECAP SECT'!$G$6:$CU$253,67,FALSE) -> 8,710 | G24: =VLOOKUP($C24,'RECAP SECT'!$G$6:$CU$253,68,FALSE) -> 148.51 | H24: =VLOOKUP($C24,'RECAP SECT'!$G$6:$CU$253,69,FALSE) -> 22% | I24: =VLOOKUP($C24,'RECAP SECT'!$G$6:$CU$253,70,FALSE) -> 5 | J24: =VLOOKUP($C24,'RECAP SECT'!$G$6:$CU$253,71,FALSE) -> 2,603 | K24: =VLOOKUP($C24,'RECAP SECT'!$G$6:$CU$253,72,FALSE) -> 44.38 | L24: =VLOOKUP($C24,'RECAP SECT'!$G$6:$CU$253,73,FALSE) -> 15% | M24: =VLOOKUP($C24,'RECAP SECT'!$G$6:$CU$253,74,FALSE) -> 6 | N24: =VLOOKUP($C24,'RECAP SECT'!$G$6:$CU$253,75,FALSE) -> 19% | O24: =VLOOKUP($C24,'RECAP SECT'!$G$6:$CU$253,76,FALSE) -> 18% | P24: =VLOOKUP($C24,'RECAP SECT'!$G$6:$CU$253,77,FALSE) -> 5
A25: 160 | B25: MOSELLE | C25: 44 | D25: MOSELLE NORD | E25: =VLOOKUP($C25,'RECAP SECT'!$G$6:$CU$253,3,FALSE) -> 56.1 | F25: =VLOOKUP($C25,'RECAP SECT'!$G$6:$CU$253,67,FALSE) -> 10,618 | G25: =VLOOKUP($C25,'RECAP SECT'!$G$6:$CU$253,68,FALSE) -> 189.27 | H25: =VLOOKUP($C25,'RECAP SECT'!$G$6:$CU$253,69,FALSE) -> 0% | I25: =VLOOKUP($C25,'RECAP SECT'!$G$6:$CU$253,70,FALSE) -> 1 | J25: =VLOOKUP($C25,'RECAP SECT'!$G$6:$CU$253,71,FALSE) -> 2,867 | K25: =VLOOKUP($C25,'RECAP SECT'!$G$6:$CU$253,72,FALSE) -> 51.11 | L25: =VLOOKUP($C25,'RECAP SECT'!$G$6:$CU$253,73,FALSE) -> 2% | M25: =VLOOKUP($C25,'RECAP SECT'!$G$6:$CU$253,74,FALSE) -> 2 | N25: =VLOOKUP($C25,'RECAP SECT'!$G$6:$CU$253,75,FALSE) -> 1% | O25: =VLOOKUP($C25,'RECAP SECT'!$G$6:$CU$253,76,FALSE) -> 0% | P25: =VLOOKUP($C25,'RECAP SECT'!$G$6:$CU$253,77,FALSE) -> 1
A26: 80 | B26: VOSGES | C26: 57 | D26: EPINAL | E26: =VLOOKUP($C26,'RECAP SECT'!$G$6:$CU$253,3,FALSE) -> 52.9 | F26: =VLOOKUP($C26,'RECAP SECT'!$G$6:$CU$253,67,FALSE) -> 5,308 | G26: =VLOOKUP($C26,'RECAP SECT'!$G$6:$CU$253,68,FALSE) -> 100.32 | H26: =VLOOKUP($C26,'RECAP SECT'!$G$6:$CU$253,69,FALSE) -> 47% | I26: =VLOOKUP($C26,'RECAP SECT'!$G$6:$CU$253,70,FALSE) -> 11 | J26: =VLOOKUP($C26,'RECAP SECT'!$G$6:$CU$253,71,FALSE) -> 1,846 | K26: =VLOOKUP($C26,'RECAP SECT'!$G$6:$CU$253,72,FALSE) -> 34.89 | L26: =VLOOKUP($C26,'RECAP SECT'!$G$6:$CU$253,73,FALSE) -> 33% | M26: =VLOOKUP($C26,'RECAP SECT'!$G$6:$CU$253,74,FALSE) -> 13 | N26: =VLOOKUP($C26,'RECAP SECT'!$G$6:$CU$253,75,FALSE) -> 41% | O26: =VLOOKUP($C26,'RECAP SECT'!$G$6:$CU$253,76,FALSE) -> 41% | P26: =VLOOKUP($C26,'RECAP SECT'!$G$6:$CU$253,77,FALSE) -> 12
A27: 80 | B27: VOSGES | C27: 55 | D27: SAINT DIE | E27: =VLOOKUP($C27,'RECAP SECT'!$G$6:$CU$253,3,FALSE) -> 40.2 | F27: =VLOOKUP($C27,'RECAP SECT'!$G$6:$CU$253,67,FALSE) -> 3,305 | G27: =VLOOKUP($C27,'RECAP SECT'!$G$6:$CU$253,68,FALSE) -> 82.15 | H27: =VLOOKUP($C27,'RECAP SECT'!$G$6:$CU$253,69,FALSE) -> 57% | I27: =VLOOKUP($C27,'RECAP SECT'!$G$6:$CU$253,70,FALSE) -> 13 | J27: =VLOOKUP($C27,'RECAP SECT'!$G$6:$CU$253,71,FALSE) -> 1,293 | K27: =VLOOKUP($C27,'RECAP SECT'!$G$6:$CU$253,72,FALSE) -> 32.14 | L27: =VLOOKUP($C27,'RECAP SECT'!$G$6:$CU$253,73,FALSE) -> 38% | M27: =VLOOKUP($C27,'RECAP SECT'!$G$6:$CU$253,74,FALSE) -> 17 | N27: =VLOOKUP($C27,'RECAP SECT'!$G$6:$CU$253,75,FALSE) -> 49% | O27: =VLOOKUP($C27,'RECAP SECT'!$G$6:$CU$253,76,FALSE) -> 49% | P27: =VLOOKUP($C27,'RECAP SECT'!$G$6:$CU$253,77,FALSE) -> 15
A28: Total CEGEE Directions Régionales | E28: =SUM(E10:E27) -> 951

Sheet SE_SATISFACTION
B1: Accueil | F1: BAROMETRE BDD - TERRITOIRES
F2: SATISFACTION
F3: =ACCUEIL!F7 -> 2022-09-25
F7: NPS à froid (SAE) | I7: NPS à chaud (QHD) | L7: Total Satisfaction Clients
F8: =DATEMAJ!E4 -> au 31/07 | G8: coef | H8: ='RECAP DIRCOM'!M4 -> 10% | I8: =DATEMAJ!C5 -> au 31/07 | J8: coef | K8: ='RECAP DIRCOM'!P4 -> 10% | M8: coef | N8: ='RECAP DIRCOM'!S4 -> 20%
B9: Direction | C9: eds | D9: Territoire | E9: ="ETP perf "&DATEMAJ!$C$28 -> ETP perf 25-sept | G9: % Ecart au 1er | H9: Rang | J9: % Ecart au 1er | K9: Rang | L9: Moyenne ecart au 1er | M9: % Ecart au 1er | N9: Rang CEGEE
A10: 50 | B10: AUBE HAUTE MARNE | C10: 21 | D10: CHAUMONT | E10: =VLOOKUP($C10,'RECAP SECT'!$G$6:$CU$253,3,FALSE) -> 33.7 | F10: =VLOOKUP($C10,'RECAP SECT'!$G$6:$CU$253,5,FALSE) -> 19 | G10: =VLOOKUP($C10,'RECAP SECT'!$G$6:$CU$253,6,FALSE) -> 25% | H10: =VLOOKUP($C10,'RECAP SECT'!$G$6:$CU$253,7,FALSE) -> 6 | I10: =VLOOKUP($C10,'RECAP SECT'!$G$6:$CU$253,8,FALSE) -> 65% | J10: =VLOOKUP($C10,'RECAP SECT'!$G$6:$CU$253,9,FALSE) -> 11% | K10: =VLOOKUP($C10,'RECAP SECT'!$G$6:$CU$253,10,FALSE) -> 8 | L10: =VLOOKUP($C10,'RECAP SECT'!$G$6:$CU$253,11,FALSE) -> 18% | M10: =VLOOKUP($C10,'RECAP SECT'!$G$6:$CU$253,12,FALSE) -> 15% | N10: =VLOOKUP($C10,'RECAP SECT'!$G$6:$CU$253,13,FALSE) -> 6
A11: 50 | B11: AUBE HAUTE MARNE | C11: 14 | D11: TROYES | E11: =VLOOKUP($C11,'RECAP SECT'!$G$6:$CU$253,3,FALSE) -> 54.2 | F11: =VLOOKUP($C11,'RECAP SECT'!$G$6:$CU$253,5,FALSE) -> 0 | G11: =VLOOKUP($C11,'RECAP SECT'!$G$6:$CU$253,6,FALSE) -> 100% | H11: =VLOOKUP($C11,'RECAP SECT'!$G$6:$CU$253,7,FALSE) -> 18 | I11: =VLOOKUP($C11,'RECAP SECT'!$G$6:$CU$253,8,FALSE) -> 48% | J11: =VLOOKUP($C11,'RECAP SECT'!$G$6:$CU$253,9,FALSE) -> 35% | K11: =VLOOKUP($C11,'RECAP SECT'!$G$6:$CU$253,10,FALSE) -> 17 | L11: =VLOOKUP($C11,'RECAP SECT'!$G$6:$CU$253,11,FALSE) -> 67% | M11: =VLOOKUP($C11,'RECAP SECT'!$G$6:$CU$253,12,FALSE) -> 64% | N11: =VLOOKUP($C11,'RECAP SECT'!$G$6:$CU$253,13,FALSE) -> 18
A12: 262 | B12: BAS-RHIN | C12: 5060 | D12: HAGUENAU | E12: =VLOOKUP($C12,'RECAP SECT'!$G$6:$CU$253,3,FALSE) -> 55.2 | F12: =VLOOKUP($C12,'RECAP SECT'!$G$6:$CU$253,5,FALSE) -> 10 | G12: =VLOOKUP($C12,'RECAP SECT'!$G$6:$CU$253,6,FALSE) -> 60% | H12: =VLOOKUP($C12,'RECAP SECT'!$G$6:$CU$253,7,FALSE) -> 11 | I12: =VLOOKUP($C12,'RECAP SECT'!$G$6:$CU$253,8,FALSE) -> 62% | J12: =VLOOKUP($C12,'RECAP SECT'!$G$6:$CU$253,9,FALSE) -> 17% | K12: =VLOOKUP($C12,'RECAP SECT'!$G$6:$CU$253,10,FALSE) -> 11 | L12: =VLOOKUP($C12,'RECAP SECT'!$G$6:$CU$253,11,FALSE) -> 38% | M12: =VLOOKUP($C12,'RECAP SECT'!$G$6:$CU$253,12,FALSE) -> 35% | N12: =VLOOKUP($C12,'RECAP SECT'!$G$6:$CU$253,13,FALSE) -> 12
A13: 262 | B13: BAS-RHIN | C13: 5101 | D13: SELESTAT | E13: =VLOOKUP($C13,'RECAP SECT'!$G$6:$CU$253,3,FALSE) -> 51.3 | F13: =VLOOKUP($C13,'RECAP SECT'!$G$6:$CU$253,5,FALSE) -> 1.75 | G13: =VLOOKUP($C13,'RECAP SECT'!$G$6:$CU$253,6,FALSE) -> 93% | H13: =VLOOKUP($C13,'RECAP SECT'!$G$6:$CU$253,7,FALSE) -> 17 | I13: =VLOOKUP($C13,'RECAP SECT'!$G$6:$CU$253,8,FALSE) -> 59% | J13: =VLOOKUP($C13,'RECAP SECT'!$G$6:$CU$253,9,FALSE) -> 19% | K13: =VLOOKUP($C13,'RECAP SECT'!$G$6:$CU$253,10,FALSE) -> 14 | L13: =VLOOKUP($C13,'RECAP SECT'!$G$6:$CU$253,11,FALSE) -> 56% | M13: =VLOOKUP($C13,'RECAP SECT'!$G$6:$CU$253,12,FALSE) -> 53% | N13: =VLOOKUP($C13,'RECAP SECT'!$G$6:$CU$253,13,FALSE) -> 14
A14: 262 | B14: BAS-RHIN | C14: 5006 | D14: STRASBOURG | E14: =VLOOKUP($C14,'RECAP SECT'!$G$6:$CU$253,3,FALSE) -> 65.4 | F14: =VLOOKUP($C14,'RECAP SECT'!$G$6:$CU$253,5,FALSE) -> 9.75 | G14: =VLOOKUP($C14,'RECAP SECT'!$G$6:$CU$253,6,FALSE) -> 61% | H14: =VLOOKUP($C14,'RECAP SECT'!$G$6:$CU$253,7,FALSE) -> 12 | I14: =VLOOKUP($C14,'RECAP SECT'!$G$6:$CU$253,8,FALSE) -> 66% | J14: =VLOOKUP($C14,'RECAP SECT'!$G$6:$CU$253,9,FALSE) -> 10% | K14: =VLOOKUP($C14,'RECAP SECT'!$G$6:$CU$253,10,FALSE) -> 7 | L14: =VLOOKUP($C14,'RECAP SECT'!$G$6:$CU$253,11,FALSE) -> 36% | M14: =VLOOKUP($C14,'RECAP SECT'!$G$6:$CU$253,12,FALSE) -> 33% | N14: =VLOOKUP($C14,'RECAP SECT'!$G$6:$CU$253,13,FALSE) -> 11
A15: 264 | B15: HAUT-RHIN | C15: 5130 | D15: COLMAR | E15: =VLOOKUP($C15,'RECAP SECT'!$G$6:$CU$253,3,FALSE) -> 46.5 | F15: =VLOOKUP($C15,'RECAP SECT'!$G$6:$CU$253,5,FALSE) -> 2.5 | G15: =VLOOKUP($C15,'RECAP SECT'!$G$6:$CU$253,6,FALSE) -> 90% | H15: =VLOOKUP($C15,'RECAP SECT'!$G$6:$CU$253,7,FALSE) -> 15 | I15: =VLOOKUP($C15,'RECAP SECT'!$G$6:$CU$253,8,FALSE) -> 52% | J15: =VLOOKUP($C15,'RECAP SECT'!$G$6:$CU$253,9,FALSE) -> 29% | K15: =VLOOKUP($C15,'RECAP SECT'!$G$6:$CU$253,10,FALSE) -> 16 | L15: =VLOOKUP($C15,'RECAP SECT'!$G$6:$CU$253,11,FALSE) -> 60% | M15: =VLOOKUP($C15,'RECAP SECT'!$G$6:$CU$253,12,FALSE) -> 57% | N15: =VLOOKUP($C15,'RECAP SECT'!$G$6:$CU$253,13,FALSE) -> 16
A16: 264 | B16: HAUT-RHIN | C16: 5169 | D16: MULHOUSE | E16: =VLOOKUP($C16,'RECAP SECT'!$G$6:$CU$253,3,FALSE) -> 46.5 | F16: =VLOOKUP($C16,'RECAP SECT'!$G$6:$CU$253,5,FALSE) -> 3 | G16: =VLOOKUP($C16,'RECAP SECT'!$G$6:$CU$253,6,FALSE) -> 88% | H16: =VLOOKUP($C16,'RECAP SECT'!$G$6:$CU$253,7,FALSE) -> 14 | I16: =VLOOKUP($C16,'RECAP SECT'!$G$6:$CU$253,8,FALSE) -> 46% | J16: =VLOOKUP($C16,'RECAP SECT'!$G$6:$CU$253,9,FALSE) -> 38% | K16: =VLOOKUP($C16,'RECAP SECT'!$G$6:$CU$253,10,FALSE) -> 18 | L16: =VLOOKUP($C16,'RECAP SECT'!$G$6:$CU$253,11,FALSE) -> 63% | M16: =VLOOKUP($C16,'RECAP SECT'!$G$6:$CU$253,12,FALSE) -> 60% | N16: =VLOOKUP($C16,'RECAP SECT'!$G$6:$CU$253,13,FALSE) -> 17
A17: 30 | B17: MARNE-ARDENNES | C17: 6 | D17: CHALONS EN CHAMPAGNE | E17: =VLOOKUP($C17,'RECAP SECT'!$G$6:$CU$253,3,FALSE) -> 37.7 | F17: =VLOOKUP($C17,'RECAP SECT'!$G$6:$CU$253,5,FALSE) -> 23.75 | G17: =VLOOKUP($C17,'RECAP SECT'!$G$6:$CU$253,6,FALSE) -> 6% | H17: =VLOOKUP($C17,'RECAP SECT'!$G$6:$CU$253,7,FALSE) -> 2 | I17: =VLOOKUP($C17,'RECAP SECT'!$G$6:$CU$253,8,FALSE) -> 74% | J17: =VLOOKUP($C17,'RECAP SECT'!$G$6:$CU$253,9,FALSE) -> 0% | K17: =VLOOKUP($C17,'RECAP SECT'!$G$6:$CU$253,10,FALSE) -> 1 | L17: =VLOOKUP($C17,'RECAP SECT'!$G$6:$CU$253,11,FALSE) -> 3% | M17: =VLOOKUP($C17,'RECAP SECT'!$G$6:$CU$253,12,FALSE) -> 0% | N17: =VLOOKUP($C17,'RECAP SECT'!$G$6:$CU$253,13,FALSE) -> 1
A18: 30 | B18: MARNE-ARDENNES | C18: 2 | D18: CHARLEVILLE MEZIERES | E18: =VLOOKUP($C18,'RECAP SECT'!$G$6:$CU$253,3,FALSE) -> 48.7 | F18: =VLOOKUP($C18,'RECAP SECT'!$G$6:$CU$253,5,FALSE) -> 14.5 | G18: =VLOOKUP($C18,'RECAP SECT'!$G$6:$CU$253,6,FALSE) -> 43% | H18: =VLOOKUP($C18,'RECAP SECT'!$G$6:$CU$253,7,FALSE) -> 9 | I18: =VLOOKUP($C18,'RECAP SECT'!$G$6:$CU$253,8,FALSE) -> 66% | J18: =VLOOKUP($C18,'RECAP SECT'!$G$6:$CU$253,9,FALSE) -> 10% | K18: =VLOOKUP($C18,'RECAP SECT'!$G$6:$CU$253,10,FALSE) -> 6 | L18: =VLOOKUP($C18,'RECAP SECT'!$G$6:$CU$253,11,FALSE) -> 26% | M18: =VLOOKUP($C18,'RECAP SECT'!$G$6:$CU$253,12,FALSE) -> 23% | N18: =VLOOKUP($C18,'RECAP SECT'!$G$6:$CU$253,13,FALSE) -> 8
A19: 30 | B19: MARNE-ARDENNES | C19: 11 | D19: REIMS | E19: =VLOOKUP($C19,'RECAP SECT'!$G$6:$CU$253,3,FALSE) -> 68.0 | F19: =VLOOKUP($C19,'RECAP SECT'!$G$6:$CU$253,5,FALSE) -> 17.5 | G19: =VLOOKUP($C19,'RECAP SECT'!$G$6:$CU$253,6,FALSE) -> 31% | H19: =VLOOKUP($C19,'RECAP SECT'!$G$6:$CU$253,7,FALSE) -> 7 | I19: =VLOOKUP($C19,'RECAP SECT'!$G$6:$CU$253,8,FALSE) -> 63% | J19: =VLOOKUP($C19,'RECAP SECT'!$G$6:$CU$253,9,FALSE) -> 15% | K19: =VLOOKUP($C19,'RECAP SECT'!$G$6:$CU$253,10,FALSE) -> 10 | L19: =VLOOKUP($C19,'RECAP SECT'!$G$6:$CU$253,11,FALSE) -> 23% | M19: =VLOOKUP($C19,'RECAP SECT'!$G$6:$CU$253,12,FALSE) -> 20% | N19: =VLOOKUP($C19,'RECAP SECT'!$G$6:$CU$253,13,FALSE) -> 7
A20: 110 | B20: MEURTHE ET MOSELLE MEUSE | C20: 26 | D20: NANCY | E20: =VLOOKUP($C20,'RECAP SECT'!$G$6:$CU$253,3,FALSE) -> 54.7 | F20: =VLOOKUP($C20,'RECAP SECT'!$G$6:$CU$253,5,FALSE) -> 13.25 | G20: =VLOOKUP($C20,'RECAP SECT'!$G$6:$CU$253,6,FALSE) -> 48% | H20: =VLOOKUP($C20,'RECAP SECT'!$G$6:$CU$253,7,FALSE) -> 10 | I20: =VLOOKUP($C20,'RECAP SECT'!$G$6:$CU$253,8,FALSE) -> 63% | J20: =VLOOKUP($C20,'RECAP SECT'!$G$6:$CU$253,9,FALSE) -> 15% | K20: =VLOOKUP($C20,'RECAP SECT'!$G$6:$CU$253,10,FALSE) -> 9 | L20: =VLOOKUP($C20,'RECAP SECT'!$G$6:$CU$253,11,FALSE) -> 31% | M20: =VLOOKUP($C20,'RECAP SECT'!$G$6:$CU$253,12,FALSE) -> 28% | N20: =VLOOKUP($C20,'RECAP SECT'!$G$6:$CU$253,13,FALSE) -> 10
A21: 110 | B21: MEURTHE ET MOSELLE MEUSE | C21: 27 | D21: PONT A MOUSSON | E21: =VLOOKUP($C21,'RECAP SECT'!$G$6:$CU$253,3,FALSE) -> 60.1 | F21: =VLOOKUP($C21,'RECAP SECT'!$G$6:$CU$253,5,FALSE) -> 2.25 | G21: =VLOOKUP($C21,'RECAP SECT'!$G$6:$CU$253,6,FALSE) -> 91% | H21: =VLOOKUP($C21,'RECAP SECT'!$G$6:$CU$253,7,FALSE) -> 16 | I21: =VLOOKUP($C21,'RECAP SECT'!$G$6:$CU$253,8,FALSE) -> 55% | J21: =VLOOKUP($C21,'RECAP SECT'!$G$6:$CU$253,9,FALSE) -> 26% | K21: =VLOOKUP($C21,'RECAP SECT'!$G$6:$CU$253,10,FALSE) -> 15 | L21: =VLOOKUP($C21,'RECAP SECT'!$G$6:$CU$253,11,FALSE) -> 59% | M21: =VLOOKUP($C21,'RECAP SECT'!$G$6:$CU$253,12,FALSE) -> 56% | N21: =VLOOKUP($C21,'RECAP SECT'!$G$6:$CU$253,13,FALSE) -> 15
A22: 110 | B22: MEURTHE ET MOSELLE MEUSE | C22: 31 | D22: VERDUN | E22: =VLOOKUP($C22,'RECAP SECT'!$G$6:$CU$253,3,FALSE) -> 48.3 | F22: =VLOOKUP($C22,'RECAP SECT'!$G$6:$CU$253,5,FALSE) -> 20.75 | G22: =VLOOKUP($C22,'RECAP SECT'!$G$6:$CU$253,6,FALSE) -> 18% | H22: =VLOOKUP($C22,'RECAP SECT'!$G$6:$CU$253,7,FALSE) -> 5 | I22: =VLOOKUP($C22,'RECAP SECT'!$G$6:$CU$253,8,FALSE) -> 67% | J22: =VLOOKUP($C22,'RECAP SECT'!$G$6:$CU$253,9,FALSE) -> 9% | K22: =VLOOKUP($C22,'RECAP SECT'!$G$6:$CU$253,10,FALSE) -> 4 | L22: =VLOOKUP($C22,'RECAP SECT'!$G$6:$CU$253,11,FALSE) -> 13% | M22: =VLOOKUP($C22,'RECAP SECT'!$G$6:$CU$253,12,FALSE) -> 10% | N22: =VLOOKUP($C22,'RECAP SECT'!$G$6:$CU$253,13,FALSE) -> 5
A23: 160 | B23: MOSELLE | C23: 45 | D23: METZ | E23: =VLOOKUP($C23,'RECAP SECT'!$G$6:$CU$253,3,FALSE) -> 72.8 | F23: =VLOOKUP($C23,'RECAP SECT'!$G$6:$CU$253,5,FALSE) -> 15.25 | G23: =VLOOKUP($C23,'RECAP SECT'!$G$6:$CU$253,6,FALSE) -> 40% | H23: =VLOOKUP($C23,'RECAP SECT'!$G$6:$CU$253,7,FALSE) -> 8 | I23: =VLOOKUP($C23,'RECAP SECT'!$G$6:$CU$253,8,FALSE) -> 60% | J23: =VLOOKUP($C23,'RECAP SECT'!$G$6:$CU$253,9,FALSE) -> 19% | K23: =VLOOKUP($C23,'RECAP SECT'!$G$6:$CU$253,10,FALSE) -> 13 | L23: =VLOOKUP($C23,'RECAP SECT'!$G$6:$CU$253,11,FALSE) -> 29% | M23: =VLOOKUP($C23,'RECAP SECT'!$G$6:$CU$253,12,FALSE) -> 26% | N23: =VLOOKUP($C23,'RECAP SECT'!$G$6:$CU$253,13,FALSE) -> 9
A24: 160 | B24: MOSELLE | C24: 42 | D24: MOSELLE EST | E24: =VLOOKUP($C24,'RECAP SECT'!$G$6:$CU$253,3,FALSE) -> 58.7 | F24: =VLOOKUP($C24,'RECAP SECT'!$G$6:$CU$253,5,FALSE) -> 21.25 | G24: =VLOOKUP($C24,'RECAP SECT'!$G$6:$CU$253,6,FALSE) -> 16% | H24: =VLOOKUP($C24,'RECAP SECT'!$G$6:$CU$253,7,FALSE) -> 4 | I24: =VLOOKUP($C24,'RECAP SECT'!$G$6:$CU$253,8,FALSE) -> 67% | J24: =VLOOKUP($C24,'RECAP SECT'!$G$6:$CU$253,9,FALSE) -> 9% | K24: =VLOOKUP($C24,'RECAP SECT'!$G$6:$CU$253,10,FALSE) -> 5 | L24: =VLOOKUP($C24,'RECAP SECT'!$G$6:$CU$253,11,FALSE) -> 12% | M24: =VLOOKUP($C24,'RECAP SECT'!$G$6:$CU$253,12,FALSE) -> 10% | N24: =VLOOKUP($C24,'RECAP SECT'!$G$6:$CU$253,13,FALSE) -> 4
A25: 160 | B25: MOSELLE | C25: 44 | D25: MOSELLE NORD | E25: =VLOOKUP($C25,'RECAP SECT'!$G$6:$CU$253,3,FALSE) -> 56.1 | F25: =VLOOKUP($C25,'RECAP SECT'!$G$6:$CU$253,5,FALSE) -> 8.25 | G25: =VLOOKUP($C25,'RECAP SECT'!$G$6:$CU$253,6,FALSE) -> 67% | H25: =VLOOKUP($C25,'RECAP SECT'!$G$6:$CU$253,7,FALSE) -> 13 | I25: =VLOOKUP($C25,'RECAP SECT'!$G$6:$CU$253,8,FALSE) -> 61% | J25: =VLOOKUP($C25,'RECAP SECT'!$G$6:$CU$253,9,FALSE) -> 17% | K25: =VLOOKUP($C25,'RECAP SECT'!$G$6:$CU$253,10,FALSE) -> 12 | L25: =VLOOKUP($C25,'RECAP SECT'!$G$6:$CU$253,11,FALSE) -> 42% | M25: =VLOOKUP($C25,'RECAP SECT'!$G$6:$CU$253,12,FALSE) -> 39% | N25: =VLOOKUP($C25,'RECAP SECT'!$G$6:$CU$253,13,FALSE) -> 13
A26: 80 | B26: VOSGES | C26: 57 | D26: EPINAL | E26: =VLOOKUP($C26,'RECAP SECT'!$G$6:$CU$253,3,FALSE) -> 52.9 | F26: =VLOOKUP($C26,'RECAP SECT'!$G$6:$CU$253,5,FALSE) -> 22.25 | G26: =VLOOKUP($C26,'RECAP SECT'!$G$6:$CU$253,6,FALSE) -> 12% | H26: =VLOOKUP($C26,'RECAP SECT'!$G$6:$CU$253,7,FALSE) -> 3 | I26: =VLOOKUP($C26,'RECAP SECT'!$G$6:$CU$253,8,FALSE) -> 70% | J26: =VLOOKUP($C26,'RECAP SECT'!$G$6:$CU$253,9,FALSE) -> 6% | K26: =VLOOKUP($C26,'RECAP SECT'!$G$6:$CU$253,10,FALSE) -> 2 | L26: =VLOOKUP($C26,'RECAP SECT'!$G$6:$CU$253,11,FALSE) -> 9% | M26: =VLOOKUP($C26,'RECAP SECT'!$G$6:$CU$253,12,FALSE) -> 6% | N26: =VLOOKUP($C26,'RECAP SECT'!$G$6:$CU$253,13,FALSE) -> 3
A27: 80 | B27: VOSGES | C27: 55 | D27: SAINT DIE | E27: =VLOOKUP($C27,'RECAP SECT'!$G$6:$CU$253,3,FALSE) -> 40.2 | F27: =VLOOKUP($C27,'RECAP SECT'!$G$6:$CU$253,5,FALSE) -> 25.25 | G27: =VLOOKUP($C27,'RECAP SECT'!$G$6:$CU$253,6,FALSE) -> 0% | H27: =VLOOKUP($C27,'RECAP SECT'!$G$6:$CU$253,7,FALSE) -> 1 | I27: =VLOOKUP($C27,'RECAP SECT'!$G$6:$CU$253,8,FALSE) -> 69% | J27: =VLOOKUP($C27,'RECAP SECT'!$G$6:$CU$253,9,FALSE) -> 7% | K27: =VLOOKUP($C27,'RECAP SECT'!$G$6:$CU$253,10,FALSE) -> 3 | L27: =VLOOKUP($C27,'RECAP SECT'!$G$6:$CU$253,11,FALSE) -> 4% | M27: =VLOOKUP($C27,'RECAP SECT'!$G$6:$CU$253,12,FALSE) -> 1% | N27: =VLOOKUP($C27,'RECAP SECT'!$G$6:$CU$253,13,FALSE) -> 2
A28: Total CEGEE Directions Régionales | E28: =SUM(E10:E27) -> 951

Sheet AG_CLASS
B1: Accueil | H1: BAROMETRE BDD - AGENCES
H2: CLASSEMENTS
H3: =ACCUEIL!F7 -> 2022-09-25
H8: CLASSEMENT GENERAL | I8: CRITERE Satisfaction Clients | J8: NPS à froid (SAE) | K8: NPS à chaud (QHD) | L8: CRITERE BANCARISATION | M8: Ventes Nettes produits pondérés | N8: Ventes sur client non détenteur de l’univers | O8: CRITERE EPARGNE | P8: Excédent Epargne hors DAV pondéré | Q8: Ventes sur client non détenteur de l’univers | R8: CRITERE IARD PREVOYANCE | S8: Ventes Nettes produits pondérés | T8: Ventes sur client non détenteur de l’univers | U8: CRITERE CREDITS | V8: Engagements et ventes accessoires pondérés Immo | W8: Engagements et ventes accessoires pondérés Conso | X8: Ventes sur client non détenteur de l’univers
B9: Direction | C9: eds | D9: Territoire | E9: eds | F9: Agence | G9: ="ETP perf "&DATEMAJ!$C$28 -> ETP perf 25-sept | H9: Rang | I9: Rang | J9: Rang | K9: Rang | L9: Rang | M9: Rang | N9: Rang | O9: Rang | P9: Rang | Q9: Rang | R9: Rang | S9: Rang | T9: Rang | U9: Rang | V9: Rang | W9: Rang | X9: Rang
A10: 50 | B10: MOSELLE | C10: 44 | D10: MOSELLE NORD | E10: 557508 | F10: NILVANGE | G10: 1.5 | H10: 1 | I10: 66 | J10: 73 | K10: 48 | L10: 1 | M10: 1 | N10: 1 | O10: 4 | P10: 115 | Q10: 1 | R10: 1 | S10: 1 | T10: 1 | U10: 1 | V10: 1 | W10: 1 | X10: 1
A11: 50 | B11: VOSGES | C11: 57 | D11: EPINAL | E11: 488288 | F11: EPINAL LEOPOLD BOURG | G11: 2.0 | H11: 2 | I11: 2 | J11: 2 | K11: 3 | L11: 23 | M11: 15 | N11: 48 | O11: 6 | P11: 5 | Q11: 37 | R11: 56 | S11: 27 | T11: 155 | U11: 23 | V11: 18 | W11: 68 | X11: 31
A12: 50 | B12: MARNE ARDENNES | C12: 11 | D12: REIMS | E12: 551305 | F12: REIMS HIPPODROME | G12: 5.1 | H12: 3 | I12: 68 | J12: 67 | K12: 75 | L12: 11 | M12: 34 | N12: 3 | O12: 19 | P12: 30 | Q12: 15 | R12: 8 | S12: 14 | T12: 10 | U12: 5 | V12: 6 | W12: 64 | X12: 3
A13: 50 | B13: MARNE ARDENNES | C13: 6 | D13: CHALONS EN CHAMPAGNE | E13: 451115 | F13: MOURMELON LE GRAND | G13: 2.8 | H13: 4 | I13: 78 | J13: 116 | K13: 11 | L13: 2 | M13: 2 | N13: 13 | O13: 17 | P13: 36 | Q13: 6 | R13: 18 | S13: 49 | T13: 7 | U13: 16 | V13: 42 | W13: 3 | X13: 42
A14: 50 | B14: MOSELLE | C14: 44 | D14: MOSELLE NORD | E14: 557660 | F14: UCKANGE | G14: 1.8 | H14: 5 | I14: 220 | J14: 178 | K14: 224 | L14: 14 | M14: 41 | N14: 9 | O14: 22 | P14: 146 | Q14: 2 | R14: 2 | S14: 2 | T14: 3 | U14: 2 | V14: 2 | W14: 25 | X14: 2
A15: 50 | B15: MARNE ARDENNES | C15: 11 | D15: REIMS | E15: 551340 | F15: BETHENY | G15: 2.3 | H15: 6 | I15: 45 | J15: 34 | K15: 107 | L15: 5 | M15: 5 | N15: 6 | O15: 32 | P15: 59 | Q15: 13 | R15: 78 | S15: 88 | T15: 70 | U15: 11 | V15: 5 | W15: 125 | X15: 12
A16: 50 | B16: MARNE ARDENNES | C16: 6 | D16: CHALONS EN CHAMPAGNE | E16: 551330 | F16: MONTMIRAIL | G16: 2.8 | H16: 7 | I16: 11 | J16: 15 | K16: 17 | L16: 16 | M16: 9 | N16: 50 | O16: 43 | P16: 41 | Q16: 81 | R16: 9 | S16: 7 | T16: 20 | U16: 76 | V16: 59 | W16: 184 | X16: 43
A17: 50 | B17: MARNE ARDENNES | C17: 2 | D17: CHARLEVILLE MEZIERES | E17: 508820 | F17: VOUZIERS | G17: 2.9 | H17: 8 | I17: 29 | J17: 20 | K17: 83 | L17: 33 | M17: 36 | N17: 49 | O17: 30 | P17: 23 | Q17: 140 | R17: 3 | S17: 3 | T17: 16 | U17: 35 | V17: 85 | W17: 9 | X17: 49
A18: 50 | B18: MARNE ARDENNES | C18: 11 | D18: REIMS | E18: 551349 | F18: REIMS SAINT REMI | G18: 2.9 | H18: 9 | I18: 123 | J18: 134 | K18: 86 | L18: 3 | M18: 3 | N18: 8 | O18: 71 | P18: 113 | Q18: 14 | R18: 14 | S18: 19 | T18: 11 | U18: 8 | V18: 9 | W18: 46 | X18: 9
A19: 50 | B19: MOSELLE | C19: 45 | D19: METZ | E19: 457443 | F19: METZ REPUBLIQUE | G19: 3.5 | H19: 10 | I19: 41 | J19: 40 | K19: 44 | L19: 81 | M19: 70 | N19: 112 | O19: 3 | P19: 3 | Q19: 69 | R19: 12 | S19: 8 | T19: 38 | U19: 101 | V19: 111 | W19: 94 | X19: 112
A20: 50 | B20: MEURTHE ET MOSELLE MEUSE | C20: 26 | D20: NANCY | E20: 554476 | F20: NANCY ARTEM | G20: 2.8 | H20: 11 | I20: 40 | J20: 50 | K20: 19 | L20: 10 | M20: 12 | N20: 17 | O20: 179 | P20: 189 | Q20: 91 | R20: 54 | S20: 46 | T20: 92 | U20: 3 | V20: 3 | W20: 97 | X20: 4
A21: 50 | B21: MARNE ARDENNES | C21: 6 | D21: CHALONS EN CHAMPAGNE | E21: 451120 | F21: SARRY | G21: 2.3 | H21: 12 | I21: 6 | J21: 7 | K21: 5 | L21: 18 | M21: 11 | N21: 55 | O21: 121 | P21: 156 | Q21: 38 | R21: 48 | S21: 40 | T21: 87 | U21: 66 | V21: 48 | W21: 89 | X21: 77
A22: 50 | B22: MOSELLE | C22: 44 | D22: MOSELLE NORD | E22: 557113 | F22: AUDUN LE TICHE | G22: 2.1 | H22: 13 | I22: 118 | J22: 166 | K22: 14 | L22: 9 | M22: 18 | N22: 5 | O22: 25 | P22: 58 | Q22: 5 | R22: 22 | S22: 41 | T22: 15 | U22: 14 | V22: 17 | W22: 10 | X22: 35
A23: 50 | B23: BAS RHIN | C23: 5006 | D23: STRASBOURG | E23: 4048 | F23: STRASBOURG KOENIGSHOFFEN | G23: 1.7 | H23: 14 | I23: 175 | J23: 208 | K23: 156 | L23: 8 | M23: 17 | N23: 7 | O23: 8 | P23: 27 | Q23: 3 | R23: 7 | S23: 68 | T23: 2 | U23: 20 | V23: 71 | W23: 18 | X23: 14
A24: 50 | B24: MEURTHE ET MOSELLE MEUSE | C24: 27 | D24: PONT A MOUSSON | E24: 554381 | F24: LAXOU ARISTIDE BRIAND | G24: 2.3 | H24: 15 | I24: 163 | J24: 185 | K24: 148 | L24: 4 | M24: 7 | N24: 2 | O24: 57 | P24: 99 | Q24: 7 | R24: 13 | S24: 31 | T24: 6 | U24: 6 | V24: 7 | W24: 36 | X24: 7
A25: 50 | B25: MARNE ARDENNES | C25: 11 | D25: REIMS | E25: 551365 | F25: DORMANS | G25: 2.6 | H25: 16 | I25: 56 | J25: 56 | K25: 67 | L25: 6 | M25: 4 | N25: 19 | O25: 145 | P25: 190 | Q25: 30 | R25: 33 | S25: 43 | T25: 40 | U25: 27 | V25: 26 | W25: 160 | X25: 15
A26: 50 | B26: MOSELLE | C26: 42 | D26: MOSELLE EST | E26: 457165 | F26: BITCHE | G26: 2.5 | H26: 17 | I26: 15 | J26: 12 | K26: 37 | L26: 15 | M26: 8 | N26: 64 | O26: 113 | P26: 168 | Q26: 16 | R26: 24 | S26: 20 | T26: 44 | U26: 110 | V26: 123 | W26: 53 | X26: 174
A27: 50 | B27: BAS RHIN | C27: 5006 | D27: STRASBOURG | E27: 4037 | F27: MUNDOLSHEIM | G27: 3.8 | H27: 18 | I27: 54 | J27: 45 | K27: 87 | L27: 19 | M27: 23 | N27: 21 | O27: 166 | P27: 216 | Q27: 18 | R27: 10 | S27: 9 | T27: 18 | U27: 28 | V27: 30 | W27: 133 | X27: 16
A28: 262 | B28: MOSELLE | C28: 45 | D28: METZ | E28: 457453 | F28: MONTIGNY LES METZ | G28: 6.9 | H28: 19 | I28: 10 | J28: 14 | K28: 20 | L28: 44 | M28: 39 | N28: 89 | O28: 69 | P28: 118 | Q28: 10 | R28: 106 | S28: 82 | T28: 156 | U28: 42 | V28: 32 | W28: 70 | X28: 59
A29: 262 | B29: MARNE ARDENNES | C29: 11 | D29: REIMS | E29: 451350 | F29: REIMS CENTRE VILLE | G29: 6.4 | H29: 20 | I29: 184 | J29: 194 | K29: 168 | L29: 7 | M29: 10 | N29: 14 | O29: 73 | P29: 92 | Q29: 34 | R29: 23 | S29: 28 | T29: 23 | U29: 4 | V29: 8 | W29: 38 | X29: 5
A30: 262 | B30: MEURTHE ET MOSELLE MEUSE | C30: 26 | D30: NANCY | E30: 554601 | F30: SAINT MAX | G30: 3.5 | H30: 21 | I30: 22 | J30: 26 | K30: 30 | L30: 108 | M30: 90 | N30: 135 | O30: 16 | P30: 12 | Q30: 96 | R30: 47 | S30: 36 | T30: 98 | U30: 79 | V30: 77 | W30: 82 | X30: 96
A31: 262 | B31: MOSELLE | C31: 42 | D31: MOSELLE EST | E31: 457308 | F31: FORBACH CENTRALE | G31: 10.3 | H31: 22 | I31: 89 | J31: 73 | K31: 130 | L31: 21 | M31: 16 | N31: 33 | O31: 97 | P31: 119 | Q31: 32 | R31: 25 | S31: 25 | T31: 30 | U31: 29 | V31: 51 | W31: 16 | X31: 53
A32: 262 | B32: MARNE ARDENNES | C32: 11 | D32: REIMS | E32: 451336 | F32: TINQUEUX | G32: 5.0 | H32: 23 | I32: 145 | J32: 133 | K32: 170 | L32: 43 | M32: 40 | N32: 74 | O32: 2 | P32: 2 | Q32: 58 | R32: 105 | S32: 121 | T32: 83 | U32: 58 | V32: 23 | W32: 168 | X32: 57
A33: 262 | B33: MARNE ARDENNES | C33: 2 | D33: CHARLEVILLE MEZIERES | E33: 408801 | F33: CHARLEVILLE JEAN JAURES | G33: 8.9 | H33: 24 | I33: 64 | J33: 75 | K33: 34 | L33: 65 | M33: 78 | N33: 59 | O33: 37 | P33: 47 | Q33: 24 | R33: 37 | S33: 26 | T33: 86 | U33: 39 | V33: 20 | W33: 178 | X33: 27
A34: 262 | B34: MOSELLE | C34: 45 | D34: METZ | E34: 557439 | F34: METZ POMPIDOU | G34: 2.6 | H34: 25 | I34: 52 | J34: 51 | K34: 72 | L34: 55 | M34: 98 | N34: 27 | O34: 9 | P34: 9 | Q34: 39 | R34: 123 | S34: 161 | T34: 45 | U34: 71 | V34: 46 | W34: 88 | X34: 89
A35: 262 | B35: MARNE ARDENNES | C35: 6 | D35: CHALONS EN CHAMPAGNE | E35: 551354 | F35: VERTUS | G35: 2.0 | H35: 26 | I35: 1 | J35: 1 | K35: 1 | L35: 150 | M35: 114 | N35: 211 | O35: 33 | P35: 24 | Q35: 144 | R35: 194 | S35: 203 | T35: 153 | U35: 130 | V35: 171 | W35: 83 | X35: 143
A36: 262 | B36: MEURTHE ET MOSELLE MEUSE | C36: 27 | D36: PONT A MOUSSON | E36: 554531 | F36: POMPEY | G36: 3.1 | H36: 27 | I36: 207 | J36: 185 | K36: 209 | L36: 13 | M36: 33 | N36: 15 | O36: 42 | P36: 61 | Q36: 17 | R36: 36 | S36: 57 | T36: 21 | U36: 7 | V36: 13 | W36: 7 | X36: 17
A37: 262 | B37: MARNE ARDENNES | C37: 11 | D37: REIMS | E37: 451370 | F37: EPERNAY | G37: 8.9 | H37: 28 | I37: 69 | J37: 78 | K37: 40 | L37: 35 | M37: 24 | N37: 66 | O37: 52 | P37: 53 | Q37: 65 | R37: 95 | S37: 105 | T37: 93 | U37: 46 | V37: 61 | W37: 73 | X37: 33
A38: 262 | B38: AUBE HAUTE MARNE | C38: 21 | D38: CHAUMONT | E38: 510590 | F38: CHAUMONT REPUBLIQUE | G38: 2.9 | H38: 29 | I38: 44 | J38: 59 | K38: 21 | L38: 131 | M38: 160 | N38: 78 | O38: 40 | P38: 44 | Q38: 51 | R38: 30 | S38: 24 | T38: 67 | U38: 61 | V38: 115 | W38: 27 | X38: 63
A39: 262 | B39: MOSELLE | C39: 45 | D39: METZ | E39: 457446 | F39: METZ SAINT LOUIS | G39: 5.8 | H39: 30 | I39: 102 | J39: 109 | K39: 79 | L39: 28 | M39: 27 | N39: 44 | O39: 72 | P39: 126 | Q39: 11 | R39: 68 | S39: 62 | T39: 89 | U39: 26 | V39: 14 | W39: 106 | X39: 26
A40: 262 | B40: VOSGES | C40: 57 | D40: EPINAL | E40: 588336 | F40: GOLBEY | G40: 2.8 | H40: 31 | I40: 39 | J40: 38 | K40: 36 | L40: 115 | M40: 119 | N40: 113 | O40: 39 | P40: 32 | Q40: 107 | R40: 53 | S40: 44 | T40: 90 | U40: 74 | V40: 113 | W40: 78 | X40: 48
A41: 262 | B41: MOSELLE | C41: 42 | D41: MOSELLE EST | E41: 557250 | F41: CREUTZWALD | G41: 2.5 | H41: 32 | I41: 20 | J41: 17 | K41: 42 | L41: 136 | M41: 157 | N41: 95 | O41: 77 | P41: 91 | Q41: 47 | R41: 42 | S41: 22 | T41: 115 | U41: 73 | V41: 84 | W41: 21 | X41: 144
A42: 262 | B42: MARNE ARDENNES | C42: 2 | D42: CHARLEVILLE MEZIERES | E42: 508839 | F42: GIVET | G42: 3.3 | H42: 33 | I42: 73 | J42: 72 | K42: 99 | L42: 45 | M42: 58 | N42: 43 | O42: 154 | P42: 188 | Q42: 42 | R42: 11 | S42: 6 | T42: 52 | U42: 47 | V42: 63 | W42: 37 | X42: 55
A43: 262 | B43: MEURTHE ET MOSELLE MEUSE | C43: 26 | D43: NANCY | E43: 554356 | F43: JARVILLE LA MALGRANGE | G43: 4.2 | H43: 34 | I43: 33 | J43: 41 | K43: 26 | L43: 30 | M43: 14 | N43: 86 | O43: 189 | P43: 206 | Q43: 60 | R43: 71 | S43: 72 | T43: 75 | U43: 57 | V43: 53 | W43: 128 | X43: 44
A44: 262 | B44: MARNE ARDENNES | C44: 11 | D44: REIMS | E44: 451361 | F44: PIERRY LECLERC | G44: 1.8 | H44: 35 | I44: 57 | J44: 58 | K44: 65 | L44: 61 | M44: 57 | N44: 91 | O44: 15 | P44: 13 | Q44: 75 | R44: 97 | S44: 80 | T44: 145 | U44: 92 | V44: 55 | W44: 191 | X44: 79
A45: 262 | B45: MARNE ARDENNES | C45: 11 | D45: REIMS | E45: 451301 | F45: REIMS HOTEL DE VILLE | G45: 7.0 | H45: 36 | I45: 96 | J45: 96 | K45: 97 | L45: 53 | M45: 62 | N45: 56 | O45: 101 | P45: 122 | Q45: 35 | R45: 16 | S45: 13 | T45: 26 | U45: 40 | V45: 24 | W45: 150 | X45: 37
A46: 262 | B46: MARNE ARDENNES | C46: 2 | D46: CHARLEVILLE MEZIERES | E46: 508833 | F46: VILLERS SEMEUSE CORA | G46: 3.1 | H46: 37 | I46: 192 | J46: 208 | K46: 169 | L46: 82 | M46: 129 | N46: 41 | O46: 34 | P46: 48 | Q46: 21 | R46: 4 | S46: 4 | T46: 12 | U46: 17 | V46: 31 | W46: 15 | X46: 22
A47: 262 | B47: MARNE ARDENNES | C47: 11 | D47: REIMS | E47: 551314 | F47: FISMES | G47: 2.6 | H47: 38 | I47: 18 | J47: 29 | K47: 9 | L47: 27 | M47: 28 | N47: 38 | O47: 219 | P47: 232 | Q47: 27 | R47: 129 | S47: 162 | T47: 57 | U47: 54 | V47: 38 | W47: 189 | X47: 32
A48: 262 | B48: MARNE ARDENNES | C48: 11 | D48: REIMS | E48: 551367 | F48: AY CHAMPAGNE | G48: 2.7 | H48: 39 | I48: 43 | J48: 36 | K48: 73 | L48: 101 | M48: 131 | N48: 62 | O48: 91 | P48: 76 | Q48: 162 | R48: 50 | S48: 53 | T48: 47 | U48: 50 | V48: 27 | W48: 204 | X48: 28
A49: 262 | B49: BAS RHIN | C49: 5101 | D49: SELESTAT | E49: 4113 | F49: BARR | G49: 2.9 | H49: 40 | I49: 27 | J49: 45 | K49: 4 | L49: 32 | M49: 19 | N49: 76 | O49: 107 | P49: 123 | Q49: 46 | R49: 136 | S49: 110 | T49: 184 | U49: 125 | V49: 45 | W49: 240 | X49: 70
A50: 262 | B50: MOSELLE | C50: 45 | D50: METZ | E50: 457574 | F50: ROMBAS | G50: 2.5 | H50: 41 | I50: 48 | J50: 37 | K50: 96 | L50: 88 | M50: 83 | N50: 95 | O50: 92 | P50: 104 | Q50: 44 | R50: 19 | S50: 12 | T50: 65 | U50: 132 | V50: 124 | W50: 98 | X50: 160
A51: 262 | B51: MOSELLE | C51: 42 | D51: MOSELLE EST | E51: 457583 | F51: SAINT AVOLD | G51: 7.0 | H51: 42 | I51: 60 | J51: 71 | K51: 47 | L51: 42 | M51: 38 | N51: 61 | O51: 112 | P51: 133 | Q51: 41 | R51: 57 | S51: 55 | T51: 74 | U51: 85 | V51: 74 | W51: 118 | X51: 88
A52: 262 | B52: MEURTHE ET MOSELLE MEUSE | C52: 31 | D52: VERDUN | E52: 554413 | F52: LONGWY BAS | G52: 3.5 | H52: 43 | I52: 12 | J52: 9 | K52: 53 | L52: 76 | M52: 69 | N52: 106 | O52: 157 | P52: 155 | Q52: 152 | R52: 113 | S52: 90 | T52: 160 | U52: 83 | V52: 68 | W52: 60 | X52: 146
A53: 262 | B53: MOSELLE | C53: 44 | D53: MOSELLE NORD | E53: 557352 | F53: HETTANGE GRANDE | G53: 3.1 | H53: 44 | I53: 143 | J53: 112 | K53: 190 | L53: 37 | M53: 59 | N53: 24 | O53: 116 | P53: 130 | Q53: 54 | R53: 38 | S53: 50 | T53: 37 | U53: 18 | V53: 49 | W53: 8 | X53: 23
A54: 262 | B54: MEURTHE ET MOSELLE MEUSE | C54: 31 | D54: VERDUN | E54: 555406 | F54: LIGNY EN BARROIS | G54: 2.5 | H54: 45 | I54: 16 | J54: 11 | K54: 61 | L54: 111 | M54: 113 | N54: 110 | O54: 10 | P54: 6 | Q54: 119 | R54: 215 | S54: 208 | T54: 202 | U54: 184 | V54: 219 | W54: 126 | X54: 163
A55: 262 | B55: MARNE ARDENNES | C55: 11 | D55: REIMS | E55: 551369 | F55: DAMERY | G55: 1.6 | H55: 46 | I55: 80 | J55: 56 | K55: 153 | L55: 20 | M55: 35 | N55: 18 | O55: 236 | P55: 237 | Q55: 167 | R55: 40 | S55: 64 | T55: 24 | U55: 13 | V55: 15 | W55: 69 | X55: 8
A56: 262 | B56: MEURTHE ET MOSELLE MEUSE | C56: 31 | D56: VERDUN | E56: 455678 | F56: VERDUN CENTRALE | G56: 10.1 | H56: 47 | I56: 21 | J56: 16 | K56: 58 | L56: 67 | M56: 73 | N56: 70 | O56: 199 | P56: 213 | Q56: 86 | R56: 137 | S56: 144 | T56: 119 | U56: 36 | V56: 41 | W56: 72 | X56: 38
A57: 262 | B57: MEURTHE ET MOSELLE MEUSE | C57: 27 | D57: PONT A MOUSSON | E57: 554506 | F57: CHALIGNY NEUVES MAISONS | G57: 3.5 | H57: 48 | I57: 159 | J57: 150 | K57: 177 | L57: 22 | M57: 30 | N57: 25 | O57: 187 | P57: 210 | Q57: 57 | R57: 15 | S57: 16 | T57: 19 | U57: 21 | V57: 25 | W57: 32 | X57: 19
A58: 262 | B58: BAS RHIN | C58: 5006 | D58: STRASBOURG | E58: 4038 | F58: OBERHAUSBERGEN | G58: 3.3 | H58: 49 | I58: 61 | J58: 64 | K58: 64 | L58: 70 | M58: 118 | N58: 32 | O58: 12 | P58: 15 | Q58: 31 | R58: 205 | S58: 230 | T58: 69 | U58: 77 | V58: 52 | W58: 135 | X58: 82
A59: 262 | B59: MEURTHE ET MOSELLE MEUSE | C59: 27 | D59: PONT A MOUSSON | E59: 554516 | F59: PAGNY SUR MOSELLE | G59: 2.7 | H59: 50 | I59: 109 | J59: 98 | K59: 118 | L59: 73 | M59: 61 | N59: 115 | O59: 54 | P59: 45 | Q59: 101 | R59: 27 | S59: 38 | T59: 31 | U59: 62 | V59: 47 | W59: 85 | X59: 70
A60: 262 | B60: MARNE ARDENNES | C60: 11 | D60: REIMS | E60: 551310 | F60: REIMS CHATILLONS | G60: 3.9 | H60: 51 | I60: 124 | J60: 102 | K60: 158 | L60: 29 | M60: 32 | N60: 37 | O60: 109 | P60: 100 | Q60: 99 | R60: 64 | S60: 86 | T60: 35 | U60: 32 | V60: 36 | W60: 143 | X60: 18
A61: 262 | B61: MOSELLE | C61: 45 | D61: METZ | E61: 557432 | F61: MAIZIERES LES METZ | G61: 2.6 | H61: 52 | I61: 193 | J61: 194 | K61: 175 | L61: 26 | M61: 67 | N61: 11 | O61: 103 | P61: 144 | Q61: 19 | R61: 55 | S61: 67 | T61: 43 | U61: 9 | V61: 4 | W61: 116 | X61: 10
A62: 262 | B62: MARNE ARDENNES | C62: 6 | D62: CHALONS EN CHAMPAGNE | E62: 551110 | F62: CHALONS ROOSEVELT | G62: 4.3 | H62: 53 | I62: 31 | J62: 26 | K62: 78 | L62: 114 | M62: 99 | N62: 138 | O62: 136 | P62: 154 | Q62: 74 | R62: 26 | S62: 15 | T62: 108 | U62: 113 | V62: 75 | W62: 164 | X62: 109
A63: 262 | B63: MOSELLE | C63: 44 | D63: MOSELLE NORD | E63: 457350 | F63: HAYANGE | G63: 6.2 | H63: 54 | I63: 115 | J63: 101 | K63: 145 | L63: 49 | M63: 46 | N63: 73 | O63: 119 | P63: 167 | Q63: 23 | R63: 20 | S63: 17 | T63: 32 | U63: 52 | V63: 39 | W63: 115 | X63: 58
A64: 262 | B64: MEURTHE ET MOSELLE MEUSE | C64: 26 | D64: NANCY | E64: 554636 | F64: TOMBLAINE | G64: 2.5 | H64: 55 | I64: 14 | J64: 24 | K64: 6 | L64: 160 | M64: 169 | N64: 131 | O64: 50 | P64: 49 | Q64: 66 | R64: 127 | S64: 135 | T64: 110 | U64: 123 | V64: 137 | W64: 124 | X64: 101
A65: 262 | B65: VOSGES | C65: 55 | D65: SAINT DIE | E65: 488326 | F65: GERARDMER | G65: 3.8 | H65: 56 | I65: 84 | J65: 75 | K65: 117 | L65: 94 | M65: 93 | N65: 98 | O65: 28 | P65: 22 | Q65: 141 | R65: 99 | S65: 108 | T65: 106 | U65: 68 | V65: 65 | W65: 57 | X65: 80
A66: 262 | B66: MEURTHE ET MOSELLE MEUSE | C66: 27 | D66: PONT A MOUSSON | E66: 554686 | F66: VEZELISE | G66: 1.9 | H66: 57 | I66: 3 | J66: 3 | K66: 13 | L66: 132 | M66: 132 | N66: 127 | O66: 78 | P66: 56 | Q66: 194 | R66: 146 | S66: 134 | T66: 170 | U66: 229 | V66: 217 | W66: 167 | X66: 234
A67: 262 | B67: MOSELLE | C67: 44 | D67: MOSELLE NORD | E67: 557303 | F67: FAMECK | G67: 2.8 | H67: 58 | I67: 49 | J67: 52 | K67: 39 | L67: 79 | M67: 168 | N67: 20 | O67: 56 | P67: 55 | Q67: 61 | R67: 220 | S67: 227 | T67: 159 | U67: 38 | V67: 56 | W67: 28 | X67: 51
A68: 262 | B68: MOSELLE | C68: 42 | D68: MOSELLE EST | E68: 457617 | F68: SARREGUEMINES | G68: 6.5 | H68: 59 | I68: 146 | J68: 155 | K68: 127 | L68: 48 | M68: 53 | N68: 54 | O68: 51 | P68: 78 | Q68: 22 | R68: 60 | S68: 65 | T68: 59 | U68: 34 | V68: 29 | W68: 86 | X68: 34
A69: 262 | B69: MOSELLE | C69: 44 | D69: MOSELLE NORD | E69: 457632 | F69: THIONVILLE CENTRALE | G69: 10.6 | H69: 60 | I69: 132 | J69: 138 | K69: 111 | L69: 31 | M69: 31 | N69: 52 | O69: 170 | P69: 195 | Q69: 43 | R69: 28 | S69: 37 | T69: 41 | U69: 48 | V69: 33 | W69: 99 | X69: 50
A70: 262 | B70: MOSELLE | C70: 45 | D70: METZ | E70: 557447 | F70: METZ SAINT MAXIMIN | G70: 2.3 | H70: 61 | I70: 154 | J70: 170 | K70: 141 | L70: 72 | M70: 127 | N70: 30 | O70: 46 | P70: 88 | Q70: 12 | R70: 5 | S70: 5 | T70: 14 | U70: 98 | V70: 118 | W70: 34 | X70: 191
A71: 262 | B71: MEURTHE ET MOSELLE MEUSE | C71: 26 | D71: NANCY | E71: 454481 | F71: NANCY PLACE DOMBASLE | G71: 7.8 | H71: 62 | I71: 140 | J71: 138 | K71: 154 | L71: 62 | M71: 101 | N71: 34 | O71: 67 | P71: 120 | Q71: 8 | R71: 92 | S71: 126 | T71: 53 | U71: 19 | V71: 12 | W71: 102 | X71: 20
A72: 262 | B72: AUBE HAUTE MARNE | C72: 21 | D72: CHAUMONT | E72: 410541 | F72: LANGRES | G72: 8.2 | H72: 63 | I72: 67 | J72: 66 | K72: 74 | L72: 89 | M72: 56 | N72: 163 | O72: 90 | P72: 82 | Q72: 130 | R72: 52 | S72: 29 | T72: 126 | U72: 107 | V72: 180 | W72: 48 | X72: 136
A73: 262 | B73: MOSELLE | C73: 44 | D73: MOSELLE NORD | E73: 457348 | F73: HAGONDANGE | G73: 8.1 | H73: 64 | I73: 117 | J73: 120 | K73: 104 | L73: 51 | M73: 50 | N73: 84 | O73: 108 | P73: 103 | Q73: 87 | R73: 39 | S73: 30 | T73: 88 | U73: 55 | V73: 43 | W73: 109 | X73: 56
A74: 264 | B74: BAS RHIN | C74: 5006 | D74: STRASBOURG | E74: 4054 | F74: STRASBOURG MONTAGNE VERTE | G74: 2.7 | H74: 65 | I74: 42 | J74: 19 | K74: 139 | L74: 98 | M74: 158 | N74: 36 | O74: 68 | P74: 68 | Q74: 89 | R74: 45 | S74: 61 | T74: 29 | U74: 220 | V74: 241 | W74: 196 | X74: 142
A75: 264 | B75: MEURTHE ET MOSELLE MEUSE | C75: 26 | D75: NANCY | E75: 554116 | F75: BACCARAT | G75: 2.8 | H75: 66 | I75: 4 | J75: 4 | K75: 18 | L75: 145 | M75: 115 | N75: 201 | O75: 134 | P75: 97 | Q75: 225 | R75: 141 | S75: 137 | T75: 144 | U75: 196 | V75: 146 | W75: 174 | X75: 211
A76: 264 | B76: MOSELLE | C76: 42 | D76: MOSELLE EST | E76: 557668 | F76: VALMONT | G76: 2.8 | H76: 67 | I76: 36 | J76: 23 | K76: 105 | L76: 182 | M76: 185 | N76: 156 | O76: 21 | P76: 14 | Q76: 114 | R76: 102 | S76: 83 | T76: 140 | U76: 160 | V76: 186 | W76: 71 | X76: 201
A77: 264 | B77: MEURTHE ET MOSELLE MEUSE | C77: 31 | D77: VERDUN | E77: 555679 | F77: VERDUN MAZEL | G77: 3.6 | H77: 68 | I77: 19 | J77: 26 | K77: 15 | L77: 117 | M77: 104 | N77: 133 | O77: 100 | P77: 79 | Q77: 181 | R77: 128 | S77: 101 | T77: 172 | U77: 176 | V77: 154 | W77: 192 | X77: 121
A78: 264 | B78: MARNE ARDENNES | C78: 6 | D78: CHALONS EN CHAMPAGNE | E78: 451101 | F78: CHALONS VIVIERS | G78: 9.4 | H78: 69 | I78: 32 | J78: 43 | K78: 16 | L78: 130 | M78: 116 | N78: 153 | O78: 133 | P78: 152 | Q78: 71 | R78: 87 | S78: 78 | T78: 107 | U78: 93 | V78: 89 | W78: 123 | X78: 85
A79: 264 | B79: MARNE ARDENNES | C79: 11 | D79: REIMS | E79: 551306 | F79: REIMS SAINT MARCEAUX | G79: 3.9 | H79: 70 | I79: 58 | J79: 43 | K79: 109 | L79: 24 | M79: 13 | N79: 58 | O79: 235 | P79: 235 | Q79: 62 | R79: 86 | S79: 94 | T79: 76 | U79: 65 | V79: 62 | W79: 132 | X79: 41
A80: 264 | B80: MARNE ARDENNES | C80: 11 | D80: REIMS | E80: 551341 | F80: REIMS JEAN JAURES | G80: 3.1 | H80: 71 | I80: 176 | J80: 158 | K80: 184 | L80: 39 | M80: 68 | N80: 22 | O80: 60 | P80: 64 | Q80: 67 | R80: 84 | S80: 122 | T80: 34 | U80: 25 | V80: 22 | W80: 195 | X80: 11
A81: 264 | B81: BAS RHIN | C81: 5006 | D81: STRASBOURG | E81: 4043 | F81: STRASBOURG HALLES | G81: 7.8 | H81: 72 | I81: 152 | J81: 208 | K81: 98 | L81: 41 | M81: 72 | N81: 23 | O81: 98 | P81: 131 | Q81: 20 | R81: 6 | S81: 10 | T81: 8 | U81: 137 | V81: 79 | W81: 235 | X81: 65
A82: 264 | B82: MOSELLE | C82: 44 | D82: MOSELLE NORD | E82: 457306 | F82: FLORANGE | G82: 4.6 | H82: 73 | I82: 229 | J82: 206 | K82: 221 | L82: 36 | M82: 42 | N82: 42 | O82: 80 | P82: 107 | Q82: 28 | R82: 73 | S82: 93 | T82: 48 | U82: 10 | V82: 10 | W82: 22 | X82: 21
A83: 264 | B83: MEURTHE ET MOSELLE MEUSE | C83: 31 | D83: VERDUN | E83: 454414 | F83: LONGWY HAUT | G83: 3.3 | H83: 74 | I83: 112 | J83: 118 | K83: 84 | L83: 87 | M83: 103 | N83: 67 | O83: 76 | P83: 71 | Q83: 116 | R83: 32 | S83: 42 | T83: 36 | U83: 87 | V83: 91 | W83: 77 | X83: 99
A84: 264 | B84: BAS RHIN | C84: 5060 | D84: HAGUENAU | E84: 4071 | F84: WISSEMBOURG | G84: 8.0 | H84: 75 | I84: 38 | J84: 42 | K84: 27 | L84: 91 | M84: 86 | N84: 102 | O84: 61 | P84: 52 | Q84: 106 | R84: 120 | S84: 128 | T84: 111 | U84: 210 | V84: 222 | W84: 165 | X84: 194
A85: 264 | B85: MARNE ARDENNES | C85: 6 | D85: CHALONS EN CHAMPAGNE | E85: 551103 | F85: FAGNIERES LECLERC | G85: 2.8 | H85: 76 | I85: 99 | J85: 128 | K85: 28 | L85: 123 | M85: 123 | N85: 119 | O85: 124 | P85: 149 | Q85: 49 | R85: 17 | S85: 11 | T85: 39 | U85: 80 | V85: 106 | W85: 52 | X85: 98
A86: 264 | B86: MOSELLE | C86: 42 | D86: MOSELLE EST | E86: 557305 | F86: FAULQUEMONT | G86: 4.1 | H86: 77 | I86: 227 | J86: 170 | K86: 229 | L86: 17 | M86: 37 | N86: 16 | O86: 185 | P86: 226 | Q86: 25 | R86: 35 | S86: 56 | T86: 22 | U86: 12 | V86: 11 | W86: 101 | X86: 6
A87: 264 | B87: BAS RHIN | C87: 5060 | D87: HAGUENAU | E87: 4092 | F87: HOCHFELDEN | G87: 1.9 | H87: 78 | I87: 85 | J87: 98 | K87: 49 | L87: 127 | M87: 153 | N87: 82 | O87: 36 | P87: 29 | Q87: 105 | R87: 77 | S87: 98 | T87: 58 | U87: 111 | V87: 66 | W87: 152 | X87: 120
A88: 264 | B88: BAS RHIN | C88: 5006 | D88: STRASBOURG | E88: 4024 | F88: STRASBOURG AUSTERLITZ | G88: 1.1 | H88: 79 | I88: 238 | J88: 194 | K88: 239 | L88: 64 | M88: 174 | N88: 10 | O88: 7 | P88: 7 | Q88: 9 | R88: 49 | S88: 191 | T88: 4 | U88: 37 | V88: 16 | W88: 147 | X88: 45
A89: 264 | B89: VOSGES | C89: 57 | D89: EPINAL | E89: 588396 | F89: LE VAL D AJOL | G89: 2.4 | H89: 80 | I89: 5 | J89: 5 | K89: 10 | L89: 167 | M89: 149 | N89: 191 | O89: 105 | P89: 83 | Q89: 177 | R89: 169 | S89: 140 | T89: 213 | U89: 224 | V89: 178 | W89: 231 | X89: 161
A90: 264 | B90: VOSGES | C90: 57 | D90: EPINAL | E90: 488561 | F90: REMIREMONT | G90: 7.2 | H90: 81 | I90: 13 | J90: 13 | K90: 33 | L90: 102 | M90: 66 | N90: 180 | O90: 149 | P90: 137 | Q90: 171 | R90: 135 | S90: 92 | T90: 220 | U90: 185 | V90: 100 | W90: 227 | X90: 122
A91: 264 | B91: MARNE ARDENNES | C91: 6 | D91: CHALONS EN CHAMPAGNE | E91: 451381 | F91: SEZANNE | G91: 4.7 | H91: 82 | I91: 81 | J91: 77 | K91: 102 | L91: 69 | M91: 65 | N91: 94 | O91: 27 | P91: 19 | Q91: 121 | R91: 213 | S91: 215 | T91: 166 | U91: 88 | V91: 73 | W91: 159 | X91: 68
A92: 264 | B92: BAS RHIN | C92: 5101 | D92: SELESTAT | E92: 4104 | F92: ERSTEIN | G92: 4.2 | H92: 83 | I92: 208 | J92: 191 | K92: 207 | L92: 12 | M92: 6 | N92: 75 | O92: 48 | P92: 43 | Q92: 102 | R92: 59 | S92: 33 | T92: 154 | U92: 78 | V92: 50 | W92: 157 | X92: 75
A93: 264 | B93: BAS RHIN | C93: 5006 | D93: STRASBOURG | E93: 4047 | F93: STRASBOURG CRONENBOURG | G93: 4.4 | H93: 84 | I93: 113 | J93: 148 | K93: 35 | L93: 34 | M93: 22 | N93: 79 | O93: 53 | P93: 57 | Q93: 50 | R93: 119 | S93: 124 | T93: 113 | U93: 141 | V93: 87 | W93: 188 | X93: 119
A94: 264 | B94: MOSELLE | C94: 42 | D94: MOSELLE EST | E94: 557523 | F94: PHALSBOURG | G94: 2.5 | H94: 85 | I94: 108 | J94: 110 | K94: 93 | L94: 142 | M94: 152 | N94: 117 | O94: 35 | P94: 33 | Q94: 78 | R94: 43 | S94: 18 | T94: 138 | U94: 103 | V94: 133 | W94: 84 | X94: 103
A95: 264 | B95: MARNE ARDENNES | C95: 2 | D95: CHARLEVILLE MEZIERES | E95: 408840 | F95: RETHEL | G95: 4.3 | H95: 86 | I95: 133 | J95: 128 | K95: 123 | L95: 57 | M95: 51 | N95: 92 | O95: 81 | P95: 74 | Q95: 123 | R95: 74 | S95: 51 | T95: 131 | U95: 69 | V95: 83 | W95: 67 | X95: 52
A96: 30 | B96: MOSELLE | C96: 44 | D96: MOSELLE NORD | E96: 457158 | F96: YUTZ | G96: 4.7 | H96: 87 | I96: 155 | J96: 185 | K96: 128 | L96: 59 | M96: 52 | N96: 99 | O96: 102 | P96: 94 | Q96: 85 | R96: 31 | S96: 32 | T96: 56 | U96: 41 | V96: 54 | W96: 42 | X96: 54
A97: 30 | B97: VOSGES | C97: 55 | D97: SAINT DIE | E97: 588551 | F97: RAMBERVILLERS | G97: 2.6 | H97: 88 | I97: 24 | J97: 22 | K97: 56 | L97: 164 | M97: 199 | N97: 81 | O97: 128 | P97: 105 | Q97: 168 | R97: 214 | S97: 213 | T97: 182 | U97: 44 | V97: 67 | W97: 63 | X97: 29
A98: 30 | B98: MARNE ARDENNES | C98: 2 | D98: CHARLEVILLE MEZIERES | E98: 408822 | F98: CHARLEVILLE MEZIERES | G98: 5.1 | H98: 89 | I98: 172 | J98: 151 | K98: 195 | L98: 126 | M98: 195 | N98: 31 | O98: 11 | P98: 34 | Q98: 4 | R98: 65 | S98: 99 | T98: 27 | U98: 49 | V98: 40 | W98: 193 | X98: 25
A99: 30 | B99: VOSGES | C99: 55 | D99: SAINT DIE | E99: 488246 | F99: CORNIMONT LA BRESSE | G99: 2.7 | H99: 90 | I99: 17 | J99: 20 | K99: 22 | L99: 99 | M99: 100 | N99: 100 | O99: 211 | P99: 193 | Q99: 222 | R99: 107 | S99: 81 | T99: 167 | U99: 150 | V99: 215 | W99: 61 | X99: 175
A100: 30 | B100: AUBE HAUTE MARNE | C100: 21 | D100: CHAUMONT | E100: 451154 | F100: JOINVILLE | G100: 1.8 | H100: 91 | I100: 75 | J100: 87 | K100: 50 | L100: 52 | M100: 77 | N100: 39 | O100: 232 | P100: 233 | Q100: 77 | R100: 21 | S100: 21 | T100: 28 | U100: 96 | V100: 150 | W100: 108 | X100: 62
A101: 30 | B101: BAS RHIN | C101: 5006 | D101: STRASBOURG | E101: 4010 | F101: STRASBOURG MEINAU | G101: 3.0 | H101: 92 | I101: 95 | J101: 78 | K101: 142 | L101: 78 | M101: 120 | N101: 46 | O101: 118 | P101: 121 | Q101: 82 | R101: 29 | S101: 63 | T101: 13 | U101: 155 | V101: 185 | W101: 75 | X101: 188
A102: 30 | B102: AUBE HAUTE MARNE | C102: 14 | D102: TROYES | E102: 510570 | F102: NOGENT SUR SEINE | G102: 4.2 | H102: 93 | I102: 26 | J102: 24 | K102: 52 | L102: 113 | M102: 111 | N102: 118 | O102: 152 | P102: 162 | Q102: 104 | R102: 148 | S102: 127 | T102: 188 | U102: 146 | V102: 94 | W102: 173 | X102: 134
A103: 30 | B103: VOSGES | C103: 57 | D103: EPINAL | E103: 588631 | F103: THAON LES VOSGES | G103: 4.5 | H103: 94 | I103: 97 | J103: 81 | K103: 131 | L103: 84 | M103: 60 | N103: 141 | O103: 111 | P103: 95 | Q103: 139 | R103: 91 | S103: 117 | T103: 63 | U103: 90 | V103: 162 | W103: 45 | X103: 106
A104: 30 | B104: MARNE ARDENNES | C104: 6 | D104: CHALONS EN CHAMPAGNE | E104: 551128 | F104: SAINTE MENEHOULD | G104: 3.0 | H104: 95 | I104: 55 | J104: 54 | K104: 69 | L104: 95 | M104: 45 | N104: 225 | O104: 172 | P104: 150 | Q104: 214 | R104: 62 | S104: 45 | T104: 121 | U104: 166 | V104: 170 | W104: 81 | X104: 214
A105: 30 | B105: VOSGES | C105: 55 | D105: SAINT DIE | E105: 588666 | F105: VAGNEY | G105: 3.4 | H105: 96 | I105: 28 | J105: 32 | K105: 46 | L105: 170 | M105: 133 | N105: 224 | O105: 47 | P105: 31 | Q105: 195 | R105: 190 | S105: 147 | T105: 237 | U105: 173 | V105: 190 | W105: 120 | X105: 169
A106: 30 | B106: MOSELLE | C106: 45 | D106: METZ | E106: 557434 | F106: MARLY | G106: 3.1 | H106: 97 | I106: 35 | J106: 31 | K106: 77 | L106: 122 | M106: 87 | N106: 174 | O106: 135 | P106: 108 | Q106: 188 | R106: 180 | S106: 152 | T106: 215 | U106: 106 | V106: 76 | W106: 170 | X106: 91
A107: 30 | B107: VOSGES | C107: 57 | D107: EPINAL | E107: 488281 | F107: ELOYES | G107: 3.4 | H107: 98 | I107: 46 | J107: 35 | K107: 90 | L107: 161 | M107: 135 | N107: 205 | O107: 38 | P107: 26 | Q107: 145 | R107: 218 | S107: 201 | T107: 222 | U107: 112 | V107: 156 | W107: 49 | X107: 162
A108: 30 | B108: VOSGES | C108: 57 | D108: EPINAL | E108: 588716 | F108: XERTIGNY | G108: 2.8 | H108: 99 | I108: 65 | J108: 81 | K108: 25 | L108: 137 | M108: 96 | N108: 203 | O108: 63 | P108: 50 | Q108: 114 | R108: 110 | S108: 59 | T108: 221 | U108: 175 | V108: 182 | W108: 141 | X108: 157
A109: 30 | B109: MOSELLE | C109: 44 | D109: MOSELLE NORD | E109: 557347 | F109: GUENANGE | G109: 4.6 | H109: 100 | I109: 204 | J109: 194 | K109: 197 | L109: 40 | M109: 25 | N109: 77 | O109: 143 | P109: 170 | Q109: 68 | R109: 44 | S109: 34 | T109: 94 | U109: 31 | V109: 21 | W109: 74 | X109: 39
A110: 30 | B110: MOSELLE | C110: 45 | D110: METZ | E110: 557444 | F110: SAINT JULIEN LES METZ | G110: 3.7 | H110: 101 | I110: 226 | J110: 170 | K110: 226 | L110: 75 | M110: 109 | N110: 47 | O110: 14 | P110: 18 | Q110: 26 | R110: 67 | S110: 125 | T110: 17 | U110: 51 | V110: 114 | W110: 11 | X110: 86
A111: 30 | B111: MARNE ARDENNES | C111: 2 | D111: CHARLEVILLE MEZIERES | E111: 508819 | F111: MOUZON | G111: 1.9 | H111: 102 | I111: 131 | J111: 134 | K111: 114 | L111: 163 | M111: 192 | N111: 93 | O111: 64 | P111: 54 | Q111: 112 | R111: 75 | S111: 75 | T111: 85 | U111: 43 | V111: 92 | W111: 29 | X111: 36
A112: 30 | B112: MOSELLE | C112: 45 | D112: METZ | E112: 557105 | F112: ARS SUR MOSELLE | G112: 3.0 | H112: 103 | I112: 101 | J112: 52 | K112: 194 | L112: 120 | M112: 161 | N112: 57 | O112: 131 | P112: 145 | Q112: 73 | R112: 154 | S112: 197 | T112: 64 | U112: 30 | V112: 34 | W112: 47 | X112: 46
A113: 30 | B113: BAS RHIN | C113: 5006 | D113: STRASBOURG | E113: 4006 | F113: STRASBOURG NEUDORF | G113: 8.0 | H113: 104 | I113: 25 | J113: 38 | K113: 8 | L113: 180 | M113: 189 | N113: 139 | O113: 110 | P113: 90 | Q113: 175 | R113: 93 | S113: 100 | T113: 102 | U113: 206 | V113: 148 | W113: 232 | X113: 135
A114: 30 | B114: VOSGES | C114: 55 | D114: SAINT DIE | E114: 588186 | F114: BRUYERES | G114: 3.5 | H114: 105 | I114: 30 | J114: 30 | K114: 57 | L114: 134 | M114: 136 | N114: 122 | O114: 186 | P114: 191 | Q114: 113 | R114: 158 | S114: 200 | T114: 68 | U114: 94 | V114: 126 | W114: 130 | X114: 60
A115: 30 | B115: MEURTHE ET MOSELLE MEUSE | C115: 31 | D115: VERDUN | E115: 554700 | F115: VILLERUPT | G115: 2.8 | H115: 106 | I115: 59 | J115: 54 | K115: 81 | L115: 85 | M115: 74 | N115: 108 | O115: 117 | P115: 125 | Q115: 76 | R115: 121 | S115: 106 | T115: 141 | U115: 189 | V115: 201 | W115: 79 | X115: 232
A116: 30 | B116: MEURTHE ET MOSELLE MEUSE | C116: 27 | D116: PONT A MOUSSON | E116: 554416 | F116: LUDRES | G116: 3.6 | H116: 107 | I116: 76 | J116: 81 | K116: 59 | L116: 140 | M116: 125 | N116: 165 | O116: 79 | P116: 67 | Q116: 150 | R116: 116 | S116: 69 | T116: 210 | U116: 120 | V116: 90 | W116: 146 | X116: 117
A117: 30 | B117: VOSGES | C117: 57 | D117: EPINAL | E117: 488286 | F117: EPINAL ARISTIDE BRIAND | G117: 8.2 | H117: 108 | I117: 165 | J117: 170 | K117: 157 | L117: 38 | M117: 47 | N117: 35 | O117: 62 | P117: 72 | Q117: 45 | R117: 85 | S117: 107 | T117: 55 | U117: 126 | V117: 102 | W117: 205 | X117: 66
A118: 30 | B118: BAS RHIN | C118: 5060 | D118: HAGUENAU | E118: 4041 | F118: HOERDT | G118: 1.7 | H118: 109 | I118: 70 | J118: 67 | K118: 82 | L118: 155 | M118: 141 | N118: 182 | O118: 20 | P118: 11 | Q118: 182 | R118: 151 | S118: 118 | T118: 212 | U118: 218 | V118: 108 | W118: 224 | X118: 220
A119: 30 | B119: MEURTHE ET MOSELLE MEUSE | C119: 27 | D119: PONT A MOUSSON | E119: 554357 | F119: JOEUF | G119: 3.1 | H119: 110 | I119: 71 | J119: 61 | K119: 106 | L119: 121 | M119: 145 | N119: 80 | O119: 148 | P119: 148 | Q119: 153 | R119: 161 | S119: 184 | T119: 97 | U119: 70 | V119: 103 | W119: 13 | X119: 123
A120: 30 | B120: VOSGES | C120: 55 | D120: SAINT DIE | E120: 588386 | F120: LE THILLOT | G120: 2.7 | H120: 111 | I120: 9 | J120: 10 | K120: 24 | L120: 146 | M120: 80 | N120: 236 | O120: 180 | P120: 153 | Q120: 233 | R120: 192 | S120: 167 | T120: 218 | U120: 198 | V120: 202 | W120: 172 | X120: 181
A121: 30 | B121: BAS RHIN | C121: 5060 | D121: HAGUENAU | E121: 4057 | F121: BISCHWILLER | G121: 7.0 | H121: 112 | I121: 79 | J121: 87 | K121: 62 | L121: 58 | M121: 29 | N121: 185 | O121: 147 | P121: 127 | Q121: 201 | R121: 114 | S121: 96 | T121: 143 | U121: 170 | V121: 221 | W121: 54 | X121: 218
A122: 30 | B122: MEURTHE ET MOSELLE MEUSE | C122: 27 | D122: PONT A MOUSSON | E122: 554376 | F122: LAXOU BOUFFLERS | G122: 2.7 | H122: 113 | I122: 235 | J122: 208 | K122: 234 | L122: 25 | M122: 76 | N122: 4 | O122: 182 | P122: 185 | Q122: 100 | R122: 66 | S122: 154 | T122: 9 | U122: 15 | V122: 28 | W122: 39 | X122: 13
A123: 30 | B123: MEURTHE ET MOSELLE MEUSE | C123: 31 | D123: VERDUN | E123: 455151 | F123: BAR LE DUC | G123: 9.8 | H123: 114 | I123: 63 | J123: 78 | K123: 29 | L123: 129 | M123: 108 | N123: 162 | O123: 150 | P123: 158 | Q123: 117 | R123: 94 | S123: 85 | T123: 125 | U123: 139 | V123: 177 | W123: 65 | X123: 180
A124: 30 | B124: MOSELLE | C124: 44 | D124: MOSELLE NORD | E124: 557307 | F124: FONTOY | G124: 1.9 | H124: 115 | I124: 62 | J124: 61 | K124: 68 | L124: 194 | M124: 182 | N124: 194 | O124: 89 | P124: 66 | Q124: 192 | R124: 193 | S124: 188 | T124: 179 | U124: 59 | V124: 81 | W124: 12 | X124: 127
A125: 30 | B125: BAS RHIN | C125: 5060 | D125: HAGUENAU | E125: 4030 | F125: BRUMATH | G125: 3.8 | H125: 116 | I125: 219 | J125: 208 | K125: 213 | L125: 90 | M125: 54 | N125: 179 | O125: 1 | P125: 1 | Q125: 92 | R125: 219 | S125: 212 | T125: 211 | U125: 200 | V125: 149 | W125: 183 | X125: 213
A126: 30 | B126: MEURTHE ET MOSELLE MEUSE | C126: 26 | D126: NANCY | E126: 454426 | F126: LUNEVILLE CARNOT | G126: 8.3 | H126: 117 | I126: 161 | J126: 140 | K126: 196 | L126: 93 | M126: 122 | N126: 60 | O126: 58 | P126: 46 | Q126: 97 | R126: 162 | S126: 195 | T126: 82 | U126: 33 | V126: 60 | W126: 30 | X126: 40
A127: 30 | B127: VOSGES | C127: 55 | D127: SAINT DIE | E127: 588316 | F127: FRAIZE | G127: 3.6 | H127: 118 | I127: 92 | J127: 107 | K127: 54 | L127: 157 | M127: 144 | N127: 181 | O127: 95 | P127: 85 | Q127: 122 | R127: 88 | S127: 52 | T127: 177 | U127: 116 | V127: 151 | W127: 96 | X127: 107
A128: 30 | B128: BAS RHIN | C128: 5101 | D128: SELESTAT | E128: 4121 | F128: SCHIRMECK | G128: 2.8 | H128: 119 | I128: 53 | J128: 81 | K128: 12 | L128: 63 | M128: 48 | N128: 134 | O128: 203 | P128: 219 | Q128: 79 | R128: 198 | S128: 182 | T128: 196 | U128: 102 | V128: 104 | W128: 100 | X128: 113
A129: 30 | B129: MOSELLE | C129: 45 | D129: METZ | E129: 557612 | F129: SAINTE MARIE AUX CHENES | G129: 3.7 | H129: 120 | I129: 34 | J129: 65 | K129: 2 | L129: 221 | M129: 203 | N129: 233 | O129: 65 | P129: 35 | Q129: 239 | R129: 117 | S129: 76 | T129: 197 | U129: 215 | V129: 224 | W129: 210 | X129: 133
A130: 30 | B130: BAS RHIN | C130: 5006 | D130: STRASBOURG | E130: 4019 | F130: STRASBOURG ANVERS | G130: 4.5 | H130: 121 | I130: 174 | J130: 190 | K130: 164 | L130: 47 | M130: 55 | N130: 51 | O130: 74 | P130: 98 | Q130: 29 | R130: 83 | S130: 87 | T130: 81 | U130: 99 | V130: 35 | W130: 228 | X130: 90
A131: 30 | B131: MARNE ARDENNES | C131: 2 | D131: CHARLEVILLE MEZIERES | E131: 508815 | F131: CARIGNAN | G131: 2.7 | H131: 122 | I131: 82 | J131: 70 | K131: 121 | L131: 96 | M131: 91 | N131: 107 | O131: 168 | P131: 172 | Q131: 109 | R131: 109 | S131: 70 | T131: 190 | U131: 143 | V131: 129 | W131: 137 | X131: 132
A132: 30 | B132: MARNE ARDENNES | C132: 2 | D132: CHARLEVILLE MEZIERES | E132: 508802 | F132: CHARLEVILLE NEVERS | G132: 2.8 | H132: 123 | I132: 23 | J132: 33 | K132: 23 | L132: 204 | M132: 187 | N132: 213 | O132: 224 | P132: 227 | Q132: 172 | R132: 89 | S132: 58 | T132: 161 | U132: 122 | V132: 82 | W132: 87 | X132: 202
A133: 30 | B133: MEURTHE ET MOSELLE MEUSE | C133: 31 | D133: VERDUN | E133: 554412 | F133: LONGUYON | G133: 2.8 | H133: 124 | I133: 88 | J133: 104 | K133: 38 | L133: 74 | M133: 82 | N133: 65 | O133: 156 | P133: 160 | Q133: 137 | R133: 130 | S133: 111 | T133: 171 | U133: 156 | V133: 142 | W133: 158 | X133: 125
A134: 30 | B134: BAS RHIN | C134: 5006 | D134: STRASBOURG | E134: 4023 | F134: STRASBOURG VOSGES | G134: 2.9 | H134: 125 | I134: 106 | J134: 87 | K134: 144 | L134: 110 | M134: 112 | N134: 109 | O134: 23 | P134: 25 | Q134: 52 | R134: 200 | S134: 186 | T134: 200 | U134: 211 | V134: 116 | W134: 238 | X134: 153
A135: 110 | B135: MOSELLE | C135: 42 | D135: MOSELLE EST | E135: 457543 | F135: PUTTELANGE AUX LACS | G135: 2.4 | H135: 126 | I135: 120 | J135: 127 | K135: 100 | L135: 103 | M135: 105 | N135: 101 | O135: 165 | P135: 184 | Q135: 63 | R135: 81 | S135: 102 | T135: 49 | U135: 97 | V135: 58 | W135: 220 | X135: 61
A136: 110 | B136: BAS RHIN | C136: 5006 | D136: STRASBOURG | E136: 4020 | F136: STRASBOURG ROBERTSAU | G136: 5.3 | H136: 127 | I136: 129 | J136: 140 | K136: 94 | L136: 165 | M136: 163 | N136: 154 | O136: 5 | P136: 4 | Q136: 131 | R136: 208 | S136: 176 | T136: 231 | U136: 207 | V136: 175 | W136: 180 | X136: 209
A137: 110 | B137: HAUT RHIN | C137: 5130 | D137: COLMAR | E137: 4143 | F137: MUNSTER | G137: 4.3 | H137: 128 | I137: 139 | J137: 170 | K137: 71 | L137: 80 | M137: 43 | N137: 197 | O137: 93 | P137: 65 | Q137: 207 | R137: 101 | S137: 74 | T137: 168 | U137: 136 | V137: 172 | W137: 58 | X137: 183
A138: 110 | B138: AUBE HAUTE MARNE | C138: 21 | D138: CHAUMONT | E138: 451156 | F138: SAINT DIZIER CENTRE | G138: 8.6 | H138: 129 | I138: 135 | J138: 120 | K138: 151 | L138: 118 | M138: 137 | N138: 90 | O138: 132 | P138: 129 | Q138: 111 | R138: 70 | S138: 66 | T138: 80 | U138: 105 | V138: 145 | W138: 121 | X138: 76
A139: 110 | B139: MOSELLE | C139: 44 | D139: MOSELLE NORD | E139: 457192 | F139: CATTENOM | G139: 1.6 | H139: 130 | I139: 125 | J139: 116 | K139: 136 | L139: 86 | M139: 71 | N139: 121 | O139: 137 | P139: 164 | Q139: 53 | R139: 147 | S139: 149 | T139: 134 | U139: 82 | V139: 64 | W139: 62 | X139: 156
A140: 110 | B140: MOSELLE | C140: 42 | D140: MOSELLE EST | E140: 457435 | F140: MERLEBACH | G140: 2.7 | H140: 131 | I140: 94 | J140: 98 | K140: 76 | L140: 141 | M140: 204 | N140: 40 | O140: 196 | P140: 221 | Q140: 56 | R140: 133 | S140: 192 | T140: 33 | U140: 53 | V140: 167 | W140: 5 | X140: 93
A141: 110 | B141: MEURTHE ET MOSELLE MEUSE | C141: 26 | D141: NANCY | E141: 554296 | F141: ESSEY LES NANCY | G141: 3.6 | H141: 132 | I141: 47 | J141: 47 | K141: 45 | L141: 139 | M141: 139 | N141: 129 | O141: 155 | P141: 138 | Q141: 190 | R141: 207 | S141: 194 | T141: 201 | U141: 144 | V141: 136 | W141: 199 | X141: 73
A142: 110 | B142: MEURTHE ET MOSELLE MEUSE | C142: 31 | D142: VERDUN | E142: 455566 | F142: REVIGNY SUR ORNAIN | G142: 2.7 | H142: 133 | I142: 104 | J142: 104 | K142: 92 | L142: 151 | M142: 126 | N142: 202 | O142: 87 | P142: 62 | Q142: 200 | R142: 100 | S142: 71 | T142: 175 | U142: 167 | V142: 236 | W142: 35 | X142: 224
A143: 110 | B143: VOSGES | C143: 55 | D143: SAINT DIE | E143: 588461 | F143: MOYENMOUTIER | G143: 4.3 | H143: 134 | I143: 87 | J143: 86 | K143: 91 | L143: 92 | M143: 44 | N143: 222 | O143: 127 | P143: 93 | Q143: 211 | R143: 142 | S143: 130 | T143: 162 | U143: 212 | V143: 240 | W143: 112 | X143: 217
A144: 110 | B144: VOSGES | C144: 57 | D144: EPINAL | E144: 588201 | F144: CHANTRAINE | G144: 3.7 | H144: 135 | I144: 90 | J144: 93 | K144: 89 | L144: 100 | M144: 75 | N144: 150 | O144: 86 | P144: 81 | Q144: 126 | R144: 187 | S144: 148 | T144: 229 | U144: 194 | V144: 141 | W144: 219 | X144: 139
A145: 110 | B145: BAS RHIN | C145: 5101 | D145: SELESTAT | E145: 4126 | F145: MUTZIG | G145: 2.7 | H145: 136 | I145: 156 | J145: 208 | K145: 110 | L145: 46 | M145: 26 | N145: 124 | O145: 70 | P145: 80 | Q145: 64 | R145: 159 | S145: 163 | T145: 136 | U145: 148 | V145: 80 | W145: 239 | X145: 69
A146: 110 | B146: BAS RHIN | C146: 5006 | D146: STRASBOURG | E146: 4027 | F146: SCHILTIGHEIM CENTRE | G146: 4.1 | H146: 137 | I146: 202 | J146: 208 | K146: 181 | L146: 50 | M146: 49 | N146: 69 | O146: 82 | P146: 87 | Q146: 84 | R146: 79 | S146: 103 | T146: 46 | U146: 145 | V146: 122 | W146: 163 | X146: 116
A147: 110 | B147: MEURTHE ET MOSELLE MEUSE | C147: 27 | D147: PONT A MOUSSON | E147: 554496 | F147: NANCY TROIS MAISONS | G147: 2.3 | H147: 138 | I147: 166 | J147: 205 | K147: 132 | L147: 105 | M147: 124 | N147: 83 | O147: 171 | P147: 166 | Q147: 146 | R147: 72 | S147: 79 | T147: 62 | U147: 60 | V147: 127 | W147: 23 | X147: 67
A148: 110 | B148: BAS RHIN | C148: 5101 | D148: SELESTAT | E148: 4127 | F148: ROSHEIM | G148: 1.7 | H148: 139 | I148: 128 | J148: 131 | K148: 115 | L148: 200 | M148: 194 | N148: 195 | O148: 13 | P148: 8 | Q148: 157 | R148: 179 | S148: 157 | T148: 204 | U148: 149 | V148: 140 | W148: 203 | X148: 78
A149: 110 | B149: MEURTHE ET MOSELLE MEUSE | C149: 26 | D149: NANCY | E149: 554486 | F149: NANCY POINT CENTRAL | G149: 3.0 | H149: 140 | I149: 134 | J149: 94 | K149: 186 | L149: 187 | M149: 214 | N149: 97 | O149: 24 | P149: 20 | Q149: 83 | R149: 157 | S149: 173 | T149: 114 | U149: 142 | V149: 105 | W149: 105 | X149: 187
A150: 110 | B150: BAS RHIN | C150: 5060 | D150: HAGUENAU | E150: 4031 | F150: TRUCHTERSHEIM | G150: 2.3 | H150: 141 | I150: 51 | J150: 47 | K150: 80 | L150: 66 | M150: 20 | N150: 232 | O150: 115 | P150: 84 | Q150: 226 | R150: 228 | S150: 220 | T150: 233 | U150: 237 | V150: 214 | W150: 221 | X150: 240
A151: 110 | B151: BAS RHIN | C151: 5006 | D151: STRASBOURG | E151: 4039 | F151: REICHSTETT | G151: 1.6 | H151: 142 | I151: 127 | J151: 120 | K151: 125 | L151: 162 | M151: 159 | N151: 155 | O151: 49 | P151: 42 | Q151: 120 | R151: 125 | S151: 120 | T151: 122 | U151: 179 | V151: 97 | W151: 214 | X151: 138
A152: 110 | B152: MEURTHE ET MOSELLE MEUSE | C152: 31 | D152: VERDUN | E152: 555624 | F152: STENAY | G152: 3.2 | H152: 143 | I152: 177 | J152: 208 | K152: 159 | L152: 54 | M152: 94 | N152: 26 | O152: 181 | P152: 186 | Q152: 98 | R152: 195 | S152: 223 | T152: 91 | U152: 24 | V152: 86 | W152: 2 | X152: 64
A153: 110 | B153: MEURTHE ET MOSELLE MEUSE | C153: 27 | D153: PONT A MOUSSON | E153: 454535 | F153: PONT A MOUSSON CENTRALE | G153: 5.9 | H153: 144 | I153: 232 | J153: 194 | K153: 227 | L153: 60 | M153: 85 | N153: 45 | O153: 141 | P153: 116 | Q153: 205 | R153: 76 | S153: 89 | T153: 60 | U153: 45 | V153: 19 | W153: 182 | X153: 30
A154: 110 | B154: MARNE ARDENNES | C154: 2 | D154: CHARLEVILLE MEZIERES | E154: 408862 | F154: REVIN | G154: 3.8 | H154: 145 | I154: 83 | J154: 96 | K154: 51 | L154: 184 | M154: 177 | N154: 176 | O154: 198 | P154: 199 | Q154: 118 | R154: 80 | S154: 60 | T154: 123 | U154: 124 | V154: 119 | W154: 154 | X154: 94
A155: 110 | B155: VOSGES | C155: 57 | D155: EPINAL | E155: 488706 | F155: VITTEL | G155: 3.1 | H155: 146 | I155: 111 | J155: 124 | K155: 66 | L155: 171 | M155: 146 | N155: 206 | O155: 138 | P155: 109 | Q155: 208 | R155: 103 | S155: 97 | T155: 124 | U155: 118 | V155: 139 | W155: 145 | X155: 84
A156: 110 | B156: AUBE HAUTE MARNE | C156: 21 | D156: CHAUMONT | E156: 410566 | F156: CHAUMONT HOTEL DE VILLE | G156: 10.4 | H156: 147 | I156: 93 | J156: 87 | K156: 108 | L156: 181 | M156: 178 | N156: 170 | O156: 85 | P156: 70 | Q156: 165 | R156: 155 | S156: 129 | T156: 205 | U156: 177 | V156: 164 | W156: 134 | X156: 190
A157: 110 | B157: VOSGES | C157: 57 | D157: EPINAL | E157: 588206 | F157: CHARMES | G157: 2.8 | H157: 148 | I157: 110 | J157: 145 | K157: 32 | L157: 193 | M157: 206 | N157: 126 | O157: 59 | P157: 39 | Q157: 217 | R157: 143 | S157: 159 | T157: 103 | U157: 168 | V157: 238 | W157: 95 | X157: 141
A158: 110 | B158: MEURTHE ET MOSELLE MEUSE | C158: 26 | D158: NANCY | E158: 554166 | F158: BLAINVILLE | G158: 2.9 | H158: 149 | I158: 178 | J158: 208 | K158: 160 | L158: 71 | M158: 64 | N158: 104 | O158: 146 | P158: 136 | Q158: 163 | R158: 58 | S158: 54 | T158: 78 | U158: 134 | V158: 121 | W158: 161 | X158: 97
A159: 110 | B159: MOSELLE | C159: 42 | D159: MOSELLE EST | E159: 557503 | F159: NEUNKIRCH | G159: 3.2 | H159: 150 | I159: 7 | J159: 6 | K159: 7 | L159: 219 | M159: 201 | N159: 231 | O159: 222 | P159: 214 | Q159: 224 | R159: 233 | S159: 229 | T159: 235 | U159: 209 | V159: 203 | W159: 149 | X159: 221
A160: 110 | B160: HAUT RHIN | C160: 5130 | D160: COLMAR | E160: 4157 | F160: NEUF BRISACH | G160: 2.6 | H160: 151 | I160: 196 | J160: 182 | K160: 192 | L160: 133 | M160: 167 | N160: 72 | O160: 114 | P160: 141 | Q160: 40 | R160: 69 | S160: 73 | T160: 71 | U160: 95 | V160: 165 | W160: 51 | X160: 105
A161: 110 | B161: MOSELLE | C161: 45 | D161: METZ | E161: 557441 | F161: METZ PLAPPEVILLE | G161: 2.5 | H161: 152 | I161: 164 | J161: 140 | K161: 198 | L161: 185 | M161: 202 | N161: 123 | O161: 26 | P161: 17 | Q161: 151 | R161: 172 | S161: 158 | T161: 174 | U161: 108 | V161: 188 | W161: 26 | X161: 176
A162: 110 | B162: MEURTHE ET MOSELLE MEUSE | C162: 27 | D162: PONT A MOUSSON | E162: 454355 | F162: JARNY | G162: 4.1 | H162: 153 | I162: 103 | J162: 113 | K162: 70 | L162: 152 | M162: 151 | N162: 146 | O162: 125 | P162: 101 | Q162: 174 | R162: 139 | S162: 138 | T162: 139 | U162: 214 | V162: 205 | W162: 187 | X162: 199
A163: 110 | B163: MOSELLE | C163: 45 | D163: METZ | E163: 557459 | F163: MOULINS LES METZ | G163: 2.5 | H163: 154 | I163: 72 | J163: 47 | K163: 146 | L163: 197 | M163: 172 | N163: 219 | O163: 191 | P163: 181 | Q163: 184 | R163: 149 | S163: 109 | T163: 217 | U163: 147 | V163: 184 | W163: 80 | X163: 166
A164: 110 | B164: BAS RHIN | C164: 5006 | D164: STRASBOURG | E164: 4045 | F164: STRASBOURG FRANCS BOURGEOIS | G164: 4.2 | H164: 155 | I164: 119 | J164: 140 | K164: 63 | L164: 83 | M164: 81 | N164: 85 | O164: 176 | P164: 196 | Q164: 55 | R164: 153 | S164: 142 | T164: 169 | U164: 203 | V164: 117 | W164: 225 | X164: 168
A165: 110 | B165: MOSELLE | C165: 45 | D165: METZ | E165: 557559 | F165: REMILLY | G165: 3.3 | H165: 156 | I165: 144 | J165: 128 | K165: 172 | L165: 128 | M165: 110 | N165: 159 | O165: 123 | P165: 102 | Q165: 166 | R165: 199 | S165: 210 | T165: 147 | U165: 81 | V165: 128 | W165: 41 | X165: 99
A166: 110 | B166: MOSELLE | C166: 42 | D166: MOSELLE EST | E166: 557210 | F166: CHATEAU SALINS | G166: 1.7 | H166: 157 | I166: 173 | J166: 208 | K166: 152 | L166: 106 | M166: 89 | N166: 132 | O166: 190 | P166: 180 | Q166: 180 | R166: 34 | S166: 23 | T166: 84 | U166: 161 | V166: 213 | W166: 56 | X166: 207
A167: 110 | B167: MEURTHE ET MOSELLE MEUSE | C167: 27 | D167: PONT A MOUSSON | E167: 454651 | F167: TOUL | G167: 9.7 | H167: 158 | I167: 211 | J167: 162 | K167: 219 | L167: 178 | M167: 188 | N167: 125 | O167: 94 | P167: 89 | Q167: 94 | R167: 90 | S167: 112 | T167: 61 | U167: 64 | V167: 44 | W167: 90 | X167: 81
A168: 110 | B168: AUBE HAUTE MARNE | C168: 14 | D168: TROYES | E168: 510513 | F168: SAINT PARRES AUX TERTRES | G168: 2.5 | H168: 159 | I168: 236 | J168: 208 | K168: 235 | L168: 56 | M168: 97 | N168: 29 | O168: 151 | P168: 192 | Q168: 33 | R168: 41 | S168: 48 | T168: 50 | U168: 115 | V168: 96 | W168: 138 | X168: 108
A169: 110 | B169: BAS RHIN | C169: 5060 | D169: HAGUENAU | E169: 4085 | F169: INGWILLER | G169: 3.5 | H169: 160 | I169: 126 | J169: 107 | K169: 161 | L169: 153 | M169: 154 | N169: 144 | O169: 162 | P169: 157 | Q169: 160 | R169: 145 | S169: 153 | T169: 116 | U169: 133 | V169: 174 | W169: 55 | X169: 184
A170: 110 | B170: MEURTHE ET MOSELLE MEUSE | C170: 26 | D170: NANCY | E170: 554266 | F170: DOMBASLE SUR MEURTHE | G170: 3.4 | H170: 161 | I170: 182 | J170: 208 | K170: 162 | L170: 210 | M170: 211 | N170: 178 | O170: 45 | P170: 37 | Q170: 143 | R170: 111 | S170: 132 | T170: 79 | U170: 91 | V170: 147 | W170: 24 | X170: 165
A171: 110 | B171: MOSELLE | C171: 45 | D171: METZ | E171: 557436 | F171: METZ CATHEDRALE | G171: 4.0 | H171: 162 | I171: 222 | J171: 208 | K171: 216 | L171: 109 | M171: 88 | N171: 140 | O171: 55 | P171: 40 | Q171: 158 | R171: 104 | S171: 91 | T171: 132 | U171: 159 | V171: 183 | W171: 114 | X171: 154
A172: 110 | B172: AUBE HAUTE MARNE | C172: 14 | D172: TROYES | E172: 510523 | F172: LA CHAPELLE ST LUC | G172: 4.6 | H172: 163 | I172: 233 | J172: 194 | K172: 230 | L172: 119 | M172: 165 | N172: 53 | O172: 104 | P172: 124 | Q172: 36 | R172: 51 | S172: 77 | T172: 25 | U172: 117 | V172: 130 | W172: 131 | X172: 92
A173: 110 | B173: MARNE ARDENNES | C173: 2 | D173: CHARLEVILLE MEZIERES | E173: 408806 | F173: SEDAN | G173: 7.6 | H173: 164 | I173: 98 | J173: 118 | K173: 41 | L173: 166 | M173: 150 | N173: 184 | O173: 169 | P173: 176 | Q173: 95 | R173: 222 | S173: 204 | T173: 234 | U173: 104 | V173: 110 | W173: 117 | X173: 95
A174: 110 | B174: BAS RHIN | C174: 5101 | D174: SELESTAT | E174: 4007 | F174: ILLKIRCH CENTRE | G174: 6.5 | H174: 165 | I174: 183 | J174: 165 | K174: 182 | L174: 143 | M174: 128 | N174: 166 | O174: 177 | P174: 173 | Q174: 159 | R174: 46 | S174: 35 | T174: 100 | U174: 131 | V174: 95 | W174: 140 | X174: 140
A175: 110 | B175: MARNE ARDENNES | C175: 11 | D175: REIMS | E175: 551309 | F175: REIMS EUROPE | G175: 2.9 | H175: 166 | I175: 138 | J175: 81 | K175: 211 | L175: 144 | M175: 181 | N175: 71 | O175: 212 | P175: 222 | Q175: 90 | R175: 96 | S175: 131 | T175: 54 | U175: 138 | V175: 70 | W175: 234 | X175: 74
A176: 110 | B176: VOSGES | C176: 55 | D176: SAINT DIE | E176: 488556 | F176: RAON L ETAPE | G176: 2.2 | H176: 167 | I176: 74 | J176: 61 | K176: 124 | L176: 228 | M176: 232 | N176: 143 | O176: 231 | P176: 231 | Q176: 189 | R176: 160 | S176: 181 | T176: 105 | U176: 67 | V176: 228 | W176: 6 | X176: 72
A177: 160 | B177: BAS RHIN | C177: 5101 | D177: SELESTAT | E177: 4107 | F177: VILLE | G177: 2.2 | H177: 168 | I177: 212 | J177: 208 | K177: 200 | L177: 68 | M177: 21 | N177: 226 | O177: 29 | P177: 16 | Q177: 202 | R177: 164 | S177: 133 | T177: 214 | U177: 232 | V177: 237 | W177: 194 | X177: 235
A178: 160 | B178: BAS RHIN | C178: 5006 | D178: STRASBOURG | E178: 4028 | F178: BISCHHEIM | G178: 3.2 | H178: 169 | I178: 171 | J178: 208 | K178: 147 | L178: 175 | M178: 179 | N178: 142 | O178: 66 | P178: 69 | Q178: 72 | R178: 82 | S178: 95 | T178: 72 | U178: 197 | V178: 192 | W178: 181 | X178: 179
A179: 160 | B179: BAS RHIN | C179: 5006 | D179: STRASBOURG | E179: 4029 | F179: SCHILTIGHEIM KLEBER | G179: 0.8 | H179: 170 | I179: 149 | J179: 149 | K179: 165 | L179: 236 | M179: 233 | N179: 171 | O179: 44 | P179: 38 | Q179: 136 | R179: 115 | S179: 218 | T179: 5 | U179: 121 | V179: 169 | W179: 92 | X179: 111
A180: 160 | B180: BAS RHIN | C180: 5101 | D180: SELESTAT | E180: 4008 | F180: FEGERSHEIM | G180: 2.4 | H180: 171 | I180: 114 | J180: 115 | K180: 112 | L180: 124 | M180: 63 | N180: 228 | O180: 88 | P180: 60 | Q180: 218 | R180: 209 | S180: 180 | T180: 227 | U180: 236 | V180: 210 | W180: 229 | X180: 226
A181: 160 | B181: MARNE ARDENNES | C181: 6 | D181: CHALONS EN CHAMPAGNE | E181: 451166 | F181: VITRY LE FRANCOIS | G181: 3.7 | H181: 172 | I181: 218 | J181: 208 | K181: 212 | L181: 77 | M181: 95 | N181: 63 | O181: 234 | P181: 234 | Q181: 48 | R181: 134 | S181: 150 | T181: 104 | U181: 22 | V181: 57 | W181: 14 | X181: 24
A182: 160 | B182: MOSELLE | C182: 42 | D182: MOSELLE EST | E182: 457614 | F182: SARREBOURG | G182: 7.4 | H182: 173 | I182: 136 | J182: 134 | K182: 119 | L182: 158 | M182: 142 | N182: 189 | O182: 159 | P182: 163 | Q182: 125 | R182: 140 | S182: 115 | T182: 186 | U182: 164 | V182: 153 | W182: 107 | X182: 198
A183: 160 | B183: MOSELLE | C183: 45 | D183: METZ | E183: 557712 | F183: WOIPPY | G183: 4.4 | H183: 174 | I183: 203 | J183: 134 | K183: 231 | L183: 107 | M183: 106 | N183: 111 | O183: 120 | P183: 135 | Q183: 59 | R183: 118 | S183: 114 | T183: 117 | U183: 135 | V183: 120 | W183: 111 | X183: 155
A184: 160 | B184: HAUT RHIN | C184: 5130 | D184: COLMAR | E184: 4132 | F184: COLMAR MARAICHERS | G184: 3.6 | H184: 175 | I184: 141 | J184: 145 | K184: 155 | L184: 135 | M184: 117 | N184: 160 | O184: 96 | P184: 86 | Q184: 124 | R184: 185 | S184: 164 | T184: 198 | U184: 213 | V184: 211 | W184: 144 | X184: 223
A185: 160 | B185: AUBE HAUTE MARNE | C185: 14 | D185: TROYES | E185: 410550 | F185: BAR SUR AUBE | G185: 5.2 | H185: 176 | I185: 91 | J185: 92 | K185: 103 | L185: 168 | M185: 156 | N185: 177 | O185: 210 | P185: 194 | Q185: 213 | R185: 206 | S185: 196 | T185: 191 | U185: 157 | V185: 209 | W185: 66 | X185: 186
A186: 160 | B186: HAUT RHIN | C186: 5169 | D186: MULHOUSE | E186: 4180 | F186: RIEDISHEIM | G186: 3.3 | H186: 177 | I186: 86 | J186: 67 | K186: 149 | L186: 177 | M186: 148 | N186: 210 | O186: 227 | P186: 224 | Q186: 215 | R186: 124 | S186: 104 | T186: 149 | U186: 221 | V186: 109 | W186: 230 | X186: 210
A187: 160 | B187: MOSELLE | C187: 44 | D187: MOSELLE NORD | E187: 457180 | F187: BOUSSE | G187: 2.5 | H187: 178 | I187: 8 | J187: 8 | K187: 31 | L187: 220 | M187: 166 | N187: 241 | O187: 192 | P187: 151 | Q187: 241 | R187: 234 | S187: 221 | T187: 241 | U187: 241 | V187: 233 | W187: 241 | X187: 241
A188: 160 | B188: HAUT RHIN | C188: 5169 | D188: MULHOUSE | E188: 4170 | F188: MULHOUSE REUNION | G188: 7.7 | H188: 179 | I188: 147 | J188: 124 | K188: 191 | L188: 149 | M188: 162 | N188: 120 | O188: 208 | P188: 202 | Q188: 149 | R188: 108 | S188: 145 | T188: 51 | U188: 127 | V188: 93 | W188: 129 | X188: 145
A189: 160 | B189: MEURTHE ET MOSELLE MEUSE | C189: 27 | D189: PONT A MOUSSON | E189: 454696 | F189: VILLERS GENERAL LECLERC | G189: 4.0 | H189: 180 | I189: 168 | J189: 208 | K189: 129 | L189: 209 | M189: 215 | N189: 151 | O189: 18 | P189: 10 | Q189: 148 | R189: 183 | S189: 172 | T189: 178 | U189: 227 | V189: 195 | W189: 216 | X189: 197
A190: 160 | B190: MEURTHE ET MOSELLE MEUSE | C190: 27 | D190: PONT A MOUSSON | E190: 554196 | F190: CHAMPIGNEULLES | G190: 2.6 | H190: 181 | I190: 170 | J190: 208 | K190: 138 | L190: 199 | M190: 173 | N190: 223 | O190: 139 | P190: 111 | Q190: 198 | R190: 63 | S190: 47 | T190: 118 | U190: 181 | V190: 98 | W190: 200 | X190: 172
A191: 160 | B191: MOSELLE | C191: 45 | D191: METZ | E191: 557440 | F191: METZ MOZART | G191: 3.0 | H191: 182 | I191: 158 | J191: 208 | K191: 116 | L191: 159 | M191: 130 | N191: 208 | O191: 75 | P191: 51 | Q191: 206 | R191: 152 | S191: 113 | T191: 219 | U191: 226 | V191: 152 | W191: 233 | X191: 195
A192: 160 | B192: MARNE ARDENNES | C192: 11 | D192: REIMS | E192: 451308 | F192: REIMS SAINT THOMAS | G192: 5.4 | H192: 183 | I192: 237 | J192: 191 | K192: 237 | L192: 97 | M192: 107 | N192: 88 | O192: 205 | P192: 217 | Q192: 93 | R192: 112 | S192: 123 | T192: 95 | U192: 56 | V192: 37 | W192: 155 | X192: 47
A193: 160 | B193: AUBE HAUTE MARNE | C193: 14 | D193: TROYES | E193: 410510 | F193: TROYES GAMBETTA | G193: 8.8 | H193: 184 | I193: 198 | J193: 185 | K193: 193 | L193: 138 | M193: 138 | N193: 128 | O193: 178 | P193: 171 | Q193: 169 | R193: 122 | S193: 119 | T193: 120 | U193: 129 | V193: 88 | W193: 179 | X193: 114
A194: 160 | B194: BAS RHIN | C194: 5101 | D194: SELESTAT | E194: 4109 | F194: MARCKOLSHEIM | G194: 2.5 | H194: 185 | I194: 142 | J194: 194 | K194: 60 | L194: 154 | M194: 134 | N194: 192 | O194: 209 | P194: 211 | Q194: 132 | R194: 150 | S194: 171 | T194: 101 | U194: 163 | V194: 194 | W194: 127 | X194: 129
A195: 160 | B195: MARNE ARDENNES | C195: 2 | D195: CHARLEVILLE MEZIERES | E195: 508860 | F195: ROCROI | G195: 2.4 | H195: 186 | I195: 214 | J195: 206 | K195: 203 | L195: 104 | M195: 102 | N195: 105 | O195: 184 | P195: 179 | Q195: 154 | R195: 144 | S195: 146 | T195: 127 | U195: 119 | V195: 99 | W195: 166 | X195: 87
A196: 160 | B196: BAS RHIN | C196: 5060 | D196: HAGUENAU | E196: 4060 | F196: HAGUENAU HOUBLON | G196: 8.6 | H196: 187 | I196: 186 | J196: 162 | K196: 188 | L196: 179 | M196: 164 | N196: 187 | O196: 99 | P196: 73 | Q196: 187 | R196: 131 | S196: 116 | T196: 164 | U196: 188 | V196: 198 | W196: 139 | X196: 192
A197: 160 | B197: MOSELLE | C197: 45 | D197: METZ | E197: 557433 | F197: MARANGE SILVANGE | G197: 2.7 | H197: 188 | I197: 180 | J197: 166 | K197: 180 | L197: 195 | M197: 176 | N197: 204 | O197: 144 | P197: 128 | Q197: 186 | R197: 163 | S197: 156 | T197: 163 | U197: 84 | V197: 193 | W197: 17 | X197: 126
A198: 160 | B198: BAS RHIN | C198: 5101 | D198: SELESTAT | E198: 4101 | F198: SELESTAT CENTRE | G198: 7.9 | H198: 189 | I198: 185 | J198: 182 | K198: 176 | L198: 125 | M198: 84 | N198: 196 | O198: 174 | P198: 147 | Q198: 227 | R198: 132 | S198: 136 | T198: 128 | U198: 186 | V198: 207 | W198: 119 | X198: 188
A199: 160 | B199: BAS RHIN | C199: 5060 | D199: HAGUENAU | E199: 4082 | F199: BOUXWILLER | G199: 2.4 | H199: 190 | I199: 50 | J199: 59 | K199: 43 | L199: 207 | M199: 198 | N199: 199 | O199: 239 | P199: 239 | Q199: 128 | R199: 126 | S199: 139 | T199: 99 | U199: 128 | V199: 101 | W199: 156 | X199: 110
A200: 160 | B200: HAUT RHIN | C200: 5169 | D200: MULHOUSE | E200: 4178 | F200: SAINT LOUIS | G200: 6.6 | H200: 191 | I200: 181 | J200: 159 | K200: 189 | L200: 147 | M200: 147 | N200: 136 | O200: 84 | P200: 75 | Q200: 133 | R200: 170 | S200: 165 | T200: 152 | U200: 225 | V200: 157 | W200: 215 | X200: 212
A201: 160 | B201: MEURTHE ET MOSELLE MEUSE | C201: 26 | D201: NANCY | E201: 554491 | F201: NANCY SAINT SEBASTIEN | G201: 3.6 | H201: 192 | I201: 122 | J201: 114 | K201: 134 | L201: 211 | M201: 223 | N201: 148 | O201: 160 | P201: 142 | Q201: 197 | R201: 202 | S201: 199 | T201: 180 | U201: 174 | V201: 125 | W201: 171 | X201: 164
A202: 160 | B202: HAUT RHIN | C202: 5130 | D202: COLMAR | E202: 4130 | F202: COLMAR REPUBLIQUE | G202: 6.0 | H202: 193 | I202: 205 | J202: 170 | K202: 210 | L202: 174 | M202: 143 | N202: 217 | O202: 158 | P202: 143 | Q202: 185 | R202: 61 | S202: 39 | T202: 142 | U202: 205 | V202: 176 | W202: 186 | X202: 196
A203: 160 | B203: VOSGES | C203: 57 | D203: EPINAL | E203: 488256 | F203: DARNEY | G203: 1.6 | H203: 194 | I203: 37 | J203: 18 | K203: 135 | L203: 231 | M203: 230 | N203: 190 | O203: 237 | P203: 236 | Q203: 234 | R203: 168 | S203: 175 | T203: 129 | U203: 217 | V203: 216 | W203: 148 | X203: 229
A204: 160 | B204: MEURTHE ET MOSELLE MEUSE | C204: 26 | D204: NANCY | E204: 454671 | F204: VANDOEUVRE LES NANCY | G204: 4.0 | H204: 195 | I204: 187 | J204: 151 | K204: 208 | L204: 172 | M204: 193 | N204: 116 | O204: 142 | P204: 114 | Q204: 210 | R204: 156 | S204: 155 | T204: 148 | U204: 154 | V204: 72 | W204: 185 | X204: 185
... 47 more rows

Sheet AG_FICHE
A1: Accueil
A2: BAROMETRE GRAND PUBLIC
A4: UNITE: | B4: Agence | E4: ETP perf : | F4: =VLOOKUP(A5,'RECAP AG'!$G$6:$CY$248,3,FALSE) -> 5.49
A5: =VLOOKUP(B5,LISTES!$C$6:$D$246,2,FALSE) -> 4189 | B5: ALTKIRCH
C6: Coefficient du critère | E6: Résultats | I6: Ecart au 1ier | K6: =IF(OR(A5=4017,A5=4022),"Rang estimé","Rang") -> Rang
E7: du 1ier | G7: de l'Agence
A9: RANG GRAND PUBLIC | K9: =VLOOKUP($A$5,'RECAP AG'!$G$6:$CY$248,96,FALSE) -> 241
A11: SATISFACTION CLIENTS | C11: 20% | K11: =VLOOKUP($A$5,'RECAP AG'!$G$6:$CY$248,13,FALSE) -> 241
B12: NPS à froid (SAE) | C12: 10% | E12: =+'RECAP AG'!K4 -> 57 | G12: =VLOOKUP($A$5,'RECAP AG'!$G$6:$CY$248,5,FALSE) -> 0.0 | I12: =VLOOKUP($A$5,'RECAP AG'!$G$6:$CY$248,6,FALSE) -> 100% | K12: =VLOOKUP($A$5,'RECAP AG'!$G$6:$CY$248,7,FALSE) -> 208
B13: NPS à chaud (QHD) | C13: 10% | E13: =+'RECAP AG'!N4 -> 89% | G13: =VLOOKUP($A$5,'RECAP AG'!$G$6:$CY$248,8,FALSE) -> 10% | I13: =VLOOKUP($A$5,'RECAP AG'!$G$6:$CY$248,9,FALSE) -> 88% | K13: =VLOOKUP($A$5,'RECAP AG'!$G$6:$CY$248,10,FALSE) -> 241
A15: BANCARISATION | C15: 20% | K15: =VLOOKUP($A$5,'RECAP AG'!$G$6:$CY$248,28,FALSE) -> 238
B16: Ventes Nettes produits pondérés | C16: 12% | E16: ='RECAP AG'!X4 -> 104.9 | G16: =VLOOKUP($A$5,'RECAP AG'!$G$6:$CY$248,19,FALSE) -> -10.9 | I16: =VLOOKUP($A$5,'RECAP AG'!$G$6:$CY$248,20,FALSE) -> 110% | K16: =VLOOKUP($A$5,'RECAP AG'!$G$6:$CY$248,21,FALSE) -> 235
B17: Ventes sur client non détenteur de l’univers | C17: 8% | E17: ='RECAP AG'!AB4 -> 148.0 | G17: =VLOOKUP($A$5,'RECAP AG'!$G$6:$CY$248,23,FALSE) -> 31.9 | I17: =VLOOKUP($A$5,'RECAP AG'!$G$6:$CY$248,24,FALSE) -> 78% | K17: =VLOOKUP($A$5,'RECAP AG'!$G$6:$CY$248,25,FALSE) -> 237
A19: EPARGNE | C19: 20% | K19: =VLOOKUP($A$5,'RECAP AG'!$G$6:$CY$248,43,FALSE) -> 233
B20: Excédent Epargne hors DAV pondéré | C20: 12% | E20: ='RECAP AG'!AM4 -> 2201.2 | G20: =VLOOKUP($A$5,'RECAP AG'!$G$6:$CY$248,34,FALSE) -> -293.4 | I20: =VLOOKUP($A$5,'RECAP AG'!$G$6:$CY$248,35,FALSE) -> 95% | K20: =VLOOKUP($A$5,'RECAP AG'!$G$6:$CY$248,36,FALSE) -> 228
B21: Ventes sur client non détenteur de l’univers | C21: 8% | E21: ='RECAP AG'!AQ4 -> 276.3 | G21: =VLOOKUP($A$5,'RECAP AG'!$G$6:$CY$248,38,FALSE) -> 31.0 | I21: =VLOOKUP($A$5,'RECAP AG'!$G$6:$CY$248,39,FALSE) -> 89% | K21: =VLOOKUP($A$5,'RECAP AG'!$G$6:$CY$248,40,FALSE) -> 235
A23: IARD PREVOYANCE | C23: 20% | K23: =VLOOKUP($A$5,'RECAP AG'!$G$6:$CY$248,77,FALSE) -> 238
B24: Ventes Nettes produits pondérés | C24: 12% | E24: ='RECAP AG'!BU4 -> 659.9 | G24: =VLOOKUP($A$5,'RECAP AG'!$G$6:$CY$248,68,FALSE) -> -74.9 | I24: =VLOOKUP($A$5,'RECAP AG'!$G$6:$CY$248,69,FALSE) -> 103% | K24: =VLOOKUP($A$5,'RECAP AG'!$G$6:$CY$248,70,FALSE) -> 238
B25: Ventes sur client non détenteur de l’univers | C25: 8% | E25: ='RECAP AG'!BY4 -> 150.7 | G25: =VLOOKUP($A$5,'RECAP AG'!$G$6:$CY$248,72,FALSE) -> 23.7 | I25: =VLOOKUP($A$5,'RECAP AG'!$G$6:$CY$248,73,FALSE) -> 84% | K25: =VLOOKUP($A$5,'RECAP AG'!$G$6:$CY$248,74,FALSE) -> 226
A27: CREDITS | C27: 20% | K27: =VLOOKUP($A$5,'RECAP AG'!$G$6:$CY$248,62,FALSE) -> 238
B28: Engagements et ventes accessoires pondérés Immo | C28: 6% | E28: ='RECAP AG'!BB4 -> 1282.1 | G28: =VLOOKUP($A$5,'RECAP AG'!$G$6:$CY$248,49,FALSE) -> 92.7 | I28: =VLOOKUP($A$5,'RECAP AG'!$G$6:$CY$248,50,FALSE) -> 93% | K28: =VLOOKUP($A$5,'RECAP AG'!$G$6:$CY$248,51,FALSE) -> 239
B29: Engagements et ventes accessoires pondérés Conso | C29: 6% | E29: ='RECAP AG'!BF4 -> 107.1 | G29: =VLOOKUP($A$5,'RECAP AG'!$G$6:$CY$248,53,FALSE) -> 36.0 | I29: =VLOOKUP($A$5,'RECAP AG'!$G$6:$CY$248,54,FALSE) -> 66% | K29: =VLOOKUP($A$5,'RECAP AG'!$G$6:$CY$248,55,FALSE) -> 207
B30: Ventes sur client non détenteur de l’univers | C30: 8% | E30: ='RECAP AG'!BJ4 -> 84.2 | G30: =VLOOKUP($A$5,'RECAP AG'!$G$6:$CY$248,57,FALSE) -> 11.1 | I30: =VLOOKUP($A$5,'RECAP AG'!$G$6:$CY$248,58,FALSE) -> 87% | K30: =VLOOKUP($A$5,'RECAP AG'!$G$6:$CY$248,59,FALSE) -> 237

Sheet AG_TOTAL
B1: Accueil | H1: BAROMETRE BDD - AGENCES
H2: TOTAL GENERAL
H3: =ACCUEIL!F7 -> 2022-09-25
H7: TOTAL GENERAL | K7: Total Satisfaction Clients | N7: Total Bancarisation | Q7: Total Epargne | T7: Total IARD Prévoyance | W7: Total Crédits
I8: coef | J8: =M8+P8+S8+V8+Y8 -> 100% | L8: coef | M8: =AG_SATISFACTION!P8 -> 20% | O8: coef | P8: =AG_BANCA!R8 -> 20% | R8: coef | S8: =AG_EPARGNE!R8 -> 20% | U8: coef | V8: =AG_IARD!R8 -> 20% | X8: coef | Y8: =AG_CREDIT!V8 -> 20%
B9: Direction | C9: eds | D9: Territoire | E9: eds | F9: Agence | G9: ="ETP perf "&DATEMAJ!$C$28 -> ETP perf 25-sept | H9: Moyenne ecart au 1er | I9: % Ecart au 1er | J9: Rang CEGEE | K9: Moyenne ecart au 1er | L9: % Ecart au 1er | M9: Rang CEGEE | N9: Moyenne ecart au 1er | O9: % Ecart au 1er | P9: Rang CEGEE | Q9: Moyenne ecart au 1er | R9: % Ecart au 1er | S9: Rang CEGEE | T9: Moyenne ecart au 1er | U9: % Ecart au 1er | V9: Rang CEGEE | W9: Moyenne ecart au 1er | X9: % Ecart au 1er | Y9: Rang CEGEE
A10: 50 | B10: MOSELLE | C10: 44 | D10: MOSELLE NORD | E10: 557508 | F10: NILVANGE | G10: 1.5 | H10: 10% | I10: 0% | J10: 1 | K10: 38% | L10: 38% | M10: 66 | N10: 0% | O10: 0% | P10: 1 | Q10: 45% | R10: 14% | S10: 4 | T10: 0% | U10: 0% | V10: 1 | W10: 0% | X10: 0% | Y10: 1
A11: 50 | B11: VOSGES | C11: 57 | D11: EPINAL | E11: 488288 | F11: EPINAL LEOPOLD BOURG | G11: 2.0 | H11: 40% | I11: 29% | J11: 2 | K11: 5% | L11: 5% | M11: 2 | N11: 54% | O11: 54% | P11: 23 | Q11: 50% | R11: 18% | S11: 6 | T11: 69% | U11: 69% | V11: 56 | W11: 52% | X11: 52% | Y11: 23
A12: 50 | B12: MARNE ARDENNES | C12: 11 | D12: REIMS | E12: 551305 | F12: REIMS HIPPODROME | G12: 5.1 | H12: 42% | I12: 32% | J12: 3 | K12: 39% | L12: 39% | M12: 68 | N12: 49% | O12: 49% | P12: 11 | Q12: 60% | R12: 29% | S12: 19 | T12: 56% | U12: 56% | V12: 8 | W12: 37% | X12: 37% | Y12: 5
A13: 50 | B13: MARNE ARDENNES | C13: 6 | D13: CHALONS EN CHAMPAGNE | E13: 451115 | F13: MOURMELON LE GRAND | G13: 2.8 | H13: 43% | I13: 33% | J13: 4 | K13: 43% | L13: 43% | M13: 78 | N13: 38% | O13: 38% | P13: 2 | Q13: 59% | R13: 27% | S13: 17 | T13: 61% | U13: 61% | V13: 18 | W13: 47% | X13: 47% | Y13: 16
A14: 50 | B14: MOSELLE | C14: 44 | D14: MOSELLE NORD | E14: 557660 | F14: UCKANGE | G14: 1.8 | H14: 44% | I14: 34% | J14: 5 | K14: 75% | L14: 75% | M14: 220 | N14: 52% | O14: 52% | P14: 14 | Q14: 61% | R14: 30% | S14: 22 | T14: 37% | U14: 37% | V14: 2 | W14: 27% | X14: 27% | Y14: 2
A15: 50 | B15: MARNE ARDENNES | C15: 11 | D15: REIMS | E15: 551340 | F15: BETHENY | G15: 2.3 | H15: 44% | I15: 34% | J15: 6 | K15: 33% | L15: 33% | M15: 45 | N15: 40% | O15: 40% | P15: 5 | Q15: 64% | R15: 33% | S15: 32 | T15: 72% | U15: 72% | V15: 78 | W15: 43% | X15: 43% | Y15: 11
A16: 50 | B16: MARNE ARDENNES | C16: 6 | D16: CHALONS EN CHAMPAGNE | E16: 551330 | F16: MONTMIRAIL | G16: 2.8 | H16: 45% | I16: 35% | J16: 7 | K16: 18% | L16: 18% | M16: 11 | N16: 52% | O16: 52% | P16: 16 | Q16: 66% | R16: 35% | S16: 43 | T16: 56% | U16: 56% | V16: 9 | W16: 63% | X16: 63% | Y16: 76
A17: 50 | B17: MARNE ARDENNES | C17: 2 | D17: CHARLEVILLE MEZIERES | E17: 508820 | F17: VOUZIERS | G17: 2.9 | H17: 45% | I17: 35% | J17: 8 | K17: 28% | L17: 28% | M17: 29 | N17: 59% | O17: 59% | P17: 33 | Q17: 64% | R17: 33% | S17: 30 | T17: 50% | U17: 50% | V17: 3 | W17: 55% | X17: 55% | Y17: 35
A18: 50 | B18: MARNE ARDENNES | C18: 11 | D18: REIMS | E18: 551349 | F18: REIMS SAINT REMI | G18: 2.9 | H18: 46% | I18: 36% | J18: 9 | K18: 53% | L18: 53% | M18: 123 | N18: 39% | O18: 39% | P18: 3 | Q18: 71% | R18: 40% | S18: 71 | T18: 59% | U18: 59% | V18: 14 | W18: 41% | X18: 41% | Y18: 8
A19: 50 | B19: MOSELLE | C19: 45 | D19: METZ | E19: 457443 | F19: METZ REPUBLIQUE | G19: 3.5 | H19: 46% | I19: 36% | J19: 10 | K19: 31% | L19: 31% | M19: 41 | N19: 69% | O19: 69% | P19: 81 | Q19: 39% | R19: 7% | S19: 3 | T19: 58% | U19: 58% | V19: 12 | W19: 67% | X19: 67% | Y19: 101
A20: 50 | B20: MEURTHE ET MOSELLE MEUSE | C20: 26 | D20: NANCY | E20: 554476 | F20: NANCY ARTEM | G20: 2.8 | H20: 47% | I20: 36% | J20: 11 | K20: 30% | L20: 30% | M20: 40 | N20: 48% | O20: 48% | P20: 10 | Q20: 83% | R20: 51% | S20: 179 | T20: 69% | U20: 69% | V20: 54 | W20: 36% | X20: 36% | Y20: 3
A21: 50 | B21: MARNE ARDENNES | C21: 6 | D21: CHALONS EN CHAMPAGNE | E21: 451120 | F21: SARRY | G21: 2.3 | H21: 47% | I21: 37% | J21: 12 | K21: 10% | L21: 10% | M21: 6 | N21: 53% | O21: 53% | P21: 18 | Q21: 77% | R21: 45% | S21: 121 | T21: 68% | U21: 68% | V21: 48 | W21: 61% | X21: 61% | Y21: 66
A22: 50 | B22: MOSELLE | C22: 44 | D22: MOSELLE NORD | E22: 557113 | F22: AUDUN LE TICHE | G22: 2.1 | H22: 48% | I22: 37% | J22: 13 | K22: 52% | L22: 52% | M22: 118 | N22: 47% | O22: 47% | P22: 9 | Q22: 62% | R22: 31% | S22: 25 | T22: 63% | U22: 63% | V22: 22 | W22: 47% | X22: 47% | Y22: 14
A23: 50 | B23: BAS RHIN | C23: 5006 | D23: STRASBOURG | E23: 4048 | F23: STRASBOURG KOENIGSHOFFEN | G23: 1.7 | H23: 48% | I23: 38% | J23: 14 | K23: 67% | L23: 67% | M23: 175 | N23: 47% | O23: 47% | P23: 8 | Q23: 54% | R23: 23% | S23: 8 | T23: 55% | U23: 55% | V23: 7 | W23: 49% | X23: 49% | Y23: 20
A24: 50 | B24: MEURTHE ET MOSELLE MEUSE | C24: 27 | D24: PONT A MOUSSON | E24: 554381 | F24: LAXOU ARISTIDE BRIAND | G24: 2.3 | H24: 48% | I24: 38% | J24: 15 | K24: 64% | L24: 64% | M24: 163 | N24: 40% | O24: 40% | P24: 4 | Q24: 68% | R24: 37% | S24: 57 | T24: 59% | U24: 59% | V24: 13 | W24: 40% | X24: 40% | Y24: 6
A25: 50 | B25: MARNE ARDENNES | C25: 11 | D25: REIMS | E25: 551365 | F25: DORMANS | G25: 2.6 | H25: 49% | I25: 39% | J25: 16 | K25: 36% | L25: 36% | M25: 56 | N25: 44% | O25: 44% | P25: 6 | Q25: 80% | R25: 48% | S25: 145 | T25: 66% | U25: 66% | V25: 33 | W25: 53% | X25: 53% | Y25: 27
A26: 50 | B26: MOSELLE | C26: 42 | D26: MOSELLE EST | E26: 457165 | F26: BITCHE | G26: 2.5 | H26: 50% | I26: 39% | J26: 17 | K26: 20% | L26: 20% | M26: 15 | N26: 52% | O26: 52% | P26: 15 | Q26: 76% | R26: 45% | S26: 113 | T26: 63% | U26: 63% | V26: 24 | W26: 68% | X26: 68% | Y26: 110
A27: 50 | B27: BAS RHIN | C27: 5006 | D27: STRASBOURG | E27: 4037 | F27: MUNDOLSHEIM | G27: 3.8 | H27: 50% | I27: 39% | J27: 18 | K27: 36% | L27: 36% | M27: 54 | N27: 53% | O27: 53% | P27: 19 | Q27: 81% | R27: 50% | S27: 166 | T27: 57% | U27: 57% | V27: 10 | W27: 53% | X27: 53% | Y27: 28
A28: 262 | B28: MOSELLE | C28: 45 | D28: METZ | E28: 457453 | F28: MONTIGNY LES METZ | G28: 6.9 | H28: 50% | I28: 40% | J28: 19 | K28: 18% | L28: 18% | M28: 10 | N28: 62% | O28: 62% | P28: 44 | Q28: 71% | R28: 39% | S28: 69 | T28: 75% | U28: 75% | V28: 106 | W28: 57% | X28: 57% | Y28: 42
A29: 262 | B29: MARNE ARDENNES | C29: 11 | D29: REIMS | E29: 451350 | F29: REIMS CENTRE VILLE | G29: 6.4 | H29: 51% | I29: 40% | J29: 20 | K29: 68% | L29: 68% | M29: 184 | N29: 45% | O29: 45% | P29: 7 | Q29: 72% | R29: 40% | S29: 73 | T29: 63% | U29: 63% | V29: 23 | W29: 37% | X29: 37% | Y29: 4
A30: 262 | B30: MEURTHE ET MOSELLE MEUSE | C30: 26 | D30: NANCY | E30: 554601 | F30: SAINT MAX | G30: 3.5 | H30: 51% | I30: 41% | J30: 21 | K30: 24% | L30: 24% | M30: 22 | N30: 72% | O30: 72% | P30: 108 | Q30: 59% | R30: 27% | S30: 16 | T30: 67% | U30: 67% | V30: 47 | W30: 64% | X30: 64% | Y30: 79
A31: 262 | B31: MOSELLE | C31: 42 | D31: MOSELLE EST | E31: 457308 | F31: FORBACH CENTRALE | G31: 10.3 | H31: 52% | I31: 41% | J31: 22 | K31: 44% | L31: 44% | M31: 89 | N31: 53% | O31: 53% | P31: 21 | Q31: 74% | R31: 42% | S31: 97 | T31: 63% | U31: 63% | V31: 25 | W31: 54% | X31: 54% | Y31: 29
A32: 262 | B32: MARNE ARDENNES | C32: 11 | D32: REIMS | E32: 451336 | F32: TINQUEUX | G32: 5.0 | H32: 52% | I32: 42% | J32: 23 | K32: 60% | L32: 60% | M32: 145 | N32: 62% | O32: 62% | P32: 43 | Q32: 35% | R32: 3% | S32: 2 | T32: 75% | U32: 75% | V32: 105 | W32: 60% | X32: 60% | Y32: 58
A33: 262 | B33: MARNE ARDENNES | C33: 2 | D33: CHARLEVILLE MEZIERES | E33: 408801 | F33: CHARLEVILLE JEAN JAURES | G33: 8.9 | H33: 52% | I33: 42% | J33: 24 | K33: 38% | L33: 38% | M33: 64 | N33: 66% | O33: 66% | P33: 65 | Q33: 65% | R33: 34% | S33: 37 | T33: 67% | U33: 67% | V33: 37 | W33: 57% | X33: 57% | Y33: 39
A34: 262 | B34: MOSELLE | C34: 45 | D34: METZ | E34: 557439 | F34: METZ POMPIDOU | G34: 2.6 | H34: 52% | I34: 42% | J34: 25 | K34: 36% | L34: 36% | M34: 52 | N34: 64% | O34: 64% | P34: 55 | Q34: 55% | R34: 24% | S34: 9 | T34: 76% | U34: 76% | V34: 123 | W34: 62% | X34: 62% | Y34: 71
A35: 262 | B35: MARNE ARDENNES | C35: 6 | D35: CHALONS EN CHAMPAGNE | E35: 551354 | F35: VERTUS | G35: 2.0 | H35: 53% | I35: 42% | J35: 26 | K35: 0% | L35: 0% | M35: 1 | N35: 78% | O35: 78% | P35: 150 | Q35: 64% | R35: 33% | S35: 33 | T35: 84% | U35: 84% | V35: 194 | W35: 70% | X35: 70% | Y35: 130
A36: 262 | B36: MEURTHE ET MOSELLE MEUSE | C36: 27 | D36: PONT A MOUSSON | E36: 554531 | F36: POMPEY | G36: 3.1 | H36: 53% | I36: 43% | J36: 27 | K36: 72% | L36: 72% | M36: 207 | N36: 52% | O36: 52% | P36: 13 | Q36: 66% | R36: 35% | S36: 42 | T36: 66% | U36: 66% | V36: 36 | W36: 40% | X36: 40% | Y36: 7
A37: 262 | B37: MARNE ARDENNES | C37: 11 | D37: REIMS | E37: 451370 | F37: EPERNAY | G37: 8.9 | H37: 53% | I37: 43% | J37: 28 | K37: 39% | L37: 39% | M37: 69 | N37: 59% | O37: 59% | P37: 35 | Q37: 68% | R37: 37% | S37: 52 | T37: 74% | U37: 74% | V37: 95 | W37: 58% | X37: 58% | Y37: 46
A38: 262 | B38: AUBE HAUTE MARNE | C38: 21 | D38: CHAUMONT | E38: 510590 | F38: CHAUMONT REPUBLIQUE | G38: 2.9 | H38: 53% | I38: 43% | J38: 29 | K38: 32% | L38: 32% | M38: 44 | N38: 75% | O38: 75% | P38: 131 | Q38: 66% | R38: 34% | S38: 40 | T38: 65% | U38: 65% | V38: 30 | W38: 60% | X38: 60% | Y38: 61
A39: 262 | B39: MOSELLE | C39: 45 | D39: METZ | E39: 457446 | F39: METZ SAINT LOUIS | G39: 5.8 | H39: 54% | I39: 43% | J39: 30 | K39: 48% | L39: 48% | M39: 102 | N39: 57% | O39: 57% | P39: 28 | Q39: 71% | R39: 40% | S39: 72 | T39: 71% | U39: 71% | V39: 68 | W39: 53% | X39: 53% | Y39: 26
A40: 262 | B40: VOSGES | C40: 57 | D40: EPINAL | E40: 588336 | F40: GOLBEY | G40: 2.8 | H40: 54% | I40: 43% | J40: 31 | K40: 30% | L40: 30% | M40: 39 | N40: 73% | O40: 73% | P40: 115 | Q40: 65% | R40: 34% | S40: 39 | T40: 68% | U40: 68% | V40: 53 | W40: 63% | X40: 63% | Y40: 74
A41: 262 | B41: MOSELLE | C41: 42 | D41: MOSELLE EST | E41: 557250 | F41: CREUTZWALD | G41: 2.5 | H41: 54% | I41: 43% | J41: 32 | K41: 23% | L41: 23% | M41: 20 | N41: 76% | O41: 76% | P41: 136 | Q41: 72% | R41: 41% | S41: 77 | T41: 67% | U41: 67% | V41: 42 | W41: 62% | X41: 62% | Y41: 73
A42: 262 | B42: MARNE ARDENNES | C42: 2 | D42: CHARLEVILLE MEZIERES | E42: 508839 | F42: GIVET | G42: 3.3 | H42: 54% | I42: 43% | J42: 33 | K42: 41% | L42: 41% | M42: 73 | N42: 62% | O42: 62% | P42: 45 | Q42: 81% | R42: 49% | S42: 154 | T42: 58% | U42: 58% | V42: 11 | W42: 58% | X42: 58% | Y42: 47
A43: 262 | B43: MEURTHE ET MOSELLE MEUSE | C43: 26 | D43: NANCY | E43: 554356 | F43: JARVILLE LA MALGRANGE | G43: 4.2 | H43: 54% | I43: 44% | J43: 34 | K43: 29% | L43: 29% | M43: 33 | N43: 57% | O43: 57% | P43: 30 | Q43: 84% | R43: 52% | S43: 189 | T43: 71% | U43: 71% | V43: 71 | W43: 60% | X43: 60% | Y43: 57
A44: 262 | B44: MARNE ARDENNES | C44: 11 | D44: REIMS | E44: 451361 | F44: PIERRY LECLERC | G44: 1.8 | H44: 54% | I44: 44% | J44: 35 | K44: 36% | L44: 36% | M44: 57 | N44: 66% | O44: 66% | P44: 61 | Q44: 59% | R44: 27% | S44: 15 | T44: 74% | U44: 74% | V44: 97 | W44: 66% | X44: 66% | Y44: 92
A45: 262 | B45: MARNE ARDENNES | C45: 11 | D45: REIMS | E45: 451301 | F45: REIMS HOTEL DE VILLE | G45: 7.0 | H45: 54% | I45: 44% | J45: 36 | K45: 47% | L45: 47% | M45: 96 | N45: 64% | O45: 64% | P45: 53 | Q45: 74% | R45: 43% | S45: 101 | T45: 59% | U45: 59% | V45: 16 | W45: 57% | X45: 57% | Y45: 40
A46: 262 | B46: MARNE ARDENNES | C46: 2 | D46: CHARLEVILLE MEZIERES | E46: 508833 | F46: VILLERS SEMEUSE CORA | G46: 3.1 | H46: 54% | I46: 44% | J46: 37 | K46: 69% | L46: 69% | M46: 192 | N46: 69% | O46: 69% | P46: 82 | Q46: 65% | R46: 33% | S46: 34 | T46: 52% | U46: 52% | V46: 4 | W46: 47% | X46: 47% | Y46: 17
A47: 262 | B47: MARNE ARDENNES | C47: 11 | D47: REIMS | E47: 551314 | F47: FISMES | G47: 2.6 | H47: 54% | I47: 44% | J47: 38 | K47: 22% | L47: 22% | M47: 18 | N47: 56% | O47: 56% | P47: 27 | Q47: 88% | R47: 57% | S47: 219 | T47: 77% | U47: 77% | V47: 129 | W47: 60% | X47: 60% | Y47: 54
A48: 262 | B48: MARNE ARDENNES | C48: 11 | D48: REIMS | E48: 551367 | F48: AY CHAMPAGNE | G48: 2.7 | H48: 55% | I48: 44% | J48: 39 | K48: 32% | L48: 32% | M48: 43 | N48: 71% | O48: 71% | P48: 101 | Q48: 73% | R48: 42% | S48: 91 | T48: 68% | U48: 68% | V48: 50 | W48: 60% | X48: 60% | Y48: 50
A49: 262 | B49: BAS RHIN | C49: 5101 | D49: SELESTAT | E49: 4113 | F49: BARR | G49: 2.9 | H49: 55% | I49: 45% | J49: 40 | K49: 27% | L49: 27% | M49: 27 | N49: 58% | O49: 58% | P49: 32 | Q49: 75% | R49: 44% | S49: 107 | T49: 78% | U49: 78% | V49: 136 | W49: 69% | X49: 69% | Y49: 125
A50: 262 | B50: MOSELLE | C50: 45 | D50: METZ | E50: 457574 | F50: ROMBAS | G50: 2.5 | H50: 55% | I50: 45% | J50: 41 | K50: 34% | L50: 34% | M50: 48 | N50: 70% | O50: 70% | P50: 88 | Q50: 73% | R50: 42% | S50: 92 | T50: 62% | U50: 62% | V50: 19 | W50: 70% | X50: 70% | Y50: 132
A51: 262 | B51: MOSELLE | C51: 42 | D51: MOSELLE EST | E51: 457583 | F51: SAINT AVOLD | G51: 7.0 | H51: 55% | I51: 45% | J51: 42 | K51: 37% | L51: 37% | M51: 60 | N51: 61% | O51: 61% | P51: 42 | Q51: 76% | R51: 44% | S51: 112 | T51: 69% | U51: 69% | V51: 57 | W51: 65% | X51: 65% | Y51: 85
A52: 262 | B52: MEURTHE ET MOSELLE MEUSE | C52: 31 | D52: VERDUN | E52: 554413 | F52: LONGWY BAS | G52: 3.5 | H52: 55% | I52: 45% | J52: 43 | K52: 19% | L52: 19% | M52: 12 | N52: 68% | O52: 68% | P52: 76 | Q52: 81% | R52: 49% | S52: 157 | T52: 75% | U52: 75% | V52: 113 | W52: 65% | X52: 65% | Y52: 83
A53: 262 | B53: MOSELLE | C53: 44 | D53: MOSELLE NORD | E53: 557352 | F53: HETTANGE GRANDE | G53: 3.1 | H53: 55% | I53: 45% | J53: 44 | K53: 59% | L53: 59% | M53: 143 | N53: 59% | O53: 59% | P53: 37 | Q53: 76% | R53: 45% | S53: 116 | T53: 67% | U53: 67% | V53: 38 | W53: 48% | X53: 48% | Y53: 18
A54: 262 | B54: MEURTHE ET MOSELLE MEUSE | C54: 31 | D54: VERDUN | E54: 555406 | F54: LIGNY EN BARROIS | G54: 2.5 | H54: 56% | I54: 45% | J54: 45 | K54: 20% | L54: 20% | M54: 16 | N54: 73% | O54: 73% | P54: 111 | Q54: 56% | R54: 25% | S54: 10 | T54: 86% | U54: 86% | V54: 215 | W54: 74% | X54: 74% | Y54: 184
A55: 262 | B55: MARNE ARDENNES | C55: 11 | D55: REIMS | E55: 551369 | F55: DAMERY | G55: 1.6 | H55: 56% | I55: 45% | J55: 46 | K55: 43% | L55: 43% | M55: 80 | N55: 53% | O55: 53% | P55: 20 | Q55: 101% | R55: 70% | S55: 236 | T55: 67% | U55: 67% | V55: 40 | W55: 46% | X55: 46% | Y55: 13
A56: 262 | B56: MEURTHE ET MOSELLE MEUSE | C56: 31 | D56: VERDUN | E56: 455678 | F56: VERDUN CENTRALE | G56: 10.1 | H56: 56% | I56: 45% | J56: 47 | K56: 24% | L56: 24% | M56: 21 | N56: 67% | O56: 67% | P56: 67 | Q56: 85% | R56: 54% | S56: 199 | T56: 78% | U56: 78% | V56: 137 | W56: 56% | X56: 56% | Y56: 36
A57: 262 | B57: MEURTHE ET MOSELLE MEUSE | C57: 27 | D57: PONT A MOUSSON | E57: 554506 | F57: CHALIGNY NEUVES MAISONS | G57: 3.5 | H57: 56% | I57: 45% | J57: 48 | K57: 64% | L57: 64% | M57: 159 | N57: 54% | O57: 54% | P57: 22 | Q57: 84% | R57: 52% | S57: 187 | T57: 59% | U57: 59% | V57: 15 | W57: 49% | X57: 49% | Y57: 21
A58: 262 | B58: BAS RHIN | C58: 5006 | D58: STRASBOURG | E58: 4038 | F58: OBERHAUSBERGEN | G58: 3.3 | H58: 56% | I58: 45% | J58: 49 | K58: 37% | L58: 37% | M58: 61 | N58: 67% | O58: 67% | P58: 70 | Q58: 57% | R58: 26% | S58: 12 | T58: 85% | U58: 85% | V58: 205 | W58: 63% | X58: 63% | Y58: 77
A59: 262 | B59: MEURTHE ET MOSELLE MEUSE | C59: 27 | D59: PONT A MOUSSON | E59: 554516 | F59: PAGNY SUR MOSELLE | G59: 2.7 | H59: 56% | I59: 45% | J59: 50 | K59: 49% | L59: 49% | M59: 109 | N59: 68% | O59: 68% | P59: 73 | Q59: 68% | R59: 37% | S59: 54 | T59: 65% | U59: 65% | V59: 27 | W59: 60% | X59: 60% | Y59: 62
A60: 262 | B60: MARNE ARDENNES | C60: 11 | D60: REIMS | E60: 551310 | F60: REIMS CHATILLONS | G60: 3.9 | H60: 56% | I60: 45% | J60: 51 | K60: 53% | L60: 53% | M60: 124 | N60: 57% | O60: 57% | P60: 29 | Q60: 75% | R60: 44% | S60: 109 | T60: 70% | U60: 70% | V60: 64 | W60: 55% | X60: 55% | Y60: 32
A61: 262 | B61: MOSELLE | C61: 45 | D61: METZ | E61: 557432 | F61: MAIZIERES LES METZ | G61: 2.6 | H61: 56% | I61: 45% | J61: 52 | K61: 69% | L61: 69% | M61: 193 | N61: 56% | O61: 56% | P61: 26 | Q61: 74% | R61: 43% | S61: 103 | T61: 69% | U61: 69% | V61: 55 | W61: 42% | X61: 42% | Y61: 9
A62: 262 | B62: MARNE ARDENNES | C62: 6 | D62: CHALONS EN CHAMPAGNE | E62: 551110 | F62: CHALONS ROOSEVELT | G62: 4.3 | H62: 56% | I62: 46% | J62: 53 | K62: 29% | L62: 29% | M62: 31 | N62: 73% | O62: 73% | P62: 114 | Q62: 79% | R62: 47% | S62: 136 | T62: 64% | U62: 64% | V62: 26 | W62: 68% | X62: 68% | Y62: 113
A63: 262 | B63: MOSELLE | C63: 44 | D63: MOSELLE NORD | E63: 457350 | F63: HAYANGE | G63: 6.2 | H63: 56% | I63: 46% | J63: 54 | K63: 51% | L63: 51% | M63: 115 | N63: 63% | O63: 63% | P63: 49 | Q63: 77% | R63: 45% | S63: 119 | T63: 62% | U63: 62% | V63: 20 | W63: 60% | X63: 60% | Y63: 52
A64: 262 | B64: MEURTHE ET MOSELLE MEUSE | C64: 26 | D64: NANCY | E64: 554636 | F64: TOMBLAINE | G64: 2.5 | H64: 56% | I64: 46% | J64: 55 | K64: 20% | L64: 20% | M64: 14 | N64: 79% | O64: 79% | P64: 160 | Q64: 68% | R64: 36% | S64: 50 | T64: 77% | U64: 77% | V64: 127 | W64: 69% | X64: 69% | Y64: 123
A65: 262 | B65: VOSGES | C65: 55 | D65: SAINT DIE | E65: 488326 | F65: GERARDMER | G65: 3.8 | H65: 56% | I65: 46% | J65: 56 | K65: 44% | L65: 44% | M65: 84 | N65: 70% | O65: 70% | P65: 94 | Q65: 64% | R65: 32% | S65: 28 | T65: 75% | U65: 75% | V65: 99 | W65: 61% | X65: 61% | Y65: 68
A66: 262 | B66: MEURTHE ET MOSELLE MEUSE | C66: 27 | D66: PONT A MOUSSON | E66: 554686 | F66: VEZELISE | G66: 1.9 | H66: 57% | I66: 46% | J66: 57 | K66: 9% | L66: 9% | M66: 3 | N66: 75% | O66: 75% | P66: 132 | Q66: 72% | R66: 41% | S66: 78 | T66: 79% | U66: 79% | V66: 146 | W66: 79% | X66: 79% | Y66: 229
A67: 262 | B67: MOSELLE | C67: 44 | D67: MOSELLE NORD | E67: 557303 | F67: FAMECK | G67: 2.8 | H67: 57% | I67: 46% | J67: 58 | K67: 34% | L67: 34% | M67: 49 | N67: 68% | O67: 68% | P67: 79 | Q67: 68% | R67: 37% | S67: 56 | T67: 87% | U67: 87% | V67: 220 | W67: 56% | X67: 56% | Y67: 38
A68: 262 | B68: MOSELLE | C68: 42 | D68: MOSELLE EST | E68: 457617 | F68: SARREGUEMINES | G68: 6.5 | H68: 57% | I68: 46% | J68: 59 | K68: 60% | L68: 60% | M68: 146 | N68: 63% | O68: 63% | P68: 48 | Q68: 68% | R68: 37% | S68: 51 | T68: 70% | U68: 70% | V68: 60 | W68: 55% | X68: 55% | Y68: 34
A69: 262 | B69: MOSELLE | C69: 44 | D69: MOSELLE NORD | E69: 457632 | F69: THIONVILLE CENTRALE | G69: 10.6 | H69: 57% | I69: 47% | J69: 60 | K69: 55% | L69: 55% | M69: 132 | N69: 58% | O69: 58% | P69: 31 | Q69: 82% | R69: 50% | S69: 170 | T69: 65% | U69: 65% | V69: 28 | W69: 58% | X69: 58% | Y69: 48
A70: 262 | B70: MOSELLE | C70: 45 | D70: METZ | E70: 557447 | F70: METZ SAINT MAXIMIN | G70: 2.3 | H70: 57% | I70: 47% | J70: 61 | K70: 63% | L70: 63% | M70: 154 | N70: 68% | O70: 68% | P70: 72 | Q70: 67% | R70: 36% | S70: 46 | T70: 53% | U70: 53% | V70: 5 | W70: 67% | X70: 67% | Y70: 98
A71: 262 | B71: MEURTHE ET MOSELLE MEUSE | C71: 26 | D71: NANCY | E71: 454481 | F71: NANCY PLACE DOMBASLE | G71: 7.8 | H71: 57% | I71: 47% | J71: 62 | K71: 58% | L71: 58% | M71: 140 | N71: 66% | O71: 66% | P71: 62 | Q71: 71% | R71: 39% | S71: 67 | T71: 74% | U71: 74% | V71: 92 | W71: 48% | X71: 48% | Y71: 19
A72: 262 | B72: AUBE HAUTE MARNE | C72: 21 | D72: CHAUMONT | E72: 410541 | F72: LANGRES | G72: 8.2 | H72: 57% | I72: 47% | J72: 63 | K72: 39% | L72: 39% | M72: 67 | N72: 70% | O72: 70% | P72: 89 | Q72: 73% | R72: 42% | S72: 90 | T72: 68% | U72: 68% | V72: 52 | W72: 68% | X72: 68% | Y72: 107
A73: 262 | B73: MOSELLE | C73: 44 | D73: MOSELLE NORD | E73: 457348 | F73: HAGONDANGE | G73: 8.1 | H73: 57% | I73: 47% | J73: 64 | K73: 52% | L73: 52% | M73: 117 | N73: 64% | O73: 64% | P73: 51 | Q73: 75% | R73: 44% | S73: 108 | T73: 67% | U73: 67% | V73: 39 | W73: 60% | X73: 60% | Y73: 55
A74: 264 | B74: BAS RHIN | C74: 5006 | D74: STRASBOURG | E74: 4054 | F74: STRASBOURG MONTAGNE VERTE | G74: 2.7 | H74: 57% | I74: 47% | J74: 65 | K74: 31% | L74: 31% | M74: 42 | N74: 71% | O74: 71% | P74: 98 | Q74: 71% | R74: 39% | S74: 68 | T74: 67% | U74: 67% | V74: 45 | W74: 78% | X74: 78% | Y74: 220
A75: 264 | B75: MEURTHE ET MOSELLE MEUSE | C75: 26 | D75: NANCY | E75: 554116 | F75: BACCARAT | G75: 2.8 | H75: 57% | I75: 47% | J75: 66 | K75: 9% | L75: 9% | M75: 4 | N75: 77% | O75: 77% | P75: 145 | Q75: 78% | R75: 47% | S75: 134 | T75: 78% | U75: 78% | V75: 141 | W75: 75% | X75: 75% | Y75: 196
A76: 264 | B76: MOSELLE | C76: 42 | D76: MOSELLE EST | E76: 557668 | F76: VALMONT | G76: 2.8 | H76: 58% | I76: 47% | J76: 67 | K76: 30% | L76: 30% | M76: 36 | N76: 82% | O76: 82% | P76: 182 | Q76: 61% | R76: 29% | S76: 21 | T76: 75% | U76: 75% | V76: 102 | W76: 72% | X76: 72% | Y76: 160
A77: 264 | B77: MEURTHE ET MOSELLE MEUSE | C77: 31 | D77: VERDUN | E77: 555679 | F77: VERDUN MAZEL | G77: 3.6 | H77: 58% | I77: 47% | J77: 68 | K77: 22% | L77: 22% | M77: 19 | N77: 73% | O77: 73% | P77: 117 | Q77: 74% | R77: 43% | S77: 100 | T77: 77% | U77: 77% | V77: 128 | W77: 73% | X77: 73% | Y77: 176
A78: 264 | B78: MARNE ARDENNES | C78: 6 | D78: CHALONS EN CHAMPAGNE | E78: 451101 | F78: CHALONS VIVIERS | G78: 9.4 | H78: 58% | I78: 47% | J78: 69 | K78: 29% | L78: 29% | M78: 32 | N78: 75% | O78: 75% | P78: 130 | Q78: 78% | R78: 47% | S78: 133 | T78: 72% | U78: 72% | V78: 87 | W78: 66% | X78: 66% | Y78: 93
A79: 264 | B79: MARNE ARDENNES | C79: 11 | D79: REIMS | E79: 551306 | F79: REIMS SAINT MARCEAUX | G79: 3.9 | H79: 58% | I79: 48% | J79: 70 | K79: 37% | L79: 37% | M79: 58 | N79: 55% | O79: 55% | P79: 24 | Q79: 95% | R79: 64% | S79: 235 | T79: 72% | U79: 72% | V79: 86 | W79: 61% | X79: 61% | Y79: 65
A80: 264 | B80: MARNE ARDENNES | C80: 11 | D80: REIMS | E80: 551341 | F80: REIMS JEAN JAURES | G80: 3.1 | H80: 58% | I80: 48% | J80: 71 | K80: 67% | L80: 67% | M80: 176 | N80: 60% | O80: 60% | P80: 39 | Q80: 70% | R80: 38% | S80: 60 | T80: 72% | U80: 72% | V80: 84 | W80: 53% | X80: 53% | Y80: 25
A81: 264 | B81: BAS RHIN | C81: 5006 | D81: STRASBOURG | E81: 4043 | F81: STRASBOURG HALLES | G81: 7.8 | H81: 58% | I81: 48% | J81: 72 | K81: 62% | L81: 62% | M81: 152 | N81: 60% | O81: 60% | P81: 41 | Q81: 74% | R81: 42% | S81: 98 | T81: 55% | U81: 55% | V81: 6 | W81: 70% | X81: 70% | Y81: 137
A82: 264 | B82: MOSELLE | C82: 44 | D82: MOSELLE NORD | E82: 457306 | F82: FLORANGE | G82: 4.6 | H82: 58% | I82: 48% | J82: 73 | K82: 77% | L82: 77% | M82: 229 | N82: 59% | O82: 59% | P82: 36 | Q82: 72% | R82: 41% | S82: 80 | T82: 71% | U82: 71% | V82: 73 | W82: 42% | X82: 42% | Y82: 10
A83: 264 | B83: MEURTHE ET MOSELLE MEUSE | C83: 31 | D83: VERDUN | E83: 454414 | F83: LONGWY HAUT | G83: 3.3 | H83: 58% | I83: 48% | J83: 74 | K83: 50% | L83: 50% | M83: 112 | N83: 69% | O83: 69% | P83: 87 | Q83: 72% | R83: 40% | S83: 76 | T83: 66% | U83: 66% | V83: 32 | W83: 65% | X83: 65% | Y83: 87
A84: 264 | B84: BAS RHIN | C84: 5060 | D84: HAGUENAU | E84: 4071 | F84: WISSEMBOURG | G84: 8.0 | H84: 58% | I84: 48% | J84: 75 | K84: 30% | L84: 30% | M84: 38 | N84: 70% | O84: 70% | P84: 91 | Q84: 70% | R84: 38% | S84: 61 | T84: 76% | U84: 76% | V84: 120 | W84: 77% | X84: 77% | Y84: 210
A85: 264 | B85: MARNE ARDENNES | C85: 6 | D85: CHALONS EN CHAMPAGNE | E85: 551103 | F85: FAGNIERES LECLERC | G85: 2.8 | H85: 58% | I85: 48% | J85: 76 | K85: 47% | L85: 47% | M85: 99 | N85: 74% | O85: 74% | P85: 123 | Q85: 77% | R85: 46% | S85: 124 | T85: 60% | U85: 60% | V85: 17 | W85: 64% | X85: 64% | Y85: 80
A86: 264 | B86: MOSELLE | C86: 42 | D86: MOSELLE EST | E86: 557305 | F86: FAULQUEMONT | G86: 4.1 | H86: 58% | I86: 48% | J86: 77 | K86: 77% | L86: 77% | M86: 227 | N86: 53% | O86: 53% | P86: 17 | Q86: 84% | R86: 52% | S86: 185 | T86: 66% | U86: 66% | V86: 35 | W86: 44% | X86: 44% | Y86: 12
A87: 264 | B87: BAS RHIN | C87: 5060 | D87: HAGUENAU | E87: 4092 | F87: HOCHFELDEN | G87: 1.9 | H87: 58% | I87: 48% | J87: 78 | K87: 44% | L87: 44% | M87: 85 | N87: 75% | O87: 75% | P87: 127 | Q87: 65% | R87: 33% | S87: 36 | T87: 72% | U87: 72% | V87: 77 | W87: 68% | X87: 68% | Y87: 111
A88: 264 | B88: BAS RHIN | C88: 5006 | D88: STRASBOURG | E88: 4024 | F88: STRASBOURG AUSTERLITZ | G88: 1.1 | H88: 58% | I88: 48% | J88: 79 | K88: 83% | L88: 83% | M88: 238 | N88: 66% | O88: 66% | P88: 64 | Q88: 50% | R88: 18% | S88: 7 | T88: 68% | U88: 68% | V88: 49 | W88: 56% | X88: 56% | Y88: 37
A89: 264 | B89: VOSGES | C89: 57 | D89: EPINAL | E89: 588396 | F89: LE VAL D AJOL | G89: 2.4 | H89: 58% | I89: 48% | J89: 80 | K89: 10% | L89: 10% | M89: 5 | N89: 80% | O89: 80% | P89: 167 | Q89: 75% | R89: 43% | S89: 105 | T89: 81% | U89: 81% | V89: 169 | W89: 78% | X89: 78% | Y89: 224
A90: 264 | B90: VOSGES | C90: 57 | D90: EPINAL | E90: 488561 | F90: REMIREMONT | G90: 7.2 | H90: 58% | I90: 48% | J90: 81 | K90: 20% | L90: 20% | M90: 13 | N90: 71% | O90: 71% | P90: 102 | Q90: 80% | R90: 49% | S90: 149 | T90: 78% | U90: 78% | V90: 135 | W90: 74% | X90: 74% | Y90: 185
A91: 264 | B91: MARNE ARDENNES | C91: 6 | D91: CHALONS EN CHAMPAGNE | E91: 451381 | F91: SEZANNE | G91: 4.7 | H91: 58% | I91: 48% | J91: 82 | K91: 43% | L91: 43% | M91: 81 | N91: 67% | O91: 67% | P91: 69 | Q91: 63% | R91: 31% | S91: 27 | T91: 86% | U91: 86% | V91: 213 | W91: 65% | X91: 65% | Y91: 88
A92: 264 | B92: BAS RHIN | C92: 5101 | D92: SELESTAT | E92: 4104 | F92: ERSTEIN | G92: 4.2 | H92: 58% | I92: 48% | J92: 83 | K92: 72% | L92: 72% | M92: 208 | N92: 51% | O92: 51% | P92: 12 | Q92: 67% | R92: 36% | S92: 48 | T92: 69% | U92: 69% | V92: 59 | W92: 64% | X92: 64% | Y92: 78
A93: 264 | B93: BAS RHIN | C93: 5006 | D93: STRASBOURG | E93: 4047 | F93: STRASBOURG CRONENBOURG | G93: 4.4 | H93: 59% | I93: 48% | J93: 84 | K93: 51% | L93: 51% | M93: 113 | N93: 59% | O93: 59% | P93: 34 | Q93: 68% | R93: 37% | S93: 53 | T93: 76% | U93: 76% | V93: 119 | W93: 71% | X93: 71% | Y93: 141
A94: 264 | B94: MOSELLE | C94: 42 | D94: MOSELLE EST | E94: 557523 | F94: PHALSBOURG | G94: 2.5 | H94: 59% | I94: 48% | J94: 85 | K94: 49% | L94: 49% | M94: 108 | N94: 77% | O94: 77% | P94: 142 | Q94: 65% | R94: 33% | S94: 35 | T94: 67% | U94: 67% | V94: 43 | W94: 67% | X94: 67% | Y94: 103
A95: 264 | B95: MARNE ARDENNES | C95: 2 | D95: CHARLEVILLE MEZIERES | E95: 408840 | F95: RETHEL | G95: 4.3 | H95: 59% | I95: 48% | J95: 86 | K95: 55% | L95: 55% | M95: 133 | N95: 65% | O95: 65% | P95: 57 | Q95: 73% | R95: 41% | S95: 81 | T95: 71% | U95: 71% | V95: 74 | W95: 61% | X95: 61% | Y95: 69
A96: 30 | B96: MOSELLE | C96: 44 | D96: MOSELLE NORD | E96: 457158 | F96: YUTZ | G96: 4.7 | H96: 59% | I96: 48% | J96: 87 | K96: 63% | L96: 63% | M96: 155 | N96: 65% | O96: 65% | P96: 59 | Q96: 74% | R96: 43% | S96: 102 | T96: 65% | U96: 65% | V96: 31 | W96: 57% | X96: 57% | Y96: 41
A97: 30 | B97: VOSGES | C97: 55 | D97: SAINT DIE | E97: 588551 | F97: RAMBERVILLERS | G97: 2.6 | H97: 59% | I97: 48% | J97: 88 | K97: 26% | L97: 26% | M97: 24 | N97: 79% | O97: 79% | P97: 164 | Q97: 77% | R97: 46% | S97: 128 | T97: 86% | U97: 86% | V97: 214 | W97: 57% | X97: 57% | Y97: 44
A98: 30 | B98: MARNE ARDENNES | C98: 2 | D98: CHARLEVILLE MEZIERES | E98: 408822 | F98: CHARLEVILLE MEZIERES | G98: 5.1 | H98: 59% | I98: 49% | J98: 89 | K98: 67% | L98: 67% | M98: 172 | N98: 75% | O98: 75% | P98: 126 | Q98: 56% | R98: 25% | S98: 11 | T98: 70% | U98: 70% | V98: 65 | W98: 58% | X98: 58% | Y98: 49
A99: 30 | B99: VOSGES | C99: 55 | D99: SAINT DIE | E99: 488246 | F99: CORNIMONT LA BRESSE | G99: 2.7 | H99: 59% | I99: 49% | J99: 90 | K99: 22% | L99: 22% | M99: 17 | N99: 71% | O99: 71% | P99: 99 | Q99: 87% | R99: 55% | S99: 211 | T99: 75% | U99: 75% | V99: 107 | W99: 71% | X99: 71% | Y99: 150
A100: 30 | B100: AUBE HAUTE MARNE | C100: 21 | D100: CHAUMONT | E100: 451154 | F100: JOINVILLE | G100: 1.8 | H100: 59% | I100: 49% | J100: 91 | K100: 42% | L100: 42% | M100: 75 | N100: 64% | O100: 64% | P100: 52 | Q100: 93% | R100: 61% | S100: 232 | T100: 62% | U100: 62% | V100: 21 | W100: 66% | X100: 66% | Y100: 96
A101: 30 | B101: BAS RHIN | C101: 5006 | D101: STRASBOURG | E101: 4010 | F101: STRASBOURG MEINAU | G101: 3.0 | H101: 59% | I101: 49% | J101: 92 | K101: 46% | L101: 46% | M101: 95 | N101: 68% | O101: 68% | P101: 78 | Q101: 77% | R101: 45% | S101: 118 | T101: 65% | U101: 65% | V101: 29 | W101: 72% | X101: 72% | Y101: 155
A102: 30 | B102: AUBE HAUTE MARNE | C102: 14 | D102: TROYES | E102: 510570 | F102: NOGENT SUR SEINE | G102: 4.2 | H102: 60% | I102: 49% | J102: 93 | K102: 26% | L102: 26% | M102: 26 | N102: 73% | O102: 73% | P102: 113 | Q102: 80% | R102: 49% | S102: 152 | T102: 79% | U102: 79% | V102: 148 | W102: 71% | X102: 71% | Y102: 146
A103: 30 | B103: VOSGES | C103: 57 | D103: EPINAL | E103: 588631 | F103: THAON LES VOSGES | G103: 4.5 | H103: 60% | I103: 49% | J103: 94 | K103: 47% | L103: 47% | M103: 97 | N103: 69% | O103: 69% | P103: 84 | Q103: 76% | R103: 44% | S103: 111 | T103: 74% | U103: 74% | V103: 91 | W103: 66% | X103: 66% | Y103: 90
A104: 30 | B104: MARNE ARDENNES | C104: 6 | D104: CHALONS EN CHAMPAGNE | E104: 551128 | F104: SAINTE MENEHOULD | G104: 3.0 | H104: 60% | I104: 50% | J104: 95 | K104: 36% | L104: 36% | M104: 55 | N104: 71% | O104: 71% | P104: 95 | Q104: 82% | R104: 50% | S104: 172 | T104: 70% | U104: 70% | V104: 62 | W104: 72% | X104: 72% | Y104: 166
A105: 30 | B105: VOSGES | C105: 55 | D105: SAINT DIE | E105: 588666 | F105: VAGNEY | G105: 3.4 | H105: 60% | I105: 50% | J105: 96 | K105: 27% | L105: 27% | M105: 28 | N105: 80% | O105: 80% | P105: 170 | Q105: 67% | R105: 36% | S105: 47 | T105: 84% | U105: 84% | V105: 190 | W105: 73% | X105: 73% | Y105: 173
A106: 30 | B106: MOSELLE | C106: 45 | D106: METZ | E106: 557434 | F106: MARLY | G106: 3.1 | H106: 60% | I106: 50% | J106: 97 | K106: 30% | L106: 30% | M106: 35 | N106: 74% | O106: 74% | P106: 122 | Q106: 78% | R106: 47% | S106: 135 | T106: 82% | U106: 82% | V106: 180 | W106: 68% | X106: 68% | Y106: 106
A107: 30 | B107: VOSGES | C107: 57 | D107: EPINAL | E107: 488281 | F107: ELOYES | G107: 3.4 | H107: 60% | I107: 50% | J107: 98 | K107: 33% | L107: 33% | M107: 46 | N107: 79% | O107: 79% | P107: 161 | Q107: 65% | R107: 34% | S107: 38 | T107: 86% | U107: 86% | V107: 218 | W107: 68% | X107: 68% | Y107: 112
A108: 30 | B108: VOSGES | C108: 57 | D108: EPINAL | E108: 588716 | F108: XERTIGNY | G108: 2.8 | H108: 60% | I108: 50% | J108: 99 | K108: 38% | L108: 38% | M108: 65 | N108: 76% | O108: 76% | P108: 137 | Q108: 70% | R108: 38% | S108: 63 | T108: 75% | U108: 75% | V108: 110 | W108: 73% | X108: 73% | Y108: 175
A109: 30 | B109: MOSELLE | C109: 44 | D109: MOSELLE NORD | E109: 557347 | F109: GUENANGE | G109: 4.6 | H109: 60% | I109: 50% | J109: 100 | K109: 71% | L109: 71% | M109: 204 | N109: 60% | O109: 60% | P109: 40 | Q109: 80% | R109: 48% | S109: 143 | T109: 67% | U109: 67% | V109: 44 | W109: 54% | X109: 54% | Y109: 31
A110: 30 | B110: MOSELLE | C110: 45 | D110: METZ | E110: 557444 | F110: SAINT JULIEN LES METZ | G110: 3.7 | H110: 60% | I110: 50% | J110: 101 | K110: 76% | L110: 76% | M110: 226 | N110: 68% | O110: 68% | P110: 75 | Q110: 59% | R110: 27% | S110: 14 | T110: 71% | U110: 71% | V110: 67 | W110: 60% | X110: 60% | Y110: 51
A111: 30 | B111: MARNE ARDENNES | C111: 2 | D111: CHARLEVILLE MEZIERES | E111: 508819 | F111: MOUZON | G111: 1.9 | H111: 60% | I111: 50% | J111: 102 | K111: 55% | L111: 55% | M111: 131 | N111: 79% | O111: 79% | P111: 163 | Q111: 70% | R111: 39% | S111: 64 | T111: 71% | U111: 71% | V111: 75 | W111: 57% | X111: 57% | Y111: 43
A112: 30 | B112: MOSELLE | C112: 45 | D112: METZ | E112: 557105 | F112: ARS SUR MOSELLE | G112: 3.0 | H112: 60% | I112: 50% | J112: 103 | K112: 48% | L112: 48% | M112: 101 | N112: 74% | O112: 74% | P112: 120 | Q112: 78% | R112: 46% | S112: 131 | T112: 80% | U112: 80% | V112: 154 | W112: 54% | X112: 54% | Y112: 30
A113: 30 | B113: BAS RHIN | C113: 5006 | D113: STRASBOURG | E113: 4006 | F113: STRASBOURG NEUDORF | G113: 8.0 | H113: 60% | I113: 50% | J113: 104 | K113: 26% | L113: 26% | M113: 25 | N113: 82% | O113: 82% | P113: 180 | Q113: 76% | R113: 44% | S113: 110 | T113: 74% | U113: 74% | V113: 93 | W113: 76% | X113: 76% | Y113: 206
A114: 30 | B114: VOSGES | C114: 55 | D114: SAINT DIE | E114: 588186 | F114: BRUYERES | G114: 3.5 | H114: 60% | I114: 50% | J114: 105 | K114: 28% | L114: 28% | M114: 30 | N114: 75% | O114: 75% | P114: 134 | Q114: 84% | R114: 52% | S114: 186 | T114: 80% | U114: 80% | V114: 158 | W114: 66% | X114: 66% | Y114: 94
A115: 30 | B115: MEURTHE ET MOSELLE MEUSE | C115: 31 | D115: VERDUN | E115: 554700 | F115: VILLERUPT | G115: 2.8 | H115: 60% | I115: 50% | J115: 106 | K115: 37% | L115: 37% | M115: 59 | N115: 69% | O115: 69% | P115: 85 | Q115: 76% | R115: 45% | S115: 117 | T115: 76% | U115: 76% | V115: 121 | W115: 75% | X115: 75% | Y115: 189
A116: 30 | B116: MEURTHE ET MOSELLE MEUSE | C116: 27 | D116: PONT A MOUSSON | E116: 554416 | F116: LUDRES | G116: 3.6 | H116: 61% | I116: 50% | J116: 107 | K116: 42% | L116: 42% | M116: 76 | N116: 76% | O116: 76% | P116: 140 | Q116: 72% | R116: 41% | S116: 79 | T116: 76% | U116: 76% | V116: 116 | W116: 69% | X116: 69% | Y116: 120
A117: 30 | B117: VOSGES | C117: 57 | D117: EPINAL | E117: 488286 | F117: EPINAL ARISTIDE BRIAND | G117: 8.2 | H117: 61% | I117: 50% | J117: 108 | K117: 64% | L117: 64% | M117: 165 | N117: 59% | O117: 59% | P117: 38 | Q117: 70% | R117: 38% | S117: 62 | T117: 72% | U117: 72% | V117: 85 | W117: 69% | X117: 69% | Y117: 126
A118: 30 | B118: BAS RHIN | C118: 5060 | D118: HAGUENAU | E118: 4041 | F118: HOERDT | G118: 1.7 | H118: 61% | I118: 50% | J118: 109 | K118: 39% | L118: 39% | M118: 70 | N118: 79% | O118: 79% | P118: 155 | Q118: 60% | R118: 29% | S118: 20 | T118: 80% | U118: 80% | V118: 151 | W118: 78% | X118: 78% | Y118: 218
A119: 30 | B119: MEURTHE ET MOSELLE MEUSE | C119: 27 | D119: PONT A MOUSSON | E119: 554357 | F119: JOEUF | G119: 3.1 | H119: 61% | I119: 50% | J119: 110 | K119: 40% | L119: 40% | M119: 71 | N119: 74% | O119: 74% | P119: 121 | Q119: 80% | R119: 49% | S119: 148 | T119: 81% | U119: 81% | V119: 161 | W119: 61% | X119: 61% | Y119: 70
A120: 30 | B120: VOSGES | C120: 55 | D120: SAINT DIE | E120: 588386 | F120: LE THILLOT | G120: 2.7 | H120: 61% | I120: 51% | J120: 111 | K120: 16% | L120: 16% | M120: 9 | N120: 77% | O120: 77% | P120: 146 | Q120: 83% | R120: 51% | S120: 180 | T120: 84% | U120: 84% | V120: 192 | W120: 76% | X120: 76% | Y120: 198
A121: 30 | B121: BAS RHIN | C121: 5060 | D121: HAGUENAU | E121: 4057 | F121: BISCHWILLER | G121: 7.0 | H121: 61% | I121: 51% | J121: 112 | K121: 43% | L121: 43% | M121: 79 | N121: 65% | O121: 65% | P121: 58 | Q121: 80% | R121: 49% | S121: 147 | T121: 75% | U121: 75% | V121: 114 | W121: 73% | X121: 73% | Y121: 170
A122: 30 | B122: MEURTHE ET MOSELLE MEUSE | C122: 27 | D122: PONT A MOUSSON | E122: 554376 | F122: LAXOU BOUFFLERS | G122: 2.7 | H122: 61% | I122: 51% | J122: 113 | K122: 81% | L122: 81% | M122: 235 | N122: 56% | O122: 56% | P122: 25 | Q122: 83% | R122: 52% | S122: 182 | T122: 70% | U122: 70% | V122: 66 | W122: 47% | X122: 47% | Y122: 15
A123: 30 | B123: MEURTHE ET MOSELLE MEUSE | C123: 31 | D123: VERDUN | E123: 455151 | F123: BAR LE DUC | G123: 9.8 | H123: 61% | I123: 51% | J123: 114 | K123: 38% | L123: 38% | M123: 63 | N123: 75% | O123: 75% | P123: 129 | Q123: 80% | R123: 49% | S123: 150 | T123: 74% | U123: 74% | V123: 94 | W123: 70% | X123: 70% | Y123: 139
A124: 30 | B124: MOSELLE | C124: 44 | D124: MOSELLE NORD | E124: 557307 | F124: FONTOY | G124: 1.9 | H124: 61% | I124: 51% | J124: 115 | K124: 37% | L124: 37% | M124: 62 | N124: 83% | O124: 83% | P124: 194 | Q124: 73% | R124: 42% | S124: 89 | T124: 84% | U124: 84% | V124: 193 | W124: 60% | X124: 60% | Y124: 59
A125: 30 | B125: BAS RHIN | C125: 5060 | D125: HAGUENAU | E125: 4030 | F125: BRUMATH | G125: 3.8 | H125: 61% | I125: 51% | J125: 116 | K125: 75% | L125: 75% | M125: 219 | N125: 70% | O125: 70% | P125: 90 | Q125: 31% | R125: 0% | S125: 1 | T125: 87% | U125: 87% | V125: 219 | W125: 76% | X125: 76% | Y125: 200
A126: 30 | B126: MEURTHE ET MOSELLE MEUSE | C126: 26 | D126: NANCY | E126: 454426 | F126: LUNEVILLE CARNOT | G126: 8.3 | H126: 61% | I126: 51% | J126: 117 | K126: 64% | L126: 64% | M126: 161 | N126: 70% | O126: 70% | P126: 93 | Q126: 68% | R126: 37% | S126: 58 | T126: 81% | U126: 81% | V126: 162 | W126: 55% | X126: 55% | Y126: 33
A127: 30 | B127: VOSGES | C127: 55 | D127: SAINT DIE | E127: 588316 | F127: FRAIZE | G127: 3.6 | H127: 61% | I127: 51% | J127: 118 | K127: 45% | L127: 45% | M127: 92 | N127: 79% | O127: 79% | P127: 157 | Q127: 73% | R127: 42% | S127: 95 | T127: 73% | U127: 73% | V127: 88 | W127: 68% | X127: 68% | Y127: 116
A128: 30 | B128: BAS RHIN | C128: 5101 | D128: SELESTAT | E128: 4121 | F128: SCHIRMECK | G128: 2.8 | H128: 62% | I128: 51% | J128: 119 | K128: 36% | L128: 36% | M128: 53 | N128: 66% | O128: 66% | P128: 63 | Q128: 86% | R128: 54% | S128: 203 | T128: 84% | U128: 84% | V128: 198 | W128: 67% | X128: 67% | Y128: 102
A129: 30 | B129: MOSELLE | C129: 45 | D129: METZ | E129: 557612 | F129: SAINTE MARIE AUX CHENES | G129: 3.7 | H129: 62% | I129: 51% | J129: 120 | K129: 29% | L129: 29% | M129: 34 | N129: 88% | O129: 88% | P129: 221 | Q129: 70% | R129: 39% | S129: 65 | T129: 76% | U129: 76% | V129: 117 | W129: 77% | X129: 77% | Y129: 215
A130: 30 | B130: BAS RHIN | C130: 5006 | D130: STRASBOURG | E130: 4019 | F130: STRASBOURG ANVERS | G130: 4.5 | H130: 62% | I130: 51% | J130: 121 | K130: 67% | L130: 67% | M130: 174 | N130: 63% | O130: 63% | P130: 47 | Q130: 72% | R130: 40% | S130: 74 | T130: 72% | U130: 72% | V130: 83 | W130: 67% | X130: 67% | Y130: 99
A131: 30 | B131: MARNE ARDENNES | C131: 2 | D131: CHARLEVILLE MEZIERES | E131: 508815 | F131: CARIGNAN | G131: 2.7 | H131: 62% | I131: 52% | J131: 122 | K131: 43% | L131: 43% | M131: 82 | N131: 71% | O131: 71% | P131: 96 | Q131: 82% | R131: 50% | S131: 168 | T131: 75% | U131: 75% | V131: 109 | W131: 71% | X131: 71% | Y131: 143
A132: 30 | B132: MARNE ARDENNES | C132: 2 | D132: CHARLEVILLE MEZIERES | E132: 508802 | F132: CHARLEVILLE NEVERS | G132: 2.8 | H132: 62% | I132: 52% | J132: 123 | K132: 25% | L132: 25% | M132: 23 | N132: 85% | O132: 85% | P132: 204 | Q132: 89% | R132: 58% | S132: 224 | T132: 73% | U132: 73% | V132: 89 | W132: 69% | X132: 69% | Y132: 122
A133: 30 | B133: MEURTHE ET MOSELLE MEUSE | C133: 31 | D133: VERDUN | E133: 554412 | F133: LONGUYON | G133: 2.8 | H133: 62% | I133: 52% | J133: 124 | K133: 44% | L133: 44% | M133: 88 | N133: 68% | O133: 68% | P133: 74 | Q133: 81% | R133: 49% | S133: 156 | T133: 78% | U133: 78% | V133: 130 | W133: 72% | X133: 72% | Y133: 156
A134: 30 | B134: BAS RHIN | C134: 5006 | D134: STRASBOURG | E134: 4023 | F134: STRASBOURG VOSGES | G134: 2.9 | H134: 62% | I134: 52% | J134: 125 | K134: 48% | L134: 48% | M134: 106 | N134: 73% | O134: 73% | P134: 110 | Q134: 62% | R134: 30% | S134: 23 | T134: 84% | U134: 84% | V134: 200 | W134: 77% | X134: 77% | Y134: 211
A135: 110 | B135: MOSELLE | C135: 42 | D135: MOSELLE EST | E135: 457543 | F135: PUTTELANGE AUX LACS | G135: 2.4 | H135: 62% | I135: 52% | J135: 126 | K135: 52% | L135: 52% | M135: 120 | N135: 72% | O135: 72% | P135: 103 | Q135: 81% | R135: 50% | S135: 165 | T135: 72% | U135: 72% | V135: 81 | W135: 67% | X135: 67% | Y135: 97
A136: 110 | B136: BAS RHIN | C136: 5006 | D136: STRASBOURG | E136: 4020 | F136: STRASBOURG ROBERTSAU | G136: 5.3 | H136: 63% | I136: 52% | J136: 127 | K136: 54% | L136: 54% | M136: 129 | N136: 80% | O136: 80% | P136: 165 | Q136: 49% | R136: 18% | S136: 5 | T136: 85% | U136: 85% | V136: 208 | W136: 76% | X136: 76% | Y136: 207
A137: 110 | B137: HAUT RHIN | C137: 5130 | D137: COLMAR | E137: 4143 | F137: MUNSTER | G137: 4.3 | H137: 63% | I137: 52% | J137: 128 | K137: 58% | L137: 58% | M137: 139 | N137: 69% | O137: 69% | P137: 80 | Q137: 73% | R137: 42% | S137: 93 | T137: 75% | U137: 75% | V137: 101 | W137: 70% | X137: 70% | Y137: 136
A138: 110 | B138: AUBE HAUTE MARNE | C138: 21 | D138: CHAUMONT | E138: 451156 | F138: SAINT DIZIER CENTRE | G138: 8.6 | H138: 63% | I138: 52% | J138: 129 | K138: 55% | L138: 55% | M138: 135 | N138: 73% | O138: 73% | P138: 118 | Q138: 78% | R138: 47% | S138: 132 | T138: 71% | U138: 71% | V138: 70 | W138: 67% | X138: 67% | Y138: 105
A139: 110 | B139: MOSELLE | C139: 44 | D139: MOSELLE NORD | E139: 457192 | F139: CATTENOM | G139: 1.6 | H139: 63% | I139: 52% | J139: 130 | K139: 53% | L139: 53% | M139: 125 | N139: 69% | O139: 69% | P139: 86 | Q139: 79% | R139: 47% | S139: 137 | T139: 79% | U139: 79% | V139: 147 | W139: 65% | X139: 65% | Y139: 82
A140: 110 | B140: MOSELLE | C140: 42 | D140: MOSELLE EST | E140: 457435 | F140: MERLEBACH | G140: 2.7 | H140: 63% | I140: 52% | J140: 131 | K140: 46% | L140: 46% | M140: 94 | N140: 77% | O140: 77% | P140: 141 | Q140: 85% | R140: 54% | S140: 196 | T140: 78% | U140: 78% | V140: 133 | W140: 60% | X140: 60% | Y140: 53
A141: 110 | B141: MEURTHE ET MOSELLE MEUSE | C141: 26 | D141: NANCY | E141: 554296 | F141: ESSEY LES NANCY | G141: 3.6 | H141: 63% | I141: 52% | J141: 132 | K141: 33% | L141: 33% | M141: 47 | N141: 76% | O141: 76% | P141: 139 | Q141: 81% | R141: 49% | S141: 155 | T141: 85% | U141: 85% | V141: 207 | W141: 71% | X141: 71% | Y141: 144
A142: 110 | B142: MEURTHE ET MOSELLE MEUSE | C142: 31 | D142: VERDUN | E142: 455566 | F142: REVIGNY SUR ORNAIN | G142: 2.7 | H142: 63% | I142: 53% | J142: 133 | K142: 48% | L142: 48% | M142: 104 | N142: 78% | O142: 78% | P142: 151 | Q142: 73% | R142: 42% | S142: 87 | T142: 75% | U142: 75% | V142: 100 | W142: 73% | X142: 73% | Y142: 167
A143: 110 | B143: VOSGES | C143: 55 | D143: SAINT DIE | E143: 588461 | F143: MOYENMOUTIER | G143: 4.3 | H143: 63% | I143: 53% | J143: 134 | K143: 44% | L143: 44% | M143: 87 | N143: 70% | O143: 70% | P143: 92 | Q143: 77% | R143: 46% | S143: 127 | T143: 79% | U143: 79% | V143: 142 | W143: 77% | X143: 77% | Y143: 212
A144: 110 | B144: VOSGES | C144: 57 | D144: EPINAL | E144: 588201 | F144: CHANTRAINE | G144: 3.7 | H144: 63% | I144: 53% | J144: 135 | K144: 45% | L144: 45% | M144: 90 | N144: 71% | O144: 71% | P144: 100 | Q144: 73% | R144: 42% | S144: 86 | T144: 83% | U144: 83% | V144: 187 | W144: 75% | X144: 75% | Y144: 194
A145: 110 | B145: BAS RHIN | C145: 5101 | D145: SELESTAT | E145: 4126 | F145: MUTZIG | G145: 2.7 | H145: 63% | I145: 53% | J145: 136 | K145: 63% | L145: 63% | M145: 156 | N145: 62% | O145: 62% | P145: 46 | Q145: 71% | R145: 40% | S145: 70 | T145: 80% | U145: 80% | V145: 159 | W145: 71% | X145: 71% | Y145: 148
A146: 110 | B146: BAS RHIN | C146: 5006 | D146: STRASBOURG | E146: 4027 | F146: SCHILTIGHEIM CENTRE | G146: 4.1 | H146: 63% | I146: 53% | J146: 137 | K146: 71% | L146: 71% | M146: 202 | N146: 63% | O146: 63% | P146: 50 | Q146: 73% | R146: 41% | S146: 82 | T146: 72% | U146: 72% | V146: 79 | W146: 71% | X146: 71% | Y146: 145
A147: 110 | B147: MEURTHE ET MOSELLE MEUSE | C147: 27 | D147: PONT A MOUSSON | E147: 554496 | F147: NANCY TROIS MAISONS | G147: 2.3 | H147: 64% | I147: 53% | J147: 138 | K147: 65% | L147: 65% | M147: 166 | N147: 72% | O147: 72% | P147: 105 | Q147: 82% | R147: 50% | S147: 171 | T147: 71% | U147: 71% | V147: 72 | W147: 60% | X147: 60% | Y147: 60
A148: 110 | B148: BAS RHIN | C148: 5101 | D148: SELESTAT | E148: 4127 | F148: ROSHEIM | G148: 1.7 | H148: 64% | I148: 53% | J148: 139 | K148: 54% | L148: 54% | M148: 128 | N148: 84% | O148: 84% | P148: 200 | Q148: 59% | R148: 27% | S148: 13 | T148: 82% | U148: 82% | V148: 179 | W148: 71% | X148: 71% | Y148: 149
A149: 110 | B149: MEURTHE ET MOSELLE MEUSE | C149: 26 | D149: NANCY | E149: 554486 | F149: NANCY POINT CENTRAL | G149: 3.0 | H149: 64% | I149: 53% | J149: 140 | K149: 55% | L149: 55% | M149: 134 | N149: 83% | O149: 83% | P149: 187 | Q149: 62% | R149: 30% | S149: 24 | T149: 80% | U149: 80% | V149: 157 | W149: 71% | X149: 71% | Y149: 142
A150: 110 | B150: BAS RHIN | C150: 5060 | D150: HAGUENAU | E150: 4031 | F150: TRUCHTERSHEIM | G150: 2.3 | H150: 64% | I150: 53% | J150: 141 | K150: 36% | L150: 36% | M150: 51 | N150: 67% | O150: 67% | P150: 66 | Q150: 76% | R150: 45% | S150: 115 | T150: 90% | U150: 90% | V150: 228 | W150: 82% | X150: 82% | Y150: 237
A151: 110 | B151: BAS RHIN | C151: 5006 | D151: STRASBOURG | E151: 4039 | F151: REICHSTETT | G151: 1.6 | H151: 64% | I151: 53% | J151: 142 | K151: 54% | L151: 54% | M151: 127 | N151: 79% | O151: 79% | P151: 162 | Q151: 68% | R151: 36% | S151: 49 | T151: 76% | U151: 76% | V151: 125 | W151: 73% | X151: 73% | Y151: 179
A152: 110 | B152: MEURTHE ET MOSELLE MEUSE | C152: 31 | D152: VERDUN | E152: 555624 | F152: STENAY | G152: 3.2 | H152: 64% | I152: 53% | J152: 143 | K152: 67% | L152: 67% | M152: 177 | N152: 64% | O152: 64% | P152: 54 | Q152: 83% | R152: 52% | S152: 181 | T152: 84% | U152: 84% | V152: 195 | W152: 52% | X152: 52% | Y152: 24
A153: 110 | B153: MEURTHE ET MOSELLE MEUSE | C153: 27 | D153: PONT A MOUSSON | E153: 454535 | F153: PONT A MOUSSON CENTRALE | G153: 5.9 | H153: 64% | I153: 54% | J153: 144 | K153: 78% | L153: 78% | M153: 232 | N153: 66% | O153: 66% | P153: 60 | Q153: 79% | R153: 48% | S153: 141 | T153: 71% | U153: 71% | V153: 76 | W153: 57% | X153: 57% | Y153: 45
A154: 110 | B154: MARNE ARDENNES | C154: 2 | D154: CHARLEVILLE MEZIERES | E154: 408862 | F154: REVIN | G154: 3.8 | H154: 64% | I154: 54% | J154: 145 | K154: 43% | L154: 43% | M154: 83 | N154: 82% | O154: 82% | P154: 184 | Q154: 85% | R154: 54% | S154: 198 | T154: 72% | U154: 72% | V154: 80 | W154: 69% | X154: 69% | Y154: 124
A155: 110 | B155: VOSGES | C155: 57 | D155: EPINAL | E155: 488706 | F155: VITTEL | G155: 3.1 | H155: 64% | I155: 54% | J155: 146 | K155: 50% | L155: 50% | M155: 111 | N155: 80% | O155: 80% | P155: 171 | Q155: 79% | R155: 47% | S155: 138 | T155: 75% | U155: 75% | V155: 103 | W155: 69% | X155: 69% | Y155: 118
A156: 110 | B156: AUBE HAUTE MARNE | C156: 21 | D156: CHAUMONT | E156: 410566 | F156: CHAUMONT HOTEL DE VILLE | G156: 10.4 | H156: 64% | I156: 54% | J156: 147 | K156: 46% | L156: 46% | M156: 93 | N156: 82% | O156: 82% | P156: 181 | Q156: 73% | R156: 41% | S156: 85 | T156: 80% | U156: 80% | V156: 155 | W156: 73% | X156: 73% | Y156: 177
A157: 110 | B157: VOSGES | C157: 57 | D157: EPINAL | E157: 588206 | F157: CHARMES | G157: 2.8 | H157: 64% | I157: 54% | J157: 148 | K157: 50% | L157: 50% | M157: 110 | N157: 83% | O157: 83% | P157: 193 | Q157: 70% | R157: 38% | S157: 59 | T157: 79% | U157: 79% | V157: 143 | W157: 73% | X157: 73% | Y157: 168
A158: 110 | B158: MEURTHE ET MOSELLE MEUSE | C158: 26 | D158: NANCY | E158: 554166 | F158: BLAINVILLE | G158: 2.9 | H158: 65% | I158: 54% | J158: 149 | K158: 67% | L158: 67% | M158: 178 | N158: 67% | O158: 67% | P158: 71 | Q158: 80% | R158: 48% | S158: 146 | T158: 69% | U158: 69% | V158: 58 | W158: 70% | X158: 70% | Y158: 134
A159: 110 | B159: MOSELLE | C159: 42 | D159: MOSELLE EST | E159: 557503 | F159: NEUNKIRCH | G159: 3.2 | H159: 65% | I159: 55% | J159: 150 | K159: 11% | L159: 11% | M159: 7 | N159: 88% | O159: 88% | P159: 219 | Q159: 89% | R159: 58% | S159: 222 | T159: 92% | U159: 92% | V159: 233 | W159: 77% | X159: 77% | Y159: 209
A160: 110 | B160: HAUT RHIN | C160: 5130 | D160: COLMAR | E160: 4157 | F160: NEUF BRISACH | G160: 2.6 | H160: 65% | I160: 55% | J160: 151 | K160: 70% | L160: 70% | M160: 196 | N160: 75% | O160: 75% | P160: 133 | Q160: 76% | R160: 45% | S160: 114 | T160: 71% | U160: 71% | V160: 69 | W160: 66% | X160: 66% | Y160: 95
A161: 110 | B161: MOSELLE | C161: 45 | D161: METZ | E161: 557441 | F161: METZ PLAPPEVILLE | G161: 2.5 | H161: 65% | I161: 55% | J161: 152 | K161: 64% | L161: 64% | M161: 164 | N161: 82% | O161: 82% | P161: 185 | Q161: 63% | R161: 31% | S161: 26 | T161: 81% | U161: 81% | V161: 172 | W161: 68% | X161: 68% | Y161: 108
A162: 110 | B162: MEURTHE ET MOSELLE MEUSE | C162: 27 | D162: PONT A MOUSSON | E162: 454355 | F162: JARNY | G162: 4.1 | H162: 65% | I162: 55% | J162: 153 | K162: 48% | L162: 48% | M162: 103 | N162: 78% | O162: 78% | P162: 152 | Q162: 77% | R162: 46% | S162: 125 | T162: 78% | U162: 78% | V162: 139 | W162: 77% | X162: 77% | Y162: 214
A163: 110 | B163: MOSELLE | C163: 45 | D163: METZ | E163: 557459 | F163: MOULINS LES METZ | G163: 2.5 | H163: 66% | I163: 55% | J163: 154 | K163: 41% | L163: 41% | M163: 72 | N163: 84% | O163: 84% | P163: 197 | Q163: 84% | R163: 53% | S163: 191 | T163: 79% | U163: 79% | V163: 149 | W163: 71% | X163: 71% | Y163: 147
A164: 110 | B164: BAS RHIN | C164: 5006 | D164: STRASBOURG | E164: 4045 | F164: STRASBOURG FRANCS BOURGEOIS | G164: 4.2 | H164: 66% | I164: 55% | J164: 155 | K164: 52% | L164: 52% | M164: 119 | N164: 69% | O164: 69% | P164: 83 | Q164: 82% | R164: 51% | S164: 176 | T164: 80% | U164: 80% | V164: 153 | W164: 76% | X164: 76% | Y164: 203
A165: 110 | B165: MOSELLE | C165: 45 | D165: METZ | E165: 557559 | F165: REMILLY | G165: 3.3 | H165: 66% | I165: 55% | J165: 156 | K165: 60% | L165: 60% | M165: 144 | N165: 75% | O165: 75% | P165: 128 | Q165: 77% | R165: 46% | S165: 123 | T165: 84% | U165: 84% | V165: 199 | W165: 64% | X165: 64% | Y165: 81
A166: 110 | B166: MOSELLE | C166: 42 | D166: MOSELLE EST | E166: 557210 | F166: CHATEAU SALINS | G166: 1.7 | H166: 66% | I166: 56% | J166: 157 | K166: 67% | L166: 67% | M166: 173 | N166: 72% | O166: 72% | P166: 106 | Q166: 84% | R166: 53% | S166: 190 | T166: 66% | U166: 66% | V166: 34 | W166: 72% | X166: 72% | Y166: 161
A167: 110 | B167: MEURTHE ET MOSELLE MEUSE | C167: 27 | D167: PONT A MOUSSON | E167: 454651 | F167: TOUL | G167: 9.7 | H167: 66% | I167: 56% | J167: 158 | K167: 73% | L167: 73% | M167: 211 | N167: 81% | O167: 81% | P167: 178 | Q167: 73% | R167: 42% | S167: 94 | T167: 73% | U167: 73% | V167: 90 | W167: 61% | X167: 61% | Y167: 64
A168: 110 | B168: AUBE HAUTE MARNE | C168: 14 | D168: TROYES | E168: 510513 | F168: SAINT PARRES AUX TERTRES | G168: 2.5 | H168: 66% | I168: 56% | J168: 159 | K168: 81% | L168: 81% | M168: 236 | N168: 65% | O168: 65% | P168: 56 | Q168: 80% | R168: 49% | S168: 151 | T168: 67% | U168: 67% | V168: 41 | W168: 68% | X168: 68% | Y168: 115
A169: 110 | B169: BAS RHIN | C169: 5060 | D169: HAGUENAU | E169: 4085 | F169: INGWILLER | G169: 3.5 | H169: 66% | I169: 56% | J169: 160 | K169: 54% | L169: 54% | M169: 126 | N169: 78% | O169: 78% | P169: 153 | Q169: 81% | R169: 50% | S169: 162 | T169: 79% | U169: 79% | V169: 145 | W169: 70% | X169: 70% | Y169: 133
A170: 110 | B170: MEURTHE ET MOSELLE MEUSE | C170: 26 | D170: NANCY | E170: 554266 | F170: DOMBASLE SUR MEURTHE | G170: 3.4 | H170: 66% | I170: 56% | J170: 161 | K170: 68% | L170: 68% | M170: 182 | N170: 86% | O170: 86% | P170: 210 | Q170: 67% | R170: 36% | S170: 45 | T170: 75% | U170: 75% | V170: 111 | W170: 66% | X170: 66% | Y170: 91
A171: 110 | B171: MOSELLE | C171: 45 | D171: METZ | E171: 557436 | F171: METZ CATHEDRALE | G171: 4.0 | H171: 66% | I171: 56% | J171: 162 | K171: 76% | L171: 76% | M171: 222 | N171: 72% | O171: 72% | P171: 109 | Q171: 68% | R171: 37% | S171: 55 | T171: 75% | U171: 75% | V171: 104 | W171: 72% | X171: 72% | Y171: 159
A172: 110 | B172: AUBE HAUTE MARNE | C172: 14 | D172: TROYES | E172: 510523 | F172: LA CHAPELLE ST LUC | G172: 4.6 | H172: 66% | I172: 56% | J172: 163 | K172: 78% | L172: 78% | M172: 233 | N172: 74% | O172: 74% | P172: 119 | Q172: 74% | R172: 43% | S172: 104 | T172: 68% | U172: 68% | V172: 51 | W172: 68% | X172: 68% | Y172: 117
A173: 110 | B173: MARNE ARDENNES | C173: 2 | D173: CHARLEVILLE MEZIERES | E173: 408806 | F173: SEDAN | G173: 7.6 | H173: 66% | I173: 56% | J173: 164 | K173: 47% | L173: 47% | M173: 98 | N173: 80% | O173: 80% | P173: 166 | Q173: 82% | R173: 50% | S173: 169 | T173: 88% | U173: 88% | V173: 222 | W173: 67% | X173: 67% | Y173: 104
A174: 110 | B174: BAS RHIN | C174: 5101 | D174: SELESTAT | E174: 4007 | F174: ILLKIRCH CENTRE | G174: 6.5 | H174: 67% | I174: 56% | J174: 165 | K174: 68% | L174: 68% | M174: 183 | N174: 77% | O174: 77% | P174: 143 | Q174: 83% | R174: 51% | S174: 177 | T174: 67% | U174: 67% | V174: 46 | W174: 70% | X174: 70% | Y174: 131
A175: 110 | B175: MARNE ARDENNES | C175: 11 | D175: REIMS | E175: 551309 | F175: REIMS EUROPE | G175: 2.9 | H175: 67% | I175: 56% | J175: 166 | K175: 56% | L175: 56% | M175: 138 | N175: 77% | O175: 77% | P175: 144 | Q175: 87% | R175: 55% | S175: 212 | T175: 74% | U175: 74% | V175: 96 | W175: 70% | X175: 70% | Y175: 138
A176: 110 | B176: VOSGES | C176: 55 | D176: SAINT DIE | E176: 488556 | F176: RAON L ETAPE | G176: 2.2 | H176: 67% | I176: 56% | J176: 167 | K176: 41% | L176: 41% | M176: 74 | N176: 89% | O176: 89% | P176: 228 | Q176: 92% | R176: 61% | S176: 231 | T176: 81% | U176: 81% | V176: 160 | W176: 61% | X176: 61% | Y176: 67
A177: 160 | B177: BAS RHIN | C177: 5101 | D177: SELESTAT | E177: 4107 | F177: VILLE | G177: 2.2 | H177: 67% | I177: 56% | J177: 168 | K177: 73% | L177: 73% | M177: 212 | N177: 67% | O177: 67% | P177: 68 | Q177: 64% | R177: 32% | S177: 29 | T177: 81% | U177: 81% | V177: 164 | W177: 81% | X177: 81% | Y177: 232
A178: 160 | B178: BAS RHIN | C178: 5006 | D178: STRASBOURG | E178: 4028 | F178: BISCHHEIM | G178: 3.2 | H178: 67% | I178: 56% | J178: 169 | K178: 66% | L178: 66% | M178: 171 | N178: 81% | O178: 81% | P178: 175 | Q178: 70% | R178: 39% | S178: 66 | T178: 72% | U178: 72% | V178: 82 | W178: 76% | X178: 76% | Y178: 197
A179: 160 | B179: BAS RHIN | C179: 5006 | D179: STRASBOURG | E179: 4029 | F179: SCHILTIGHEIM KLEBER | G179: 0.8 | H179: 67% | I179: 56% | J179: 170 | K179: 62% | L179: 62% | M179: 149 | N179: 92% | O179: 92% | P179: 236 | Q179: 67% | R179: 35% | S179: 44 | T179: 76% | U179: 76% | V179: 115 | W179: 69% | X179: 69% | Y179: 121
A180: 160 | B180: BAS RHIN | C180: 5101 | D180: SELESTAT | E180: 4008 | F180: FEGERSHEIM | G180: 2.4 | H180: 67% | I180: 56% | J180: 171 | K180: 51% | L180: 51% | M180: 114 | N180: 74% | O180: 74% | P180: 124 | Q180: 73% | R180: 42% | S180: 88 | T180: 85% | U180: 85% | V180: 209 | W180: 82% | X180: 82% | Y180: 236
A181: 160 | B181: MARNE ARDENNES | C181: 6 | D181: CHALONS EN CHAMPAGNE | E181: 451166 | F181: VITRY LE FRANCOIS | G181: 3.7 | H181: 67% | I181: 56% | J181: 172 | K181: 75% | L181: 75% | M181: 218 | N181: 68% | O181: 68% | P181: 77 | Q181: 95% | R181: 63% | S181: 234 | T181: 78% | U181: 78% | V181: 134 | W181: 50% | X181: 50% | Y181: 22
A182: 160 | B182: MOSELLE | C182: 42 | D182: MOSELLE EST | E182: 457614 | F182: SARREBOURG | G182: 7.4 | H182: 67% | I182: 57% | J182: 173 | K182: 56% | L182: 56% | M182: 136 | N182: 79% | O182: 79% | P182: 158 | Q182: 81% | R182: 49% | S182: 159 | T182: 78% | U182: 78% | V182: 140 | W182: 72% | X182: 72% | Y182: 164
A183: 160 | B183: MOSELLE | C183: 45 | D183: METZ | E183: 557712 | F183: WOIPPY | G183: 4.4 | H183: 67% | I183: 57% | J183: 174 | K183: 71% | L183: 71% | M183: 203 | N183: 72% | O183: 72% | P183: 107 | Q183: 77% | R183: 45% | S183: 120 | T183: 76% | U183: 76% | V183: 118 | W183: 70% | X183: 70% | Y183: 135
A184: 160 | B184: HAUT RHIN | C184: 5130 | D184: COLMAR | E184: 4132 | F184: COLMAR MARAICHERS | G184: 3.6 | H184: 67% | I184: 57% | J184: 175 | K184: 59% | L184: 59% | M184: 141 | N184: 75% | O184: 75% | P184: 135 | Q184: 74% | R184: 42% | S184: 96 | T184: 83% | U184: 83% | V184: 185 | W184: 77% | X184: 77% | Y184: 213
A185: 160 | B185: AUBE HAUTE MARNE | C185: 14 | D185: TROYES | E185: 410550 | F185: BAR SUR AUBE | G185: 5.2 | H185: 67% | I185: 57% | J185: 176 | K185: 45% | L185: 45% | M185: 91 | N185: 80% | O185: 80% | P185: 168 | Q185: 86% | R185: 55% | S185: 210 | T185: 85% | U185: 85% | V185: 206 | W185: 72% | X185: 72% | Y185: 157
A186: 160 | B186: HAUT RHIN | C186: 5169 | D186: MULHOUSE | E186: 4180 | F186: RIEDISHEIM | G186: 3.3 | H186: 67% | I186: 57% | J186: 177 | K186: 44% | L186: 44% | M186: 86 | N186: 81% | O186: 81% | P186: 177 | Q186: 90% | R186: 58% | S186: 227 | T186: 76% | U186: 76% | V186: 124 | W186: 78% | X186: 78% | Y186: 221
A187: 160 | B187: MOSELLE | C187: 44 | D187: MOSELLE NORD | E187: 457180 | F187: BOUSSE | G187: 2.5 | H187: 68% | I187: 57% | J187: 178 | K187: 15% | L187: 15% | M187: 8 | N187: 88% | O187: 88% | P187: 220 | Q187: 85% | R187: 53% | S187: 192 | T187: 93% | U187: 93% | V187: 234 | W187: 89% | X187: 89% | Y187: 241
A188: 160 | B188: HAUT RHIN | C188: 5169 | D188: MULHOUSE | E188: 4170 | F188: MULHOUSE REUNION | G188: 7.7 | H188: 68% | I188: 57% | J188: 179 | K188: 61% | L188: 61% | M188: 147 | N188: 78% | O188: 78% | P188: 149 | Q188: 86% | R188: 55% | S188: 208 | T188: 75% | U188: 75% | V188: 108 | W188: 69% | X188: 69% | Y188: 127
A189: 160 | B189: MEURTHE ET MOSELLE MEUSE | C189: 27 | D189: PONT A MOUSSON | E189: 454696 | F189: VILLERS GENERAL LECLERC | G189: 4.0 | H189: 68% | I189: 58% | J189: 180 | K189: 65% | L189: 65% | M189: 168 | N189: 86% | O189: 86% | P189: 209 | Q189: 59% | R189: 28% | S189: 18 | T189: 82% | U189: 82% | V189: 183 | W189: 79% | X189: 79% | Y189: 227
A190: 160 | B190: MEURTHE ET MOSELLE MEUSE | C190: 27 | D190: PONT A MOUSSON | E190: 554196 | F190: CHAMPIGNEULLES | G190: 2.6 | H190: 68% | I190: 58% | J190: 181 | K190: 65% | L190: 65% | M190: 170 | N190: 84% | O190: 84% | P190: 199 | Q190: 79% | R190: 47% | S190: 139 | T190: 70% | U190: 70% | V190: 63 | W190: 74% | X190: 74% | Y190: 181
A191: 160 | B191: MOSELLE | C191: 45 | D191: METZ | E191: 557440 | F191: METZ MOZART | G191: 3.0 | H191: 68% | I191: 58% | J191: 182 | K191: 63% | L191: 63% | M191: 158 | N191: 79% | O191: 79% | P191: 159 | Q191: 72% | R191: 40% | S191: 75 | T191: 80% | U191: 80% | V191: 152 | W191: 79% | X191: 79% | Y191: 226
A192: 160 | B192: MARNE ARDENNES | C192: 11 | D192: REIMS | E192: 451308 | F192: REIMS SAINT THOMAS | G192: 5.4 | H192: 68% | I192: 58% | J192: 183 | K192: 81% | L192: 81% | M192: 237 | N192: 71% | O192: 71% | P192: 97 | Q192: 86% | R192: 55% | S192: 205 | T192: 75% | U192: 75% | V192: 112 | W192: 60% | X192: 60% | Y192: 56
A193: 160 | B193: AUBE HAUTE MARNE | C193: 14 | D193: TROYES | E193: 410510 | F193: TROYES GAMBETTA | G193: 8.8 | H193: 69% | I193: 58% | J193: 184 | K193: 70% | L193: 70% | M193: 198 | N193: 76% | O193: 76% | P193: 138 | Q193: 83% | R193: 51% | S193: 178 | T193: 76% | U193: 76% | V193: 122 | W193: 70% | X193: 70% | Y193: 129
A194: 160 | B194: BAS RHIN | C194: 5101 | D194: SELESTAT | E194: 4109 | F194: MARCKOLSHEIM | G194: 2.5 | H194: 69% | I194: 58% | J194: 185 | K194: 59% | L194: 59% | M194: 142 | N194: 78% | O194: 78% | P194: 154 | Q194: 86% | R194: 55% | S194: 209 | T194: 79% | U194: 79% | V194: 150 | W194: 72% | X194: 72% | Y194: 163
A195: 160 | B195: MARNE ARDENNES | C195: 2 | D195: CHARLEVILLE MEZIERES | E195: 508860 | F195: ROCROI | G195: 2.4 | H195: 69% | I195: 58% | J195: 186 | K195: 73% | L195: 73% | M195: 214 | N195: 72% | O195: 72% | P195: 104 | Q195: 83% | R195: 52% | S195: 184 | T195: 79% | U195: 79% | V195: 144 | W195: 69% | X195: 69% | Y195: 119
A196: 160 | B196: BAS RHIN | C196: 5060 | D196: HAGUENAU | E196: 4060 | F196: HAGUENAU HOUBLON | G196: 8.6 | H196: 69% | I196: 58% | J196: 187 | K196: 68% | L196: 68% | M196: 186 | N196: 81% | O196: 81% | P196: 179 | Q196: 74% | R196: 42% | S196: 99 | T196: 78% | U196: 78% | V196: 131 | W196: 75% | X196: 75% | Y196: 188
A197: 160 | B197: MOSELLE | C197: 45 | D197: METZ | E197: 557433 | F197: MARANGE SILVANGE | G197: 2.7 | H197: 69% | I197: 59% | J197: 188 | K197: 68% | L197: 68% | M197: 180 | N197: 83% | O197: 83% | P197: 195 | Q197: 80% | R197: 48% | S197: 144 | T197: 81% | U197: 81% | V197: 163 | W197: 65% | X197: 65% | Y197: 84
A198: 160 | B198: BAS RHIN | C198: 5101 | D198: SELESTAT | E198: 4101 | F198: SELESTAT CENTRE | G198: 7.9 | H198: 69% | I198: 59% | J198: 189 | K198: 68% | L198: 68% | M198: 185 | N198: 75% | O198: 75% | P198: 125 | Q198: 82% | R198: 51% | S198: 174 | T198: 78% | U198: 78% | V198: 132 | W198: 74% | X198: 74% | Y198: 186
A199: 160 | B199: BAS RHIN | C199: 5060 | D199: HAGUENAU | E199: 4082 | F199: BOUXWILLER | G199: 2.4 | H199: 69% | I199: 59% | J199: 190 | K199: 35% | L199: 35% | M199: 50 | N199: 85% | O199: 85% | P199: 207 | Q199: 110% | R199: 79% | S199: 239 | T199: 77% | U199: 77% | V199: 126 | W199: 69% | X199: 69% | Y199: 128
A200: 160 | B200: HAUT RHIN | C200: 5169 | D200: MULHOUSE | E200: 4178 | F200: SAINT LOUIS | G200: 6.6 | H200: 69% | I200: 59% | J200: 191 | K200: 68% | L200: 68% | M200: 181 | N200: 77% | O200: 77% | P200: 147 | Q200: 73% | R200: 41% | S200: 84 | T200: 81% | U200: 81% | V200: 170 | W200: 78% | X200: 78% | Y200: 225
A201: 160 | B201: MEURTHE ET MOSELLE MEUSE | C201: 26 | D201: NANCY | E201: 554491 | F201: NANCY SAINT SEBASTIEN | G201: 3.6 | H201: 69% | I201: 59% | J201: 192 | K201: 53% | L201: 53% | M201: 122 | N201: 86% | O201: 86% | P201: 211 | Q201: 81% | R201: 49% | S201: 160 | T201: 85% | U201: 85% | V201: 202 | W201: 73% | X201: 73% | Y201: 174
A202: 160 | B202: HAUT RHIN | C202: 5130 | D202: COLMAR | E202: 4130 | F202: COLMAR REPUBLIQUE | G202: 6.0 | H202: 69% | I202: 59% | J202: 193 | K202: 71% | L202: 71% | M202: 205 | N202: 81% | O202: 81% | P202: 174 | Q202: 81% | R202: 49% | S202: 158 | T202: 70% | U202: 70% | V202: 61 | W202: 76% | X202: 76% | Y202: 205
A203: 160 | B203: VOSGES | C203: 57 | D203: EPINAL | E203: 488256 | F203: DARNEY | G203: 1.6 | H203: 70% | I203: 59% | J203: 194 | K203: 30% | L203: 30% | M203: 37 | N203: 90% | O203: 90% | P203: 231 | Q203: 102% | R203: 71% | S203: 237 | T203: 81% | U203: 81% | V203: 168 | W203: 78% | X203: 78% | Y203: 217
... 48 more rows

Sheet AG_BANCA
B1: Accueil | H1: BAROMETRE BDD - AGENCES
H2: BANCARISATION
H3: =ACCUEIL!F7 -> 2022-09-25
H7: Ventes Nettes produits pondérés | L7: Ventes sur client non détenteur de l’univers | P7: Total Bancarisation
H8: =DATEMAJ!C8 -> au 25/09 | J8: coef | K8: ='RECAP DIRCOM'!AA4 -> 12% | L8: =DATEMAJ!C9 -> au 25/09 | N8: coef | O8: ='RECAP DIRCOM'!AE4 -> 8% | Q8: coef | R8: ='RECAP DIRCOM'!$AH$4 -> 20%
B9: Direction | C9: eds | D9: Territoire | E9: eds | F9: Agence | G9: ="ETP perf "&DATEMAJ!$C$28 -> ETP perf 25-sept | H9: VN | I9: VN / ETP | J9: % Ecart au 1er | K9: Rang | L9: VB | M9: VB / ETP | N9: % Ecart au 1er | O9: Rang | P9: Moyenne ecart au 1er | Q9: % Ecart au 1er | R9: Rang CEGEE
A10: 50 | B10: AUBE HAUTE MARNE | C10: 21 | D10: CHAUMONT | E10: 410541 | F10: LANGRES | G10: =VLOOKUP($E10,'RECAP AG'!$G$6:$CU$247,3,FALSE) -> 8.2 | H10: =VLOOKUP($E10,'RECAP AG'!$G$6:$CU$247,18,FALSE) -> 237.8 | I10: =VLOOKUP($E10,'RECAP AG'!$G$6:$CU$247,19,FALSE) -> 29.14 | J10: =VLOOKUP($E10,'RECAP AG'!$G$6:$CU$247,20,FALSE) -> 72% | K10: =VLOOKUP($E10,'RECAP AG'!$G$6:$CU$247,21,FALSE) -> 56 | L10: =VLOOKUP($E10,'RECAP AG'!$G$6:$CU$247,22,FALSE) -> 408 | M10: =VLOOKUP($E10,'RECAP AG'!$G$6:$CU$247,23,FALSE) -> 50.00 | N10: =VLOOKUP($E10,'RECAP AG'!$G$6:$CU$247,24,FALSE) -> 66% | O10: =VLOOKUP($E10,'RECAP AG'!$G$6:$CU$247,25,FALSE) -> 163 | P10: =VLOOKUP($E10,'RECAP AG'!$G$6:$CU$247,26,FALSE) -> 70% | Q10: =VLOOKUP($E10,'RECAP AG'!$G$6:$CU$247,27,FALSE) -> 70% | R10: =VLOOKUP($E10,'RECAP AG'!$G$6:$CU$247,28,FALSE) -> 89
A11: 50 | B11: AUBE HAUTE MARNE | C11: 21 | D11: CHAUMONT | E11: 410566 | F11: CHAUMONT HOTEL DE VILLE | G11: =VLOOKUP($E11,'RECAP AG'!$G$6:$CU$247,3,FALSE) -> 10.4 | H11: =VLOOKUP($E11,'RECAP AG'!$G$6:$CU$247,18,FALSE) -> 86.2 | I11: =VLOOKUP($E11,'RECAP AG'!$G$6:$CU$247,19,FALSE) -> 8.26 | J11: =VLOOKUP($E11,'RECAP AG'!$G$6:$CU$247,20,FALSE) -> 92% | K11: =VLOOKUP($E11,'RECAP AG'!$G$6:$CU$247,21,FALSE) -> 178 | L11: =VLOOKUP($E11,'RECAP AG'!$G$6:$CU$247,22,FALSE) -> 516 | M11: =VLOOKUP($E11,'RECAP AG'!$G$6:$CU$247,23,FALSE) -> 49.43 | N11: =VLOOKUP($E11,'RECAP AG'!$G$6:$CU$247,24,FALSE) -> 67% | O11: =VLOOKUP($E11,'RECAP AG'!$G$6:$CU$247,25,FALSE) -> 170 | P11: =VLOOKUP($E11,'RECAP AG'!$G$6:$CU$247,26,FALSE) -> 82% | Q11: =VLOOKUP($E11,'RECAP AG'!$G$6:$CU$247,27,FALSE) -> 82% | R11: =VLOOKUP($E11,'RECAP AG'!$G$6:$CU$247,28,FALSE) -> 181
A12: 50 | B12: AUBE HAUTE MARNE | C12: 21 | D12: CHAUMONT | E12: 510590 | F12: CHAUMONT REPUBLIQUE | G12: =VLOOKUP($E12,'RECAP AG'!$G$6:$CU$247,3,FALSE) -> 2.9 | H12: =VLOOKUP($E12,'RECAP AG'!$G$6:$CU$247,18,FALSE) -> 34.0 | I12: =VLOOKUP($E12,'RECAP AG'!$G$6:$CU$247,19,FALSE) -> 11.89 | J12: =VLOOKUP($E12,'RECAP AG'!$G$6:$CU$247,20,FALSE) -> 89% | K12: =VLOOKUP($E12,'RECAP AG'!$G$6:$CU$247,21,FALSE) -> 160 | L12: =VLOOKUP($E12,'RECAP AG'!$G$6:$CU$247,22,FALSE) -> 192 | M12: =VLOOKUP($E12,'RECAP AG'!$G$6:$CU$247,23,FALSE) -> 67.13 | N12: =VLOOKUP($E12,'RECAP AG'!$G$6:$CU$247,24,FALSE) -> 55% | O12: =VLOOKUP($E12,'RECAP AG'!$G$6:$CU$247,25,FALSE) -> 78 | P12: =VLOOKUP($E12,'RECAP AG'!$G$6:$CU$247,26,FALSE) -> 75% | Q12: =VLOOKUP($E12,'RECAP AG'!$G$6:$CU$247,27,FALSE) -> 75% | R12: =VLOOKUP($E12,'RECAP AG'!$G$6:$CU$247,28,FALSE) -> 131
A13: 50 | B13: AUBE HAUTE MARNE | C13: 21 | D13: CHAUMONT | E13: 451154 | F13: JOINVILLE | G13: =VLOOKUP($E13,'RECAP AG'!$G$6:$CU$247,3,FALSE) -> 1.8 | H13: =VLOOKUP($E13,'RECAP AG'!$G$6:$CU$247,18,FALSE) -> 45.2 | I13: =VLOOKUP($E13,'RECAP AG'!$G$6:$CU$247,19,FALSE) -> 25.25 | J13: =VLOOKUP($E13,'RECAP AG'!$G$6:$CU$247,20,FALSE) -> 76% | K13: =VLOOKUP($E13,'RECAP AG'!$G$6:$CU$247,21,FALSE) -> 77 | L13: =VLOOKUP($E13,'RECAP AG'!$G$6:$CU$247,22,FALSE) -> 143 | M13: =VLOOKUP($E13,'RECAP AG'!$G$6:$CU$247,23,FALSE) -> 79.89 | N13: =VLOOKUP($E13,'RECAP AG'!$G$6:$CU$247,24,FALSE) -> 46% | O13: =VLOOKUP($E13,'RECAP AG'!$G$6:$CU$247,25,FALSE) -> 39 | P13: =VLOOKUP($E13,'RECAP AG'!$G$6:$CU$247,26,FALSE) -> 64% | Q13: =VLOOKUP($E13,'RECAP AG'!$G$6:$CU$247,27,FALSE) -> 64% | R13: =VLOOKUP($E13,'RECAP AG'!$G$6:$CU$247,28,FALSE) -> 52
A14: 50 | B14: AUBE HAUTE MARNE | C14: 21 | D14: CHAUMONT | E14: 451156 | F14: SAINT DIZIER CENTRE | G14: =VLOOKUP($E14,'RECAP AG'!$G$6:$CU$247,3,FALSE) -> 8.6 | H14: =VLOOKUP($E14,'RECAP AG'!$G$6:$CU$247,18,FALSE) -> 136.2 | I14: =VLOOKUP($E14,'RECAP AG'!$G$6:$CU$247,19,FALSE) -> 15.91 | J14: =VLOOKUP($E14,'RECAP AG'!$G$6:$CU$247,20,FALSE) -> 85% | K14: =VLOOKUP($E14,'RECAP AG'!$G$6:$CU$247,21,FALSE) -> 137 | L14: =VLOOKUP($E14,'RECAP AG'!$G$6:$CU$247,22,FALSE) -> 555 | M14: =VLOOKUP($E14,'RECAP AG'!$G$6:$CU$247,23,FALSE) -> 64.84 | N14: =VLOOKUP($E14,'RECAP AG'!$G$6:$CU$247,24,FALSE) -> 56% | O14: =VLOOKUP($E14,'RECAP AG'!$G$6:$CU$247,25,FALSE) -> 90 | P14: =VLOOKUP($E14,'RECAP AG'!$G$6:$CU$247,26,FALSE) -> 73% | Q14: =VLOOKUP($E14,'RECAP AG'!$G$6:$CU$247,27,FALSE) -> 73% | R14: =VLOOKUP($E14,'RECAP AG'!$G$6:$CU$247,28,FALSE) -> 118
A15: 50 | B15: AUBE HAUTE MARNE | C15: 21 | D15: CHAUMONT | E15: 451151 | F15: WASSY | G15: =VLOOKUP($E15,'RECAP AG'!$G$6:$CU$247,3,FALSE) -> 1.9 | H15: =VLOOKUP($E15,'RECAP AG'!$G$6:$CU$247,18,FALSE) -> 19.8 | I15: =VLOOKUP($E15,'RECAP AG'!$G$6:$CU$247,19,FALSE) -> 10.31 | J15: =VLOOKUP($E15,'RECAP AG'!$G$6:$CU$247,20,FALSE) -> 90% | K15: =VLOOKUP($E15,'RECAP AG'!$G$6:$CU$247,21,FALSE) -> 170 | L15: =VLOOKUP($E15,'RECAP AG'!$G$6:$CU$247,22,FALSE) -> 96 | M15: =VLOOKUP($E15,'RECAP AG'!$G$6:$CU$247,23,FALSE) -> 50.00 | N15: =VLOOKUP($E15,'RECAP AG'!$G$6:$CU$247,24,FALSE) -> 66% | O15: =VLOOKUP($E15,'RECAP AG'!$G$6:$CU$247,25,FALSE) -> 163 | P15: =VLOOKUP($E15,'RECAP AG'!$G$6:$CU$247,26,FALSE) -> 81% | Q15: =VLOOKUP($E15,'RECAP AG'!$G$6:$CU$247,27,FALSE) -> 81% | R15: =VLOOKUP($E15,'RECAP AG'!$G$6:$CU$247,28,FALSE) -> 173
A16: 50 | B16: AUBE HAUTE MARNE | C16: 14 | D16: TROYES | E16: 510523 | F16: LA CHAPELLE ST LUC | G16: =VLOOKUP($E16,'RECAP AG'!$G$6:$CU$247,3,FALSE) -> 4.6 | H16: =VLOOKUP($E16,'RECAP AG'!$G$6:$CU$247,18,FALSE) -> 52.0 | I16: =VLOOKUP($E16,'RECAP AG'!$G$6:$CU$247,19,FALSE) -> 11.21 | J16: =VLOOKUP($E16,'RECAP AG'!$G$6:$CU$247,20,FALSE) -> 89% | K16: =VLOOKUP($E16,'RECAP AG'!$G$6:$CU$247,21,FALSE) -> 165 | L16: =VLOOKUP($E16,'RECAP AG'!$G$6:$CU$247,22,FALSE) -> 343 | M16: =VLOOKUP($E16,'RECAP AG'!$G$6:$CU$247,23,FALSE) -> 73.92 | N16: =VLOOKUP($E16,'RECAP AG'!$G$6:$CU$247,24,FALSE) -> 50% | O16: =VLOOKUP($E16,'RECAP AG'!$G$6:$CU$247,25,FALSE) -> 53 | P16: =VLOOKUP($E16,'RECAP AG'!$G$6:$CU$247,26,FALSE) -> 74% | Q16: =VLOOKUP($E16,'RECAP AG'!$G$6:$CU$247,27,FALSE) -> 74% | R16: =VLOOKUP($E16,'RECAP AG'!$G$6:$CU$247,28,FALSE) -> 119
A17: 50 | B17: AUBE HAUTE MARNE | C17: 14 | D17: TROYES | E17: 510530 | F17: ARCIS SUR AUBE | G17: =VLOOKUP($E17,'RECAP AG'!$G$6:$CU$247,3,FALSE) -> 3.6 | H17: =VLOOKUP($E17,'RECAP AG'!$G$6:$CU$247,18,FALSE) -> 57.3 | I17: =VLOOKUP($E17,'RECAP AG'!$G$6:$CU$247,19,FALSE) -> 15.79 | J17: =VLOOKUP($E17,'RECAP AG'!$G$6:$CU$247,20,FALSE) -> 85% | K17: =VLOOKUP($E17,'RECAP AG'!$G$6:$CU$247,21,FALSE) -> 140 | L17: =VLOOKUP($E17,'RECAP AG'!$G$6:$CU$247,22,FALSE) -> 183 | M17: =VLOOKUP($E17,'RECAP AG'!$G$6:$CU$247,23,FALSE) -> 50.41 | N17: =VLOOKUP($E17,'RECAP AG'!$G$6:$CU$247,24,FALSE) -> 66% | O17: =VLOOKUP($E17,'RECAP AG'!$G$6:$CU$247,25,FALSE) -> 161 | P17: =VLOOKUP($E17,'RECAP AG'!$G$6:$CU$247,26,FALSE) -> 77% | Q17: =VLOOKUP($E17,'RECAP AG'!$G$6:$CU$247,27,FALSE) -> 77% | R17: =VLOOKUP($E17,'RECAP AG'!$G$6:$CU$247,28,FALSE) -> 148
A18: 50 | B18: AUBE HAUTE MARNE | C18: 14 | D18: TROYES | E18: 410550 | F18: BAR SUR AUBE | G18: =VLOOKUP($E18,'RECAP AG'!$G$6:$CU$247,3,FALSE) -> 5.2 | H18: =VLOOKUP($E18,'RECAP AG'!$G$6:$CU$247,18,FALSE) -> 65.8 | I18: =VLOOKUP($E18,'RECAP AG'!$G$6:$CU$247,19,FALSE) -> 12.63 | J18: =VLOOKUP($E18,'RECAP AG'!$G$6:$CU$247,20,FALSE) -> 88% | K18: =VLOOKUP($E18,'RECAP AG'!$G$6:$CU$247,21,FALSE) -> 156 | L18: =VLOOKUP($E18,'RECAP AG'!$G$6:$CU$247,22,FALSE) -> 250 | M18: =VLOOKUP($E18,'RECAP AG'!$G$6:$CU$247,23,FALSE) -> 47.98 | N18: =VLOOKUP($E18,'RECAP AG'!$G$6:$CU$247,24,FALSE) -> 68% | O18: =VLOOKUP($E18,'RECAP AG'!$G$6:$CU$247,25,FALSE) -> 177 | P18: =VLOOKUP($E18,'RECAP AG'!$G$6:$CU$247,26,FALSE) -> 80% | Q18: =VLOOKUP($E18,'RECAP AG'!$G$6:$CU$247,27,FALSE) -> 80% | R18: =VLOOKUP($E18,'RECAP AG'!$G$6:$CU$247,28,FALSE) -> 168
A19: 50 | B19: AUBE HAUTE MARNE | C19: 14 | D19: TROYES | E19: 510556 | F19: BAR SUR SEINE | G19: =VLOOKUP($E19,'RECAP AG'!$G$6:$CU$247,3,FALSE) -> 2.6 | H19: =VLOOKUP($E19,'RECAP AG'!$G$6:$CU$247,18,FALSE) -> 13.4 | I19: =VLOOKUP($E19,'RECAP AG'!$G$6:$CU$247,19,FALSE) -> 5.10 | J19: =VLOOKUP($E19,'RECAP AG'!$G$6:$CU$247,20,FALSE) -> 95% | K19: =VLOOKUP($E19,'RECAP AG'!$G$6:$CU$247,21,FALSE) -> 196 | L19: =VLOOKUP($E19,'RECAP AG'!$G$6:$CU$247,22,FALSE) -> 103 | M19: =VLOOKUP($E19,'RECAP AG'!$G$6:$CU$247,23,FALSE) -> 39.16 | N19: =VLOOKUP($E19,'RECAP AG'!$G$6:$CU$247,24,FALSE) -> 74% | O19: =VLOOKUP($E19,'RECAP AG'!$G$6:$CU$247,25,FALSE) -> 221 | P19: =VLOOKUP($E19,'RECAP AG'!$G$6:$CU$247,26,FALSE) -> 87% | Q19: =VLOOKUP($E19,'RECAP AG'!$G$6:$CU$247,27,FALSE) -> 87% | R19: =VLOOKUP($E19,'RECAP AG'!$G$6:$CU$247,28,FALSE) -> 212
A20: 50 | B20: AUBE HAUTE MARNE | C20: 14 | D20: TROYES | E20: 510570 | F20: NOGENT SUR SEINE | G20: =VLOOKUP($E20,'RECAP AG'!$G$6:$CU$247,3,FALSE) -> 4.2 | H20: =VLOOKUP($E20,'RECAP AG'!$G$6:$CU$247,18,FALSE) -> 82.4 | I20: =VLOOKUP($E20,'RECAP AG'!$G$6:$CU$247,19,FALSE) -> 19.81 | J20: =VLOOKUP($E20,'RECAP AG'!$G$6:$CU$247,20,FALSE) -> 81% | K20: =VLOOKUP($E20,'RECAP AG'!$G$6:$CU$247,21,FALSE) -> 111 | L20: =VLOOKUP($E20,'RECAP AG'!$G$6:$CU$247,22,FALSE) -> 242 | M20: =VLOOKUP($E20,'RECAP AG'!$G$6:$CU$247,23,FALSE) -> 58.17 | N20: =VLOOKUP($E20,'RECAP AG'!$G$6:$CU$247,24,FALSE) -> 61% | O20: =VLOOKUP($E20,'RECAP AG'!$G$6:$CU$247,25,FALSE) -> 118 | P20: =VLOOKUP($E20,'RECAP AG'!$G$6:$CU$247,26,FALSE) -> 73% | Q20: =VLOOKUP($E20,'RECAP AG'!$G$6:$CU$247,27,FALSE) -> 73% | R20: =VLOOKUP($E20,'RECAP AG'!$G$6:$CU$247,28,FALSE) -> 113
A21: 50 | B21: AUBE HAUTE MARNE | C21: 14 | D21: TROYES | E21: 410571 | F21: ROMILLY SUR SEINE | G21: =VLOOKUP($E21,'RECAP AG'!$G$6:$CU$247,3,FALSE) -> 4.7 | H21: =VLOOKUP($E21,'RECAP AG'!$G$6:$CU$247,18,FALSE) -> 5.4 | I21: =VLOOKUP($E21,'RECAP AG'!$G$6:$CU$247,19,FALSE) -> 1.14 | J21: =VLOOKUP($E21,'RECAP AG'!$G$6:$CU$247,20,FALSE) -> 99% | K21: =VLOOKUP($E21,'RECAP AG'!$G$6:$CU$247,21,FALSE) -> 212 | L21: =VLOOKUP($E21,'RECAP AG'!$G$6:$CU$247,22,FALSE) -> 259 | M21: =VLOOKUP($E21,'RECAP AG'!$G$6:$CU$247,23,FALSE) -> 54.64 | N21: =VLOOKUP($E21,'RECAP AG'!$G$6:$CU$247,24,FALSE) -> 63% | O21: =VLOOKUP($E21,'RECAP AG'!$G$6:$CU$247,25,FALSE) -> 137 | P21: =VLOOKUP($E21,'RECAP AG'!$G$6:$CU$247,26,FALSE) -> 85% | Q21: =VLOOKUP($E21,'RECAP AG'!$G$6:$CU$247,27,FALSE) -> 85% | R21: =VLOOKUP($E21,'RECAP AG'!$G$6:$CU$247,28,FALSE) -> 202
A22: 50 | B22: AUBE HAUTE MARNE | C22: 14 | D22: TROYES | E22: 510520 | F22: SAINT ANDRE LES VERGERS | G22: =VLOOKUP($E22,'RECAP AG'!$G$6:$CU$247,3,FALSE) -> 3.1 | H22: =VLOOKUP($E22,'RECAP AG'!$G$6:$CU$247,18,FALSE) -> 3.2 | I22: =VLOOKUP($E22,'RECAP AG'!$G$6:$CU$247,19,FALSE) -> 1.04 | J22: =VLOOKUP($E22,'RECAP AG'!$G$6:$CU$247,20,FALSE) -> 99% | K22: =VLOOKUP($E22,'RECAP AG'!$G$6:$CU$247,21,FALSE) -> 213 | L22: =VLOOKUP($E22,'RECAP AG'!$G$6:$CU$247,22,FALSE) -> 212 | M22: =VLOOKUP($E22,'RECAP AG'!$G$6:$CU$247,23,FALSE) -> 69.06 | N22: =VLOOKUP($E22,'RECAP AG'!$G$6:$CU$247,24,FALSE) -> 53% | O22: =VLOOKUP($E22,'RECAP AG'!$G$6:$CU$247,25,FALSE) -> 68 | P22: =VLOOKUP($E22,'RECAP AG'!$G$6:$CU$247,26,FALSE) -> 81% | Q22: =VLOOKUP($E22,'RECAP AG'!$G$6:$CU$247,27,FALSE) -> 81% | R22: =VLOOKUP($E22,'RECAP AG'!$G$6:$CU$247,28,FALSE) -> 176
A23: 50 | B23: AUBE HAUTE MARNE | C23: 14 | D23: TROYES | E23: 410524 | F23: SAINT JULIEN LES VILLAS | G23: =VLOOKUP($E23,'RECAP AG'!$G$6:$CU$247,3,FALSE) -> 5.2 | H23: =VLOOKUP($E23,'RECAP AG'!$G$6:$CU$247,18,FALSE) -> 37.9 | I23: =VLOOKUP($E23,'RECAP AG'!$G$6:$CU$247,19,FALSE) -> 7.32 | J23: =VLOOKUP($E23,'RECAP AG'!$G$6:$CU$247,20,FALSE) -> 93% | K23: =VLOOKUP($E23,'RECAP AG'!$G$6:$CU$247,21,FALSE) -> 184 | L23: =VLOOKUP($E23,'RECAP AG'!$G$6:$CU$247,22,FALSE) -> 265 | M23: =VLOOKUP($E23,'RECAP AG'!$G$6:$CU$247,23,FALSE) -> 51.16 | N23: =VLOOKUP($E23,'RECAP AG'!$G$6:$CU$247,24,FALSE) -> 65% | O23: =VLOOKUP($E23,'RECAP AG'!$G$6:$CU$247,25,FALSE) -> 157 | P23: =VLOOKUP($E23,'RECAP AG'!$G$6:$CU$247,26,FALSE) -> 82% | Q23: =VLOOKUP($E23,'RECAP AG'!$G$6:$CU$247,27,FALSE) -> 82% | R23: =VLOOKUP($E23,'RECAP AG'!$G$6:$CU$247,28,FALSE) -> 183
A24: 50 | B24: AUBE HAUTE MARNE | C24: 14 | D24: TROYES | E24: 410521 | F24: SAINTE SAVINE | G24: =VLOOKUP($E24,'RECAP AG'!$G$6:$CU$247,3,FALSE) -> 4.2 | H24: =VLOOKUP($E24,'RECAP AG'!$G$6:$CU$247,18,FALSE) -> 20.9 | I24: =VLOOKUP($E24,'RECAP AG'!$G$6:$CU$247,19,FALSE) -> 5.04 | J24: =VLOOKUP($E24,'RECAP AG'!$G$6:$CU$247,20,FALSE) -> 95% | K24: =VLOOKUP($E24,'RECAP AG'!$G$6:$CU$247,21,FALSE) -> 197 | L24: =VLOOKUP($E24,'RECAP AG'!$G$6:$CU$247,22,FALSE) -> 220 | M24: =VLOOKUP($E24,'RECAP AG'!$G$6:$CU$247,23,FALSE) -> 53.01 | N24: =VLOOKUP($E24,'RECAP AG'!$G$6:$CU$247,24,FALSE) -> 64% | O24: =VLOOKUP($E24,'RECAP AG'!$G$6:$CU$247,25,FALSE) -> 147 | P24: =VLOOKUP($E24,'RECAP AG'!$G$6:$CU$247,26,FALSE) -> 83% | Q24: =VLOOKUP($E24,'RECAP AG'!$G$6:$CU$247,27,FALSE) -> 83% | R24: =VLOOKUP($E24,'RECAP AG'!$G$6:$CU$247,28,FALSE) -> 189
A25: 50 | B25: AUBE HAUTE MARNE | C25: 14 | D25: TROYES | E25: 510513 | F25: SAINT PARRES AUX TERTRES | G25: =VLOOKUP($E25,'RECAP AG'!$G$6:$CU$247,3,FALSE) -> 2.5 | H25: =VLOOKUP($E25,'RECAP AG'!$G$6:$CU$247,18,FALSE) -> 54.9 | I25: =VLOOKUP($E25,'RECAP AG'!$G$6:$CU$247,19,FALSE) -> 21.87 | J25: =VLOOKUP($E25,'RECAP AG'!$G$6:$CU$247,20,FALSE) -> 79% | K25: =VLOOKUP($E25,'RECAP AG'!$G$6:$CU$247,21,FALSE) -> 97 | L25: =VLOOKUP($E25,'RECAP AG'!$G$6:$CU$247,22,FALSE) -> 212 | M25: =VLOOKUP($E25,'RECAP AG'!$G$6:$CU$247,23,FALSE) -> 84.46 | N25: =VLOOKUP($E25,'RECAP AG'!$G$6:$CU$247,24,FALSE) -> 43% | O25: =VLOOKUP($E25,'RECAP AG'!$G$6:$CU$247,25,FALSE) -> 29 | P25: =VLOOKUP($E25,'RECAP AG'!$G$6:$CU$247,26,FALSE) -> 65% | Q25: =VLOOKUP($E25,'RECAP AG'!$G$6:$CU$247,27,FALSE) -> 65% | R25: =VLOOKUP($E25,'RECAP AG'!$G$6:$CU$247,28,FALSE) -> 56
A26: 50 | B26: AUBE HAUTE MARNE | C26: 14 | D26: TROYES | E26: 410510 | F26: TROYES GAMBETTA | G26: =VLOOKUP($E26,'RECAP AG'!$G$6:$CU$247,3,FALSE) -> 8.8 | H26: =VLOOKUP($E26,'RECAP AG'!$G$6:$CU$247,18,FALSE) -> 139.1 | I26: =VLOOKUP($E26,'RECAP AG'!$G$6:$CU$247,19,FALSE) -> 15.90 | J26: =VLOOKUP($E26,'RECAP AG'!$G$6:$CU$247,20,FALSE) -> 85% | K26: =VLOOKUP($E26,'RECAP AG'!$G$6:$CU$247,21,FALSE) -> 138 | L26: =VLOOKUP($E26,'RECAP AG'!$G$6:$CU$247,22,FALSE) -> 491 | M26: =VLOOKUP($E26,'RECAP AG'!$G$6:$CU$247,23,FALSE) -> 56.11 | N26: =VLOOKUP($E26,'RECAP AG'!$G$6:$CU$247,24,FALSE) -> 62% | O26: =VLOOKUP($E26,'RECAP AG'!$G$6:$CU$247,25,FALSE) -> 128 | P26: =VLOOKUP($E26,'RECAP AG'!$G$6:$CU$247,26,FALSE) -> 76% | Q26: =VLOOKUP($E26,'RECAP AG'!$G$6:$CU$247,27,FALSE) -> 76% | R26: =VLOOKUP($E26,'RECAP AG'!$G$6:$CU$247,28,FALSE) -> 138
A27: 50 | B27: AUBE HAUTE MARNE | C27: 14 | D27: TROYES | E27: 410512 | F27: TROYES ZOLA | G27: =VLOOKUP($E27,'RECAP AG'!$G$6:$CU$247,3,FALSE) -> 5.5 | H27: =VLOOKUP($E27,'RECAP AG'!$G$6:$CU$247,18,FALSE) -> -22.0 | I27: =VLOOKUP($E27,'RECAP AG'!$G$6:$CU$247,19,FALSE) -> -4.01 | J27: =VLOOKUP($E27,'RECAP AG'!$G$6:$CU$247,20,FALSE) -> 104% | K27: =VLOOKUP($E27,'RECAP AG'!$G$6:$CU$247,21,FALSE) -> 229 | L27: =VLOOKUP($E27,'RECAP AG'!$G$6:$CU$247,22,FALSE) -> 280 | M27: =VLOOKUP($E27,'RECAP AG'!$G$6:$CU$247,23,FALSE) -> 51.09 | N27: =VLOOKUP($E27,'RECAP AG'!$G$6:$CU$247,24,FALSE) -> 65% | O27: =VLOOKUP($E27,'RECAP AG'!$G$6:$CU$247,25,FALSE) -> 158 | P27: =VLOOKUP($E27,'RECAP AG'!$G$6:$CU$247,26,FALSE) -> 88% | Q27: =VLOOKUP($E27,'RECAP AG'!$G$6:$CU$247,27,FALSE) -> 88% | R27: =VLOOKUP($E27,'RECAP AG'!$G$6:$CU$247,28,FALSE) -> 224
A28: 262 | B28: BAS RHIN | C28: 5060 | D28: HAGUENAU | E28: 4057 | F28: BISCHWILLER | G28: =VLOOKUP($E28,'RECAP AG'!$G$6:$CU$247,3,FALSE) -> 7.0 | H28: =VLOOKUP($E28,'RECAP AG'!$G$6:$CU$247,18,FALSE) -> 269.2 | I28: =VLOOKUP($E28,'RECAP AG'!$G$6:$CU$247,19,FALSE) -> 38.46 | J28: =VLOOKUP($E28,'RECAP AG'!$G$6:$CU$247,20,FALSE) -> 63% | K28: =VLOOKUP($E28,'RECAP AG'!$G$6:$CU$247,21,FALSE) -> 29 | L28: =VLOOKUP($E28,'RECAP AG'!$G$6:$CU$247,22,FALSE) -> 330 | M28: =VLOOKUP($E28,'RECAP AG'!$G$6:$CU$247,23,FALSE) -> 47.14 | N28: =VLOOKUP($E28,'RECAP AG'!$G$6:$CU$247,24,FALSE) -> 68% | O28: =VLOOKUP($E28,'RECAP AG'!$G$6:$CU$247,25,FALSE) -> 185 | P28: =VLOOKUP($E28,'RECAP AG'!$G$6:$CU$247,26,FALSE) -> 65% | Q28: =VLOOKUP($E28,'RECAP AG'!$G$6:$CU$247,27,FALSE) -> 65% | R28: =VLOOKUP($E28,'RECAP AG'!$G$6:$CU$247,28,FALSE) -> 58
A29: 262 | B29: BAS RHIN | C29: 5060 | D29: HAGUENAU | E29: 4082 | F29: BOUXWILLER | G29: =VLOOKUP($E29,'RECAP AG'!$G$6:$CU$247,3,FALSE) -> 2.4 | H29: =VLOOKUP($E29,'RECAP AG'!$G$6:$CU$247,18,FALSE) -> 10.9 | I29: =VLOOKUP($E29,'RECAP AG'!$G$6:$CU$247,19,FALSE) -> 4.64 | J29: =VLOOKUP($E29,'RECAP AG'!$G$6:$CU$247,20,FALSE) -> 96% | K29: =VLOOKUP($E29,'RECAP AG'!$G$6:$CU$247,21,FALSE) -> 198 | L29: =VLOOKUP($E29,'RECAP AG'!$G$6:$CU$247,22,FALSE) -> 104 | M29: =VLOOKUP($E29,'RECAP AG'!$G$6:$CU$247,23,FALSE) -> 44.26 | N29: =VLOOKUP($E29,'RECAP AG'!$G$6:$CU$247,24,FALSE) -> 70% | O29: =VLOOKUP($E29,'RECAP AG'!$G$6:$CU$247,25,FALSE) -> 199 | P29: =VLOOKUP($E29,'RECAP AG'!$G$6:$CU$247,26,FALSE) -> 85% | Q29: =VLOOKUP($E29,'RECAP AG'!$G$6:$CU$247,27,FALSE) -> 85% | R29: =VLOOKUP($E29,'RECAP AG'!$G$6:$CU$247,28,FALSE) -> 207
A30: 262 | B30: BAS RHIN | C30: 5060 | D30: HAGUENAU | E30: 4030 | F30: BRUMATH | G30: =VLOOKUP($E30,'RECAP AG'!$G$6:$CU$247,3,FALSE) -> 3.8 | H30: =VLOOKUP($E30,'RECAP AG'!$G$6:$CU$247,18,FALSE) -> 115.9 | I30: =VLOOKUP($E30,'RECAP AG'!$G$6:$CU$247,19,FALSE) -> 30.34 | J30: =VLOOKUP($E30,'RECAP AG'!$G$6:$CU$247,20,FALSE) -> 71% | K30: =VLOOKUP($E30,'RECAP AG'!$G$6:$CU$247,21,FALSE) -> 54 | L30: =VLOOKUP($E30,'RECAP AG'!$G$6:$CU$247,22,FALSE) -> 181 | M30: =VLOOKUP($E30,'RECAP AG'!$G$6:$CU$247,23,FALSE) -> 47.38 | N30: =VLOOKUP($E30,'RECAP AG'!$G$6:$CU$247,24,FALSE) -> 68% | O30: =VLOOKUP($E30,'RECAP AG'!$G$6:$CU$247,25,FALSE) -> 179 | P30: =VLOOKUP($E30,'RECAP AG'!$G$6:$CU$247,26,FALSE) -> 70% | Q30: =VLOOKUP($E30,'RECAP AG'!$G$6:$CU$247,27,FALSE) -> 70% | R30: =VLOOKUP($E30,'RECAP AG'!$G$6:$CU$247,28,FALSE) -> 90
A31: 262 | B31: BAS RHIN | C31: 5060 | D31: HAGUENAU | E31: 4060 | F31: HAGUENAU HOUBLON | G31: =VLOOKUP($E31,'RECAP AG'!$G$6:$CU$247,3,FALSE) -> 8.6 | H31: =VLOOKUP($E31,'RECAP AG'!$G$6:$CU$247,18,FALSE) -> 96.3 | I31: =VLOOKUP($E31,'RECAP AG'!$G$6:$CU$247,19,FALSE) -> 11.24 | J31: =VLOOKUP($E31,'RECAP AG'!$G$6:$CU$247,20,FALSE) -> 89% | K31: =VLOOKUP($E31,'RECAP AG'!$G$6:$CU$247,21,FALSE) -> 164 | L31: =VLOOKUP($E31,'RECAP AG'!$G$6:$CU$247,22,FALSE) -> 401 | M31: =VLOOKUP($E31,'RECAP AG'!$G$6:$CU$247,23,FALSE) -> 46.79 | N31: =VLOOKUP($E31,'RECAP AG'!$G$6:$CU$247,24,FALSE) -> 68% | O31: =VLOOKUP($E31,'RECAP AG'!$G$6:$CU$247,25,FALSE) -> 187 | P31: =VLOOKUP($E31,'RECAP AG'!$G$6:$CU$247,26,FALSE) -> 81% | Q31: =VLOOKUP($E31,'RECAP AG'!$G$6:$CU$247,27,FALSE) -> 81% | R31: =VLOOKUP($E31,'RECAP AG'!$G$6:$CU$247,28,FALSE) -> 179
A32: 262 | B32: BAS RHIN | C32: 5060 | D32: HAGUENAU | E32: 4092 | F32: HOCHFELDEN | G32: =VLOOKUP($E32,'RECAP AG'!$G$6:$CU$247,3,FALSE) -> 1.9 | H32: =VLOOKUP($E32,'RECAP AG'!$G$6:$CU$247,18,FALSE) -> 25.5 | I32: =VLOOKUP($E32,'RECAP AG'!$G$6:$CU$247,19,FALSE) -> 13.14 | J32: =VLOOKUP($E32,'RECAP AG'!$G$6:$CU$247,20,FALSE) -> 87% | K32: =VLOOKUP($E32,'RECAP AG'!$G$6:$CU$247,21,FALSE) -> 153 | L32: =VLOOKUP($E32,'RECAP AG'!$G$6:$CU$247,22,FALSE) -> 128 | M32: =VLOOKUP($E32,'RECAP AG'!$G$6:$CU$247,23,FALSE) -> 65.98 | N32: =VLOOKUP($E32,'RECAP AG'!$G$6:$CU$247,24,FALSE) -> 55% | O32: =VLOOKUP($E32,'RECAP AG'!$G$6:$CU$247,25,FALSE) -> 82 | P32: =VLOOKUP($E32,'RECAP AG'!$G$6:$CU$247,26,FALSE) -> 75% | Q32: =VLOOKUP($E32,'RECAP AG'!$G$6:$CU$247,27,FALSE) -> 75% | R32: =VLOOKUP($E32,'RECAP AG'!$G$6:$CU$247,28,FALSE) -> 127
A33: 262 | B33: BAS RHIN | C33: 5060 | D33: HAGUENAU | E33: 4041 | F33: HOERDT | G33: =VLOOKUP($E33,'RECAP AG'!$G$6:$CU$247,3,FALSE) -> 1.7 | H33: =VLOOKUP($E33,'RECAP AG'!$G$6:$CU$247,18,FALSE) -> 25.4 | I33: =VLOOKUP($E33,'RECAP AG'!$G$6:$CU$247,19,FALSE) -> 15.21 | J33: =VLOOKUP($E33,'RECAP AG'!$G$6:$CU$247,20,FALSE) -> 86% | K33: =VLOOKUP($E33,'RECAP AG'!$G$6:$CU$247,21,FALSE) -> 141 | L33: =VLOOKUP($E33,'RECAP AG'!$G$6:$CU$247,22,FALSE) -> 79 | M33: =VLOOKUP($E33,'RECAP AG'!$G$6:$CU$247,23,FALSE) -> 47.31 | N33: =VLOOKUP($E33,'RECAP AG'!$G$6:$CU$247,24,FALSE) -> 68% | O33: =VLOOKUP($E33,'RECAP AG'!$G$6:$CU$247,25,FALSE) -> 182 | P33: =VLOOKUP($E33,'RECAP AG'!$G$6:$CU$247,26,FALSE) -> 79% | Q33: =VLOOKUP($E33,'RECAP AG'!$G$6:$CU$247,27,FALSE) -> 79% | R33: =VLOOKUP($E33,'RECAP AG'!$G$6:$CU$247,28,FALSE) -> 155
A34: 262 | B34: BAS RHIN | C34: 5060 | D34: HAGUENAU | E34: 4085 | F34: INGWILLER | G34: =VLOOKUP($E34,'RECAP AG'!$G$6:$CU$247,3,FALSE) -> 3.5 | H34: =VLOOKUP($E34,'RECAP AG'!$G$6:$CU$247,18,FALSE) -> 45.4 | I34: =VLOOKUP($E34,'RECAP AG'!$G$6:$CU$247,19,FALSE) -> 12.90 | J34: =VLOOKUP($E34,'RECAP AG'!$G$6:$CU$247,20,FALSE) -> 88% | K34: =VLOOKUP($E34,'RECAP AG'!$G$6:$CU$247,21,FALSE) -> 154 | L34: =VLOOKUP($E34,'RECAP AG'!$G$6:$CU$247,22,FALSE) -> 189 | M34: =VLOOKUP($E34,'RECAP AG'!$G$6:$CU$247,23,FALSE) -> 53.69 | N34: =VLOOKUP($E34,'RECAP AG'!$G$6:$CU$247,24,FALSE) -> 64% | O34: =VLOOKUP($E34,'RECAP AG'!$G$6:$CU$247,25,FALSE) -> 144 | P34: =VLOOKUP($E34,'RECAP AG'!$G$6:$CU$247,26,FALSE) -> 78% | Q34: =VLOOKUP($E34,'RECAP AG'!$G$6:$CU$247,27,FALSE) -> 78% | R34: =VLOOKUP($E34,'RECAP AG'!$G$6:$CU$247,28,FALSE) -> 153
A35: 262 | B35: BAS RHIN | C35: 5060 | D35: HAGUENAU | E35: 4066 | F35: NIEDERBRONN LES BAINS | G35: =VLOOKUP($E35,'RECAP AG'!$G$6:$CU$247,3,FALSE) -> 5.7 | H35: =VLOOKUP($E35,'RECAP AG'!$G$6:$CU$247,18,FALSE) -> 1.6 | I35: =VLOOKUP($E35,'RECAP AG'!$G$6:$CU$247,19,FALSE) -> 0.28 | J35: =VLOOKUP($E35,'RECAP AG'!$G$6:$CU$247,20,FALSE) -> 100% | K35: =VLOOKUP($E35,'RECAP AG'!$G$6:$CU$247,21,FALSE) -> 217 | L35: =VLOOKUP($E35,'RECAP AG'!$G$6:$CU$247,22,FALSE) -> 267 | M35: =VLOOKUP($E35,'RECAP AG'!$G$6:$CU$247,23,FALSE) -> 47.01 | N35: =VLOOKUP($E35,'RECAP AG'!$G$6:$CU$247,24,FALSE) -> 68% | O35: =VLOOKUP($E35,'RECAP AG'!$G$6:$CU$247,25,FALSE) -> 186 | P35: =VLOOKUP($E35,'RECAP AG'!$G$6:$CU$247,26,FALSE) -> 87% | Q35: =VLOOKUP($E35,'RECAP AG'!$G$6:$CU$247,27,FALSE) -> 87% | R35: =VLOOKUP($E35,'RECAP AG'!$G$6:$CU$247,28,FALSE) -> 216
A36: 262 | B36: BAS RHIN | C36: 5060 | D36: HAGUENAU | E36: 4067 | F36: PFAFFENHOFFEN | G36: =VLOOKUP($E36,'RECAP AG'!$G$6:$CU$247,3,FALSE) -> 1.9 | H36: =VLOOKUP($E36,'RECAP AG'!$G$6:$CU$247,18,FALSE) -> 41.7 | I36: =VLOOKUP($E36,'RECAP AG'!$G$6:$CU$247,19,FALSE) -> 22.30 | J36: =VLOOKUP($E36,'RECAP AG'!$G$6:$CU$247,20,FALSE) -> 79% | K36: =VLOOKUP($E36,'RECAP AG'!$G$6:$CU$247,21,FALSE) -> 92 | L36: =VLOOKUP($E36,'RECAP AG'!$G$6:$CU$247,22,FALSE) -> 100 | M36: =VLOOKUP($E36,'RECAP AG'!$G$6:$CU$247,23,FALSE) -> 53.48 | N36: =VLOOKUP($E36,'RECAP AG'!$G$6:$CU$247,24,FALSE) -> 64% | O36: =VLOOKUP($E36,'RECAP AG'!$G$6:$CU$247,25,FALSE) -> 145 | P36: =VLOOKUP($E36,'RECAP AG'!$G$6:$CU$247,26,FALSE) -> 73% | Q36: =VLOOKUP($E36,'RECAP AG'!$G$6:$CU$247,27,FALSE) -> 73% | R36: =VLOOKUP($E36,'RECAP AG'!$G$6:$CU$247,28,FALSE) -> 112
A37: 262 | B37: BAS RHIN | C37: 5060 | D37: HAGUENAU | E37: 4095 | F37: SARRE UNION | G37: =VLOOKUP($E37,'RECAP AG'!$G$6:$CU$247,3,FALSE) -> 2.7 | H37: =VLOOKUP($E37,'RECAP AG'!$G$6:$CU$247,18,FALSE) -> 20.5 | I37: =VLOOKUP($E37,'RECAP AG'!$G$6:$CU$247,19,FALSE) -> 7.62 | J37: =VLOOKUP($E37,'RECAP AG'!$G$6:$CU$247,20,FALSE) -> 93% | K37: =VLOOKUP($E37,'RECAP AG'!$G$6:$CU$247,21,FALSE) -> 183 | L37: =VLOOKUP($E37,'RECAP AG'!$G$6:$CU$247,22,FALSE) -> 110 | M37: =VLOOKUP($E37,'RECAP AG'!$G$6:$CU$247,23,FALSE) -> 40.89 | N37: =VLOOKUP($E37,'RECAP AG'!$G$6:$CU$247,24,FALSE) -> 72% | O37: =VLOOKUP($E37,'RECAP AG'!$G$6:$CU$247,25,FALSE) -> 214 | P37: =VLOOKUP($E37,'RECAP AG'!$G$6:$CU$247,26,FALSE) -> 85% | Q37: =VLOOKUP($E37,'RECAP AG'!$G$6:$CU$247,27,FALSE) -> 85% | R37: =VLOOKUP($E37,'RECAP AG'!$G$6:$CU$247,28,FALSE) -> 203
A38: 262 | B38: BAS RHIN | C38: 5060 | D38: HAGUENAU | E38: 4087 | F38: SAVERNE | G38: =VLOOKUP($E38,'RECAP AG'!$G$6:$CU$247,3,FALSE) -> 5.8 | H38: =VLOOKUP($E38,'RECAP AG'!$G$6:$CU$247,18,FALSE) -> 146.9 | I38: =VLOOKUP($E38,'RECAP AG'!$G$6:$CU$247,19,FALSE) -> 25.15 | J38: =VLOOKUP($E38,'RECAP AG'!$G$6:$CU$247,20,FALSE) -> 76% | K38: =VLOOKUP($E38,'RECAP AG'!$G$6:$CU$247,21,FALSE) -> 79 | L38: =VLOOKUP($E38,'RECAP AG'!$G$6:$CU$247,22,FALSE) -> 269 | M38: =VLOOKUP($E38,'RECAP AG'!$G$6:$CU$247,23,FALSE) -> 46.06 | N38: =VLOOKUP($E38,'RECAP AG'!$G$6:$CU$247,24,FALSE) -> 69% | O38: =VLOOKUP($E38,'RECAP AG'!$G$6:$CU$247,25,FALSE) -> 193 | P38: =VLOOKUP($E38,'RECAP AG'!$G$6:$CU$247,26,FALSE) -> 73% | Q38: =VLOOKUP($E38,'RECAP AG'!$G$6:$CU$247,27,FALSE) -> 73% | R38: =VLOOKUP($E38,'RECAP AG'!$G$6:$CU$247,28,FALSE) -> 116
A39: 262 | B39: BAS RHIN | C39: 5060 | D39: HAGUENAU | E39: 4031 | F39: TRUCHTERSHEIM | G39: =VLOOKUP($E39,'RECAP AG'!$G$6:$CU$247,3,FALSE) -> 2.3 | H39: =VLOOKUP($E39,'RECAP AG'!$G$6:$CU$247,18,FALSE) -> 94.9 | I39: =VLOOKUP($E39,'RECAP AG'!$G$6:$CU$247,19,FALSE) -> 41.08 | J39: =VLOOKUP($E39,'RECAP AG'!$G$6:$CU$247,20,FALSE) -> 61% | K39: =VLOOKUP($E39,'RECAP AG'!$G$6:$CU$247,21,FALSE) -> 20 | L39: =VLOOKUP($E39,'RECAP AG'!$G$6:$CU$247,22,FALSE) -> 85 | M39: =VLOOKUP($E39,'RECAP AG'!$G$6:$CU$247,23,FALSE) -> 36.80 | N39: =VLOOKUP($E39,'RECAP AG'!$G$6:$CU$247,24,FALSE) -> 75% | O39: =VLOOKUP($E39,'RECAP AG'!$G$6:$CU$247,25,FALSE) -> 232 | P39: =VLOOKUP($E39,'RECAP AG'!$G$6:$CU$247,26,FALSE) -> 67% | Q39: =VLOOKUP($E39,'RECAP AG'!$G$6:$CU$247,27,FALSE) -> 67% | R39: =VLOOKUP($E39,'RECAP AG'!$G$6:$CU$247,28,FALSE) -> 66
A40: 262 | B40: BAS RHIN | C40: 5060 | D40: HAGUENAU | E40: 4071 | F40: WISSEMBOURG | G40: =VLOOKUP($E40,'RECAP AG'!$G$6:$CU$247,3,FALSE) -> 8.0 | H40: =VLOOKUP($E40,'RECAP AG'!$G$6:$CU$247,18,FALSE) -> 182.1 | I40: =VLOOKUP($E40,'RECAP AG'!$G$6:$CU$247,19,FALSE) -> 22.85 | J40: =VLOOKUP($E40,'RECAP AG'!$G$6:$CU$247,20,FALSE) -> 78% | K40: =VLOOKUP($E40,'RECAP AG'!$G$6:$CU$247,21,FALSE) -> 86 | L40: =VLOOKUP($E40,'RECAP AG'!$G$6:$CU$247,22,FALSE) -> 492 | M40: =VLOOKUP($E40,'RECAP AG'!$G$6:$CU$247,23,FALSE) -> 61.73 | N40: =VLOOKUP($E40,'RECAP AG'!$G$6:$CU$247,24,FALSE) -> 58% | O40: =VLOOKUP($E40,'RECAP AG'!$G$6:$CU$247,25,FALSE) -> 102 | P40: =VLOOKUP($E40,'RECAP AG'!$G$6:$CU$247,26,FALSE) -> 70% | Q40: =VLOOKUP($E40,'RECAP AG'!$G$6:$CU$247,27,FALSE) -> 70% | R40: =VLOOKUP($E40,'RECAP AG'!$G$6:$CU$247,28,FALSE) -> 91
A41: 262 | B41: BAS RHIN | C41: 5101 | D41: SELESTAT | E41: 4113 | F41: BARR | G41: =VLOOKUP($E41,'RECAP AG'!$G$6:$CU$247,3,FALSE) -> 2.9 | H41: =VLOOKUP($E41,'RECAP AG'!$G$6:$CU$247,18,FALSE) -> 118.5 | I41: =VLOOKUP($E41,'RECAP AG'!$G$6:$CU$247,19,FALSE) -> 41.15 | J41: =VLOOKUP($E41,'RECAP AG'!$G$6:$CU$247,20,FALSE) -> 61% | K41: =VLOOKUP($E41,'RECAP AG'!$G$6:$CU$247,21,FALSE) -> 19 | L41: =VLOOKUP($E41,'RECAP AG'!$G$6:$CU$247,22,FALSE) -> 194 | M41: =VLOOKUP($E41,'RECAP AG'!$G$6:$CU$247,23,FALSE) -> 67.36 | N41: =VLOOKUP($E41,'RECAP AG'!$G$6:$CU$247,24,FALSE) -> 54% | O41: =VLOOKUP($E41,'RECAP AG'!$G$6:$CU$247,25,FALSE) -> 76 | P41: =VLOOKUP($E41,'RECAP AG'!$G$6:$CU$247,26,FALSE) -> 58% | Q41: =VLOOKUP($E41,'RECAP AG'!$G$6:$CU$247,27,FALSE) -> 58% | R41: =VLOOKUP($E41,'RECAP AG'!$G$6:$CU$247,28,FALSE) -> 32
A42: 262 | B42: BAS RHIN | C42: 5101 | D42: SELESTAT | E42: 4111 | F42: BENFELD | G42: =VLOOKUP($E42,'RECAP AG'!$G$6:$CU$247,3,FALSE) -> 3.1 | H42: =VLOOKUP($E42,'RECAP AG'!$G$6:$CU$247,18,FALSE) -> 4.3 | I42: =VLOOKUP($E42,'RECAP AG'!$G$6:$CU$247,19,FALSE) -> 1.41 | J42: =VLOOKUP($E42,'RECAP AG'!$G$6:$CU$247,20,FALSE) -> 99% | K42: =VLOOKUP($E42,'RECAP AG'!$G$6:$CU$247,21,FALSE) -> 210 | L42: =VLOOKUP($E42,'RECAP AG'!$G$6:$CU$247,22,FALSE) -> 115 | M42: =VLOOKUP($E42,'RECAP AG'!$G$6:$CU$247,23,FALSE) -> 37.70 | N42: =VLOOKUP($E42,'RECAP AG'!$G$6:$CU$247,24,FALSE) -> 75% | O42: =VLOOKUP($E42,'RECAP AG'!$G$6:$CU$247,25,FALSE) -> 227 | P42: =VLOOKUP($E42,'RECAP AG'!$G$6:$CU$247,26,FALSE) -> 89% | Q42: =VLOOKUP($E42,'RECAP AG'!$G$6:$CU$247,27,FALSE) -> 89% | R42: =VLOOKUP($E42,'RECAP AG'!$G$6:$CU$247,28,FALSE) -> 227
A43: 262 | B43: BAS RHIN | C43: 5101 | D43: SELESTAT | E43: 4104 | F43: ERSTEIN | G43: =VLOOKUP($E43,'RECAP AG'!$G$6:$CU$247,3,FALSE) -> 4.2 | H43: =VLOOKUP($E43,'RECAP AG'!$G$6:$CU$247,18,FALSE) -> 220.2 | I43: =VLOOKUP($E43,'RECAP AG'!$G$6:$CU$247,19,FALSE) -> 53.06 | J43: =VLOOKUP($E43,'RECAP AG'!$G$6:$CU$247,20,FALSE) -> 49% | K43: =VLOOKUP($E43,'RECAP AG'!$G$6:$CU$247,21,FALSE) -> 6 | L43: =VLOOKUP($E43,'RECAP AG'!$G$6:$CU$247,22,FALSE) -> 282 | M43: =VLOOKUP($E43,'RECAP AG'!$G$6:$CU$247,23,FALSE) -> 67.95 | N43: =VLOOKUP($E43,'RECAP AG'!$G$6:$CU$247,24,FALSE) -> 54% | O43: =VLOOKUP($E43,'RECAP AG'!$G$6:$CU$247,25,FALSE) -> 75 | P43: =VLOOKUP($E43,'RECAP AG'!$G$6:$CU$247,26,FALSE) -> 51% | Q43: =VLOOKUP($E43,'RECAP AG'!$G$6:$CU$247,27,FALSE) -> 51% | R43: =VLOOKUP($E43,'RECAP AG'!$G$6:$CU$247,28,FALSE) -> 12
A44: 262 | B44: BAS RHIN | C44: 5101 | D44: SELESTAT | E44: 4008 | F44: FEGERSHEIM | G44: =VLOOKUP($E44,'RECAP AG'!$G$6:$CU$247,3,FALSE) -> 2.4 | H44: =VLOOKUP($E44,'RECAP AG'!$G$6:$CU$247,18,FALSE) -> 67.1 | I44: =VLOOKUP($E44,'RECAP AG'!$G$6:$CU$247,19,FALSE) -> 27.96 | J44: =VLOOKUP($E44,'RECAP AG'!$G$6:$CU$247,20,FALSE) -> 73% | K44: =VLOOKUP($E44,'RECAP AG'!$G$6:$CU$247,21,FALSE) -> 63 | L44: =VLOOKUP($E44,'RECAP AG'!$G$6:$CU$247,22,FALSE) -> 90 | M44: =VLOOKUP($E44,'RECAP AG'!$G$6:$CU$247,23,FALSE) -> 37.50 | N44: =VLOOKUP($E44,'RECAP AG'!$G$6:$CU$247,24,FALSE) -> 75% | O44: =VLOOKUP($E44,'RECAP AG'!$G$6:$CU$247,25,FALSE) -> 228 | P44: =VLOOKUP($E44,'RECAP AG'!$G$6:$CU$247,26,FALSE) -> 74% | Q44: =VLOOKUP($E44,'RECAP AG'!$G$6:$CU$247,27,FALSE) -> 74% | R44: =VLOOKUP($E44,'RECAP AG'!$G$6:$CU$247,28,FALSE) -> 124
A45: 262 | B45: BAS RHIN | C45: 5101 | D45: SELESTAT | E45: 4007 | F45: ILLKIRCH CENTRE | G45: =VLOOKUP($E45,'RECAP AG'!$G$6:$CU$247,3,FALSE) -> 6.5 | H45: =VLOOKUP($E45,'RECAP AG'!$G$6:$CU$247,18,FALSE) -> 113.2 | I45: =VLOOKUP($E45,'RECAP AG'!$G$6:$CU$247,19,FALSE) -> 17.44 | J45: =VLOOKUP($E45,'RECAP AG'!$G$6:$CU$247,20,FALSE) -> 83% | K45: =VLOOKUP($E45,'RECAP AG'!$G$6:$CU$247,21,FALSE) -> 128 | L45: =VLOOKUP($E45,'RECAP AG'!$G$6:$CU$247,22,FALSE) -> 323 | M45: =VLOOKUP($E45,'RECAP AG'!$G$6:$CU$247,23,FALSE) -> 49.77 | N45: =VLOOKUP($E45,'RECAP AG'!$G$6:$CU$247,24,FALSE) -> 66% | O45: =VLOOKUP($E45,'RECAP AG'!$G$6:$CU$247,25,FALSE) -> 166 | P45: =VLOOKUP($E45,'RECAP AG'!$G$6:$CU$247,26,FALSE) -> 77% | Q45: =VLOOKUP($E45,'RECAP AG'!$G$6:$CU$247,27,FALSE) -> 77% | R45: =VLOOKUP($E45,'RECAP AG'!$G$6:$CU$247,28,FALSE) -> 143
A46: 262 | B46: BAS RHIN | C46: 5101 | D46: SELESTAT | E46: 4015 | F46: LINGOLSHEIM | G46: =VLOOKUP($E46,'RECAP AG'!$G$6:$CU$247,3,FALSE) -> 2.5 | H46: =VLOOKUP($E46,'RECAP AG'!$G$6:$CU$247,18,FALSE) -> -29.4 | I46: =VLOOKUP($E46,'RECAP AG'!$G$6:$CU$247,19,FALSE) -> -11.76 | J46: =VLOOKUP($E46,'RECAP AG'!$G$6:$CU$247,20,FALSE) -> 111% | K46: =VLOOKUP($E46,'RECAP AG'!$G$6:$CU$247,21,FALSE) -> 237 | L46: =VLOOKUP($E46,'RECAP AG'!$G$6:$CU$247,22,FALSE) -> 154 | M46: =VLOOKUP($E46,'RECAP AG'!$G$6:$CU$247,23,FALSE) -> 61.60 | N46: =VLOOKUP($E46,'RECAP AG'!$G$6:$CU$247,24,FALSE) -> 58% | O46: =VLOOKUP($E46,'RECAP AG'!$G$6:$CU$247,25,FALSE) -> 103 | P46: =VLOOKUP($E46,'RECAP AG'!$G$6:$CU$247,26,FALSE) -> 90% | Q46: =VLOOKUP($E46,'RECAP AG'!$G$6:$CU$247,27,FALSE) -> 90% | R46: =VLOOKUP($E46,'RECAP AG'!$G$6:$CU$247,28,FALSE) -> 234
A47: 262 | B47: BAS RHIN | C47: 5101 | D47: SELESTAT | E47: 4109 | F47: MARCKOLSHEIM | G47: =VLOOKUP($E47,'RECAP AG'!$G$6:$CU$247,3,FALSE) -> 2.5 | H47: =VLOOKUP($E47,'RECAP AG'!$G$6:$CU$247,18,FALSE) -> 40.1 | I47: =VLOOKUP($E47,'RECAP AG'!$G$6:$CU$247,19,FALSE) -> 16.23 | J47: =VLOOKUP($E47,'RECAP AG'!$G$6:$CU$247,20,FALSE) -> 85% | K47: =VLOOKUP($E47,'RECAP AG'!$G$6:$CU$247,21,FALSE) -> 134 | L47: =VLOOKUP($E47,'RECAP AG'!$G$6:$CU$247,22,FALSE) -> 114 | M47: =VLOOKUP($E47,'RECAP AG'!$G$6:$CU$247,23,FALSE) -> 46.15 | N47: =VLOOKUP($E47,'RECAP AG'!$G$6:$CU$247,24,FALSE) -> 69% | O47: =VLOOKUP($E47,'RECAP AG'!$G$6:$CU$247,25,FALSE) -> 192 | P47: =VLOOKUP($E47,'RECAP AG'!$G$6:$CU$247,26,FALSE) -> 78% | Q47: =VLOOKUP($E47,'RECAP AG'!$G$6:$CU$247,27,FALSE) -> 78% | R47: =VLOOKUP($E47,'RECAP AG'!$G$6:$CU$247,28,FALSE) -> 154
A48: 262 | B48: BAS RHIN | C48: 5101 | D48: SELESTAT | E48: 4120 | F48: WASSELONNE | G48: =VLOOKUP($E48,'RECAP AG'!$G$6:$CU$247,3,FALSE) -> 2.8 | H48: =VLOOKUP($E48,'RECAP AG'!$G$6:$CU$247,18,FALSE) -> -0.4 | I48: =VLOOKUP($E48,'RECAP AG'!$G$6:$CU$247,19,FALSE) -> -0.14 | J48: =VLOOKUP($E48,'RECAP AG'!$G$6:$CU$247,20,FALSE) -> 100% | K48: =VLOOKUP($E48,'RECAP AG'!$G$6:$CU$247,21,FALSE) -> 219 | L48: =VLOOKUP($E48,'RECAP AG'!$G$6:$CU$247,22,FALSE) -> 166 | M48: =VLOOKUP($E48,'RECAP AG'!$G$6:$CU$247,23,FALSE) -> 59.50 | N48: =VLOOKUP($E48,'RECAP AG'!$G$6:$CU$247,24,FALSE) -> 60% | O48: =VLOOKUP($E48,'RECAP AG'!$G$6:$CU$247,25,FALSE) -> 114 | P48: =VLOOKUP($E48,'RECAP AG'!$G$6:$CU$247,26,FALSE) -> 84% | Q48: =VLOOKUP($E48,'RECAP AG'!$G$6:$CU$247,27,FALSE) -> 84% | R48: =VLOOKUP($E48,'RECAP AG'!$G$6:$CU$247,28,FALSE) -> 198
A49: 262 | B49: BAS RHIN | C49: 5101 | D49: SELESTAT | E49: 4116 | F49: MOLSHEIM | G49: =VLOOKUP($E49,'RECAP AG'!$G$6:$CU$247,3,FALSE) -> 3.9 | H49: =VLOOKUP($E49,'RECAP AG'!$G$6:$CU$247,18,FALSE) -> 6.3 | I49: =VLOOKUP($E49,'RECAP AG'!$G$6:$CU$247,19,FALSE) -> 1.64 | J49: =VLOOKUP($E49,'RECAP AG'!$G$6:$CU$247,20,FALSE) -> 98% | K49: =VLOOKUP($E49,'RECAP AG'!$G$6:$CU$247,21,FALSE) -> 209 | L49: =VLOOKUP($E49,'RECAP AG'!$G$6:$CU$247,22,FALSE) -> 144 | M49: =VLOOKUP($E49,'RECAP AG'!$G$6:$CU$247,23,FALSE) -> 37.40 | N49: =VLOOKUP($E49,'RECAP AG'!$G$6:$CU$247,24,FALSE) -> 75% | O49: =VLOOKUP($E49,'RECAP AG'!$G$6:$CU$247,25,FALSE) -> 229 | P49: =VLOOKUP($E49,'RECAP AG'!$G$6:$CU$247,26,FALSE) -> 89% | Q49: =VLOOKUP($E49,'RECAP AG'!$G$6:$CU$247,27,FALSE) -> 89% | R49: =VLOOKUP($E49,'RECAP AG'!$G$6:$CU$247,28,FALSE) -> 225
